Workbook

Sheet Інструкція
A1: ІНСТРУКЦІЯ
B4: 1. ГОЛОВНА
B5: Даний аркуш є обов'язковим для заповнення. На даному аркуші відображаються всі ключові параметри інвестиційного проекту, що дозволяють отримати уявлення про його суть, етапи та ефективності.
B39: 2. ФІНАНСУВАННЯ (CFI)
B40: Даний аркуш є обов'язковим для заповнення. Показує елементний склад витрат, пов'язаних з реалізацією проекту: - Операційні витрати на реалізацію проекту; - Інвестиції по проекту; - Отримання кредиту; - Заплановані витрати на капітальні ремонти протягом терміну експлуатації; На аркуші «Фінансування (CFI)» також відображається інформація про розподіл витрат по роках. Дана інформація в автоматичному режимі використовуються на аркушах «Амортизація» та «Грошові потоки».
B77: 3. ПЛАН ФІНАНСУВАННЯ
B78: Даний аркуш є обов'язковим для заповнення. аркуш складається з двой таблиць: План фінансування та план освоєння. Мета даного аркуша показати графік реалізації інвестиційного проекту і взаємозв'язок з графіком фінансування / освоєння. Дана інформація повинна відповідати графіку впровадження проекта виконаному в MS Project. Дані по графіку проекту автоматично переносяться на аркуш "Головна".
B146: 4.ГРОШОВІ ПОТОКИ
B147: Даний аркуш є обов'язковим для заповнення. Необхідний для розрахунку дисконтування грошових потоків. Мета форми - показати розрахунок основних економічних показників проекту. ПРИМІТКА: додавання рядків в цей аркуш не допускається (будуть неправильно працювати формули розрахунку ставок дисконтування)!
B205: 5.РОЗРАХУНОК КРЕДИТУ (CFF)
B206: Аркуш використовується для розрахунку кредитних виплат у разі,я кщо джелом фінансування проекту є кредитні кошти. Розрахунки автоматично переносяться на аркуш "Грошові потоки" в розділ "Фінансовий грошовий потік".
B236: 6. РОЗРАХУНОК ОПЕРАЦІЙНОГО ГРОШОВОГО ПОТОКУ (CFO)
B237: Два аркуши використовуються для довільних розрахунків автора. На аркуші "Для розрахунків (CFO)" є макропрогноз показників, які можливо використовувати для розрахунків. На аркуші CFO перелічені можливі грошові потоки по проектам. Обидва аркуші розраховані на додавання рядків.
B270: 7.АМОРТИЗАЦІЯ
B271: Мета форми - показати розрахунок амортизаційних відрахувань при введенні в експлуатацію об'єкта інвестицій, бухгалтерську залишкову вартість об'єкта. В інвестиційній формі передбачено використання прямолінійного методу розрахунку амортизації: Згідно Наказу НЕК «Укренерго» №54 від 31.01.2019р. "Про затвердження Облікової політики за міжнародними стандартами фінансової звітності", підприємство застосовує прямолінійний метод амортизації. Значення амортизації вносяться в аркуш «Грошові потоки» автоматично, посиланнями на відповідні осередки аркуша додатка.
B291: 8. Факторний аналіз
B292: Аркуш призначений для визначення складу NPV, а також для визначення кількісної зміни показників економічної ефективності в результаті зміни кожного чи двох одночасно факторів.
B387: 9. РИЗИКИ ПРОЕКТУ
B388: Мета форми - описати основні специфічні ризики проекту, їх вірогідність і заходи, які будуть вжиті для мінімізації ризиків невдачі проекту. В даній формі оцінюються тільки специфічні для даного проекту ризики і пропонуються специфічні для проекту заходи щодо їх мінімізації. Якщо мінімізація загальних ризиків забезпечується наявними на підприємстві звичайними бізнес-процедурами, описувати ці ризики і заходи щодо їх мінімізації в формі не потрібно. Заходи щодо мінімізації ризику розробляються в обов'язковому порядку в разі, якщо ризик оцінюється як «середній» або «високий». Загальна оцінка ризиків розраховується автоматично.
B421: 10.АНАЛІЗ ЧУТЛИВОСТІ
B422: Мета форми - оцінити чутливість економічних показників проекту до зміни основних параметрів, щодо базового варіанту. Додавання і видалення рядків в цій формі не допускається.
B460: 11. ТАРИФ
B461: Мета даного аркушу - демонстрація впливу реалізації проєкту на тариф на передачу електроенергії та на тариф на диспечеризацію.

Sheet Головна_Summary
A1: UKR | K1: ENG | T1: ФІНАНССОВІ ВИТРАТИ / FINANCIAL EXPENSES | AG1: FINANCIAL EXPENSES
A2: Будівництво СЕС 10 МВт | K2: Project name
Z4: =E7 -> 2024 | AB4: Весь період / All period | AD4: Валюта / Currency | AM4: =O7 -> 2024 | AO4: All period | AQ4: Currency
B5: Оцінка ефективності з урахуванням: | C5: Погашення тіла кредиту | K5: Efficiency evaluation taking into account: | U5: Бюджет проекту / Project budget | Z5: ='Фінансування_Financing (CFI)'!AD8 -> 4278.814994 | AB5: ='Фінансування_Financing (CFI)'!BH8 -> 4278.814994 | AD5: тис.US$/ ths.US$ | AH5: Project budjet | AM5: 3961 | AO5: 58132 | AQ5: тис.EUR/ ths.EUR
B6: Терміни реалізації | C6: Місяць | E6: Початок витрат за проєктом | G6: Введення в експлуатацію | K6: Implementation period | M6: Month | O6: Start of project costs | Q6: Commissioning
C7: 5 | E7: 2024 | G7: 2025 | M7: =C7 -> 5 | O7: =E7 -> 2024 | Q7: =G7 -> 2025 | U7: Бюджет освоєння / Project budget - capitalization | Z7: ='Фінансування_Financing (CFI)'!AD22 -> 4278.814994 | AB7: ='Фінансування_Financing (CFI)'!BH22 -> 4278.814994 | AD7: =AD5 -> тис.US$/ ths.US$ | AH7: Development budget | AM7: 3961 | AO7: 58132 | AQ7: =AQ5 -> тис.EUR/ ths.EUR
B9: Вид робіт за проєктом | C9: Нове будівництво | K9: Type of works
B11: Застосовуваний тариф | C11: Інфраструктурний тариф | I11: =IF(Головна_Summary!H13="Власні кошти",1,0) -> 0 | K11: Tariff applied | S11: =IF(Головна_Summary!R13="Власні кошти",1,0) -> 0 | U11: Витрати за кредитом /Costs on the loan | Z11: ='Грошові потоки _ Cash flows'!I36 -> 213.9407497 | AB11: ='Грошові потоки _ Cash flows'!AM36 -> 1283.644498 | AD11: =AD5 -> тис.US$/ ths.US$ | AH11: Operating costs for implementation | AM11: ='Фінансування_Financing (CFI)'!AP20 -> 4278.814994 | AO11: ='Фінансування_Financing (CFI)'!BH22 -> 4278.814994 | AQ11: =AQ5 -> тис.EUR/ ths.EUR
B13: Поточний стан | C13: Не розпочатий | G13: Фінансування | H13: Кредитні кошти | K13: Current status | Q13: Financing | U13: Капітальні ремонти / Capital repairs | Z13: ='Фінансування_Financing (CFI)'!AD35 -> 0 | AB13: ='Фінансування_Financing (CFI)'!BH35 -> 0 | AD13: =AD5 -> тис.US$/ ths.US$ | AH13: Overhaul | AM13: ='Фінансування_Financing (CFI)'!BA35 -> 0 | AO13: ='Фінансування_Financing (CFI)'!BH35 -> 0 | AQ13: =AQ5 -> тис.EUR/ ths.EUR
B15: Обгрунтування необхідності | K15: Necessity of the project | U15: Безповоротні витрати / Sunk costs | Z15: 0 | AA15: Бюджет проєкту з урахуванням безповоротних витрат / Project budget taking into account sunk costs | AB15: =AB5+Z15 -> 4278.814994 | AD15: =AD5 -> тис.US$/ ths.US$ | AH15: Sunk costs | AQ15: =AQ5 -> тис.EUR/ ths.EUR
T17: ЕКОНОМІЧНИЙ ЕФЕКТ / ECONOMIC EFFECT | AG17: ECONOMIC EFFECT
U18: Чиста приведена вартість/Net Present Value (NPV) | Z18: ='Грошові потоки _ Cash flows'!K7 -> 1479.284708 | AA18: =AD5 -> тис.US$/ ths.US$ | AH18: Net Present Value | AM18: ='Грошові потоки _ Cash flows'!AI7 -> 0 | AO18: =AQ5 -> тис.EUR/ ths.EUR
U20: NPV без залишкової вартості / Net Present Value without residual value | Z20: ='Грошові потоки _ Cash flows'!K9 -> 1479.284708 | AA20: =AA18 -> тис.US$/ ths.US$
U22: Внутрішня норма доходу/Internal rate of return (IRR) | Z22: ='Грошові потоки _ Cash flows'!K13 -> 0.3194902936 | AA22: % | AH22: Internal rate of return | AM22: =IF(H13="Кредитні кошти","Не розраховується",'Грошові потоки _ Cash flows'!K13) -> Не розраховується | AN22: %
U24: Окупність інвестицій/Return on investments (ROI) | Z24: ='Грошові потоки _ Cash flows'!K11 -> 0.118689128 | AA24: % | AH24: Return on investments | AM24: ='Грошові потоки _ Cash flows'!K11 -> 0.118689128 | AN24: %
U26: Індекс прибутковості/Profitability index (PI) | Z26: ='Грошові потоки _ Cash flows'!N7 -> 1.506826631 | AH26: Profitability index | AM26: ='Грошові потоки _ Cash flows'!N7 -> 1.506826631
U28: Дисконтований термін окупності/Discounted payback period (DPP) | Z28: ='Грошові потоки _ Cash flows'!N9 -> 90.60225681 | AA28: міс./months | AB28: =IFERROR(Z28/12,"Не окуповується/ Doesn't pay off") -> 7.550188068 | AC28: років/years | AH28: Discounted payback period | AM28: ='Грошові потоки _ Cash flows'!N9 -> 90.60225681 | AN28: Month.
C30: ТУОМ | G30: Підстанція | M30: TONM | Q30: Substation
B32: Територія проведення | K32: Location | T32: ПЛАН ФІНАНСУВАННЯ / FINANCING PLAN | V32: Етап проєкту / Project phase | Z32: Початок / Start | AB32: Кінець / End | AG32: FUNDING PLAN | AI32: Project phase | AM32: Start | AO32: End
V34: ='План фінансування_Funding plan'!B10 -> Етап 1 / Phase 1 | Z34: ='План фінансування_Funding plan'!E10 -> 2024-06-01 | AB34: ='План фінансування_Funding plan'!G10 -> 2024-12-31 | AI34: Phase 1
AI36: Phase 2
AI38: Phase 3
AI40: Phase 4
G42: Факотри отримання техніко-економічного ефекту | Q42: Factors of obtaining technical and economic effect | AI42: Phase 5
B44: Об'єкт | K44: Object | AI44: Phase 6
AI46: Phase 7
AI48: Phase 8
T51: Оцінка ризиків / Risk assessment | V51: ='Ризики проекту_Project risks'!D4 -> Простий/Simple | AG51: Risk assessment | AI51: ='Ризики проекту_Project risks'!#REF! -> 
T52: Вплив проєкту на кінцеву ціну е/е для споживачів
B53: Опис/склад робіт | K53: Description / composition of works | T53: The impact of the project on the final price of electricity for consumers | AG53: The impact of the project on the final price of electricity for consumers
V54: ='Тариф ОСП_Tariff'!G6 -> 2024 | W54: =V54+1 -> 2025 | X54: =W54+1 -> 2026 | Z54: =X54+1 -> 2027 | AB54: =Z54+1 -> 2028 | AD54: =AB54+1 -> 2029 | AI54: 2020 | AJ54: 2021 | AK54: 2022 | AM54: 2023 | AO54: 2024 | AQ54: 2025
T55: Тариф ОСП / TSO tariff | V55: =1-('Тариф ОСП_Tariff'!H38+'Тариф ОСП_Tariff'!G38)/('Тариф ОСП_Tariff'!H39+'Тариф ОСП_Tariff'!G39) -> 0.0001269388575 | W55: =1-('Тариф ОСП_Tariff'!K38+'Тариф ОСП_Tariff'!J38)/('Тариф ОСП_Tariff'!K39+'Тариф ОСП_Tariff'!J39) -> 0.0007560845375 | X55: =1-('Тариф ОСП_Tariff'!N38+'Тариф ОСП_Tariff'!M38)/('Тариф ОСП_Tariff'!N39+'Тариф ОСП_Tariff'!M39) -> 0.0007130387098 | Z55: =1-('Тариф ОСП_Tariff'!Q38+'Тариф ОСП_Tariff'!P38)/('Тариф ОСП_Tariff'!Q39+'Тариф ОСП_Tariff'!P39) -> 0.0006614535945 | AB55: =1-('Тариф ОСП_Tariff'!T38+'Тариф ОСП_Tariff'!S38)/('Тариф ОСП_Tariff'!T39+'Тариф ОСП_Tariff'!S39) -> 0.0006074349541 | AD55: =1-('Тариф ОСП_Tariff'!W38+'Тариф ОСП_Tariff'!V38)/('Тариф ОСП_Tariff'!W39+'Тариф ОСП_Tariff'!V39) -> 0.000308776321 | AG55: TSO Consumers | AI55: =Споживачі_CONSUMER!AK43 -> 0 | AJ55: =Споживачі_CONSUMER!AL43 -> 0 | AK55: =Споживачі_CONSUMER!AM43 -> 0 | AM55: =Споживачі_CONSUMER!AN43 -> 0 | AO55: =Споживачі_CONSUMER!AO43 -> 0 | AQ55: =Споживачі_CONSUMER!AP43 -> 0
AG56: 1st class MSO Consumers | AI56: =Споживачі_CONSUMER!AK44 -> 0 | AJ56: =Споживачі_CONSUMER!AL44 -> 0 | AK56: =Споживачі_CONSUMER!AM44 -> 0 | AM56: =Споживачі_CONSUMER!AN44 -> 0 | AO56: =Споживачі_CONSUMER!AO44 -> 0 | AQ56: =Споживачі_CONSUMER!AP44 -> 0
AG57: 2nd class MSO Consumers | AI57: =Споживачі_CONSUMER!AK45 -> 0 | AJ57: =Споживачі_CONSUMER!AL45 -> 0 | AK57: =Споживачі_CONSUMER!AM45 -> 0 | AM57: =Споживачі_CONSUMER!AN45 -> 0 | AO57: =Споживачі_CONSUMER!AO45 -> 0 | AQ57: =Споживачі_CONSUMER!AP45 -> 0
P62: ='План фінансування_Funding plan'!E10 -> 2024-06-01 | R62: ='План фінансування_Funding plan'!G10 -> 2024-12-31
P63: ='План фінансування_Funding plan'!E16 ->  | R63: ='План фінансування_Funding plan'!G16 -> 
P64: ='План фінансування_Funding plan'!E20 ->  | R64: ='План фінансування_Funding plan'!G20 -> 
P65: ='План фінансування_Funding plan'!E25 ->  | R65: ='План фінансування_Funding plan'!G25 -> 
P66: ='План фінансування_Funding plan'!E30 ->  | R66: ='План фінансування_Funding plan'!G30 -> 
P67: ='План фінансування_Funding plan'!E35 ->  | R67: ='План фінансування_Funding plan'!G35 -> 
P68: ='План фінансування_Funding plan'!E40 ->  | R68: ='План фінансування_Funding plan'!G40 -> 
P69: ='План фінансування_Funding plan'!E45 ->  | R69: ='План фінансування_Funding plan'!G45 -> 

Sheet План фінансування_Funding plan
U1: ='Грошові потоки _ Cash flows'!$G$7 -> 2024 | AH1: =U1+1 -> 2025 | AU1: =AH1+1 -> 2026 | BH1: =AU1+1 -> 2027
B2: ПЛАН ФІНАНСУВАННЯ / FUNDING PLAN | C2: =CONCATENATE(Головна_Summary!A2," / ",Головна_Summary!K2) -> Будівництво СЕС 10 МВт / Project name
C3: =CONCATENATE(Головна_Summary!G13,"/",Головна_Summary!Q13) -> Фінансування/Financing | D3: =CONCATENATE(Головна_Summary!H13,"/",Головна_Summary!R13) -> Кредитні кошти/ | F3: Кредитні кошти/Loans | H3: =Головна_Summary!AD5 -> тис.US$/ ths.US$ | U3: =H3 -> тис.US$/ ths.US$ | AH3: =H3 -> тис.US$/ ths.US$ | AU3: =H3 -> тис.US$/ ths.US$ | BH3: =H3 -> тис.US$/ ths.US$
B4: Етап / Phase | C4: Відповідальний / Responsible | D4: Джерело фінансування/Source of financing | E4: Початок / Start | F4: Тривалість / Duration | G4: Кінець / End | H4: Сума за весь період / Whole period amount | I4: =DATE(Головна_Summary!$E$7,1,1) -> 2024-01-01 | J4: =DATE(Головна_Summary!$E$7,2,1) -> 2024-02-01 | K4: =DATE(Головна_Summary!$E$7,3,1) -> 2024-03-01 | L4: =DATE(Головна_Summary!$E$7,4,1) -> 2024-04-01 | M4: =DATE(Головна_Summary!$E$7,5,1) -> 2024-05-01 | N4: =DATE(Головна_Summary!$E$7,6,1) -> 2024-06-01 | O4: =DATE(Головна_Summary!$E$7,7,1) -> 2024-07-01 | P4: =DATE(Головна_Summary!$E$7,8,1) -> 2024-08-01 | Q4: =DATE(Головна_Summary!$E$7,9,1) -> 2024-09-01 | R4: =DATE(Головна_Summary!$E$7,10,1) -> 2024-10-01 | S4: =DATE(Головна_Summary!$E$7,11,1) -> 2024-11-01 | T4: =DATE(Головна_Summary!$E$7,12,1) -> 2024-12-01 | U4: =CONCATENATE("Всього за ", "/ overall during ", 'Грошові потоки _ Cash flows'!$G$7, " рік") -> Всього за / overall during 2024 рік | V4: =DATE(Головна_Summary!$E$7+1,1,1) -> 2025-01-01 | W4: =DATE(Головна_Summary!$E$7+1,2,1) -> 2025-02-01 | X4: =DATE(Головна_Summary!$E$7+1,3,1) -> 2025-03-01 | Y4: =DATE(Головна_Summary!$E$7+1,4,1) -> 2025-04-01 | Z4: =DATE(Головна_Summary!$E$7+1,5,1) -> 2025-05-01 | AA4: =DATE(Головна_Summary!$E$7+1,6,1) -> 2025-06-01 | AB4: =DATE(Головна_Summary!$E$7+1,7,1) -> 2025-07-01 | AC4: =DATE(Головна_Summary!$E$7+1,8,1) -> 2025-08-01 | AD4: =DATE(Головна_Summary!$E$7+1,9,1) -> 2025-09-01 | AE4: =DATE(Головна_Summary!$E$7+1,10,1) -> 2025-10-01 | AF4: =DATE(Головна_Summary!$E$7+1,11,1) -> 2025-11-01 | AG4: =DATE(Головна_Summary!$E$7+1,12,1) -> 2025-12-01 | AH4: =CONCATENATE("Всього за ", "/ overall during", 'Грошові потоки _ Cash flows'!$G$7+1, " рік") -> Всього за / overall during2025 рік | AI4: =DATE(Головна_Summary!E7+2,1,1) -> 2026-01-01 | AJ4: =DATE(Головна_Summary!$E$7+2,2,1) -> 2026-02-01 | AK4: =DATE(Головна_Summary!$E$7+2,3,1) -> 2026-03-01 | AL4: =DATE(Головна_Summary!$E$7+2,4,1) -> 2026-04-01 | AM4: =DATE(Головна_Summary!$E$7+2,5,1) -> 2026-05-01 | AN4: =DATE(Головна_Summary!$E$7+2,6,1) -> 2026-06-01 | AO4: =DATE(Головна_Summary!$E$7+2,7,1) -> 2026-07-01 | AP4: =DATE(Головна_Summary!$E$7+2,8,1) -> 2026-08-01 | AQ4: =DATE(Головна_Summary!$E$7+2,9,1) -> 2026-09-01 | AR4: =DATE(Головна_Summary!$E$7+2,10,1) -> 2026-10-01 | AS4: =DATE(Головна_Summary!$E$7+2,11,1) -> 2026-11-01 | AT4: =DATE(Головна_Summary!$E$7+2,12,1) -> 2026-12-01 | AU4: =CONCATENATE("Всього за ", "/ overall during", 'Грошові потоки _ Cash flows'!$G$7+2, " рік") -> Всього за / overall during2026 рік | AV4: =DATE(Головна_Summary!$E$7+3,1,1) -> 2027-01-01 | AW4: =DATE(Головна_Summary!$E$7+3,2,1) -> 2027-02-01 | AX4: =DATE(Головна_Summary!$E$7+3,3,1) -> 2027-03-01 | AY4: =DATE(Головна_Summary!$E$7+3,4,1) -> 2027-04-01 | AZ4: =DATE(Головна_Summary!$E$7+3,5,1) -> 2027-05-01 | BA4: =DATE(Головна_Summary!$E$7+3,6,1) -> 2027-06-01 | BB4: =DATE(Головна_Summary!$E$7+3,7,1) -> 2027-07-01 | BC4: =DATE(Головна_Summary!$E$7+3,8,1) -> 2027-08-01 | BD4: =DATE(Головна_Summary!$E$7+3,9,1) -> 2027-09-01 | BE4: =DATE(Головна_Summary!$E$7+3,10,1) -> 2027-10-01 | BF4: =DATE(Головна_Summary!$E$7+3,11,1) -> 2027-11-01 | BG4: =DATE(Головна_Summary!$E$7+3,12,1) -> 2027-12-01 | BH4: =CONCATENATE("Всього за ", "/ overall during", 'Грошові потоки _ Cash flows'!$G$7+3, " рік") -> Всього за / overall during2027 рік
B5: Фінансування проєкту всього/ Finansing total | D5: Всього/Total | E5: =IF(SUM(E10,E16,E20,E25,E30,E35,E40,E45)=0,"",MIN(E10,E16,E20,E25,E30,E35,E40,E45)) -> 2024-06-01 | F5: =IFERROR(NETWORKDAYS(E5,G5,0),"") -> 152 | G5: =IF(SUM(G10,G16,G20,G25,G30,G35,G40,G45)=0,"",MAX(G10,G16,G20,G25,G30,G35,G40,G45)) -> 2024-12-31 | H5: =H6+H7+H8 -> 4278.814994 | I5: =I6+I7+I8 -> 0 | J5: =J6+J7+J8 -> 0 | K5: 0 | L5: 0 | M5: 0 | N5: 0 | O5: 4278.814994 | P5: 0 | Q5: 0 | R5: 0 | S5: 0 | T5: 0 | U5: 4278.814994 | V5: 0 | W5: 0 | X5: 0 | Y5: 0 | Z5: 0 | AA5: 0 | AB5: 0 | AC5: 0 | AD5: 0 | AE5: 0 | AF5: 0 | AG5: 0 | AH5: 0 | AI5: 0 | AJ5: 0 | AK5: 0 | AL5: 0 | AM5: 0 | AN5: 0 | AO5: 0 | AP5: 0 | AQ5: 0 | AR5: 0 | AS5: 0 | AT5: 0 | AU5: 0 | AV5: 0 | AW5: 0 | AX5: 0 | AY5: 0 | AZ5: 0 | BA5: 0 | BB5: 0 | BC5: 0 | BD5: 0 | BE5: 0 | BF5: 0 | BG5: 0 | BH5: 0
D6: Кредитні кошти/Loans | F6: =NETWORKDAYS(E6,G6,0) -> 0 | H6: =U6+AH6+AU6+BH6 -> 4278.814994 | I6: =SUMIF($D$10:$D$49,$D$6,I10:I49) -> 0 | J6: =SUMIF($D$10:$D$49,$D$6,J10:J49) -> 0 | K6: 0 | L6: 0 | M6: 0 | N6: 0 | O6: 4278.814994 | P6: 0 | Q6: 0 | R6: 0 | S6: 0 | T6: 0 | U6: 4278.814994 | V6: 0 | W6: 0 | X6: 0 | Y6: 0 | Z6: 0 | AA6: 0 | AB6: 0 | AC6: 0 | AD6: 0 | AE6: 0 | AF6: 0 | AG6: 0 | AH6: 0 | AI6: 0 | AJ6: 0 | AK6: 0 | AL6: 0 | AM6: 0 | AN6: 0 | AO6: 0 | AP6: 0 | AQ6: 0 | AR6: 0 | AS6: 0 | AT6: 0 | AU6: 0 | AV6: 0 | AW6: 0 | AX6: 0 | AY6: 0 | AZ6: 0 | BA6: 0 | BB6: 0 | BC6: 0 | BD6: 0 | BE6: 0 | BF6: 0 | BG6: 0 | BH6: 0
D7: Власні кошти/ Own funds | F7: =NETWORKDAYS(E7,G7,0) -> 0 | H7: =U7+AH7+AU7+BH7 -> 0 | I7: =SUMIF($D$10:$D$49,$D$7,I10:I49) -> 0 | J7: =SUMIF($D$10:$D$49,$D$7,J10:J49) -> 0 | K7: 0 | L7: 0 | M7: 0 | N7: 0 | O7: 0 | P7: 0 | Q7: 0 | R7: 0 | S7: 0 | T7: 0 | U7: 0 | V7: 0 | W7: 0 | X7: 0 | Y7: 0 | Z7: 0 | AA7: 0 | AB7: 0 | AC7: 0 | AD7: 0 | AE7: 0 | AF7: 0 | AG7: 0 | AH7: 0 | AI7: 0 | AJ7: 0 | AK7: 0 | AL7: 0 | AM7: 0 | AN7: 0 | AO7: 0 | AP7: 0 | AQ7: 0 | AR7: 0 | AS7: 0 | AT7: 0 | AU7: 0 | AV7: 0 | AW7: 0 | AX7: 0 | AY7: 0 | AZ7: 0 | BA7: 0 | BB7: 0 | BC7: 0 | BD7: 0 | BE7: 0 | BF7: 0 | BG7: 0 | BH7: 0
D8: Грантові/Grant funds | F8: =NETWORKDAYS(E8,G8,0) -> 0 | H8: =U8+AH8+AU8+BH8 -> 0 | I8: =SUMIF($D$10:$D$49,$D$8,I10:I49) -> 0 | J8: =SUMIF($D$10:$D$49,$D$8,J10:J49) -> 0 | K8: 0 | L8: 0 | M8: 0 | N8: 0 | O8: 0 | P8: 0 | Q8: 0 | R8: 0 | S8: 0 | T8: 0 | U8: 0 | V8: 0 | W8: 0 | X8: 0 | Y8: 0 | Z8: 0 | AA8: 0 | AB8: 0 | AC8: 0 | AD8: 0 | AE8: 0 | AF8: 0 | AG8: 0 | AH8: 0 | AI8: 0 | AJ8: 0 | AK8: 0 | AL8: 0 | AM8: 0 | AN8: 0 | AO8: 0 | AP8: 0 | AQ8: 0 | AR8: 0 | AS8: 0 | AT8: 0 | AU8: 0 | AV8: 0 | AW8: 0 | AX8: 0 | AY8: 0 | AZ8: 0 | BA8: 0 | BB8: 0 | BC8: 0 | BD8: 0 | BE8: 0 | BF8: 0 | BG8: 0 | BH8: 0
B9: Проверка | I9: =I10+I16+I20+I25+I30+I35+I40+I45 -> 0 | J9: =J10+J16+J20+J25+J30+J35+J40+J45 -> 0 | K9: 0 | L9: 0 | M9: 0 | N9: 0 | O9: 4278.814994 | P9: 0 | Q9: 0 | R9: 0 | S9: 0 | T9: 0 | U9: 4278.814994 | V9: 0 | W9: 0 | X9: 0 | Y9: 0 | Z9: 0 | AA9: 0 | AB9: 0 | AC9: 0 | AD9: 0 | AE9: 0 | AF9: 0 | AG9: 0 | AH9: 0 | AI9: 0 | AJ9: 0 | AK9: 0 | AL9: 0 | AM9: 0 | AN9: 0 | AO9: 0 | AP9: 0 | AQ9: 0 | AR9: 0 | AS9: 0 | AT9: 0 | AU9: 0 | AV9: 0 | AW9: 0 | AX9: 0 | AY9: 0 | AZ9: 0 | BA9: 0 | BB9: 0 | BC9: 0 | BD9: 0 | BE9: 0 | BF9: 0 | BG9: 0 | BH9: 0
B10: Етап 1 / Phase 1 | E10: =IF(SUM(E11:E15)=0,"",MIN(E11:E15)) -> 2024-06-01 | F10: =IFERROR(NETWORKDAYS(E10,G10,0),"") -> 152 | G10: =IF(SUM(G11:G15)=0,"",MAX(G11:G15)) -> 2024-12-31 | H10: =U10+AH10+AU10+BH10 -> 4278.814994 | I10: =SUM(I11:I15) -> 0 | J10: =SUM(J11:J15) -> 0 | K10: 0 | L10: 0 | M10: 0 | N10: 0 | O10: 4278.814994 | P10: 0 | Q10: 0 | R10: 0 | S10: 0 | T10: 0 | U10: =SUM(I10:T10) -> 4278.814994 | V10: =SUM(V11:V15) -> 0 | W10: =SUM(W11:W15) -> 0 | X10: 0 | Y10: 0 | Z10: 0 | AA10: 0 | AB10: 0 | AC10: 0 | AD10: 0 | AE10: 0 | AF10: 0 | AG10: 0 | AH10: =SUM(V10:AG10) -> 0 | AI10: =SUM(AI11:AI15) -> 0 | AJ10: =SUM(AJ11:AJ15) -> 0 | AK10: 0 | AL10: 0 | AM10: 0 | AN10: 0 | AO10: 0 | AP10: 0 | AQ10: 0 | AR10: 0 | AS10: 0 | AT10: 0 | AU10: =SUM(AI10:AT10) -> 0 | AV10: =SUM(AV11:AV15) -> 0 | AW10: =SUM(AW11:AW15) -> 0 | AX10: 0 | AY10: 0 | AZ10: 0 | BA10: 0 | BB10: 0 | BC10: 0 | BD10: 0 | BE10: 0 | BF10: 0 | BG10: 0 | BH10: =SUM(AV10:BG10) -> 0
B11: Операція 1/ Operation 1 | D11: Кредитні кошти/Loans | E11: 2024-06-01 | F11: =NETWORKDAYS(E11,G11,0) -> 152 | G11: 2024-12-31 | H11: =U11+AH11+AU11+BH11 -> 4278.814994 | O11: =Припущення_Assumptions!G18 -> 4278.814994 | U11: =SUM(I11:T11) -> 4278.814994 | AH11: 0 | AU11: 0 | BH11: 0
B12: Операція 2/ Operation 2 | F12: 0 | H12: 0 | U12: =SUM(I12:T12) -> 0 | AH12: 0 | AU12: 0 | BH12: 0
B13: Операція 3/ Operation 3 | F13: 0 | H13: 0 | U13: =SUM(I13:T13) -> 0 | AH13: 0 | AU13: 0 | BH13: 0
B14: Операція 4/ Operation 4 | F14: 0 | H14: 0 | U14: 0 | AH14: 0 | AU14: 0 | BH14: 0
B15: Операція 5/ Operation 5 | F15: =NETWORKDAYS(E15,G15,0) -> 0 | H15: 0 | U15: 0 | AH15: 0 | AU15: 0 | BH15: 0
B16: Етап 2 / Phase 2 | E16: =IF(SUM(E17:E19)=0,"",MIN(E17:E19)) ->  | F16: =IFERROR(NETWORKDAYS(E16,G16,0),"") ->  | G16: =IF(SUM(G17:G19)=0,"",MAX(G17:G19)) ->  | H16: 0 | I16: =SUM(I17:I19) -> 0 | J16: =SUM(J17:J19) -> 0 | K16: 0 | L16: 0 | M16: 0 | N16: 0 | O16: 0 | P16: 0 | Q16: 0 | R16: 0 | S16: 0 | T16: 0 | U16: 0 | V16: =SUM(V17:V19) -> 0 | W16: =SUM(W17:W19) -> 0 | X16: 0 | Y16: 0 | Z16: 0 | AA16: 0 | AB16: 0 | AC16: 0 | AD16: 0 | AE16: 0 | AF16: 0 | AG16: 0 | AH16: 0 | AI16: 0 | AJ16: =SUM(AJ17:AJ19) -> 0 | AK16: =SUM(AK17:AK19) -> 0 | AL16: =SUM(AL17:AL19) -> 0 | AM16: =SUM(AM17:AM19) -> 0 | AN16: =SUM(AN17:AN19) -> 0 | AO16: =SUM(AO17:AO19) -> 0 | AP16: =SUM(AP17:AP19) -> 0 | AQ16: =SUM(AQ17:AQ19) -> 0 | AR16: =SUM(AR17:AR19) -> 0 | AS16: =SUM(AS17:AS19) -> 0 | AT16: =SUM(AT17:AT19) -> 0 | AU16: 0 | AV16: =SUM(AV17:AV19) -> 0 | AW16: =SUM(AW17:AW19) -> 0 | AX16: 0 | AY16: 0 | AZ16: 0 | BA16: 0 | BB16: 0 | BC16: 0 | BD16: 0 | BE16: 0 | BF16: 0 | BG16: 0 | BH16: 0
B17: Операція 1/ Operation 1 | F17: =NETWORKDAYS(E17,G17,0) -> 0 | H17: 0 | U17: 0 | AH17: 0 | AU17: 0 | BH17: 0
B18: Операція 2/ Operation 2 | F18: 0 | H18: 0 | U18: 0 | AH18: 0 | AU18: 0 | BH18: 0
B19: Операція 3/ Operation 3 | F19: 0 | H19: 0 | U19: 0 | AH19: 0 | AU19: 0 | BH19: 0
B20: Етап 3 / Phase 3 | E20: =IF(SUM(E21:E24)=0,"",MIN(E21:E24)) ->  | F20: =IFERROR(NETWORKDAYS(E20,G20,0),"") ->  | G20: =IF(SUM(G21:G24)=0,"",MAX(G21:G24)) ->  | H20: 0 | I20: =SUM(I21:I24) -> 0 | J20: =SUM(J21:J24) -> 0 | K20: 0 | L20: 0 | M20: 0 | N20: 0 | O20: 0 | P20: 0 | Q20: 0 | R20: 0 | S20: 0 | T20: 0 | U20: 0 | V20: =SUM(V21:V24) -> 0 | W20: =SUM(W21:W24) -> 0 | X20: 0 | Y20: 0 | Z20: 0 | AA20: 0 | AB20: 0 | AC20: 0 | AD20: 0 | AE20: 0 | AF20: 0 | AG20: 0 | AH20: 0 | AI20: 0 | AJ20: =SUM(AJ21:AJ24) -> 0 | AK20: =SUM(AK21:AK24) -> 0 | AL20: =SUM(AL21:AL24) -> 0 | AM20: =SUM(AM21:AM24) -> 0 | AN20: =SUM(AN21:AN24) -> 0 | AO20: =SUM(AO21:AO24) -> 0 | AP20: =SUM(AP21:AP24) -> 0 | AQ20: =SUM(AQ21:AQ24) -> 0 | AR20: =SUM(AR21:AR24) -> 0 | AS20: =SUM(AS21:AS24) -> 0 | AT20: =SUM(AT21:AT24) -> 0 | AU20: 0 | AV20: 0 | AW20: =SUM(AW21:AW24) -> 0 | AX20: =SUM(AX21:AX24) -> 0 | AY20: =SUM(AY21:AY24) -> 0 | AZ20: =SUM(AZ21:AZ24) -> 0 | BA20: =SUM(BA21:BA24) -> 0 | BB20: =SUM(BB21:BB24) -> 0 | BC20: =SUM(BC21:BC24) -> 0 | BD20: =SUM(BD21:BD24) -> 0 | BE20: =SUM(BE21:BE24) -> 0 | BF20: =SUM(BF21:BF24) -> 0 | BG20: =SUM(BG21:BG24) -> 0 | BH20: 0
B21: Операція 1/ Operation 1 | F21: =NETWORKDAYS(E21,G21,0) -> 0 | H21: 0 | U21: 0 | AH21: 0 | AU21: 0 | BH21: 0
B22: Операція 2/ Operation 2 | F22: 0 | H22: 0 | U22: 0 | AH22: 0 | AU22: 0 | BH22: 0
B23: Операція 3/ Operation 3 | F23: 0 | H23: 0 | U23: 0 | AH23: 0 | AU23: 0 | BH23: 0
B24: Операція 4/ Operation 4 | F24: 0 | H24: 0 | U24: 0 | AH24: 0 | AU24: 0 | BH24: 0
B25: Етап 4 / Phase 4 | E25: =IF(SUM(E26:E29)=0,"",MIN(E26:E29)) ->  | F25: =IFERROR(NETWORKDAYS(E25,G25,0),"") ->  | G25: =IF(SUM(G26:G29)=0,"",MAX(G26:G29)) ->  | H25: 0 | I25: =SUM(I26:I29) -> 0 | J25: =SUM(J26:J29) -> 0 | K25: 0 | L25: 0 | M25: 0 | N25: 0 | O25: 0 | P25: 0 | Q25: 0 | R25: 0 | S25: 0 | T25: 0 | U25: 0 | V25: 0 | W25: =SUM(W26:W29) -> 0 | X25: =SUM(X26:X29) -> 0 | Y25: =SUM(Y26:Y29) -> 0 | Z25: =SUM(Z26:Z29) -> 0 | AA25: =SUM(AA26:AA29) -> 0 | AB25: =SUM(AB26:AB29) -> 0 | AC25: =SUM(AC26:AC29) -> 0 | AD25: =SUM(AD26:AD29) -> 0 | AE25: =SUM(AE26:AE29) -> 0 | AF25: =SUM(AF26:AF29) -> 0 | AG25: =SUM(AG26:AG29) -> 0 | AH25: 0 | AI25: 0 | AJ25: =SUM(AJ26:AJ29) -> 0 | AK25: =SUM(AK26:AK29) -> 0 | AL25: =SUM(AL26:AL29) -> 0 | AM25: =SUM(AM26:AM29) -> 0 | AN25: =SUM(AN26:AN29) -> 0 | AO25: =SUM(AO26:AO29) -> 0 | AP25: =SUM(AP26:AP29) -> 0 | AQ25: =SUM(AQ26:AQ29) -> 0 | AR25: =SUM(AR26:AR29) -> 0 | AS25: =SUM(AS26:AS29) -> 0 | AT25: =SUM(AT26:AT29) -> 0 | AU25: 0 | AV25: 0 | AW25: =SUM(AW26:AW29) -> 0 | AX25: =SUM(AX26:AX29) -> 0 | AY25: =SUM(AY26:AY29) -> 0 | AZ25: =SUM(AZ26:AZ29) -> 0 | BA25: =SUM(BA26:BA29) -> 0 | BB25: =SUM(BB26:BB29) -> 0 | BC25: =SUM(BC26:BC29) -> 0 | BD25: =SUM(BD26:BD29) -> 0 | BE25: =SUM(BE26:BE29) -> 0 | BF25: =SUM(BF26:BF29) -> 0 | BG25: =SUM(BG26:BG29) -> 0 | BH25: 0
B26: Операція 1/ Operation 1 | F26: =NETWORKDAYS(E26,G26,0) -> 0 | H26: 0 | U26: 0 | AH26: 0 | AU26: 0 | BH26: 0
B27: Операція 2/ Operation 2 | F27: 0 | H27: 0 | U27: 0 | AH27: 0 | AU27: 0 | BH27: 0
B28: Операція 3/ Operation 3 | F28: 0 | H28: 0 | U28: 0 | AH28: 0 | AU28: 0 | BH28: 0
B29: Операція 4/ Operation 4 | F29: 0 | H29: 0 | U29: 0 | AH29: 0 | AU29: 0 | BH29: 0
B30: Етап 5 / Phase 5 | E30: =IF(SUM(E31:E34)=0,"",MIN(E31:E34)) ->  | F30: =IFERROR(NETWORKDAYS(E30,G30,0),"") ->  | G30: =IF(SUM(G31:G34)=0,"",MAX(G31:G34)) ->  | H30: 0 | I30: =SUM(I31:I34) -> 0 | J30: =SUM(J31:J34) -> 0 | K30: 0 | L30: 0 | M30: 0 | N30: 0 | O30: 0 | P30: 0 | Q30: 0 | R30: 0 | S30: 0 | T30: 0 | U30: 0 | V30: =SUM(V31:V34) -> 0 | W30: =SUM(W31:W34) -> 0 | X30: 0 | Y30: 0 | Z30: 0 | AA30: 0 | AB30: 0 | AC30: 0 | AD30: 0 | AE30: 0 | AF30: 0 | AG30: 0 | AH30: 0 | AI30: 0 | AJ30: =SUM(AJ31:AJ34) -> 0 | AK30: =SUM(AK31:AK34) -> 0 | AL30: =SUM(AL31:AL34) -> 0 | AM30: =SUM(AM31:AM34) -> 0 | AN30: =SUM(AN31:AN34) -> 0 | AO30: =SUM(AO31:AO34) -> 0 | AP30: =SUM(AP31:AP34) -> 0 | AQ30: =SUM(AQ31:AQ34) -> 0 | AR30: =SUM(AR31:AR34) -> 0 | AS30: =SUM(AS31:AS34) -> 0 | AT30: =SUM(AT31:AT34) -> 0 | AU30: 0 | AV30: 0 | AW30: =SUM(AW31:AW34) -> 0 | AX30: =SUM(AX31:AX34) -> 0 | AY30: =SUM(AY31:AY34) -> 0 | AZ30: =SUM(AZ31:AZ34) -> 0 | BA30: =SUM(BA31:BA34) -> 0 | BB30: =SUM(BB31:BB34) -> 0 | BC30: =SUM(BC31:BC34) -> 0 | BD30: =SUM(BD31:BD34) -> 0 | BE30: =SUM(BE31:BE34) -> 0 | BF30: =SUM(BF31:BF34) -> 0 | BG30: =SUM(BG31:BG34) -> 0 | BH30: 0
B31: Операція 1/ Operation 1 | F31: =NETWORKDAYS(E31,G31,0) -> 0 | H31: 0 | U31: 0 | AH31: 0 | AU31: 0 | BH31: 0
B32: Операція 2/ Operation 2 | F32: 0 | H32: 0 | U32: 0 | AH32: 0 | AU32: 0 | BH32: 0
B33: Операція 3/ Operation 3 | F33: 0 | H33: 0 | U33: 0 | AH33: 0 | AU33: 0 | BH33: 0
B34: Операція 4/ Operation 4 | F34: 0 | H34: 0 | U34: 0 | AH34: 0 | AU34: 0 | BH34: 0
B35: Етап 6 / Phase 6 | E35: =IF(SUM(E36:E39)=0,"",MIN(E36:E39)) ->  | F35: =IFERROR(NETWORKDAYS(E35,G35,0),"") ->  | G35: =IF(SUM(G36:G39)=0,"",MAX(G36:G39)) ->  | H35: 0 | I35: =SUM(I36:I39) -> 0 | J35: =SUM(J36:J39) -> 0 | K35: 0 | L35: 0 | M35: 0 | N35: 0 | O35: 0 | P35: 0 | Q35: 0 | R35: 0 | S35: 0 | T35: 0 | U35: 0 | V35: 0 | W35: =SUM(W36:W39) -> 0 | X35: =SUM(X36:X39) -> 0 | Y35: =SUM(Y36:Y39) -> 0 | Z35: =SUM(Z36:Z39) -> 0 | AA35: =SUM(AA36:AA39) -> 0 | AB35: =SUM(AB36:AB39) -> 0 | AC35: =SUM(AC36:AC39) -> 0 | AD35: =SUM(AD36:AD39) -> 0 | AE35: =SUM(AE36:AE39) -> 0 | AF35: =SUM(AF36:AF39) -> 0 | AG35: =SUM(AG36:AG39) -> 0 | AH35: 0 | AI35: 0 | AJ35: =SUM(AJ36:AJ39) -> 0 | AK35: =SUM(AK36:AK39) -> 0 | AL35: =SUM(AL36:AL39) -> 0 | AM35: =SUM(AM36:AM39) -> 0 | AN35: =SUM(AN36:AN39) -> 0 | AO35: =SUM(AO36:AO39) -> 0 | AP35: =SUM(AP36:AP39) -> 0 | AQ35: =SUM(AQ36:AQ39) -> 0 | AR35: =SUM(AR36:AR39) -> 0 | AS35: =SUM(AS36:AS39) -> 0 | AT35: =SUM(AT36:AT39) -> 0 | AU35: 0 | AV35: 0 | AW35: =SUM(AW36:AW39) -> 0 | AX35: =SUM(AX36:AX39) -> 0 | AY35: =SUM(AY36:AY39) -> 0 | AZ35: =SUM(AZ36:AZ39) -> 0 | BA35: =SUM(BA36:BA39) -> 0 | BB35: =SUM(BB36:BB39) -> 0 | BC35: =SUM(BC36:BC39) -> 0 | BD35: =SUM(BD36:BD39) -> 0 | BE35: =SUM(BE36:BE39) -> 0 | BF35: =SUM(BF36:BF39) -> 0 | BG35: =SUM(BG36:BG39) -> 0 | BH35: 0
B36: Операція 1/ Operation 1 | F36: =NETWORKDAYS(E36,G36,0) -> 0 | H36: 0 | U36: =SUM(I36:T36) -> 0 | AH36: 0 | AU36: 0 | BH36: 0
B37: Операція 2/ Operation 2 | F37: 0 | H37: 0 | U37: 0 | AH37: 0 | AU37: 0 | BH37: 0
B38: Операція 3/ Operation 3 | F38: 0 | H38: 0 | U38: 0 | AH38: 0 | AU38: 0 | BH38: 0
B39: Операція 4/ Operation 4 | F39: 0 | H39: 0 | U39: 0 | AH39: 0 | AU39: 0 | BH39: 0
B40: Етап 7 / Phase 7 | E40: =IF(SUM(E41:E44)=0,"",MIN(E41:E44)) ->  | F40: =IFERROR(NETWORKDAYS(E40,G40,0),"") ->  | G40: =IF(SUM(G41:G44)=0,"",MAX(G41:G44)) ->  | H40: 0 | I40: =SUM(I41:I44) -> 0 | J40: =SUM(J41:J44) -> 0 | K40: 0 | L40: 0 | M40: 0 | N40: 0 | O40: 0 | P40: 0 | Q40: 0 | R40: 0 | S40: 0 | T40: 0 | U40: 0 | V40: 0 | W40: =SUM(W41:W44) -> 0 | X40: =SUM(X41:X44) -> 0 | Y40: =SUM(Y41:Y44) -> 0 | Z40: =SUM(Z41:Z44) -> 0 | AA40: =SUM(AA41:AA44) -> 0 | AB40: =SUM(AB41:AB44) -> 0 | AC40: =SUM(AC41:AC44) -> 0 | AD40: =SUM(AD41:AD44) -> 0 | AE40: =SUM(AE41:AE44) -> 0 | AF40: =SUM(AF41:AF44) -> 0 | AG40: =SUM(AG41:AG44) -> 0 | AH40: =SUM(V40:AF40) -> 0 | AI40: 0 | AJ40: =SUM(AJ41:AJ44) -> 0 | AK40: =SUM(AK41:AK44) -> 0 | AL40: =SUM(AL41:AL44) -> 0 | AM40: =SUM(AM41:AM44) -> 0 | AN40: =SUM(AN41:AN44) -> 0 | AO40: =SUM(AO41:AO44) -> 0 | AP40: =SUM(AP41:AP44) -> 0 | AQ40: =SUM(AQ41:AQ44) -> 0 | AR40: =SUM(AR41:AR44) -> 0 | AS40: =SUM(AS41:AS44) -> 0 | AT40: =SUM(AT41:AT44) -> 0 | AU40: 0 | AV40: 0 | AW40: =SUM(AW41:AW44) -> 0 | AX40: =SUM(AX41:AX44) -> 0 | AY40: =SUM(AY41:AY44) -> 0 | AZ40: =SUM(AZ41:AZ44) -> 0 | BA40: =SUM(BA41:BA44) -> 0 | BB40: =SUM(BB41:BB44) -> 0 | BC40: =SUM(BC41:BC44) -> 0 | BD40: =SUM(BD41:BD44) -> 0 | BE40: =SUM(BE41:BE44) -> 0 | BF40: =SUM(BF41:BF44) -> 0 | BG40: =SUM(BG41:BG44) -> 0 | BH40: 0
B41: Операція 1/ Operation 1 | F41: =NETWORKDAYS(E41,G41,0) -> 0 | H41: 0 | U41: 0 | AH41: =SUM(V41:AG41) -> 0 | AU41: 0 | BH41: 0
B42: Операція 2/ Operation 2 | F42: 0 | H42: 0 | U42: 0 | AH42: =SUM(V42:AG42) -> 0 | AU42: 0 | BH42: 0
B43: Операція 3/ Operation 3 | F43: 0 | H43: 0 | U43: 0 | AH43: =SUM(V43:AG43) -> 0 | AU43: 0 | BH43: 0
B44: Операція 4/ Operation 4 | F44: 0 | H44: 0 | U44: 0 | AH44: =SUM(V44:AG44) -> 0 | AU44: 0 | BH44: 0
B45: Етап 8 / Phase 8 | E45: =IF(SUM(E46:E49)=0,"",MIN(E46:E49)) ->  | F45: =IFERROR(NETWORKDAYS(E45,G45,0),"") ->  | G45: =IF(SUM(G46:G49)=0,"",MAX(G46:G49)) ->  | H45: =U45+AH45+AU45+BH45 -> 0 | I45: =SUM(I46:I49) -> 0 | J45: =SUM(J46:J49) -> 0 | K45: 0 | L45: 0 | M45: 0 | N45: 0 | O45: 0 | P45: 0 | Q45: 0 | R45: 0 | S45: 0 | T45: 0 | U45: 0 | V45: 0 | W45: 0 | X45: 0 | Y45: 0 | Z45: 0 | AA45: 0 | AB45: 0 | AC45: 0 | AD45: 0 | AE45: 0 | AF45: 0 | AG45: 0 | AH45: 0 | AI45: 0 | AJ45: 0 | AK45: 0 | AL45: 0 | AM45: 0 | AN45: 0 | AO45: 0 | AP45: 0 | AQ45: 0 | AR45: 0 | AS45: 0 | AT45: 0 | AU45: 0 | AV45: 0 | AW45: 0 | AX45: 0 | AY45: 0 | AZ45: 0 | BA45: 0 | BB45: 0 | BC45: 0 | BD45: 0 | BE45: 0 | BF45: 0 | BG45: 0 | BH45: 0
B46: Операція 1/ Operation 1 | F46: =NETWORKDAYS(E46,G46,0) -> 0 | H46: 0 | U46: 0 | AH46: =SUM(V46:AG46) -> 0 | AU46: =SUM(AI46:AT46) -> 0 | BH46: =SUM(AV46:BG46) -> 0
B47: Операція 2/ Operation 2 | F47: 0 | H47: 0 | U47: 0 | AH47: =SUM(V47:AG47) -> 0 | AU47: =SUM(AI47:AT47) -> 0 | BH47: =SUM(AV47:BG47) -> 0
B48: Операція 3/ Operation 3 | F48: 0 | H48: =U48+AH48+AU48+BH48 -> 0 | U48: =SUM(I48:T48) -> 0 | AH48: =SUM(V48:AG48) -> 0 | AU48: =SUM(AI48:AT48) -> 0 | BH48: =SUM(AV48:BG48) -> 0
B49: Операція 4/ Operation 4 | F49: 0 | H49: =U49+AH49+AU49+BH49 -> 0 | U49: =SUM(I49:T49) -> 0 | AH49: =SUM(V49:AG49) -> 0 | AU49: =SUM(AI49:AT49) -> 0 | BH49: =SUM(AV49:BG49) -> 0
N50: =CONCATENATE("I півріччя/ half a year",U1) -> I півріччя/ half a year2024 | T50: =CONCATENATE("II півріччя/ half a year",U1) -> II півріччя/ half a year2024 | AA50: =CONCATENATE("I півріччя/ half a year",AH1) -> I півріччя/ half a year2025 | AG50: =CONCATENATE("II півріччя/ half a year",AH1) -> II півріччя/ half a year2025 | AN50: =CONCATENATE("I півріччя/ half a year",AU1) -> I півріччя/ half a year2026 | AT50: =CONCATENATE("II півріччя/ half a year",AU1) -> II півріччя/ half a year2026 | BA50: =CONCATENATE("I півріччя/ half a year",BH1) -> I півріччя/ half a year2027 | BG50: =CONCATENATE("II півріччя/ half a year",BH1) -> II півріччя/ half a year2027
N51: =SUM(I6:N6) -> 0 | T51: =SUM(O6:T6) -> 4278.814994 | AA51: =SUM(V6:AA6) -> 0 | AG51: =SUM(AB6:AG6) -> 0 | AN51: =SUM(AI6:AN6) -> 0 | AT51: =SUM(AO6:AT6) -> 0 | BA51: =SUM(AV6:BA6) -> 0 | BG51: =SUM(BB6:BG6) -> 0
B52: ПЛАН ОСВОЄННЯ / DEVELOPMENT PLAN
H53: =H3 -> тис.US$/ ths.US$ | I53: =I55=I58 -> TRUE | U53: =H3 -> тис.US$/ ths.US$ | AH53: =H3 -> тис.US$/ ths.US$ | AU53: =H3 -> тис.US$/ ths.US$ | BH53: =H3 -> тис.US$/ ths.US$
B54: =B4 -> Етап / Phase | C54: Відповідальний / Responsible | D54: Джерело фінансування/Source of financing | E54: Початок / Start | F54: Тривалість / Duration | G54: Кінець / End | H54: =H4 -> Сума за весь період / Whole period amount | I54: =DATE(Головна_Summary!$E$7,1,1) -> 2024-01-01 | J54: =DATE(Головна_Summary!$E$7,2,1) -> 2024-02-01 | K54: =DATE(Головна_Summary!$E$7,3,1) -> 2024-03-01 | L54: =DATE(Головна_Summary!$E$7,4,1) -> 2024-04-01 | M54: =DATE(Головна_Summary!$E$7,5,1) -> 2024-05-01 | N54: =DATE(Головна_Summary!$E$7,6,1) -> 2024-06-01 | O54: =DATE(Головна_Summary!$E$7,7,1) -> 2024-07-01 | P54: =DATE(Головна_Summary!$E$7,8,1) -> 2024-08-01 | Q54: =DATE(Головна_Summary!$E$7,9,1) -> 2024-09-01 | R54: =DATE(Головна_Summary!$E$7,10,1) -> 2024-10-01 | S54: =DATE(Головна_Summary!$E$7,11,1) -> 2024-11-01 | T54: =DATE(Головна_Summary!$E$7,12,1) -> 2024-12-01 | U54: =U4 -> Всього за / overall during 2024 рік | V54: =DATE(Головна_Summary!$E$7+1,1,1) -> 2025-01-01 | W54: =DATE(Головна_Summary!$E$7+1,2,1) -> 2025-02-01 | X54: =DATE(Головна_Summary!$E$7+1,3,1) -> 2025-03-01 | Y54: =DATE(Головна_Summary!$E$7+1,4,1) -> 2025-04-01 | Z54: =DATE(Головна_Summary!$E$7+1,5,1) -> 2025-05-01 | AA54: =DATE(Головна_Summary!$E$7+1,6,1) -> 2025-06-01 | AB54: =DATE(Головна_Summary!$E$7+1,7,1) -> 2025-07-01 | AC54: =DATE(Головна_Summary!$E$7+1,8,1) -> 2025-08-01 | AD54: =DATE(Головна_Summary!$E$7+1,9,1) -> 2025-09-01 | AE54: =DATE(Головна_Summary!$E$7+1,10,1) -> 2025-10-01 | AF54: =DATE(Головна_Summary!$E$7+1,11,1) -> 2025-11-01 | AG54: =DATE(Головна_Summary!$E$7+1,12,1) -> 2025-12-01 | AH54: =AH4 -> Всього за / overall during2025 рік | AI54: =DATE(Головна_Summary!E59+2,1,1) -> 1902-01-01 | AJ54: =DATE(Головна_Summary!$E$7+2,2,1) -> 2026-02-01 | AK54: =DATE(Головна_Summary!$E$7+2,3,1) -> 2026-03-01 | AL54: =DATE(Головна_Summary!$E$7+2,4,1) -> 2026-04-01 | AM54: =DATE(Головна_Summary!$E$7+2,5,1) -> 2026-05-01 | AN54: =DATE(Головна_Summary!$E$7+2,6,1) -> 2026-06-01 | AO54: =DATE(Головна_Summary!$E$7+2,7,1) -> 2026-07-01 | AP54: =DATE(Головна_Summary!$E$7+2,8,1) -> 2026-08-01 | AQ54: =DATE(Головна_Summary!$E$7+2,9,1) -> 2026-09-01 | AR54: =DATE(Головна_Summary!$E$7+2,10,1) -> 2026-10-01 | AS54: =DATE(Головна_Summary!$E$7+2,11,1) -> 2026-11-01 | AT54: =DATE(Головна_Summary!$E$7+2,12,1) -> 2026-12-01 | AU54: =AU4 -> Всього за / overall during2026 рік | AV54: =DATE(Головна_Summary!$E$7+3,1,1) -> 2027-01-01 | AW54: =DATE(Головна_Summary!$E$7+3,2,1) -> 2027-02-01 | AX54: =DATE(Головна_Summary!$E$7+3,3,1) -> 2027-03-01 | AY54: =DATE(Головна_Summary!$E$7+3,4,1) -> 2027-04-01 | AZ54: =DATE(Головна_Summary!$E$7+3,5,1) -> 2027-05-01 | BA54: =DATE(Головна_Summary!$E$7+3,6,1) -> 2027-06-01 | BB54: =DATE(Головна_Summary!$E$7+3,7,1) -> 2027-07-01 | BC54: =DATE(Головна_Summary!$E$7+3,8,1) -> 2027-08-01 | BD54: =DATE(Головна_Summary!$E$7+3,9,1) -> 2027-09-01 | BE54: =DATE(Головна_Summary!$E$7+3,10,1) -> 2027-10-01 | BF54: =DATE(Головна_Summary!$E$7+3,11,1) -> 2027-11-01 | BG54: =DATE(Головна_Summary!$E$7+3,12,1) -> 2027-12-01 | BH54: =BH4 -> Всього за / overall during2027 рік
B55: Освоєння проєкту всього/ Development total | D55: Всього/Total | E55: =IF(SUM(E59,E65,E69,E74,E79,E84,E89,E94)=0,"",MIN(E59,E65,E69,E74,E79,E84,E89,E94)) -> 2024-05-01 | F55: =IFERROR(NETWORKDAYS(E55,G55,0),"") -> 175 | G55: =IF(SUM(G59,G65,G69,G74,G79,G84,G89,G94)=0,"",MAX(G59,G65,G69,G74,G79,G84,G89,G94)) -> 2024-12-31 | H55: =H56+H57 -> 4278.814994 | I55: =I56+I57 -> 0 | J55: =J56+J57 -> 0 | K55: =K56+K57 -> 0 | L55: =L56+L57 -> 0 | M55: =M56+M57 -> 4278.814994 | N55: =N56+N57 -> 0 | O55: =O56+O57 -> 0 | P55: =P56+P57 -> 0 | Q55: =Q56+Q57 -> 0 | R55: =R56+R57 -> 0 | S55: =S56+S57 -> 0 | T55: =T56+T57 -> 0 | U55: =U56+U57 -> 4278.814994 | V55: =V56+V57 -> 0 | W55: =W56+W57 -> 0 | X55: =X56+X57 -> 0 | Y55: =Y56+Y57 -> 0 | Z55: =Z56+Z57 -> 0 | AA55: =AA56+AA57 -> 0 | AB55: =AB56+AB57 -> 0 | AC55: =AC56+AC57 -> 0 | AD55: =AD56+AD57 -> 0 | AE55: =AE56+AE57 -> 0 | AF55: =AF56+AF57 -> 0 | AG55: =AG56+AG57 -> 0 | AH55: =AH56+AH57 -> 0 | AI55: =AI56+AI57 -> 0 | AJ55: =AJ56+AJ57 -> 0 | AK55: =AK56+AK57 -> 0 | AL55: =AL56+AL57 -> 0 | AM55: =AM56+AM57 -> 0 | AN55: =AN56+AN57 -> 0 | AO55: =AO56+AO57 -> 0 | AP55: =AP56+AP57 -> 0 | AQ55: =AQ56+AQ57 -> 0 | AR55: =AR56+AR57 -> 0 | AS55: =AS56+AS57 -> 0 | AT55: =AT56+AT57 -> 0 | AU55: =AU56+AU57 -> 0 | AV55: =AV56+AV57 -> 0 | AW55: =AW56+AW57 -> 0 | AX55: =AX56+AX57 -> 0 | AY55: =AY56+AY57 -> 0 | AZ55: =AZ56+AZ57 -> 0 | BA55: =BA56+BA57 -> 0 | BB55: =BB56+BB57 -> 0 | BC55: =BC56+BC57 -> 0 | BD55: =BD56+BD57 -> 0 | BE55: =BE56+BE57 -> 0 | BF55: =BF56+BF57 -> 0 | BG55: =BG56+BG57 -> 0 | BH55: =BH56+BH57 -> 0
D56: Кредитні кошти/Loans | F56: =NETWORKDAYS(E56,G56,0) -> 0 | H56: =U56+AH56+AU56+BH56 -> 4278.814994 | I56: =SUMIF($D$59:$D$98,$D$6,I59:I98) -> 0 | J56: =SUMIF($D$59:$D$98,$D$6,J59:J98) -> 0 | K56: 0 | L56: 0 | M56: 4278.814994 | N56: 0 | O56: 0 | P56: 0 | Q56: 0 | R56: 0 | S56: 0 | T56: 0 | U56: 4278.814994 | V56: 0 | W56: 0 | X56: 0 | Y56: 0 | Z56: 0 | AA56: 0 | AB56: 0 | AC56: =SUMIF($D$59:$D$98,$D$6,AC59:AC98) -> 0 | AD56: 0 | AE56: 0 | AF56: 0 | AG56: 0 | AH56: 0 | AI56: 0 | AJ56: 0 | AK56: 0 | AL56: 0 | AM56: 0 | AN56: 0 | AO56: 0 | AP56: 0 | AQ56: 0 | AR56: 0 | AS56: 0 | AT56: 0 | AU56: 0 | AV56: 0 | AW56: 0 | AX56: 0 | AY56: 0 | AZ56: 0 | BA56: 0 | BB56: 0 | BC56: 0 | BD56: 0 | BE56: 0 | BF56: 0 | BG56: 0 | BH56: 0
D57: Власні кошти/ Own funds | F57: =NETWORKDAYS(E57,G57,0) -> 0 | H57: =U57+AH57+AU57+BH57 -> 0 | I57: =SUMIF($D$59:$D$98,$D$57,I59:I98) -> 0 | J57: =SUMIF($D$59:$D$98,$D$57,J59:J98) -> 0 | K57: =SUMIF($D$59:$D$98,$D$57,K59:K98) -> 0 | L57: 0 | M57: 0 | N57: =SUMIF($D$59:$D$98,$D$57,N59:N98) -> 0 | O57: 0 | P57: 0 | Q57: 0 | R57: 0 | S57: 0 | T57: 0 | U57: 0 | V57: 0 | W57: 0 | X57: 0 | Y57: 0 | Z57: 0 | AA57: 0 | AB57: 0 | AC57: 0 | AD57: 0 | AE57: 0 | AF57: 0 | AG57: 0 | AH57: 0 | AI57: 0 | AJ57: 0 | AK57: 0 | AL57: 0 | AM57: 0 | AN57: 0 | AO57: 0 | AP57: 0 | AQ57: 0 | AR57: 0 | AS57: 0 | AT57: 0 | AU57: 0 | AV57: 0 | AW57: 0 | AX57: 0 | AY57: 0 | AZ57: 0 | BA57: 0 | BB57: 0 | BC57: 0 | BD57: 0 | BE57: 0 | BF57: 0 | BG57: 0 | BH57: 0
I58: =I59+I65+I69+I74+I79+I84+I89+I94 -> 0 | J58: =J59+J65+J69+J74+J79+J84+J89+J94 -> 0 | K58: =K59+K65+K69+K74+K79+K84+K89+K94 -> 0 | L58: =L59+L65+L69+L74+L79+L84+L89+L94 -> 0 | M58: =M59+M65+M69+M74+M79+M84+M89+M94 -> 4278.814994 | N58: =N59+N65+N69+N74+N79+N84+N89+N94 -> 0 | O58: =O59+O65+O69+O74+O79+O84+O89+O94 -> 0 | P58: =P59+P65+P69+P74+P79+P84+P89+P94 -> 0 | Q58: =Q59+Q65+Q69+Q74+Q79+Q84+Q89+Q94 -> 0 | R58: =R59+R65+R69+R74+R79+R84+R89+R94 -> 0 | S58: =S59+S65+S69+S74+S79+S84+S89+S94 -> 0 | T58: =T59+T65+T69+T74+T79+T84+T89+T94 -> 0 | U58: =U59+U65+U69+U74+U79+U84+U89+U94 -> 4278.814994 | V58: =V59+V65+V69+V74+V79+V84+V89+V94 -> 0 | W58: =W59+W65+W69+W74+W79+W84+W89+W94 -> 0 | X58: =X59+X65+X69+X74+X79+X84+X89+X94 -> 0 | Y58: =Y59+Y65+Y69+Y74+Y79+Y84+Y89+Y94 -> 0 | Z58: =Z59+Z65+Z69+Z74+Z79+Z84+Z89+Z94 -> 0 | AA58: =AA59+AA65+AA69+AA74+AA79+AA84+AA89+AA94 -> 0 | AB58: =AB59+AB65+AB69+AB74+AB79+AB84+AB89+AB94 -> 0 | AC58: =AC59+AC65+AC69+AC74+AC79+AC84+AC89+AC94 -> 0 | AD58: =AD59+AD65+AD69+AD74+AD79+AD84+AD89+AD94 -> 0 | AE58: =AE59+AE65+AE69+AE74+AE79+AE84+AE89+AE94 -> 0 | AF58: =AF59+AF65+AF69+AF74+AF79+AF84+AF89+AF94 -> 0 | AG58: =AG59+AG65+AG69+AG74+AG79+AG84+AG89+AG94 -> 0 | AH58: =AH59+AH65+AH69+AH74+AH79+AH84+AH89+AH94 -> 0 | AI58: =AI59+AI65+AI69+AI74+AI79+AI84+AI89+AI94 -> 0 | AJ58: =AJ59+AJ65+AJ69+AJ74+AJ79+AJ84+AJ89+AJ94 -> 0 | AK58: =AK59+AK65+AK69+AK74+AK79+AK84+AK89+AK94 -> 0 | AL58: =AL59+AL65+AL69+AL74+AL79+AL84+AL89+AL94 -> 0 | AM58: =AM59+AM65+AM69+AM74+AM79+AM84+AM89+AM94 -> 0 | AN58: =AN59+AN65+AN69+AN74+AN79+AN84+AN89+AN94 -> 0 | AO58: =AO59+AO65+AO69+AO74+AO79+AO84+AO89+AO94 -> 0 | AP58: =AP59+AP65+AP69+AP74+AP79+AP84+AP89+AP94 -> 0 | AQ58: =AQ59+AQ65+AQ69+AQ74+AQ79+AQ84+AQ89+AQ94 -> 0 | AR58: =AR59+AR65+AR69+AR74+AR79+AR84+AR89+AR94 -> 0 | AS58: =AS59+AS65+AS69+AS74+AS79+AS84+AS89+AS94 -> 0 | AT58: =AT59+AT65+AT69+AT74+AT79+AT84+AT89+AT94 -> 0 | AU58: =AU59+AU65+AU69+AU74+AU79+AU84+AU89+AU94 -> 0 | AV58: =AV59+AV65+AV69+AV74+AV79+AV84+AV89+AV94 -> 0 | AW58: =AW59+AW65+AW69+AW74+AW79+AW84+AW89+AW94 -> 0 | AX58: =AX59+AX65+AX69+AX74+AX79+AX84+AX89+AX94 -> 0 | AY58: =AY59+AY65+AY69+AY74+AY79+AY84+AY89+AY94 -> 0 | AZ58: =AZ59+AZ65+AZ69+AZ74+AZ79+AZ84+AZ89+AZ94 -> 0 | BA58: =BA59+BA65+BA69+BA74+BA79+BA84+BA89+BA94 -> 0 | BB58: =BB59+BB65+BB69+BB74+BB79+BB84+BB89+BB94 -> 0 | BC58: =BC59+BC65+BC69+BC74+BC79+BC84+BC89+BC94 -> 0 | BD58: =BD59+BD65+BD69+BD74+BD79+BD84+BD89+BD94 -> 0 | BE58: =BE59+BE65+BE69+BE74+BE79+BE84+BE89+BE94 -> 0 | BF58: =BF59+BF65+BF69+BF74+BF79+BF84+BF89+BF94 -> 0 | BG58: =BG59+BG65+BG69+BG74+BG79+BG84+BG89+BG94 -> 0 | BH58: =BH59+BH65+BH69+BH74+BH79+BH84+BH89+BH94 -> 0
B59: =B10 -> Етап 1 / Phase 1 | E59: =IF(SUM(E60:E64)=0,"",MIN(E60:E64)) -> 2024-05-01 | F59: =IFERROR(NETWORKDAYS(E59,G59,0),"") -> 175 | G59: =IF(SUM(G60:G64)=0,"",MAX(G60:G64)) -> 2024-12-31 | H59: =U59+AH59+AU59+BH59 -> 4278.814994 | I59: =SUM(I60:I64) -> 0 | J59: =SUM(J60:J64) -> 0 | K59: 0 | L59: 0 | M59: 4278.814994 | N59: 0 | O59: 0 | P59: 0 | Q59: 0 | R59: 0 | S59: 0 | T59: 0 | U59: =SUM(I59:T59) -> 4278.814994 | V59: 0 | W59: =SUM(W60:W64) -> 0 | X59: =SUM(X60:X64) -> 0 | Y59: =SUM(Y60:Y64) -> 0 | Z59: =SUM(Z60:Z64) -> 0 | AA59: =SUM(AA60:AA64) -> 0 | AB59: =SUM(AB60:AB64) -> 0 | AC59: =SUM(AC60:AC64) -> 0 | AD59: =SUM(AD60:AD64) -> 0 | AE59: =SUM(AE60:AE64) -> 0 | AF59: =SUM(AF60:AF64) -> 0 | AG59: =SUM(AG60:AG64) -> 0 | AH59: =SUM(V59:AG59) -> 0 | AI59: 0 | AJ59: =SUM(AJ60:AJ64) -> 0 | AK59: =SUM(AK60:AK64) -> 0 | AL59: =SUM(AL60:AL64) -> 0 | AM59: =SUM(AM60:AM64) -> 0 | AN59: =SUM(AN60:AN64) -> 0 | AO59: =SUM(AO60:AO64) -> 0 | AP59: =SUM(AP60:AP64) -> 0 | AQ59: =SUM(AQ60:AQ64) -> 0 | AR59: =SUM(AR60:AR64) -> 0 | AS59: =SUM(AS60:AS64) -> 0 | AT59: =SUM(AT60:AT64) -> 0 | AU59: =SUM(AI59:AT59) -> 0 | AV59: 0 | AW59: =SUM(AW60:AW64) -> 0 | AX59: =SUM(AX60:AX64) -> 0 | AY59: =SUM(AY60:AY64) -> 0 | AZ59: =SUM(AZ60:AZ64) -> 0 | BA59: =SUM(BA60:BA64) -> 0 | BB59: =SUM(BB60:BB64) -> 0 | BC59: =SUM(BC60:BC64) -> 0 | BD59: =SUM(BD60:BD64) -> 0 | BE59: =SUM(BE60:BE64) -> 0 | BF59: =SUM(BF60:BF64) -> 0 | BG59: =SUM(BG60:BG64) -> 0 | BH59: =SUM(AV59:BG59) -> 0
B60: =B11 -> Операція 1/ Operation 1 | D60: =D11 -> Кредитні кошти/Loans | E60: 2024-05-01 | F60: =NETWORKDAYS(E60,G60,0) -> 175 | G60: 2024-12-31 | H60: =U60+AH60+AU60+BH60 -> 4278.814994 | M60: =O11 -> 4278.814994 | U60: =SUM(I60:T60) -> 4278.814994 | AH60: 0 | AU60: 0 | BH60: 0
B61: Операція 2/ Operation 2 | D61: =D12 -> 0 | F61: 0 | H61: =U61+AH61+AU61+BH61 -> 0 | U61: 0 | AH61: 0 | AU61: 0 | BH61: 0
B62: Операція 3/ Operation 3 | D62: 0 | F62: 0 | H62: 0 | U62: =SUM(I62:T62) -> 0 | AH62: 0 | AU62: 0 | BH62: 0
B63: Операція 4/ Operation 4 | D63: 0 | F63: 0 | H63: 0 | U63: 0 | AH63: 0 | AU63: 0 | BH63: 0
B64: Операція 5/ Operation 5 | D64: 0 | F64: =NETWORKDAYS(E64,G64,0) -> 0 | H64: =U64+AH64+AU64+BH64 -> 0 | U64: =SUM(I64:T64) -> 0 | AH64: 0 | AU64: 0 | BH64: 0
B65: Етап 2 / Phase 2 | E65: =IF(SUM(E66:E68)=0,"",MIN(E66:E68)) ->  | F65: =IFERROR(NETWORKDAYS(E65,G65,0),"") ->  | G65: =IF(SUM(G66:G68)=0,"",MAX(G66:G68)) ->  | H65: =H16 -> 0 | I65: =SUM(I66:I68) -> 0 | J65: =SUM(J66:J68) -> 0 | K65: 0 | L65: 0 | M65: 0 | N65: 0 | O65: 0 | P65: 0 | Q65: 0 | R65: 0 | S65: 0 | T65: 0 | U65: 0 | V65: 0 | W65: =SUM(W66:W68) -> 0 | X65: =SUM(X66:X68) -> 0 | Y65: =SUM(Y66:Y68) -> 0 | Z65: =SUM(Z66:Z68) -> 0 | AA65: =SUM(AA66:AA68) -> 0 | AB65: =SUM(AB66:AB68) -> 0 | AC65: =SUM(AC66:AC68) -> 0 | AD65: =SUM(AD66:AD68) -> 0 | AE65: =SUM(AE66:AE68) -> 0 | AF65: =SUM(AF66:AF68) -> 0 | AG65: =SUM(AG66:AG68) -> 0 | AH65: 0 | AI65: =SUM(AI66:AI68) -> 0 | AJ65: =SUM(AJ66:AJ68) -> 0 | AK65: 0 | AL65: 0 | AM65: 0 | AN65: 0 | AO65: 0 | AP65: 0 | AQ65: 0 | AR65: 0 | AS65: 0 | AT65: 0 | AU65: 0 | AV65: 0 | AW65: =SUM(AW66:AW68) -> 0 | AX65: =SUM(AX66:AX68) -> 0 | AY65: =SUM(AY66:AY68) -> 0 | AZ65: =SUM(AZ66:AZ68) -> 0 | BA65: =SUM(BA66:BA68) -> 0 | BB65: =SUM(BB66:BB68) -> 0 | BC65: =SUM(BC66:BC68) -> 0 | BD65: =SUM(BD66:BD68) -> 0 | BE65: =SUM(BE66:BE68) -> 0 | BF65: =SUM(BF66:BF68) -> 0 | BG65: =SUM(BG66:BG68) -> 0 | BH65: 0
B66: Операція 1/ Operation 1 | D66: 0 | F66: =NETWORKDAYS(E66,G66,0) -> 0 | H66: 0 | U66: 0 | AH66: 0 | AU66: 0 | BH66: 0
B67: Операція 2/ Operation 2 | D67: 0 | F67: 0 | H67: 0 | U67: 0 | AH67: 0 | AU67: 0 | BH67: 0
B68: Операція 3/ Operation 3 | D68: 0 | F68: 0 | H68: 0 | U68: 0 | AH68: 0 | AU68: 0 | BH68: 0
B69: Етап 3 / Phase 3 | E69: =IF(SUM(E70:E73)=0,"",MIN(E70:E73)) ->  | F69: =IFERROR(NETWORKDAYS(E69,G69,0),"") ->  | G69: =IF(SUM(G70:G73)=0,"",MAX(G70:G73)) ->  | H69: =U69+AH69+AU69+BH69 -> 0 | I69: =SUM(I70:I73) -> 0 | J69: =SUM(J70:J73) -> 0 | K69: 0 | L69: 0 | M69: 0 | N69: 0 | O69: 0 | P69: 0 | Q69: 0 | R69: 0 | S69: 0 | T69: 0 | U69: =SUM(I69:T69) -> 0 | V69: =SUM(V70:V73) -> 0 | W69: =SUM(W70:W73) -> 0 | X69: 0 | Y69: 0 | Z69: 0 | AA69: 0 | AB69: 0 | AC69: 0 | AD69: 0 | AE69: 0 | AF69: 0 | AG69: 0 | AH69: 0 | AI69: 0 | AJ69: =SUM(AJ70:AJ73) -> 0 | AK69: =SUM(AK70:AK73) -> 0 | AL69: =SUM(AL70:AL73) -> 0 | AM69: =SUM(AM70:AM73) -> 0 | AN69: =SUM(AN70:AN73) -> 0 | AO69: =SUM(AO70:AO73) -> 0 | AP69: =SUM(AP70:AP73) -> 0 | AQ69: =SUM(AQ70:AQ73) -> 0 | AR69: =SUM(AR70:AR73) -> 0 | AS69: =SUM(AS70:AS73) -> 0 | AT69: =SUM(AT70:AT73) -> 0 | AU69: 0 | AV69: 0 | AW69: =SUM(AW70:AW73) -> 0 | AX69: =SUM(AX70:AX73) -> 0 | AY69: =SUM(AY70:AY73) -> 0 | AZ69: =SUM(AZ70:AZ73) -> 0 | BA69: =SUM(BA70:BA73) -> 0 | BB69: =SUM(BB70:BB73) -> 0 | BC69: =SUM(BC70:BC73) -> 0 | BD69: =SUM(BD70:BD73) -> 0 | BE69: =SUM(BE70:BE73) -> 0 | BF69: =SUM(BF70:BF73) -> 0 | BG69: =SUM(BG70:BG73) -> 0 | BH69: 0
B70: Операція 1/ Operation 1 | D70: 0 | F70: =NETWORKDAYS(E70,G70,0) -> 0 | H70: 0 | U70: 0 | AH70: 0 | AU70: 0 | BH70: 0
B71: Операція 2/ Operation 2 | D71: 0 | F71: 0 | H71: 0 | U71: 0 | AH71: 0 | AU71: 0 | BH71: 0
B72: Операція 3/ Operation 3 | D72: 0 | F72: 0 | H72: 0 | U72: 0 | AH72: 0 | AU72: 0 | BH72: 0
B73: Операція 4/ Operation 4 | D73: 0 | F73: 0 | H73: 0 | U73: 0 | AH73: 0 | AU73: 0 | BH73: 0
B74: Етап 4 / Phase 4 | E74: =IF(SUM(E75:E78)=0,"",MIN(E75:E78)) ->  | F74: =IFERROR(NETWORKDAYS(E74,G74,0),"") ->  | G74: =IF(SUM(G75:G78)=0,"",MAX(G75:G78)) ->  | H74: =U74+AH74+AU74+BH74 -> 0 | I74: =SUM(I75:I78) -> 0 | J74: =SUM(J75:J78) -> 0 | K74: 0 | L74: 0 | M74: 0 | N74: 0 | O74: 0 | P74: 0 | Q74: 0 | R74: 0 | S74: 0 | T74: 0 | U74: =SUM(I74:T74) -> 0 | V74: 0 | W74: =SUM(W75:W78) -> 0 | X74: =SUM(X75:X78) -> 0 | Y74: =SUM(Y75:Y78) -> 0 | Z74: =SUM(Z75:Z78) -> 0 | AA74: =SUM(AA75:AA78) -> 0 | AB74: =SUM(AB75:AB78) -> 0 | AC74: =SUM(AC75:AC78) -> 0 | AD74: =SUM(AD75:AD78) -> 0 | AE74: =SUM(AE75:AE78) -> 0 | AF74: =SUM(AF75:AF78) -> 0 | AG74: =SUM(AG75:AG78) -> 0 | AH74: 0 | AI74: 0 | AJ74: =SUM(AJ75:AJ78) -> 0 | AK74: =SUM(AK75:AK78) -> 0 | AL74: =SUM(AL75:AL78) -> 0 | AM74: =SUM(AM75:AM78) -> 0 | AN74: =SUM(AN75:AN78) -> 0 | AO74: =SUM(AO75:AO78) -> 0 | AP74: =SUM(AP75:AP78) -> 0 | AQ74: =SUM(AQ75:AQ78) -> 0 | AR74: =SUM(AR75:AR78) -> 0 | AS74: =SUM(AS75:AS78) -> 0 | AT74: =SUM(AT75:AT78) -> 0 | AU74: 0 | AV74: 0 | AW74: =SUM(AW75:AW78) -> 0 | AX74: =SUM(AX75:AX78) -> 0 | AY74: =SUM(AY75:AY78) -> 0 | AZ74: =SUM(AZ75:AZ78) -> 0 | BA74: =SUM(BA75:BA78) -> 0 | BB74: =SUM(BB75:BB78) -> 0 | BC74: =SUM(BC75:BC78) -> 0 | BD74: =SUM(BD75:BD78) -> 0 | BE74: =SUM(BE75:BE78) -> 0 | BF74: =SUM(BF75:BF78) -> 0 | BG74: =SUM(BG75:BG78) -> 0 | BH74: 0
B75: Операція 1/ Operation 1 | D75: 0 | F75: =NETWORKDAYS(E75,G75,0) -> 0 | H75: 0 | U75: 0 | AH75: 0 | AU75: 0 | BH75: 0
B76: Операція 2/ Operation 2 | D76: 0 | F76: 0 | H76: 0 | U76: 0 | AH76: 0 | AU76: 0 | BH76: 0
B77: Операція 3/ Operation 3 | D77: 0 | F77: 0 | H77: 0 | U77: 0 | AH77: 0 | AU77: 0 | BH77: 0
B78: Операція 4/ Operation 4 | D78: 0 | F78: 0 | H78: 0 | U78: 0 | AH78: 0 | AU78: 0 | BH78: 0
B79: Етап 5 / Phase 5 | E79: =IF(SUM(E80:E83)=0,"",MIN(E80:E83)) ->  | F79: =IFERROR(NETWORKDAYS(E79,G79,0),"") ->  | G79: =IF(SUM(G80:G83)=0,"",MAX(G80:G83)) ->  | H79: =U79+AH79+AU79+BH79 -> 0 | I79: =SUM(I80:I83) -> 0 | J79: =SUM(J80:J83) -> 0 | K79: 0 | L79: 0 | M79: 0 | N79: 0 | O79: 0 | P79: 0 | Q79: 0 | R79: 0 | S79: 0 | T79: 0 | U79: =SUM(I79:T79) -> 0 | V79: 0 | W79: =SUM(W80:W83) -> 0 | X79: =SUM(X80:X83) -> 0 | Y79: =SUM(Y80:Y83) -> 0 | Z79: =SUM(Z80:Z83) -> 0 | AA79: =SUM(AA80:AA83) -> 0 | AB79: =SUM(AB80:AB83) -> 0 | AC79: =SUM(AC80:AC83) -> 0 | AD79: =SUM(AD80:AD83) -> 0 | AE79: =SUM(AE80:AE83) -> 0 | AF79: =SUM(AF80:AF83) -> 0 | AG79: =SUM(AG80:AG83) -> 0 | AH79: 0 | AI79: 0 | AJ79: =SUM(AJ80:AJ83) -> 0 | AK79: =SUM(AK80:AK83) -> 0 | AL79: =SUM(AL80:AL83) -> 0 | AM79: =SUM(AM80:AM83) -> 0 | AN79: =SUM(AN80:AN83) -> 0 | AO79: =SUM(AO80:AO83) -> 0 | AP79: =SUM(AP80:AP83) -> 0 | AQ79: =SUM(AQ80:AQ83) -> 0 | AR79: =SUM(AR80:AR83) -> 0 | AS79: =SUM(AS80:AS83) -> 0 | AT79: =SUM(AT80:AT83) -> 0 | AU79: 0 | AV79: 0 | AW79: =SUM(AW80:AW83) -> 0 | AX79: =SUM(AX80:AX83) -> 0 | AY79: =SUM(AY80:AY83) -> 0 | AZ79: =SUM(AZ80:AZ83) -> 0 | BA79: =SUM(BA80:BA83) -> 0 | BB79: =SUM(BB80:BB83) -> 0 | BC79: =SUM(BC80:BC83) -> 0 | BD79: =SUM(BD80:BD83) -> 0 | BE79: =SUM(BE80:BE83) -> 0 | BF79: =SUM(BF80:BF83) -> 0 | BG79: =SUM(BG80:BG83) -> 0 | BH79: 0
B80: Операція 1/ Operation 1 | D80: 0 | F80: =NETWORKDAYS(E80,G80,0) -> 0 | H80: 0 | U80: 0 | AH80: 0 | AU80: 0 | BH80: 0
B81: Операція 2/ Operation 2 | D81: 0 | F81: 0 | H81: 0 | U81: 0 | AH81: 0 | AU81: 0 | BH81: 0
B82: Операція 3/ Operation 3 | D82: 0 | F82: 0 | H82: 0 | U82: 0 | AH82: 0 | AU82: 0 | BH82: 0
B83: Операція 4/ Operation 4 | D83: 0 | F83: 0 | H83: 0 | U83: 0 | AH83: 0 | AU83: 0 | BH83: 0
B84: Етап 6 / Phase 6 | E84: =IF(SUM(E85:E88)=0,"",MIN(E85:E88)) ->  | F84: =IFERROR(NETWORKDAYS(E84,G84,0),"") ->  | G84: =IF(SUM(G85:G88)=0,"",MAX(G85:G88)) ->  | H84: =U84+AH84+AU84+BH84 -> 0 | I84: =SUM(I85:I88) -> 0 | J84: =SUM(J85:J88) -> 0 | K84: 0 | L84: 0 | M84: 0 | N84: 0 | O84: 0 | P84: 0 | Q84: 0 | R84: 0 | S84: 0 | T84: 0 | U84: =SUM(I84:T84) -> 0 | V84: 0 | W84: =SUM(W85:W88) -> 0 | X84: =SUM(X85:X88) -> 0 | Y84: =SUM(Y85:Y88) -> 0 | Z84: =SUM(Z85:Z88) -> 0 | AA84: =SUM(AA85:AA88) -> 0 | AB84: =SUM(AB85:AB88) -> 0 | AC84: =SUM(AC85:AC88) -> 0 | AD84: =SUM(AD85:AD88) -> 0 | AE84: =SUM(AE85:AE88) -> 0 | AF84: =SUM(AF85:AF88) -> 0 | AG84: =SUM(AG85:AG88) -> 0 | AH84: 0 | AI84: 0 | AJ84: =SUM(AJ85:AJ88) -> 0 | AK84: =SUM(AK85:AK88) -> 0 | AL84: =SUM(AL85:AL88) -> 0 | AM84: =SUM(AM85:AM88) -> 0 | AN84: =SUM(AN85:AN88) -> 0 | AO84: =SUM(AO85:AO88) -> 0 | AP84: =SUM(AP85:AP88) -> 0 | AQ84: =SUM(AQ85:AQ88) -> 0 | AR84: =SUM(AR85:AR88) -> 0 | AS84: =SUM(AS85:AS88) -> 0 | AT84: =SUM(AT85:AT88) -> 0 | AU84: 0 | AV84: 0 | AW84: =SUM(AW85:AW88) -> 0 | AX84: =SUM(AX85:AX88) -> 0 | AY84: =SUM(AY85:AY88) -> 0 | AZ84: =SUM(AZ85:AZ88) -> 0 | BA84: =SUM(BA85:BA88) -> 0 | BB84: =SUM(BB85:BB88) -> 0 | BC84: =SUM(BC85:BC88) -> 0 | BD84: =SUM(BD85:BD88) -> 0 | BE84: =SUM(BE85:BE88) -> 0 | BF84: =SUM(BF85:BF88) -> 0 | BG84: =SUM(BG85:BG88) -> 0 | BH84: 0
B85: Операція 1/ Operation 1 | D85: 0 | F85: =NETWORKDAYS(E85,G85,0) -> 0 | H85: 0 | U85: 0 | AH85: 0 | AU85: 0 | BH85: 0
B86: Операція 2/ Operation 2 | D86: 0 | F86: 0 | H86: 0 | U86: 0 | AH86: 0 | AU86: 0 | BH86: 0
B87: Операція 3/ Operation 3 | D87: 0 | F87: 0 | H87: 0 | U87: 0 | AH87: 0 | AU87: 0 | BH87: 0
B88: Операція 4/ Operation 4 | D88: 0 | F88: 0 | H88: 0 | U88: 0 | AH88: 0 | AU88: 0 | BH88: 0
B89: Етап 7 / Phase 7 | E89: =IF(SUM(E90:E93)=0,"",MIN(E90:E93)) ->  | F89: =IFERROR(NETWORKDAYS(E89,G89,0),"") ->  | G89: =IF(SUM(G90:G93)=0,"",MAX(G90:G93)) ->  | H89: =U89+AH89+AU89+BH89 -> 0 | I89: =SUM(I90:I93) -> 0 | J89: =SUM(J90:J93) -> 0 | K89: 0 | L89: 0 | M89: 0 | N89: 0 | O89: 0 | P89: 0 | Q89: 0 | R89: 0 | S89: 0 | T89: 0 | U89: =SUM(I89:T89) -> 0 | V89: 0 | W89: =SUM(W90:W93) -> 0 | X89: =SUM(X90:X93) -> 0 | Y89: =SUM(Y90:Y93) -> 0 | Z89: =SUM(Z90:Z93) -> 0 | AA89: =SUM(AA90:AA93) -> 0 | AB89: =SUM(AB90:AB93) -> 0 | AC89: =SUM(AC90:AC93) -> 0 | AD89: =SUM(AD90:AD93) -> 0 | AE89: =SUM(AE90:AE93) -> 0 | AF89: =SUM(AF90:AF93) -> 0 | AG89: =SUM(AG90:AG93) -> 0 | AH89: =SUM(V89:AF89) -> 0 | AI89: =SUM(AI90:AI93) -> 0 | AJ89: =SUM(AJ90:AJ93) -> 0 | AK89: =SUM(AK90:AK93) -> 0 | AL89: =SUM(AL90:AL93) -> 0 | AM89: =SUM(AM90:AM93) -> 0 | AN89: =SUM(AN90:AN93) -> 0 | AO89: =SUM(AO90:AO93) -> 0 | AP89: =SUM(AP90:AP93) -> 0 | AQ89: =SUM(AQ90:AQ93) -> 0 | AR89: =SUM(AR90:AR93) -> 0 | AS89: =SUM(AS90:AS93) -> 0 | AT89: =SUM(AT90:AT93) -> 0 | AU89: 0 | AV89: 0 | AW89: =SUM(AW90:AW93) -> 0 | AX89: =SUM(AX90:AX93) -> 0 | AY89: =SUM(AY90:AY93) -> 0 | AZ89: =SUM(AZ90:AZ93) -> 0 | BA89: =SUM(BA90:BA93) -> 0 | BB89: =SUM(BB90:BB93) -> 0 | BC89: =SUM(BC90:BC93) -> 0 | BD89: =SUM(BD90:BD93) -> 0 | BE89: =SUM(BE90:BE93) -> 0 | BF89: =SUM(BF90:BF93) -> 0 | BG89: =SUM(BG90:BG93) -> 0 | BH89: 0
B90: Операція 1/ Operation 1 | D90: 0 | F90: =NETWORKDAYS(E90,G90,0) -> 0 | H90: 0 | U90: 0 | AH90: =SUM(V90:AG90) -> 0 | AU90: 0 | BH90: 0
B91: Операція 2/ Operation 2 | D91: 0 | F91: 0 | H91: 0 | U91: 0 | AH91: 0 | AU91: 0 | BH91: 0
B92: Операція 3/ Operation 3 | D92: 0 | F92: 0 | H92: 0 | U92: 0 | AH92: 0 | AU92: 0 | BH92: 0
B93: Операція 4/ Operation 4 | D93: 0 | F93: 0 | H93: 0 | U93: 0 | AH93: 0 | AU93: 0 | BH93: 0
B94: Етап 8 / Phase 8 | E94: =IF(SUM(E95:E98)=0,"",MIN(E95:E98)) ->  | F94: =IFERROR(NETWORKDAYS(E94,G94,0),"") ->  | G94: =IF(SUM(G95:G98)=0,"",MAX(G95:G98)) ->  | H94: =U94+AH94+AU94+BH94 -> 0 | I94: =SUM(I95:I98) -> 0 | J94: =SUM(J95:J98) -> 0 | K94: 0 | L94: 0 | M94: 0 | N94: 0 | O94: 0 | P94: 0 | Q94: 0 | R94: 0 | S94: 0 | T94: 0 | U94: =SUM(I94:T94) -> 0 | V94: 0 | W94: =SUM(W95:W98) -> 0 | X94: =SUM(X95:X98) -> 0 | Y94: =SUM(Y95:Y98) -> 0 | Z94: =SUM(Z95:Z98) -> 0 | AA94: =SUM(AA95:AA98) -> 0 | AB94: =SUM(AB95:AB98) -> 0 | AC94: =SUM(AC95:AC98) -> 0 | AD94: =SUM(AD95:AD98) -> 0 | AE94: =SUM(AE95:AE98) -> 0 | AF94: =SUM(AF95:AF98) -> 0 | AG94: =SUM(AG95:AG98) -> 0 | AH94: 0 | AI94: =SUM(AI95:AI98) -> 0 | AJ94: =SUM(AJ95:AJ98) -> 0 | AK94: =SUM(AK95:AK98) -> 0 | AL94: =SUM(AL95:AL98) -> 0 | AM94: =SUM(AM95:AM98) -> 0 | AN94: =SUM(AN95:AN98) -> 0 | AO94: =SUM(AO95:AO98) -> 0 | AP94: =SUM(AP95:AP98) -> 0 | AQ94: =SUM(AQ95:AQ98) -> 0 | AR94: =SUM(AR95:AR98) -> 0 | AS94: =SUM(AS95:AS98) -> 0 | AT94: =SUM(AT95:AT98) -> 0 | AU94: 0 | AV94: 0 | AW94: =SUM(AW95:AW98) -> 0 | AX94: =SUM(AX95:AX98) -> 0 | AY94: =SUM(AY95:AY98) -> 0 | AZ94: =SUM(AZ95:AZ98) -> 0 | BA94: =SUM(BA95:BA98) -> 0 | BB94: =SUM(BB95:BB98) -> 0 | BC94: =SUM(BC95:BC98) -> 0 | BD94: =SUM(BD95:BD98) -> 0 | BE94: =SUM(BE95:BE98) -> 0 | BF94: =SUM(BF95:BF98) -> 0 | BG94: =SUM(BG95:BG98) -> 0 | BH94: 0
B95: Операція 1/ Operation 1 | D95: 0 | F95: =NETWORKDAYS(E95,G95,0) -> 0 | H95: 0 | U95: 0 | AH95: 0 | AU95: 0 | BH95: 0
B96: Операція 2/ Operation 2 | D96: 0 | F96: 0 | H96: 0 | U96: 0 | AH96: 0 | AU96: 0 | BH96: 0
B97: Операція 3/ Operation 3 | D97: 0 | F97: 0 | H97: 0 | U97: 0 | AH97: 0 | AU97: 0 | BH97: 0
B98: Операція 4/ Operation 4 | D98: 0 | F98: 0 | H98: 0 | U98: 0 | AH98: 0 | AU98: 0 | BH98: 0
D99: =D50 -> 0

Sheet Фінансування_Financing (CFI)
B1: UKR | N1: ENG | Z1: ГРАФІК ФІНАНСУВАННЯ/ FINANCING SCHEDULE
A2: ФІНАНСОВІ ВИТРАТИ ПО ПРОЕКТУ | F2: =Головна_Summary!A2 -> Будівництво СЕС 10 МВт | M2: FINANCIAL COSTS OF THE PROJECT | R2: =Головна_Summary!K2 -> Project name | AB2: Інвестиційні витрати / Investment costs | AD2: =Головна_Summary!AD5 -> тис.US$/ ths.US$
AD4: Січень / Jan | AE4: Лютий / Feb | AF4: Березень / Mar | AG4: Квітень / Apr | AH4: Травень / May | AI4: Червень / Jun | AJ4: Липень / Jul | AK4: Серпень / Aug | AL4: Вересень / Sep | AM4: Жовтень / Oct | AN4: Листопад / Nov | AO4: Грудень / Dec | AP4: Разом / Total
B5: Інвестиційні витрати по проекту | N5: Investment costs of the project | AC5: ='Грошові потоки _ Cash flows'!G7 -> 2024 | AD5: ='План фінансування_Funding plan'!I5 -> 0 | AE5: ='План фінансування_Funding plan'!J5 -> 0 | AF5: ='План фінансування_Funding plan'!K5 -> 0 | AG5: ='План фінансування_Funding plan'!L5 -> 0 | AH5: ='План фінансування_Funding plan'!M5 -> 0 | AI5: ='План фінансування_Funding plan'!N5 -> 0 | AJ5: ='План фінансування_Funding plan'!O5 -> 4278.814994 | AK5: ='План фінансування_Funding plan'!P5 -> 0 | AL5: ='План фінансування_Funding plan'!Q5 -> 0 | AM5: ='План фінансування_Funding plan'!R5 -> 0 | AN5: ='План фінансування_Funding plan'!S5 -> 0 | AO5: ='План фінансування_Funding plan'!T5 -> 0 | AP5: =SUM(AD5:AO5) -> 4278.814994
B7: Найменування об'єкту | F7: Кількість | H7: Одн.виміру | J7: Сума | N7: Object name | R7: Amount | T7: Unit | V7: Sum | AD7: =AC5 -> 2024 | AE7: =AD7+1 -> 2025 | AF7: =AE7+1 -> 2026 | AG7: =AF7+1 -> 2027 | AH7: =AG7+1 -> 2028 | AI7: =AH7+1 -> 2029 | AJ7: 2030 | AK7: 2031 | AL7: 2032 | AM7: 2033 | AN7: 2034 | AO7: 2035 | AP7: =AO7+1 -> 2036 | AQ7: =AP7+1 -> 2037 | AR7: =AQ7+1 -> 2038 | AS7: =AR7+1 -> 2039 | AT7: =AS7+1 -> 2040 | AU7: 2041 | AV7: =AU7+1 -> 2042 | AW7: =AV7+1 -> 2043 | AX7: =AW7+1 -> 2044 | AY7: =AX7+1 -> 2045 | AZ7: =AY7+1 -> 2046 | BA7: =AZ7+1 -> 2047 | BB7: =BA7+1 -> 2048 | BC7: =BB7+1 -> 2049 | BD7: =BC7+1 -> 2050 | BE7: =BD7+1 -> 2051 | BF7: =BE7+1 -> 2052 | BG7: =BF7+1 -> 2053 | BH7: =AP4 -> Разом / Total
B8: 1 | C8: Будівництво СЕС | J8: =Припущення_Assumptions!G18 -> 4278.814994 | L8: 1 | N8: =B8 -> 1 | V8: =J8 -> 4278.814994 | X8: 1 | AD8: ='План фінансування_Funding plan'!U5 -> 4278.814994 | AE8: ='План фінансування_Funding plan'!AH5 -> 0 | AF8: ='План фінансування_Funding plan'!AU5 -> 0 | AG8: ='План фінансування_Funding plan'!BH5 -> 0 | BH8: =SUM(AD8:BG8) -> 4278.814994
B9: 2 | L9: 0 | N9: 2 | V9: 0 | X9: 0
B10: 3 | L10: 1 | N10: 3 | V10: 0 | X10: 1 | AD10: =AC5 -> 2024 | AE10: =AD10+1 -> 2025 | AF10: =AE10+1 -> 2026 | AG10: =AF10+1 -> 2027 | AH10: =AG10+1 -> 2028 | AI10: =AH10+1 -> 2029 | AJ10: 2030 | AK10: 2031 | AL10: 2032 | AM10: 2033 | AN10: 2034 | AO10: 2035 | AP10: =AO10+1 -> 2036 | AQ10: =AP10+1 -> 2037 | AR10: =AQ10+1 -> 2038 | AS10: =AR10+1 -> 2039 | AT10: =AS10+1 -> 2040 | AU10: 2041 | AV10: =AU10+1 -> 2042 | AW10: =AV10+1 -> 2043 | AX10: =AW10+1 -> 2044 | AY10: =AX10+1 -> 2045 | AZ10: =AY10+1 -> 2046 | BA10: =AZ10+1 -> 2047 | BB10: =BA10+1 -> 2048 | BC10: =BB10+1 -> 2049 | BD10: =BC10+1 -> 2050 | BE10: =BD10+1 -> 2051 | BF10: =BE10+1 -> 2052 | BG10: =BF10+1 -> 2053 | BH10: =BH7 -> Разом / Total
B11: 4 | L11: 0 | N11: 4 | V11: 0 | X11: 0 | AB11: Капітальні ремонти / Overhauls | BH11: =SUM(AD11:BG11) -> 0
B12: 5 | L12: 0 | N12: 5 | V12: 0 | X12: 0
B13: 6 | L13: 1 | N13: 6 | V13: 0 | X13: 1 | AD13: =AC5 -> 2024 | AE13: =AD13+1 -> 2025 | AF13: =AE13+1 -> 2026 | AG13: =AF13+1 -> 2027 | AH13: =AG13+1 -> 2028 | AI13: =AH13+1 -> 2029 | AJ13: 2030 | AK13: 2031 | AL13: 2032 | AM13: 2033 | AN13: 2034 | AO13: 2035 | AP13: =AO13+1 -> 2036 | AQ13: =AP13+1 -> 2037 | AR13: =AQ13+1 -> 2038 | AS13: =AR13+1 -> 2039 | AT13: =AS13+1 -> 2040 | AU13: 2041 | AV13: =AU13+1 -> 2042 | AW13: =AV13+1 -> 2043 | AX13: =AW13+1 -> 2044 | AY13: =AX13+1 -> 2045 | AZ13: =AY13+1 -> 2046 | BA13: =AZ13+1 -> 2047 | BB13: =BA13+1 -> 2048 | BC13: =BB13+1 -> 2049 | BD13: =BC13+1 -> 2050 | BE13: =BD13+1 -> 2051 | BF13: =BE13+1 -> 2052 | BG13: =BF13+1 -> 2053 | BH13: =BH10 -> Разом / Total
B14: 7 | L14: 0 | N14: 7 | V14: 0 | X14: 0 | AB14: Операційні витрати / Operating costs | BH14: =SUM(AD14:BG14) -> 0
I15: Всього | J15: =SUM(J8:J14) -> 4278.814994 | L15: =COUNTIF(L8:L14,1) -> 3 | U15: Total | V15: =SUM(V8:V14) -> 4278.814994 | X15: =COUNTIF(X8:X14,1) -> 3
Z16: ГРАФІК ОСВОЕННЯ/ CAPITALIZATION SCHEDULE
B17: Капітальні ремонти під час експлуатації | N17: Overhauls during comissioning | AB17: Інвестиційні витрати / Investment costs | AD17: =AD2 -> тис.US$/ ths.US$
B18: Найменування об'єкту | F18: Кількість | H18: Одн.виміру | J18: Сума | N18: =N7 -> Object name | R18: =R7 -> Amount | T18: =T7 -> Unit | V18: =V7 -> Sum
B19: 1 | N19: 1 | R19: =F19 -> 0 | T19: =H19 -> 0 | V19: =J19 -> 0 | AD19: =AD4 -> Січень / Jan | AE19: Лютий / Feb | AF19: Березень / Mar | AG19: Квітень / Apr | AH19: Травень / May | AI19: Червень / Jun | AJ19: Липень / Jul | AK19: Серпень / Aug | AL19: Вересень / Sep | AM19: Жовтень / Oct | AN19: Листопад / Nov | AO19: Грудень / Dec | AP19: Разом / Total
B20: 2 | N20: 2 | R20: =F20 -> 0 | T20: =H20 -> 0 | V20: =J20 -> 0 | AC20: =AC5 -> 2024 | AD20: ='План фінансування_Funding plan'!I55 -> 0 | AE20: ='План фінансування_Funding plan'!J55 -> 0 | AF20: ='План фінансування_Funding plan'!K55 -> 0 | AG20: ='План фінансування_Funding plan'!L55 -> 0 | AH20: ='План фінансування_Funding plan'!M55 -> 4278.814994 | AI20: ='План фінансування_Funding plan'!N55 -> 0 | AJ20: ='План фінансування_Funding plan'!O55 -> 0 | AK20: ='План фінансування_Funding plan'!P55 -> 0 | AL20: ='План фінансування_Funding plan'!Q55 -> 0 | AM20: ='План фінансування_Funding plan'!R55 -> 0 | AN20: ='План фінансування_Funding plan'!S55 -> 0 | AO20: ='План фінансування_Funding plan'!T55 -> 0 | AP20: =SUM(AD20:AO20) -> 4278.814994
B21: 3 | N21: 3 | R21: 0 | T21: 0 | V21: 0 | AD21: =AC20 -> 2024 | AE21: =AD21+1 -> 2025 | AF21: =AE21+1 -> 2026 | AG21: =AF21+1 -> 2027 | AH21: =AG21+1 -> 2028 | AI21: =AH21+1 -> 2029 | AJ21: 2030 | AK21: 2031 | AL21: 2032 | AM21: 2033 | AN21: 2034 | AO21: 2035 | AP21: =AO21+1 -> 2036 | AQ21: =AP21+1 -> 2037 | AR21: =AQ21+1 -> 2038 | AS21: =AR21+1 -> 2039 | AT21: =AS21+1 -> 2040 | AU21: 2041 | AV21: =AU21+1 -> 2042 | AW21: =AV21+1 -> 2043 | AX21: =AW21+1 -> 2044 | AY21: =AX21+1 -> 2045 | AZ21: =AY21+1 -> 2046 | BA21: =AZ21+1 -> 2047 | BB21: =BA21+1 -> 2048 | BC21: =BB21+1 -> 2049 | BD21: =BC21+1 -> 2050 | BE21: =BD21+1 -> 2051 | BF21: =BE21+1 -> 2052 | BG21: =BF21+1 -> 2053 | BH21: =BH13 -> Разом / Total
B22: 4 | N22: 4 | R22: 0 | T22: 0 | V22: 0 | AD22: =AP20 -> 4278.814994 | AE22: ='План фінансування_Funding plan'!AH55 -> 0 | AF22: ='План фінансування_Funding plan'!AU55 -> 0 | AG22: ='План фінансування_Funding plan'!BH55 -> 0 | BH22: =SUM(AD22:BG22) -> 4278.814994
B23: 5 | N23: 5 | R23: 0 | T23: 0 | V23: 0
B24: 6 | N24: 6 | R24: 0 | T24: 0 | V24: 0 | AD24: =AC20 -> 2024 | AE24: =AD24+1 -> 2025 | AF24: =AE24+1 -> 2026 | AG24: =AF24+1 -> 2027 | AH24: =AG24+1 -> 2028 | AI24: =AH24+1 -> 2029 | AJ24: 2030 | AK24: 2031 | AL24: 2032 | AM24: 2033 | AN24: 2034 | AO24: 2035 | AP24: =AO24+1 -> 2036 | AQ24: =AP24+1 -> 2037 | AR24: =AQ24+1 -> 2038 | AS24: =AR24+1 -> 2039 | AT24: =AS24+1 -> 2040 | AU24: 2041 | AV24: =AU24+1 -> 2042 | AW24: =AV24+1 -> 2043 | AX24: =AW24+1 -> 2044 | AY24: =AX24+1 -> 2045 | AZ24: =AY24+1 -> 2046 | BA24: =AZ24+1 -> 2047 | BB24: =BA24+1 -> 2048 | BC24: =BB24+1 -> 2049 | BD24: =BC24+1 -> 2050 | BE24: =BD24+1 -> 2051 | BF24: =BE24+1 -> 2052 | BG24: =BF24+1 -> 2053 | BH24: =BH13 -> Разом / Total
B25: 7 | N25: 7 | R25: 0 | T25: 0 | V25: 0 | AB25: Капітальні ремонти / Overhauls | BH25: =SUM(AD25:BG25) -> 0
I26: Всього | J26: =SUM(J19:K25) -> 0 | U26: =U15 -> Total | V26: =SUM(V19:W25) -> 0
B27: Операційні витрати на проект | N27: Operating costs of the project | Z27: ВВЕДЕННЯ В ЕКСПЛУАТАЦІЮ/ COMMISSIONING
B29: Найменування об'єкту | F29: Кількість | H29: Одн.виміру | J29: Сума | N29: =N18 -> Object name | R29: =R18 -> Amount | T29: =T18 -> Unit | V29: =V18 -> Sum
B30: 1 | N30: 1 | R30: =F30 -> 0 | T30: =H30 -> 0 | V30: =J30 -> 0 | AD30: =AD17 -> тис.US$/ ths.US$
B31: 2 | N31: 2 | R31: =F31 -> 0 | T31: 0 | V31: =J31 -> 0 | AD31: =AC20 -> 2024 | AE31: =AD31+1 -> 2025 | AF31: =AE31+1 -> 2026 | AG31: =AF31+1 -> 2027 | AH31: =AG31+1 -> 2028 | AI31: =AH31+1 -> 2029 | AJ31: 2030 | AK31: 2031 | AL31: 2032 | AM31: 2033 | AN31: 2034 | AO31: 2035 | AP31: =AO31+1 -> 2036 | AQ31: =AP31+1 -> 2037 | AR31: =AQ31+1 -> 2038 | AS31: =AR31+1 -> 2039 | AT31: =AS31+1 -> 2040 | AU31: 2041 | AV31: =AU31+1 -> 2042 | AW31: =AV31+1 -> 2043 | AX31: =AW31+1 -> 2044 | AY31: =AX31+1 -> 2045 | AZ31: =AY31+1 -> 2046 | BA31: =AZ31+1 -> 2047 | BB31: =BA31+1 -> 2048 | BC31: =BB31+1 -> 2049 | BD31: =BC31+1 -> 2050 | BE31: =BD31+1 -> 2051 | BF31: =BE31+1 -> 2052 | BG31: =BF31+1 -> 2053 | BH31: =BH24 -> Разом / Total
B32: 3 | N32: 3 | R32: 0 | T32: 0 | V32: 0 | AB32: Введення об'екта / Commissioning | AD32: =IF(AD31='Грошові потоки _ Cash flows'!$E$13,Головна_Summary!$AB$15,0) -> 0 | AE32: =IF(AE31='Грошові потоки _ Cash flows'!$E$13,Головна_Summary!$AB$15,0) -> 4278.814994 | AF32: =IF(AF31='Грошові потоки _ Cash flows'!$E$13,Головна_Summary!$AB$15,0) -> 0 | AG32: =IF(AG31='Грошові потоки _ Cash flows'!$E$13,Головна_Summary!$AB$15,0) -> 0 | AH32: =IF(AH31='Грошові потоки _ Cash flows'!$E$13,Головна_Summary!$AB$15,0) -> 0 | AI32: =IF(AI31='Грошові потоки _ Cash flows'!$E$13,Головна_Summary!$AB$15,0) -> 0 | AJ32: =IF(AJ31='Грошові потоки _ Cash flows'!$E$13,Головна_Summary!$AB$15,0) -> 0 | AK32: =IF(AK31='Грошові потоки _ Cash flows'!$E$13,Головна_Summary!$AB$15,0) -> 0 | AL32: =IF(AL31='Грошові потоки _ Cash flows'!$E$13,Головна_Summary!$AB$15,0) -> 0 | AM32: =IF(AM31='Грошові потоки _ Cash flows'!$E$13,Головна_Summary!$AB$15,0) -> 0 | AN32: =IF(AN31='Грошові потоки _ Cash flows'!$E$13,Головна_Summary!$AB$15,0) -> 0 | AO32: =IF(AO31='Грошові потоки _ Cash flows'!$E$13,Головна_Summary!$AB$15,0) -> 0 | AP32: =IF(AP31='Грошові потоки _ Cash flows'!$E$13,Головна_Summary!$AB$15,0) -> 0 | AQ32: =IF(AQ31='Грошові потоки _ Cash flows'!$E$13,Головна_Summary!$AB$15,0) -> 0 | AR32: =IF(AR31='Грошові потоки _ Cash flows'!$E$13,Головна_Summary!$AB$15,0) -> 0 | AS32: =IF(AS31='Грошові потоки _ Cash flows'!$E$13,Головна_Summary!$AB$15,0) -> 0 | AT32: =IF(AT31='Грошові потоки _ Cash flows'!$E$13,Головна_Summary!$AB$15,0) -> 0 | AU32: =IF(AU31='Грошові потоки _ Cash flows'!$E$13,Головна_Summary!$AB$15,0) -> 0 | AV32: =IF(AV31='Грошові потоки _ Cash flows'!$E$13,Головна_Summary!$AB$15,0) -> 0 | AW32: =IF(AW31='Грошові потоки _ Cash flows'!$E$13,Головна_Summary!$AB$15,0) -> 0 | AX32: =IF(AX31='Грошові потоки _ Cash flows'!$E$13,Головна_Summary!$AB$15,0) -> 0 | AY32: =IF(AY31='Грошові потоки _ Cash flows'!$E$13,Головна_Summary!$AB$15,0) -> 0 | AZ32: =IF(AZ31='Грошові потоки _ Cash flows'!$E$13,Головна_Summary!$AB$15,0) -> 0 | BA32: =IF(BA31='Грошові потоки _ Cash flows'!$E$13,Головна_Summary!$AB$15,0) -> 0 | BB32: =IF(BB31='Грошові потоки _ Cash flows'!$E$13,Головна_Summary!$AB$15,0) -> 0 | BC32: =IF(BC31='Грошові потоки _ Cash flows'!$E$13,Головна_Summary!$AB$15,0) -> 0 | BD32: =IF(BD31='Грошові потоки _ Cash flows'!$E$13,Головна_Summary!$AB$15,0) -> 0 | BE32: =IF(BE31='Грошові потоки _ Cash flows'!$E$13,Головна_Summary!$AB$15,0) -> 0 | BF32: =IF(BF31='Грошові потоки _ Cash flows'!$E$13,Головна_Summary!$AB$15,0) -> 0 | BG32: =IF(BG31='Грошові потоки _ Cash flows'!$E$13,Головна_Summary!$AB$15,0) -> 0 | BH32: =SUM(AD32:BG32) -> 4278.814994
B33: 4 | N33: 4 | R33: 0 | T33: 0 | V33: 0
B34: 5 | N34: 5 | R34: 0 | T34: 0 | V34: 0 | AD34: =AD24 -> 2024 | AE34: =AD34+1 -> 2025 | AF34: =AE34+1 -> 2026 | AG34: =AF34+1 -> 2027 | AH34: =AG34+1 -> 2028 | AI34: =AH34+1 -> 2029 | AJ34: 2030 | AK34: 2031 | AL34: 2032 | AM34: 2033 | AN34: 2034 | AO34: 2035 | AP34: =AO34+1 -> 2036 | AQ34: =AP34+1 -> 2037 | AR34: =AQ34+1 -> 2038 | AS34: =AR34+1 -> 2039 | AT34: =AS34+1 -> 2040 | AU34: 2041 | AV34: =AU34+1 -> 2042 | AW34: =AV34+1 -> 2043 | AX34: =AW34+1 -> 2044 | AY34: =AX34+1 -> 2045 | AZ34: =AY34+1 -> 2046 | BA34: =AZ34+1 -> 2047 | BB34: =BA34+1 -> 2048 | BC34: =BB34+1 -> 2049 | BD34: =BC34+1 -> 2050 | BE34: =BD34+1 -> 2051 | BF34: =BE34+1 -> 2052 | BG34: =BF34+1 -> 2053 | BH34: =BH31 -> Разом / Total
B35: 6 | N35: 6 | R35: 0 | T35: 0 | V35: 0 | AB35: Капітальні ремонти / Overhauls | AD35: =IF(AD34=AD10,AD11,0) -> 0 | AE35: 0 | AF35: 0 | AG35: 0 | AH35: 0 | AI35: 0 | AJ35: 0 | AK35: 0 | AL35: 0 | AM35: 0 | AN35: 0 | AO35: 0 | AP35: 0 | AQ35: 0 | AR35: 0 | AS35: 0 | AT35: 0 | AU35: 0 | AV35: 0 | AW35: 0 | AX35: 0 | AY35: 0 | AZ35: 0 | BA35: 0 | BB35: 0 | BC35: 0 | BD35: 0 | BE35: 0 | BF35: 0 | BG35: 0 | BH35: =SUM(AD35:BG35) -> 0
B36: 7 | N36: 7 | R36: 0 | T36: 0 | V36: 0
I37: Всього | J37: =J15 -> 4278.814994 | U37: =U26 -> Total | V37: =SUM(V8:W14) -> 4278.814994

Sheet Грошові потоки _ Cash flows
A3: РОЗРАХУНОК ГРОШОВИХ ПОТОКІВ І ЕКОНОМІЧНОГО ЕФЕКТУ / CALCULATION OF CASH FLOWS AND ECONOMIC EFFECT
N4: =IF(Головна_Summary!H13="Власні кошти",1,0) -> 0
C5: ВХІДНІ ДАННІ / DATA | I5: ПОКАЗНИКИ ЕКОНОМІЧНОЇ ЕФЕКТИВНОСТІ ПРОЕКТУ / INDICATORS OF ECONOMIC EFFICIENCY OF THE PROJECT | P5: ДОДАТКОВА ІНФОРМАЦІЯ ПРО ПРОЕКТ / EXTRA PROJECT INFO
E6: місяць / month | G6: рік / year
C7: Початок витрат за проектом / Start of project expenses | E7: 7 | G7: =Головна_Summary!E7 -> 2024 | J7: NPV із залишковою вартістю / with residual value | K7: =AM49+S11 -> 1479.284708 | L7: =Головна_Summary!AD5 -> тис.US$/ ths.US$ | M7: PI | N7: =IF(SUMPRODUCT(I38:AL38,I48:AL48)=0,"-",K7/SUMPRODUCT(I38:AL38,I48:AL48)+1) -> 1.506826631 | P7: Початкова вартість / Initial cost | S7: =Амортизація_Depreciation!AJ5+Амортизація_Depreciation!AJ27 -> 4278.814994 | T7: =Головна_Summary!AD5 -> тис.US$/ ths.US$
C9: Розрахунок грошових потоків на / Cash flow calculation | E9: 15 | G9: років/ years | J9: NPV без залишкової вартості / without residual value | K9: =AM49 -> 1479.284708 | L9: =Головна_Summary!AD5 -> тис.US$/ ths.US$ | M9: DPP | N9: =IF(K7>0,IF(SUM(J52:AL52)=0,"<12",SUM(I52:AL52)),"Не окуповується/ Doesn't pay off") -> 90.60225681 | O9: міс. | P9: Залишкова вартість / Residual value | S9: =IF(E17="Ліквідаційна",IF(S13>S15,S13-(S13-S15)*HLOOKUP(G7+E9,I22:AL54,32),'Грошові потоки _ Cash flows'!S13+('Грошові потоки _ Cash flows'!S15-'Грошові потоки _ Cash flows'!S13)*HLOOKUP(G7+E9,I22:AL54,32)),IF(E17="Подовжена",S17,0)) -> 1711.525997 | T9: =Головна_Summary!AD5 -> тис.US$/ ths.US$
C11: Ставка дисконтування / Discount rate | E11: 0.155 | G11: % | J11: ROI | K11: =IFERROR(IF(Головна_Summary!H13="Кредитні кошти",(SUMPRODUCT(I33:AL33,I48:AL48)-SUMPRODUCT(I57:AL57,I48:AL48))/SUMPRODUCT(I57:AL57,I48:AL48),IF(Головна_Summary!H13="Власні кошти",(SUMPRODUCT(I33:AL33,I48:AL48)-SUMPRODUCT(I39:AL39,I48:AL48))/SUMPRODUCT(I39:AL39,I48:AL48),(SUMPRODUCT(I33:AL33,I48:AL48)-SUMPRODUCT(I55:AL55,I48:AL48))/SUMPRODUCT(I55:AL55,I48:AL48))),IF(Головна_Summary!H13="Грантові кошти",(SUMPRODUCT(I33:AL33,I48:AL48)-SUMPRODUCT(I39:AL39,I48:AL48))/SUMPRODUCT(I39:AL39,I48:AL48),(SUMPRODUCT(I33:AL33,I48:AL48)-SUMPRODUCT(I56:AL56,I48:AL48))/SUMPRODUCT(I56:AL56,I48:AL48))) -> 0.118689128 | L11: % | M11: PP | N11: =IF(K7>0,IF(SUM(J53:AL53)=0,"<12",SUM(I53:AL53)),"Не окуповується/ Doesn't pay off") -> 75.99972863 | O11: міс. | P11: Дисконтована залишкова вартість / Discounted residual value | S11: =S9*HLOOKUP(E13+E9-1,I22:AL50,26,0)/(1+E11) -> 0 | T11: =Головна_Summary!AD5 -> тис.US$/ ths.US$
C13: Рік введення в експлуатацію / Year of commissioning | E13: =Головна_Summary!G7 -> 2025 | K13: 0.3194902936 | L13: % | M13: BCR | N13: =IFERROR(IF(Головна_Summary!H13="Кредитні кошти",(SUMPRODUCT(I25:AL25,I48:AL48)/SUMPRODUCT(I57:AL57,I48:AL48)),_xlfn.IFS(Головна_Summary!H13="Власні кошти",(SUMPRODUCT(I25:AL25,I48:AL48)/SUMPRODUCT(I39:AL39,I48:AL48))*(SUMPRODUCT(I25:AL25,I48:AL48)/SUMPRODUCT(I55:AL55,I48:AL48)),Головна_Summary!H13="Грантові кошти",(SUMPRODUCT(I25:AL25,I48:AL48)/SUMPRODUCT(I39:AL39,I48:AL48))*(SUMPRODUCT(I25:AL25,I48:AL48)/SUMPRODUCT(I56:AL56,I48:AL48)))),"Н/Д") -> 1.678559767 | P13: Ринкова залишкова /Market residual value | S13: =IF(E15<E9,0,S7*(E15-E9)/E15) -> 1711.525997 | T13: =Головна_Summary!AD5 -> тис.US$/ ths.US$
C15: Макс.термін експлуатації об'єкта / max. service life | E15: 25 | G15: років/ years | P15: Бухгалтерська залишкова / Accounting residual value | S15: =IF(E9<=E15,HLOOKUP(E13+E9-1,Амортизація_Depreciation!F4:AI137,53,FALSE),HLOOKUP(E13+E15-1,Амортизація_Depreciation!F4:AI137,53,FALSE)) -> 1711.525997 | T15: =Головна_Summary!AD5 -> тис.US$/ ths.US$ | U15: =IFERROR(HLOOKUP(P6,'Грошові потоки _ Cash flows'!$A$22:$AL$26,5,FALSE)*Припущення_Assumptions!#REF!*'Тариф ОСП_Tariff'!$W$2,0) -> 0
C17: Залишкова вартість / Residual value | E17: Ліквідаційна | G17: =IF(E17="Ліквідаційна","Liquidation",IF(E17="Подовжена","Elongated","Missing")) -> Liquidation | P17: Подовжена вартість в пост-прогнозний період / Extended cost in the post-forecast period | S17: =HLOOKUP(E13+E9-1,I22:AL45,21,FALSE)*(1+E19)/(E11-E19) -> 0 | T17: =Головна_Summary!AD5 -> тис.US$/ ths.US$
C19: Прогноз середньорічної зміни ВГП в період після розрахункових / Forecasted cash flow change | E19: 0 | G19: %
A22: =Головна_Summary!A2 -> Будівництво СЕС 10 МВт | I22: =G7 -> 2024 | J22: =IF(I22=0,0,IF(($E$13+$E$9-1)>=I22+1,I22+1,0)) -> 2025 | K22: =IF(J22=0,0,IF(($E$13+$E$9-1)>=J22+1,J22+1,0)) -> 2026 | L22: 2027 | M22: 2028 | N22: 2029 | O22: 2030 | P22: 2031 | Q22: 2032 | R22: 2033 | S22: 2034 | T22: 2035 | U22: 2036 | V22: 2037 | W22: 2038 | X22: 2039 | Y22: =IF(X22=0,0,IF(($E$13+$E$9-1)>=X22+1,X22+1,0)) -> 0 | Z22: =IF(Y22=0,0,IF(($E$13+$E$9-1)>=Y22+1,Y22+1,0)) -> 0 | AA22: =IF(Z22=0,0,IF(($E$13+$E$9-1)>=Z22+1,Z22+1,0)) -> 0 | AB22: =IF(AA22=0,0,IF(($E$13+$E$9-1)>=AA22+1,AA22+1,0)) -> 0 | AC22: =IF(AB22=0,0,IF(($E$13+$E$9-1)>=AB22+1,AB22+1,0)) -> 0 | AD22: =IF(AC22=0,0,IF(($E$13+$E$9-1)>=AC22+1,AC22+1,0)) -> 0 | AE22: =IF(AD22=0,0,IF(($E$13+$E$9-1)>=AD22+1,AD22+1,0)) -> 0 | AF22: =IF(AE22=0,0,IF(($E$13+$E$9-1)>=AE22+1,AE22+1,0)) -> 0 | AG22: =IF(AF22=0,0,IF(($E$13+$E$9-1)>=AF22+1,AF22+1,0)) -> 0 | AH22: =IF(AG22=0,0,IF(($E$13+$E$9-1)>=AG22+1,AG22+1,0)) -> 0 | AI22: =IF(AH22=0,0,IF(($E$13+$E$9-1)>=AH22+1,AH22+1,0)) -> 0 | AJ22: =IF(AI22=0,0,IF(($E$13+$E$9-1)>=AI22+1,AI22+1,0)) -> 0 | AK22: =IF(AJ22=0,0,IF(($E$13+$E$9-1)>=AJ22+1,AJ22+1,0)) -> 0 | AL22: 0 | AM22: Разом / Total
I23: =IF(I22>=$G$7,COUNT($I$22:I22),0) -> 1 | J23: =IF(J22>=$G$7,COUNT($I$22:J22),0) -> 2 | K23: =IF(K22>=$G$7,COUNT($I$22:K22),0) -> 3 | L23: =IF(L22>=$G$7,COUNT($I$22:L22),0) -> 4 | M23: =IF(M22>=$G$7,COUNT($I$22:M22),0) -> 5 | N23: =IF(N22>=$G$7,COUNT($I$22:N22),0) -> 6 | O23: =IF(O22>=$G$7,COUNT($I$22:O22),0) -> 7 | P23: =IF(P22>=$G$7,COUNT($I$22:P22),0) -> 8 | Q23: =IF(Q22>=$G$7,COUNT($I$22:Q22),0) -> 9 | R23: =IF(R22>=$G$7,COUNT($I$22:R22),0) -> 10 | S23: =IF(S22>=$G$7,COUNT($I$22:S22),0) -> 11 | T23: =IF(T22>=$G$7,COUNT($I$22:T22),0) -> 12 | U23: =IF(U22>=$G$7,COUNT($I$22:U22),0) -> 13 | V23: =IF(V22>=$G$7,COUNT($I$22:V22),0) -> 14 | W23: =IF(W22>=$G$7,COUNT($I$22:W22),0) -> 15 | X23: =IF(X22>=$G$7,COUNT($I$22:X22),0) -> 16 | Y23: =IF(Y22>=$G$7,COUNT($I$22:Y22),0) -> 0 | Z23: =IF(Z22>=$G$7,COUNT($I$22:Z22),0) -> 0 | AA23: =IF(AA22>=$G$7,COUNT($I$22:AA22),0) -> 0 | AB23: =IF(AB22>=$G$7,COUNT($I$22:AB22),0) -> 0 | AC23: =IF(AC22>=$G$7,COUNT($I$22:AC22),0) -> 0 | AD23: =IF(AD22>=$G$7,COUNT($I$22:AD22),0) -> 0 | AE23: =IF(AE22>=$G$7,COUNT($I$22:AE22),0) -> 0 | AF23: =IF(AF22>=$G$7,COUNT($I$22:AF22),0) -> 0 | AG23: =IF(AG22>=$G$7,COUNT($I$22:AG22),0) -> 0 | AH23: =IF(AH22>=$G$7,COUNT($I$22:AH22),0) -> 0 | AI23: =IF(AI22>=$G$7,COUNT($I$22:AI22),0) -> 0 | AJ23: =IF(AJ22>=$G$7,COUNT($I$22:AJ22),0) -> 0 | AK23: =IF(AK22>=$G$7,COUNT($I$22:AK22),0) -> 0 | AL23: =IF(AL22>=$G$7,COUNT($I$22:AL22),0) -> 0
A24: 1. | B24: Операційні грошові потоки (CFO)
A25: 1.1. | B25: + | C25: Операційні доходи / Operating income | I25: =IF(AND(I22>=$E$13,I22<=($E$13+$E$15)-1),HLOOKUP(I22,CFO!$B$4:$AL$6,2,FALSE),0) -> 0 | J25: =IF(AND(J22>=$E$13,J22<=($E$13+$E$15)-1),HLOOKUP(J22,CFO!$B$4:$AL$6,2,FALSE),0) -> 1155.968188 | K25: =IF(AND(K22>=$E$13,K22<=($E$13+$E$15)-1),HLOOKUP(K22,CFO!$B$4:$AL$6,2,FALSE),0) -> 1155.968188 | L25: =IF(AND(L22>=$E$13,L22<=($E$13+$E$15)-1),HLOOKUP(L22,CFO!$B$4:$AL$6,2,FALSE),0) -> 1155.968188 | M25: =IF(AND(M22>=$E$13,M22<=($E$13+$E$15)-1),HLOOKUP(M22,CFO!$B$4:$AL$6,2,FALSE),0) -> 1155.968188 | N25: =IF(AND(N22>=$E$13,N22<=($E$13+$E$15)-1),HLOOKUP(N22,CFO!$B$4:$AL$6,2,FALSE),0) -> 1155.968188 | O25: =IF(AND(O22>=$E$13,O22<=($E$13+$E$15)-1),HLOOKUP(O22,CFO!$B$4:$AL$6,2,FALSE),0) -> 1155.968188 | P25: =IF(AND(P22>=$E$13,P22<=($E$13+$E$15)-1),HLOOKUP(P22,CFO!$B$4:$AL$6,2,FALSE),0) -> 1155.968188 | Q25: =IF(AND(Q22>=$E$13,Q22<=($E$13+$E$15)-1),HLOOKUP(Q22,CFO!$B$4:$AL$6,2,FALSE),0) -> 1155.968188 | R25: =IF(AND(R22>=$E$13,R22<=($E$13+$E$15)-1),HLOOKUP(R22,CFO!$B$4:$AL$6,2,FALSE),0) -> 1155.968188 | S25: =IF(AND(S22>=$E$13,S22<=($E$13+$E$15)-1),HLOOKUP(S22,CFO!$B$4:$AL$6,2,FALSE),0) -> 1155.968188 | T25: =IF(AND(T22>=$E$13,T22<=($E$13+$E$15)-1),HLOOKUP(T22,CFO!$B$4:$AL$6,2,FALSE),0) -> 1155.968188 | U25: =IF(AND(U22>=$E$13,U22<=($E$13+$E$15)-1),HLOOKUP(U22,CFO!$B$4:$AL$6,2,FALSE),0) -> 1155.968188 | V25: =IF(AND(V22>=$E$13,V22<=($E$13+$E$15)-1),HLOOKUP(V22,CFO!$B$4:$AL$6,2,FALSE),0) -> 1155.968188 | W25: =IF(AND(W22>=$E$13,W22<=($E$13+$E$15)-1),HLOOKUP(W22,CFO!$B$4:$AL$6,2,FALSE),0) -> 1155.968188 | X25: =IF(AND(X22>=$E$13,X22<=($E$13+$E$15)-1),HLOOKUP(X22,CFO!$B$4:$AL$6,2,FALSE),0) -> 1155.968188 | Y25: =IF(AND(Y22>=$E$13,Y22<=($E$13+$E$15)-1),HLOOKUP(Y22,CFO!$B$4:$AL$6,2,FALSE),0) -> 0 | Z25: =IF(AND(Z22>=$E$13,Z22<=($E$13+$E$15)-1),HLOOKUP(Z22,CFO!$B$4:$AL$6,2,FALSE),0) -> 0 | AA25: =IF(AND(AA22>=$E$13,AA22<=($E$13+$E$15)-1),HLOOKUP(AA22,CFO!$B$4:$AL$6,2,FALSE),0) -> 0 | AB25: =IF(AND(AB22>=$E$13,AB22<=($E$13+$E$15)-1),HLOOKUP(AB22,CFO!$B$4:$AL$6,2,FALSE),0) -> 0 | AC25: =IF(AND(AC22>=$E$13,AC22<=($E$13+$E$15)-1),HLOOKUP(AC22,CFO!$B$4:$AL$6,2,FALSE),0) -> 0 | AD25: =IF(AND(AD22>=$E$13,AD22<=($E$13+$E$15)-1),HLOOKUP(AD22,CFO!$B$4:$AL$6,2,FALSE),0) -> 0 | AE25: =IF(AND(AE22>=$E$13,AE22<=($E$13+$E$15)-1),HLOOKUP(AE22,CFO!$B$4:$AL$6,2,FALSE),0) -> 0 | AF25: =IF(AND(AF22>=$E$13,AF22<=($E$13+$E$15)-1),HLOOKUP(AF22,CFO!$B$4:$AL$6,2,FALSE),0) -> 0 | AG25: =IF(AND(AG22>=$E$13,AG22<=($E$13+$E$15)-1),HLOOKUP(AG22,CFO!$B$4:$AL$6,2,FALSE),0) -> 0 | AH25: =IF(AND(AH22>=$E$13,AH22<=($E$13+$E$15)-1),HLOOKUP(AH22,CFO!$B$4:$AL$6,2,FALSE),0) -> 0 | AI25: =IF(AND(AI22>=$E$13,AI22<=($E$13+$E$15)-1),HLOOKUP(AI22,CFO!$B$4:$AL$6,2,FALSE),0) -> 0 | AJ25: =IF(AND(AJ22>=$E$13,AJ22<=($E$13+$E$15)-1),HLOOKUP(AJ22,CFO!$B$4:$AL$6,2,FALSE),0) -> 0 | AK25: =IF(AND(AK22>=$E$13,AK22<=($E$13+$E$15)-1),HLOOKUP(AK22,CFO!$B$4:$AL$6,2,FALSE),0) -> 0 | AL25: =IF(AND(AL22>=$E$13,AL22<=($E$13+$E$15)-1),HLOOKUP(AL22,CFO!$B$4:$AL$6,2,FALSE),0) -> 0 | AM25: =SUM(I25:AL25) -> 17339.52282
A26: 1.2. | B26: - | C26: Операційні витрати / Operating expenses | I26: =IF(AND(I22>=$E$13,I22<=($E$13+$E$15)-1),HLOOKUP(I22,CFO!B4:AL6,3,FALSE),0) -> 0 | J26: =IF(AND(J22>=$E$13,J22<=($E$13+$E$15)-1),HLOOKUP(J22,CFO!C4:AM6,3,FALSE),0) -> 75.34204447 | K26: =IF(AND(K22>=$E$13,K22<=($E$13+$E$15)-1),HLOOKUP(K22,CFO!D4:AN6,3,FALSE),0) -> 73.31576222 | L26: =IF(AND(L22>=$E$13,L22<=($E$13+$E$15)-1),HLOOKUP(L22,CFO!E4:AO6,3,FALSE),0) -> 71.44697895 | M26: =IF(AND(M22>=$E$13,M22<=($E$13+$E$15)-1),HLOOKUP(M22,CFO!F4:AP6,3,FALSE),0) -> 69.73067274 | N26: =IF(AND(N22>=$E$13,N22<=($E$13+$E$15)-1),HLOOKUP(N22,CFO!G4:AQ6,3,FALSE),0) -> 68.16119362 | O26: =IF(AND(O22>=$E$13,O22<=($E$13+$E$15)-1),HLOOKUP(O22,CFO!H4:AR6,3,FALSE),0) -> 66.73233687 | P26: =IF(AND(P22>=$E$13,P22<=($E$13+$E$15)-1),HLOOKUP(P22,CFO!I4:AS6,3,FALSE),0) -> 65.43742261 | Q26: =IF(AND(Q22>=$E$13,Q22<=($E$13+$E$15)-1),HLOOKUP(Q22,CFO!J4:AT6,3,FALSE),0) -> 64.26937993 | R26: =IF(AND(R22>=$E$13,R22<=($E$13+$E$15)-1),HLOOKUP(R22,CFO!K4:AU6,3,FALSE),0) -> 63.22083393 | S26: =IF(AND(S22>=$E$13,S22<=($E$13+$E$15)-1),HLOOKUP(S22,CFO!L4:AV6,3,FALSE),0) -> 62.28419424 | T26: =IF(AND(T22>=$E$13,T22<=($E$13+$E$15)-1),HLOOKUP(T22,CFO!M4:AW6,3,FALSE),0) -> 61.45174317 | U26: =IF(AND(U22>=$E$13,U22<=($E$13+$E$15)-1),HLOOKUP(U22,CFO!N4:AX6,3,FALSE),0) -> 60.71572172 | V26: =IF(AND(V22>=$E$13,V22<=($E$13+$E$15)-1),HLOOKUP(V22,CFO!O4:AY6,3,FALSE),0) -> 60.06841213 | W26: =IF(AND(W22>=$E$13,W22<=($E$13+$E$15)-1),HLOOKUP(W22,CFO!P4:AZ6,3,FALSE),0) -> 59.50221527 | X26: =IF(AND(X22>=$E$13,X22<=($E$13+$E$15)-1),HLOOKUP(X22,CFO!Q4:BA6,3,FALSE),0) -> 59.00972158 | Y26: =IF(AND(Y22>=$E$13,Y22<=($E$13+$E$15)-1),HLOOKUP(Y22,CFO!R4:BB6,3,FALSE),0) -> 0 | Z26: =IF(AND(Z22>=$E$13,Z22<=($E$13+$E$15)-1),HLOOKUP(Z22,CFO!S4:BC6,3,FALSE),0) -> 0 | AA26: =IF(AND(AA22>=$E$13,AA22<=($E$13+$E$15)-1),HLOOKUP(AA22,CFO!T4:BD6,3,FALSE),0) -> 0 | AB26: =IF(AND(AB22>=$E$13,AB22<=($E$13+$E$15)-1),HLOOKUP(AB22,CFO!U4:BE6,3,FALSE),0) -> 0 | AC26: =IF(AND(AC22>=$E$13,AC22<=($E$13+$E$15)-1),HLOOKUP(AC22,CFO!V4:BF6,3,FALSE),0) -> 0 | AD26: =IF(AND(AD22>=$E$13,AD22<=($E$13+$E$15)-1),HLOOKUP(AD22,CFO!W4:BG6,3,FALSE),0) -> 0 | AE26: =IF(AND(AE22>=$E$13,AE22<=($E$13+$E$15)-1),HLOOKUP(AE22,CFO!X4:BH6,3,FALSE),0) -> 0 | AF26: =IF(AND(AF22>=$E$13,AF22<=($E$13+$E$15)-1),HLOOKUP(AF22,CFO!Y4:BI6,3,FALSE),0) -> 0 | AG26: =IF(AND(AG22>=$E$13,AG22<=($E$13+$E$15)-1),HLOOKUP(AG22,CFO!Z4:BJ6,3,FALSE),0) -> 0 | AH26: =IF(AND(AH22>=$E$13,AH22<=($E$13+$E$15)-1),HLOOKUP(AH22,CFO!AA4:BK6,3,FALSE),0) -> 0 | AI26: =IF(AND(AI22>=$E$13,AI22<=($E$13+$E$15)-1),HLOOKUP(AI22,CFO!AB4:BL6,3,FALSE),0) -> 0 | AJ26: =IF(AND(AJ22>=$E$13,AJ22<=($E$13+$E$15)-1),HLOOKUP(AJ22,CFO!AC4:BM6,3,FALSE),0) -> 0 | AK26: =IF(AND(AK22>=$E$13,AK22<=($E$13+$E$15)-1),HLOOKUP(AK22,CFO!AD4:BN6,3,FALSE),0) -> 0 | AL26: =IF(AND(AL22>=$E$13,AL22<=($E$13+$E$15)-1),HLOOKUP(AL22,CFO!AE4:BO6,3,FALSE),0) -> 0 | AM26: =SUM(I26:AL26) -> 980.6886334
C28: Операційний прибуток / Operating profit | I28: =I25-I26 -> 0 | J28: =J25-J26 -> 1080.626144 | K28: =K25-K26 -> 1082.652426 | L28: =L25-L26 -> 1084.521209 | M28: 1086.237515 | N28: 1087.806995 | O28: 1089.235851 | P28: 1090.530766 | Q28: 1091.698808 | R28: 1092.747354 | S28: 1093.683994 | T28: 1094.516445 | U28: 1095.252466 | V28: 1095.899776 | W28: 1096.465973 | X28: =X25-X26 -> 1096.958467 | Y28: =Y25-Y26 -> 0 | Z28: =Z25-Z26 -> 0 | AA28: 0 | AB28: 0 | AC28: 0 | AD28: 0 | AE28: 0 | AF28: 0 | AG28: 0 | AH28: 0 | AI28: 0 | AJ28: 0 | AK28: 0 | AL28: 0 | AM28: =SUM(I28:AL28) -> 16358.83419
C30: Амортизація / Depretiation | I30: =IF(I22=0,0,Амортизація_Depreciation!F115) -> 0 | J30: =IF(J22=0,0,Амортизація_Depreciation!G115) -> 171.1525997 | K30: =IF(K22=0,0,Амортизація_Depreciation!H115) -> 171.1525997 | L30: =IF(L22=0,0,Амортизація_Depreciation!I115) -> 171.1525997 | M30: =IF(M22=0,0,Амортизація_Depreciation!J115) -> 171.1525997 | N30: =IF(N22=0,0,Амортизація_Depreciation!K115) -> 171.1525997 | O30: =IF(O22=0,0,Амортизація_Depreciation!L115) -> 171.1525997 | P30: =IF(P22=0,0,Амортизація_Depreciation!M115) -> 171.1525997 | Q30: =IF(Q22=0,0,Амортизація_Depreciation!N115) -> 171.1525997 | R30: =IF(R22=0,0,Амортизація_Depreciation!O115) -> 171.1525997 | S30: =IF(S22=0,0,Амортизація_Depreciation!P115) -> 171.1525997 | T30: =IF(T22=0,0,Амортизація_Depreciation!Q115) -> 171.1525997 | U30: =IF(U22=0,0,Амортизація_Depreciation!R115) -> 171.1525997 | V30: =IF(V22=0,0,Амортизація_Depreciation!S115) -> 171.1525997 | W30: =IF(W22=0,0,Амортизація_Depreciation!T115) -> 171.1525997 | X30: =IF(X22=0,0,Амортизація_Depreciation!U115) -> 171.1525997 | Y30: =IF(Y22=0,0,Амортизація_Depreciation!V115) -> 0 | Z30: =IF(Z22=0,0,Амортизація_Depreciation!W115) -> 0 | AA30: =IF(AA22=0,0,Амортизація_Depreciation!X115) -> 0 | AB30: =IF(AB22=0,0,Амортизація_Depreciation!Y115) -> 0 | AC30: =IF(AC22=0,0,Амортизація_Depreciation!Z115) -> 0 | AD30: =IF(AD22=0,0,Амортизація_Depreciation!AA115) -> 0 | AE30: =IF(AE22=0,0,Амортизація_Depreciation!AB115) -> 0 | AF30: =IF(AF22=0,0,Амортизація_Depreciation!AC115) -> 0 | AG30: =IF(AG22=0,0,Амортизація_Depreciation!AD115) -> 0 | AH30: =IF(AH22=0,0,Амортизація_Depreciation!AE115) -> 0 | AI30: =IF(AI22=0,0,Амортизація_Depreciation!AF115) -> 0 | AJ30: =IF(AJ22=0,0,Амортизація_Depreciation!AG115) -> 0 | AK30: =IF(AK22=0,0,Амортизація_Depreciation!AH115) -> 0 | AL30: =IF(AL22=0,0,Амортизація_Depreciation!AI115) -> 0 | AM30: =SUM(I30:AL30) -> 2567.288996
B32: - | C32: Податок на прибуток від реалізації проекту з поправкою на амортизацію / Income tax on project implementation adjusted for depreciation | I32: =IF(I28<=0,0,(I28-I36-I30)*IF(I22=0,0,I54)) -> 0 | J32: =IF(J28<=0,0,(J28-J36-J30)*IF(J22=0,0,J54)) -> 90.96538303 | K32: 108.4453738 | L32: 125.8970148 | M32: 143.3212099 | N32: 160.7189761 | O32: 165.2549853 | P32: 165.4880699 | Q32: 165.6983175 | R32: 165.8870558 | S32: 166.055651 | T32: 166.2054922 | U32: 166.337976 | V32: 166.4544917 | W32: 166.5564072 | X32: 166.645056 | Y32: 0 | Z32: 0 | AA32: 0 | AB32: 0 | AC32: 0 | AD32: 0 | AE32: 0 | AF32: 0 | AG32: 0 | AH32: 0 | AI32: 0 | AJ32: 0 | AK32: 0 | AL32: 0 | AM32: =SUM(I32:AL32) -> 2289.93146
C33: Приросний прибуток після сплати податків / Income after taxes | I33: =I25-I26-I36-I32 -> -213.9407497 | J33: =J25-J26-J36-J32 -> 585.5504558 | K33: 665.1815249 | L33: 744.6834448 | M33: 824.0603336 | N33: 903.3168241 | O33: 923.980866 | P33: =P25-P26-P36-P32 -> 925.0426957 | Q33: 926.0004907 | R33: 926.8602985 | S33: 927.628343 | T33: 928.3109529 | U33: 928.9144905 | V33: 929.4452843 | W33: 929.9095658 | X33: 930.3134106 | Y33: 0 | Z33: 0 | AA33: 0 | AB33: 0 | AC33: 0 | AD33: 0 | AE33: 0 | AF33: 0 | AG33: 0 | AH33: 0 | AI33: 0 | AJ33: 0 | AK33: 0 | AL33: 0 | AM33: =SUM(I33:AL33) -> 12785.25823
A35: 3. | B35: Фінансовий грошовий потік (CFF)
A36: 3.1. | B36: - | C36: Відсотки за кредит / Interests | I36: =IFERROR(IF(CFF!E25=0,0,IF(I22=0,0,HLOOKUP(I22,CFF!$B$25:$CH$34,10,FALSE))),0) -> 213.9407497 | J36: =IFERROR(IF(CFF!G25=0,0,IF(J22=0,0,HLOOKUP(J22,CFF!$B$25:$CH$34,10,FALSE))),0) -> 404.1103049 | K36: =IFERROR(IF(CFF!I25=0,0,IF(K22=0,0,HLOOKUP(K22,CFF!$B$25:$CH$34,10,FALSE))),0) -> 309.0255273 | L36: =IF(CFF!K25=0,0,IF(L22=0,0,HLOOKUP(L22,CFF!$B$25:$CH$34,10,FALSE))) -> 213.9407497 | M36: =IF(CFF!M25=0,0,IF(M22=0,0,HLOOKUP(M22,CFF!$B$25:$CH$34,10,FALSE))) -> 118.855972 | N36: =IF(CFF!O25=0,0,IF(N22=0,0,HLOOKUP(N22,CFF!$B$25:$CH$34,10,FALSE))) -> 23.77119441 | O36: =IF(CFF!Q25=0,0,IF(O22=0,0,HLOOKUP(O22,CFF!$B$25:$CH$34,10,FALSE))) -> 0 | P36: =IF(CFF!S25=0,0,IF(P22=0,0,HLOOKUP(P22,CFF!$B$25:$CH$34,10,FALSE))) -> 0 | Q36: =IF(CFF!U25=0,0,IF(Q22=0,0,HLOOKUP(Q22,CFF!$B$25:$CH$34,10,FALSE))) -> 0 | R36: =IF(CFF!W25=0,0,IF(R22=0,0,HLOOKUP(R22,CFF!$B$25:$CH$34,10,FALSE))) -> 0 | S36: =IF(CFF!Y25=0,0,IF(S22=0,0,HLOOKUP(S22,CFF!$B$25:$CH$34,10,FALSE))) -> 0 | T36: =IF(CFF!AA25=0,0,IF(T22=0,0,HLOOKUP(T22,CFF!$B$25:$CH$34,10,FALSE))) -> 0 | U36: =IFERROR(IF(CFF!AC25=0,0,IF(U22=0,0,HLOOKUP(U22,CFF!$B$25:$CH$34,10,FALSE))),0) -> 0 | V36: =IFERROR(IF(CFF!AE25=0,0,IF(V22=0,0,HLOOKUP(V22,CFF!$B$25:$CH$34,10,FALSE))),0) -> 0 | W36: =IFERROR(IF(CFF!AG25=0,0,IF(W22=0,0,HLOOKUP(W22,CFF!$B$25:$CH$34,10,FALSE))),0) -> 0 | X36: =IFERROR(IF(CFF!AI25=0,0,IF(X22=0,0,HLOOKUP(X22,CFF!$B$25:$CH$34,10,FALSE))),0) -> 0 | Y36: =IFERROR(IF(CFF!AI25=0,0,IF(Y22=0,0,HLOOKUP(Y22,CFF!$B$25:$CH$34,10,FALSE))),0) -> 0 | Z36: =IFERROR(IF(CFF!AM25=0,0,IF(Z22=0,0,HLOOKUP(Z22,CFF!$B$25:$CH$34,10,FALSE))),0) -> 0 | AA36: =IFERROR(IF(CFF!AO25=0,0,IF(AA22=0,0,HLOOKUP(AA22,CFF!$B$25:$CH$34,10,FALSE))),0) -> 0 | AB36: =IFERROR(IF(CFF!AQ25=0,0,IF(AB22=0,0,HLOOKUP(AB22,CFF!$B$25:$CH$34,10,FALSE))),0) -> 0 | AC36: =IF(CFF!AS25=0,0,IF(AC22=0,0,HLOOKUP(AC22,CFF!$B$25:$CH$34,10,FALSE))) -> 0 | AD36: =IF(CFF!AU25=0,0,IF(AD22=0,0,HLOOKUP(AD22,CFF!$B$25:$CH$34,10,FALSE))) -> 0 | AE36: =IF(CFF!AW25=0,0,IF(AE22=0,0,HLOOKUP(AE22,CFF!$B$25:$CH$34,10,FALSE))) -> 0 | AF36: =IF(CFF!AY25=0,0,IF(AF22=0,0,HLOOKUP(AF22,CFF!$B$25:$CH$34,10,FALSE))) -> 0 | AG36: =IF(CFF!BA25=0,0,IF(AG22=0,0,HLOOKUP(AG22,CFF!$B$25:$CH$34,10,FALSE))) -> 0 | AH36: =IF(CFF!BC25=0,0,IF(AH22=0,0,HLOOKUP(AH22,CFF!$B$25:$CH$34,10,FALSE))) -> 0 | AI36: =IF(CFF!BE25=0,0,IF(AI22=0,0,HLOOKUP(AI22,CFF!$B$25:$CH$34,10,FALSE))) -> 0 | AJ36: =IF(CFF!BG25=0,0,IF(AJ22=0,0,HLOOKUP(AJ22,CFF!$B$25:$CH$34,10,FALSE))) -> 0 | AK36: =IF(CFF!BI25=0,0,IF(AK22=0,0,HLOOKUP(AK22,CFF!$B$25:$CH$34,10,FALSE))) -> 0 | AL36: =IF(CFF!BK25=0,0,IF(AL22=0,0,HLOOKUP(AL22,CFF!$B$25:$CH$34,10,FALSE))) -> 0 | AM36: =SUM(I36:AL36) -> 1283.644498
A38: 4. | B38: Інвестиційний грошовий потік (CFI) | I38: =I39+I43 -> 0 | J38: =J39+J43 -> 950.8477763 | K38: 950.8477763 | L38: 950.8477763 | M38: 950.8477763 | N38: 475.4238882 | O38: 0 | P38: 0 | Q38: 0 | R38: 0 | S38: 0 | T38: 0 | U38: 0 | V38: 0 | W38: 0 | X38: 0 | Y38: 0 | Z38: 0 | AA38: 0 | AB38: 0 | AC38: 0 | AD38: 0 | AE38: 0 | AF38: 0 | AG38: 0 | AH38: 0 | AI38: 0 | AJ38: 0 | AK38: 0 | AL38: 0
A39: 4.1. | B39: - | C39: Бюджет проекту / Project budjet | I39: =(I40+I41+I42)*'Аналіз чутливості_Sensitivity'!$F$9 -> 0 | J39: =(J40+J41+J42)*'Аналіз чутливості_Sensitivity'!$F$9 -> 950.8477763 | K39: =(K40+K41+K42)*'Аналіз чутливості_Sensitivity'!$F$9 -> 950.8477763 | L39: =(L40+L41+L42)*'Аналіз чутливості_Sensitivity'!$F$9 -> 950.8477763 | M39: =(M40+M41+M42)*'Аналіз чутливості_Sensitivity'!$F$9 -> 950.8477763 | N39: =(N40+N41+N42)*'Аналіз чутливості_Sensitivity'!$F$9 -> 475.4238882 | O39: =(O40+O41+O42)*'Аналіз чутливості_Sensitivity'!$F$9 -> 0 | P39: =(P40+P41+P42)*'Аналіз чутливості_Sensitivity'!$F$9 -> 0 | Q39: =(Q40+Q41+Q42)*'Аналіз чутливості_Sensitivity'!$F$9 -> 0 | R39: =(R40+R41+R42)*'Аналіз чутливості_Sensitivity'!$F$9 -> 0 | S39: =(S40+S41+S42)*'Аналіз чутливості_Sensitivity'!$F$9 -> 0 | T39: =(T40+T41+T42)*'Аналіз чутливості_Sensitivity'!$F$9 -> 0 | U39: =(U40+U41+U42)*'Аналіз чутливості_Sensitivity'!$F$9 -> 0 | V39: =(V40+V41+V42)*'Аналіз чутливості_Sensitivity'!$F$9 -> 0 | W39: =(W40+W41+W42)*'Аналіз чутливості_Sensitivity'!$F$9 -> 0 | X39: =(X40+X41+X42)*'Аналіз чутливості_Sensitivity'!$F$9 -> 0 | Y39: =(Y40+Y41+Y42)*'Аналіз чутливості_Sensitivity'!$F$9 -> 0 | Z39: =(Z40+Z41+Z42)*'Аналіз чутливості_Sensitivity'!$F$9 -> 0 | AA39: =(AA40+AA41+AA42)*'Аналіз чутливості_Sensitivity'!$F$9 -> 0 | AB39: =(AB40+AB41+AB42)*'Аналіз чутливості_Sensitivity'!$F$9 -> 0 | AC39: =(AC40+AC41+AC42)*'Аналіз чутливості_Sensitivity'!$F$9 -> 0 | AD39: =(AD40+AD41+AD42)*'Аналіз чутливості_Sensitivity'!$F$9 -> 0 | AE39: =(AE40+AE41+AE42)*'Аналіз чутливості_Sensitivity'!$F$9 -> 0 | AF39: =(AF40+AF41+AF42)*'Аналіз чутливості_Sensitivity'!$F$9 -> 0 | AG39: =(AG40+AG41+AG42)*'Аналіз чутливості_Sensitivity'!$F$9 -> 0 | AH39: =(AH40+AH41+AH42)*'Аналіз чутливості_Sensitivity'!$F$9 -> 0 | AI39: =(AI40+AI41+AI42)*'Аналіз чутливості_Sensitivity'!$F$9 -> 0 | AJ39: =(AJ40+AJ41+AJ42)*'Аналіз чутливості_Sensitivity'!$F$9 -> 0 | AK39: =(AK40+AK41+AK42)*'Аналіз чутливості_Sensitivity'!$F$9 -> 0 | AL39: =(AL40+AL41+AL42)*'Аналіз чутливості_Sensitivity'!$F$9 -> 0 | AM39: =SUM(I39:AL39) -> 4278.814994
A40: 4.1.1. | C40: Кредитні кошти/Loans | I40: =IFERROR(IF(Головна_Summary!$C$5="Погашення тіла кредиту",HLOOKUP(I22,CFF!$E$25:$CH$45,11,FALSE),HLOOKUP(I22,CFF!$E$25:$CH$45,12,FALSE)),0) -> 0 | J40: =IFERROR(IF(Головна_Summary!$C$5="Погашення тіла кредиту",HLOOKUP(J22,CFF!$E$25:$CH$45,11,FALSE),HLOOKUP(J22,CFF!$E$25:$CH$45,12,FALSE)),0) -> 950.8477763 | K40: =IFERROR(IF(Головна_Summary!$C$5="Погашення тіла кредиту",HLOOKUP(K22,CFF!$E$25:$CH$45,11,FALSE),HLOOKUP(K22,CFF!$E$25:$CH$45,12,FALSE)),0) -> 950.8477763 | L40: =IFERROR(IF(Головна_Summary!$C$5="Погашення тіла кредиту",HLOOKUP(L22,CFF!$E$25:$CH$45,11,FALSE),HLOOKUP(L22,CFF!$E$25:$CH$45,12,FALSE)),0) -> 950.8477763 | M40: =IFERROR(IF(Головна_Summary!$C$5="Погашення тіла кредиту",HLOOKUP(M22,CFF!$E$25:$CH$45,11,FALSE),HLOOKUP(M22,CFF!$E$25:$CH$45,12,FALSE)),0) -> 950.8477763 | N40: =IFERROR(IF(Головна_Summary!$C$5="Погашення тіла кредиту",HLOOKUP(N22,CFF!$E$25:$CH$45,11,FALSE),HLOOKUP(N22,CFF!$E$25:$CH$45,12,FALSE)),0) -> 475.4238882 | O40: =IFERROR(IF(Головна_Summary!$C$5="Погашення тіла кредиту",HLOOKUP(O22,CFF!$E$25:$CH$45,11,FALSE),HLOOKUP(O22,CFF!$E$25:$CH$45,12,FALSE)),0) -> 0 | P40: =IFERROR(IF(Головна_Summary!$C$5="Погашення тіла кредиту",HLOOKUP(P22,CFF!$E$25:$CH$45,11,FALSE),HLOOKUP(P22,CFF!$E$25:$CH$45,12,FALSE)),0) -> 0 | Q40: =IFERROR(IF(Головна_Summary!$C$5="Погашення тіла кредиту",HLOOKUP(Q22,CFF!$E$25:$CH$45,11,FALSE),HLOOKUP(Q22,CFF!$E$25:$CH$45,12,FALSE)),0) -> 0 | R40: =IFERROR(IF(Головна_Summary!$C$5="Погашення тіла кредиту",HLOOKUP(R22,CFF!$E$25:$CH$45,11,FALSE),HLOOKUP(R22,CFF!$E$25:$CH$45,12,FALSE)),0) -> 0 | S40: =IFERROR(IF(Головна_Summary!$C$5="Погашення тіла кредиту",HLOOKUP(S22,CFF!$E$25:$CH$45,11,FALSE),HLOOKUP(S22,CFF!$E$25:$CH$45,12,FALSE)),0) -> 0 | T40: =IFERROR(IF(Головна_Summary!$C$5="Погашення тіла кредиту",HLOOKUP(T22,CFF!$E$25:$CH$45,11,FALSE),HLOOKUP(T22,CFF!$E$25:$CH$45,12,FALSE)),0) -> 0 | U40: =IFERROR(IF(Головна_Summary!$C$5="Погашення тіла кредиту",HLOOKUP(U22,CFF!$E$25:$CH$45,11,FALSE),HLOOKUP(U22,CFF!$E$25:$CH$45,12,FALSE)),0) -> 0 | V40: =IFERROR(IF(Головна_Summary!$C$5="Погашення тіла кредиту",HLOOKUP(V22,CFF!$E$25:$CH$45,11,FALSE),HLOOKUP(V22,CFF!$E$25:$CH$45,12,FALSE)),0) -> 0 | W40: =IFERROR(IF(Головна_Summary!$C$5="Погашення тіла кредиту",HLOOKUP(W22,CFF!$E$25:$CH$45,11,FALSE),HLOOKUP(W22,CFF!$E$25:$CH$45,12,FALSE)),0) -> 0 | X40: =IFERROR(IF(Головна_Summary!$C$5="Погашення тіла кредиту",HLOOKUP(X22,CFF!$E$25:$CH$45,11,FALSE),HLOOKUP(X22,CFF!$E$25:$CH$45,12,FALSE)),0) -> 0 | Y40: =IFERROR(IF(Головна_Summary!$C$5="Погашення тіла кредиту",HLOOKUP(Y22,CFF!$E$25:$CH$45,11,FALSE),HLOOKUP(Y22,CFF!$E$25:$CH$45,12,FALSE)),0) -> 0 | Z40: =IFERROR(IF(Головна_Summary!$C$5="Погашення тіла кредиту",HLOOKUP(Z22,CFF!$E$25:$CH$45,11,FALSE),HLOOKUP(Z22,CFF!$E$25:$CH$45,12,FALSE)),0) -> 0 | AA40: =IFERROR(IF(Головна_Summary!$C$5="Погашення тіла кредиту",HLOOKUP(AA22,CFF!$E$25:$CH$45,11,FALSE),HLOOKUP(AA22,CFF!$E$25:$CH$45,12,FALSE)),0) -> 0 | AB40: =IFERROR(IF(Головна_Summary!$C$5="Погашення тіла кредиту",HLOOKUP(AB22,CFF!$E$25:$CH$45,11,FALSE),HLOOKUP(AB22,CFF!$E$25:$CH$45,12,FALSE)),0) -> 0 | AC40: =IFERROR(IF(Головна_Summary!$C$5="Погашення тіла кредиту",HLOOKUP(AC22,CFF!$E$25:$CH$45,11,FALSE),HLOOKUP(AC22,CFF!$E$25:$CH$45,12,FALSE)),0) -> 0 | AD40: =IFERROR(IF(Головна_Summary!$C$5="Погашення тіла кредиту",HLOOKUP(AD22,CFF!$E$25:$CH$45,11,FALSE),HLOOKUP(AD22,CFF!$E$25:$CH$45,12,FALSE)),0) -> 0 | AE40: =IFERROR(IF(Головна_Summary!$C$5="Погашення тіла кредиту",HLOOKUP(AE22,CFF!$E$25:$CH$45,11,FALSE),HLOOKUP(AE22,CFF!$E$25:$CH$45,12,FALSE)),0) -> 0 | AF40: =IFERROR(IF(Головна_Summary!$C$5="Погашення тіла кредиту",HLOOKUP(AF22,CFF!$E$25:$CH$45,11,FALSE),HLOOKUP(AF22,CFF!$E$25:$CH$45,12,FALSE)),0) -> 0 | AG40: =IFERROR(IF(Головна_Summary!$C$5="Погашення тіла кредиту",HLOOKUP(AG22,CFF!$E$25:$CH$45,11,FALSE),HLOOKUP(AG22,CFF!$E$25:$CH$45,12,FALSE)),0) -> 0 | AH40: =IFERROR(IF(Головна_Summary!$C$5="Погашення тіла кредиту",HLOOKUP(AH22,CFF!$E$25:$CH$45,11,FALSE),HLOOKUP(AH22,CFF!$E$25:$CH$45,12,FALSE)),0) -> 0 | AI40: =IFERROR(IF(Головна_Summary!$C$5="Погашення тіла кредиту",HLOOKUP(AI22,CFF!$E$25:$CH$45,11,FALSE),HLOOKUP(AI22,CFF!$E$25:$CH$45,12,FALSE)),0) -> 0 | AJ40: =IFERROR(IF(Головна_Summary!$C$5="Погашення тіла кредиту",HLOOKUP(AJ22,CFF!$E$25:$CH$45,11,FALSE),HLOOKUP(AJ22,CFF!$E$25:$CH$45,12,FALSE)),0) -> 0 | AK40: =IFERROR(IF(Головна_Summary!$C$5="Погашення тіла кредиту",HLOOKUP(AK22,CFF!$E$25:$CH$45,11,FALSE),HLOOKUP(AK22,CFF!$E$25:$CH$45,12,FALSE)),0) -> 0 | AL40: =IFERROR(IF(Головна_Summary!$C$5="Погашення тіла кредиту",HLOOKUP(AL22,CFF!$E$25:$CH$45,11,FALSE),HLOOKUP(AL22,CFF!$E$25:$CH$45,12,FALSE)),0) -> 0
A41: 4.1.2. | C41: Власні кошти/ Own funds | I41: =IFERROR(HLOOKUP(I22,'План фінансування_Funding plan'!$C$1:$BH$8,7,FALSE),0) -> 0 | J41: =IFERROR(HLOOKUP(J22,'План фінансування_Funding plan'!$C$1:$BH$8,7,FALSE),0) -> 0 | K41: =IFERROR(HLOOKUP(K22,'План фінансування_Funding plan'!$C$1:$BH$8,7,FALSE),0) -> 0 | L41: =IFERROR(HLOOKUP(L22,'План фінансування_Funding plan'!$C$1:$BH$8,7,FALSE),0) -> 0 | M41: =IFERROR(HLOOKUP(M22,'План фінансування_Funding plan'!$C$1:$BH$8,7,FALSE),0) -> 0 | N41: =IFERROR(HLOOKUP(N22,'План фінансування_Funding plan'!$C$1:$BH$8,7,FALSE),0) -> 0 | O41: =IFERROR(HLOOKUP(O22,'План фінансування_Funding plan'!$C$1:$BH$8,7,FALSE),0) -> 0 | P41: =IFERROR(HLOOKUP(P22,'План фінансування_Funding plan'!$C$1:$BH$8,7,FALSE),0) -> 0 | Q41: =IFERROR(HLOOKUP(Q22,'План фінансування_Funding plan'!$C$1:$BH$8,7,FALSE),0) -> 0 | R41: =IFERROR(HLOOKUP(R22,'План фінансування_Funding plan'!$C$1:$BH$8,7,FALSE),0) -> 0 | S41: =IFERROR(HLOOKUP(S22,'План фінансування_Funding plan'!$C$1:$BH$8,7,FALSE),0) -> 0 | T41: =IFERROR(HLOOKUP(T22,'План фінансування_Funding plan'!$C$1:$BH$8,7,FALSE),0) -> 0 | U41: =IFERROR(HLOOKUP(U22,'План фінансування_Funding plan'!$C$1:$BH$8,7,FALSE),0) -> 0 | V41: =IFERROR(HLOOKUP(V22,'План фінансування_Funding plan'!$C$1:$BH$8,7,FALSE),0) -> 0 | W41: =IFERROR(HLOOKUP(W22,'План фінансування_Funding plan'!$C$1:$BH$8,7,FALSE),0) -> 0 | X41: =IFERROR(HLOOKUP(X22,'План фінансування_Funding plan'!$C$1:$BH$8,7,FALSE),0) -> 0 | Y41: =IFERROR(HLOOKUP(Y22,'План фінансування_Funding plan'!$C$1:$BH$8,7,FALSE),0) -> 0 | Z41: =IFERROR(HLOOKUP(Z22,'План фінансування_Funding plan'!$C$1:$BH$8,7,FALSE),0) -> 0 | AA41: =IFERROR(HLOOKUP(AA22,'План фінансування_Funding plan'!$C$1:$BH$8,7,FALSE),0) -> 0 | AB41: =IFERROR(HLOOKUP(AB22,'План фінансування_Funding plan'!$C$1:$BH$8,7,FALSE),0) -> 0 | AC41: =IFERROR(HLOOKUP(AC22,'План фінансування_Funding plan'!$C$1:$BH$8,7,FALSE),0) -> 0 | AD41: =IFERROR(HLOOKUP(AD22,'План фінансування_Funding plan'!$C$1:$BH$8,7,FALSE),0) -> 0 | AE41: =IFERROR(HLOOKUP(AE22,'План фінансування_Funding plan'!$C$1:$BH$8,7,FALSE),0) -> 0 | AF41: =IFERROR(HLOOKUP(AF22,'План фінансування_Funding plan'!$C$1:$BH$8,7,FALSE),0) -> 0 | AG41: =IFERROR(HLOOKUP(AG22,'План фінансування_Funding plan'!$C$1:$BH$8,7,FALSE),0) -> 0 | AH41: =IFERROR(HLOOKUP(AH22,'План фінансування_Funding plan'!$C$1:$BH$8,7,FALSE),0) -> 0 | AI41: =IFERROR(HLOOKUP(AI22,'План фінансування_Funding plan'!$C$1:$BH$8,7,FALSE),0) -> 0 | AJ41: =IFERROR(HLOOKUP(AJ22,'План фінансування_Funding plan'!$C$1:$BH$8,7,FALSE),0) -> 0 | AK41: =IFERROR(HLOOKUP(AK22,'План фінансування_Funding plan'!$C$1:$BH$8,7,FALSE),0) -> 0 | AL41: =IFERROR(HLOOKUP(AL22,'План фінансування_Funding plan'!$C$1:$BH$8,7,FALSE),0) -> 0
A42: 4.1.3. | C42: Грантові кошти/Grant funds | I42: =IFERROR(HLOOKUP(I22,'План фінансування_Funding plan'!$C$1:$BH$8,8,FALSE),0) -> 0 | J42: =IFERROR(HLOOKUP(J22,'План фінансування_Funding plan'!$C$1:$BH$8,8,FALSE),0) -> 0 | K42: =IFERROR(HLOOKUP(K22,'План фінансування_Funding plan'!$C$1:$BH$8,8,FALSE),0) -> 0 | L42: =IFERROR(HLOOKUP(L22,'План фінансування_Funding plan'!$C$1:$BH$8,8,FALSE),0) -> 0 | M42: =IFERROR(HLOOKUP(M22,'План фінансування_Funding plan'!$C$1:$BH$8,8,FALSE),0) -> 0 | N42: =IFERROR(HLOOKUP(N22,'План фінансування_Funding plan'!$C$1:$BH$8,8,FALSE),0) -> 0 | O42: =IFERROR(HLOOKUP(O22,'План фінансування_Funding plan'!$C$1:$BH$8,8,FALSE),0) -> 0 | P42: =IFERROR(HLOOKUP(P22,'План фінансування_Funding plan'!$C$1:$BH$8,8,FALSE),0) -> 0 | Q42: =IFERROR(HLOOKUP(Q22,'План фінансування_Funding plan'!$C$1:$BH$8,8,FALSE),0) -> 0 | R42: =IFERROR(HLOOKUP(R22,'План фінансування_Funding plan'!$C$1:$BH$8,8,FALSE),0) -> 0 | S42: =IFERROR(HLOOKUP(S22,'План фінансування_Funding plan'!$C$1:$BH$8,8,FALSE),0) -> 0 | T42: =IFERROR(HLOOKUP(T22,'План фінансування_Funding plan'!$C$1:$BH$8,8,FALSE),0) -> 0 | U42: =IFERROR(HLOOKUP(U22,'План фінансування_Funding plan'!$C$1:$BH$8,8,FALSE),0) -> 0 | V42: =IFERROR(HLOOKUP(V22,'План фінансування_Funding plan'!$C$1:$BH$8,8,FALSE),0) -> 0 | W42: =IFERROR(HLOOKUP(W22,'План фінансування_Funding plan'!$C$1:$BH$8,8,FALSE),0) -> 0 | X42: =IFERROR(HLOOKUP(X22,'План фінансування_Funding plan'!$C$1:$BH$8,8,FALSE),0) -> 0 | Y42: =IFERROR(HLOOKUP(Y22,'План фінансування_Funding plan'!$C$1:$BH$8,8,FALSE),0) -> 0 | Z42: =IFERROR(HLOOKUP(Z22,'План фінансування_Funding plan'!$C$1:$BH$8,8,FALSE),0) -> 0 | AA42: =IFERROR(HLOOKUP(AA22,'План фінансування_Funding plan'!$C$1:$BH$8,8,FALSE),0) -> 0 | AB42: =IFERROR(HLOOKUP(AB22,'План фінансування_Funding plan'!$C$1:$BH$8,8,FALSE),0) -> 0 | AC42: =IFERROR(HLOOKUP(AC22,'План фінансування_Funding plan'!$C$1:$BH$8,8,FALSE),0) -> 0 | AD42: =IFERROR(HLOOKUP(AD22,'План фінансування_Funding plan'!$C$1:$BH$8,8,FALSE),0) -> 0 | AE42: =IFERROR(HLOOKUP(AE22,'План фінансування_Funding plan'!$C$1:$BH$8,8,FALSE),0) -> 0 | AF42: =IFERROR(HLOOKUP(AF22,'План фінансування_Funding plan'!$C$1:$BH$8,8,FALSE),0) -> 0 | AG42: =IFERROR(HLOOKUP(AG22,'План фінансування_Funding plan'!$C$1:$BH$8,8,FALSE),0) -> 0 | AH42: =IFERROR(HLOOKUP(AH22,'План фінансування_Funding plan'!$C$1:$BH$8,8,FALSE),0) -> 0 | AI42: =IFERROR(HLOOKUP(AI22,'План фінансування_Funding plan'!$C$1:$BH$8,8,FALSE),0) -> 0 | AJ42: =IFERROR(HLOOKUP(AJ22,'План фінансування_Funding plan'!$C$1:$BH$8,8,FALSE),0) -> 0 | AK42: =IFERROR(HLOOKUP(AK22,'План фінансування_Funding plan'!$C$1:$BH$8,8,FALSE),0) -> 0 | AL42: =IFERROR(HLOOKUP(AL22,'План фінансування_Funding plan'!$C$1:$BH$8,8,FALSE),0) -> 0
A43: 4.2. | B43: - | C43: Капітальні ремонти / Overhauls | I43: ='Фінансування_Financing (CFI)'!AD11 -> 0 | J43: ='Фінансування_Financing (CFI)'!AE11 -> 0 | K43: ='Фінансування_Financing (CFI)'!AF11 -> 0 | L43: ='Фінансування_Financing (CFI)'!AG11 -> 0 | M43: ='Фінансування_Financing (CFI)'!AH11 -> 0 | N43: ='Фінансування_Financing (CFI)'!AI11 -> 0 | O43: ='Фінансування_Financing (CFI)'!AJ11 -> 0 | P43: ='Фінансування_Financing (CFI)'!AK11 -> 0 | Q43: ='Фінансування_Financing (CFI)'!AL11 -> 0 | R43: ='Фінансування_Financing (CFI)'!AM11 -> 0 | S43: ='Фінансування_Financing (CFI)'!AN11 -> 0 | T43: ='Фінансування_Financing (CFI)'!AO11 -> 0 | U43: ='Фінансування_Financing (CFI)'!AP11 -> 0 | V43: ='Фінансування_Financing (CFI)'!AQ11 -> 0 | W43: ='Фінансування_Financing (CFI)'!AR11 -> 0 | X43: ='Фінансування_Financing (CFI)'!AS11 -> 0 | Y43: ='Фінансування_Financing (CFI)'!AT11 -> 0 | Z43: ='Фінансування_Financing (CFI)'!AU11 -> 0 | AA43: ='Фінансування_Financing (CFI)'!AV11 -> 0 | AB43: ='Фінансування_Financing (CFI)'!AW11 -> 0 | AC43: ='Фінансування_Financing (CFI)'!AX11 -> 0 | AD43: ='Фінансування_Financing (CFI)'!AY11 -> 0 | AE43: ='Фінансування_Financing (CFI)'!AZ11 -> 0 | AF43: ='Фінансування_Financing (CFI)'!BA11 -> 0 | AG43: ='Фінансування_Financing (CFI)'!BB11 -> 0 | AH43: ='Фінансування_Financing (CFI)'!BC11 -> 0 | AI43: ='Фінансування_Financing (CFI)'!BD11 -> 0 | AJ43: ='Фінансування_Financing (CFI)'!BE11 -> 0 | AK43: ='Фінансування_Financing (CFI)'!BF11 -> 0 | AL43: ='Фінансування_Financing (CFI)'!BG11 -> 0 | AM43: =SUM(I43:AL43) -> 0
A45: 5 | B45: Вільний грошовий потік / FCF | I45: =IF(I22=0,0,I33-I39-I43) -> -213.9407497 | J45: =IF(J22=0,0,J33-J39-J43) -> -365.2973206 | K45: =IF(K22=0,0,K33-K39-K43) -> -285.6662515 | L45: =IF(L22=0,0,L33-L39-L43) -> -206.1643315 | M45: =IF(M22=0,0,M33-M39-M43) -> -126.7874428 | N45: =IF(N22=0,0,N33-N39-N43) -> 427.8929359 | O45: 923.980866 | P45: 925.0426957 | Q45: 926.0004907 | R45: 926.8602985 | S45: 927.628343 | T45: 928.3109529 | U45: =IF(U22=0,0,U33-U39-U43) -> 928.9144905 | V45: 929.4452843 | W45: 929.9095658 | X45: 930.3134106 | Y45: =IF(Y22=0,0,Y33-Y39-Y43) -> 0 | Z45: =IF(Z22=0,0,Z33-Z39-Z43) -> 0 | AA45: 0 | AB45: 0 | AC45: 0 | AD45: 0 | AE45: 0 | AF45: 0 | AG45: 0 | AH45: 0 | AI45: 0 | AJ45: 0 | AK45: 0 | AL45: =IF(AL22=0,0,AL33-AL39-AL43) -> 0 | AM45: =SUM(I45:AL45) -> 8506.443238
A46: 5.1. | B46: Вільний грошовий потік накопиченим підсумком / FCF accumulated | I46: =I45 -> -213.9407497 | J46: =I46+J45 -> -579.2380702 | K46: -864.9043217 | L46: -1071.068653 | M46: -1197.856096 | N46: -769.9631601 | O46: 154.0177059 | P46: 1079.060402 | Q46: 2005.060892 | R46: 2931.921191 | S46: 3859.549534 | T46: 4787.860487 | U46: 5716.774977 | V46: 6646.220262 | W46: 7576.129827 | X46: 8506.443238 | Y46: 8506.443238 | Z46: 8506.443238 | AA46: 8506.443238 | AB46: 8506.443238 | AC46: 8506.443238 | AD46: 8506.443238 | AE46: 8506.443238 | AF46: 8506.443238 | AG46: 8506.443238 | AH46: 8506.443238 | AI46: 8506.443238 | AJ46: 8506.443238 | AK46: 8506.443238 | AL46: 8506.443238
A48: 7 | C48: Коефіцієнт дисконтування / Discount rate | I48: =1/((1+$E$11)^(1/12))^0 -> 1 | J48: =I48/(1+$E$11) -> 0.8658008658 | K48: =J48/(1+$E$11) -> 0.7496111392 | L48: =K48/(1+$E$11) -> 0.6490139734 | M48: 0.56191686 | N48: =M48/(1+$E$11) -> 0.4865081039 | O48: 0.4212191376 | P48: 0.364691894 | Q48: 0.3157505576 | R48: 0.2733771061 | S48: 0.2366901352 | T48: =S48/(1+$E$11) -> 0.204926524 | U48: 0.1774255619 | V48: 0.1536152051 | W48: 0.1330001776 | X48: 0.1151516689 | Y48: =X48/(1+$E$11) -> 0.09969841463 | Z48: =Y48/(1+$E$11) -> 0.0863189737 | AA48: =Z48/(1+$E$11) -> 0.07473504217 | AB48: =AA48/(1+$E$11) -> 0.06470566421 | AC48: 0.0560222201 | AD48: 0.04850408667 | AE48: 0.04199488023 | AF48: 0.03635920366 | AG48: 0.03147983001 | AH48: 0.02725526408 | AI48: 0.02359763124 | AJ48: 0.02043084956 | AK48: 0.01768904723 | AL48: =AK48/(1+$E$11) -> 0.01531519241
A49: 8 | C49: Дисконтований вільний грошовий поток / DCF | I49: =IF(I48="","",I48*I45) -> -213.9407497 | J49: =IF(J48="","",J48*J45) -> -316.2747364 | K49: =IF(K48="","",K48*K45) -> -214.1386042 | L49: -133.803532 | M49: -71.24400174 | N49: 208.1733809 | O49: 389.1984236 | P49: 337.3555728 | Q49: 292.3851713 | R49: 253.3823862 | S49: 219.5604779 | T49: 190.2355367 | U49: 164.8131754 | V49: 142.776928 | W49: 123.6781374 | X49: =IF(X48="","",X48*X45) -> 107.1271418 | Y49: =IF(Y48="","",Y48*Y45) -> 0 | Z49: =IF(Z48="","",Z48*Z45) -> 0 | AA49: 0 | AB49: 0 | AC49: 0 | AD49: 0 | AE49: 0 | AF49: 0 | AG49: 0 | AH49: 0 | AI49: 0 | AJ49: 0 | AK49: 0 | AL49: =IF(AL48="","",AL48*AL45) -> 0 | AM49: =SUM(I49:AL49) -> 1479.284708
A50: 9 | C50: DCF накопиченим підсумком / DCF accumulated | I50: =I49 -> -213.9407497 | J50: =I50+J49 -> -530.2154861 | K50: -744.3540903 | L50: -878.1576223 | M50: -949.401624 | N50: -741.2282431 | O50: -352.0298195 | P50: -14.67424674 | Q50: 277.7109246 | R50: 531.0933107 | S50: 750.6537887 | T50: 940.8893254 | U50: 1105.702501 | V50: 1248.479429 | W50: 1372.157566 | X50: 1479.284708 | Y50: 1479.284708 | Z50: 1479.284708 | AA50: 1479.284708 | AB50: 1479.284708 | AC50: 1479.284708 | AD50: 1479.284708 | AE50: 1479.284708 | AF50: 1479.284708 | AG50: 1479.284708 | AH50: 1479.284708 | AI50: 1479.284708 | AJ50: 1479.284708 | AK50: 1479.284708 | AL50: 1479.284708
A52: 10 | C52: Розрахунок DPP / DPP Calculation | I52: =13-E7 -> 6 | J52: =IF(J50<0,12,IF(K50<0,12,IF(I50>0,0, -I50/J49*12))) -> 12 | K52: =IF(K50<0,12,IF(L50<0,12,IF(J50>0,0,-J50/K49*12))) -> 12 | L52: =IF(L50<0,12,IF(M50<0,12,IF(K50>0,0,-K50/L49*12))) -> 12 | M52: =IF(M50<0,12,IF(N50<0,12,IF(L50>0,0,-L50/M49*12))) -> 12 | N52: =IF(N50<0,12,IF(O50<0,12,IF(M50>0,0,-M50/N49*12))) -> 12 | O52: =IF(O50<0,12,IF(P50<0,12,IF(N50>0,0,-N50/O49*12))) -> 12 | P52: =IF(P50<0,12,IF(Q50<0,12,IF(O50>0,0,-O50/P49*12))) -> 12 | Q52: 0.6022568111 | R52: 0 | S52: 0 | T52: 0 | U52: 0 | V52: 0 | W52: 0 | X52: =IF(X50<0,12,IF(Y50<0,12,IF(W50>0,0,-W50/X49*12))) -> 0 | Y52: =IF(Y50<0,12,IF(Z50<0,12,IF(X50>0,0,-X50/Y49*12))) -> 0 | Z52: =IF(Z50<0,12,IF(AA50<0,12,IF(Y50>0,0,-Y50/Z49*12))) -> 0 | AA52: =IF(AA50<0,12,IF(AB50<0,12,IF(Z50>0,0,-Z50/AA49*12))) -> 0 | AB52: 0 | AC52: =IF(AC50<0,12,IF(AD50<0,12,IF(AB50>0,0,-AB50/AC49*12))) -> 0 | AD52: 0 | AE52: 0 | AF52: 0 | AG52: =IF(AG50<0,12,IF(AH50<0,12,IF(AF50>0,0,-AF50/AG49*12))) -> 0 | AH52: 0 | AI52: 0 | AJ52: 0 | AK52: =IF(AK50<0,12,IF(AL50<0,12,IF(AJ50>0,0,-AJ50/AK49*12))) -> 0 | AL52: =IF(AL50<0,12,IF(AM50<0,12,IF(AK50>0,0,-AK50/AL49*12))) -> 0
A53: 11 | C53: Розрахунок PP / PP Calculation | I53: =13-E7 -> 6 | J53: =IF(J46<0,12,IF(K46<0,12,IF(I46>0,0,-I46/J45*12))) -> 12 | K53: =IF(K46<0,12,IF(L46<0,12,IF(J46>0,0,-J46/K45*12))) -> 12 | L53: =IF(L46<0,12,IF(M46<0,12,IF(K46>0,0,-K46/L45*12))) -> 12 | M53: =IF(M46<0,12,IF(N46<0,12,IF(L46>0,0,-L46/M45*12))) -> 12 | N53: =IF(N46<0,12,IF(O46<0,12,IF(M46>0,0,-M46/N45*12))) -> 12 | O53: =IF(O46<0,12,IF(P46<0,12,IF(N46>0,0,-N46/O45*12))) -> 9.999728632 | P53: 0 | Q53: 0 | R53: 0 | S53: =IF(S46<0,12,IF(T46<0,12,IF(R46>0,0,-R46/S45*12))) -> 0 | T53: =IF(T46<0,12,IF(U46<0,12,IF(S46>0,0,-S46/T45*12))) -> 0 | U53: 0 | V53: =IF(V46<0,12,IF(W46<0,12,IF(U46>0,0,-U46/V45*12))) -> 0 | W53: =IF(W46<0,12,IF(X46<0,12,IF(V46>0,0,-V46/W45*12))) -> 0 | X53: =IF(X46<0,12,IF(Y46<0,12,IF(W46>0,0,-W46/X45*12))) -> 0 | Y53: =IF(Y46<0,12,IF(Z46<0,12,IF(X46>0,0,-X46/Y45*12))) -> 0 | Z53: 0 | AA53: 0 | AB53: =IF(AB46<0,12,IF(AC46<0,12,IF(AA46>0,0,-AA46/AB45*12))) -> 0 | AC53: 0 | AD53: 0 | AE53: =IF(AE46<0,12,IF(AF46<0,12,IF(AD46>0,0,-AD46/AE45*12))) -> 0 | AF53: 0 | AG53: =IF(AG46<0,12,IF(AH46<0,12,IF(AF46>0,0,-AF46/AG45*12))) -> 0 | AH53: 0 | AI53: 0 | AJ53: 0 | AK53: =IF(AK46<0,12,IF(AL46<0,12,IF(AJ46>0,0,-AJ46/AK45*12))) -> 0 | AL53: =IF(AL46<0,12,IF(AM46<0,12,IF(AK46>0,0,-AK46/AL45*12))) -> 0
A54: 12 | C54: Податок на прибуток / Income tax | I54: =1-0.82 -> 0.18 | J54: =1-0.82 -> 0.18 | K54: 0.18 | L54: 0.18 | M54: 0.18 | N54: 0.18 | O54: 0.18 | P54: 0.18 | Q54: 0.18 | R54: 0.18 | S54: 0.18 | T54: 0.18 | U54: 0.18 | V54: 0.18 | W54: 0.18 | X54: 0.18 | Y54: 0.18 | Z54: 0.18 | AA54: 0.18 | AB54: 0.18 | AC54: 0.18 | AD54: 0.18 | AE54: 0.18 | AF54: 0.18 | AG54: 0.18 | AH54: 0.18 | AI54: 0.18 | AJ54: 0.18 | AK54: 0.18 | AL54: 0.18
I55: =I57+I41 -> 213.9407497 | J55: =J57+J41 -> 1354.958081 | K55: =K57+K41 -> 1259.873304 | L55: 1164.788526 | M55: 1069.703748 | N55: 499.1950826 | O55: 0 | P55: 0 | Q55: 0 | R55: 0 | S55: 0 | T55: 0 | U55: 0 | V55: 0 | W55: 0 | X55: 0 | Y55: 0 | Z55: 0 | AA55: 0 | AB55: 0 | AC55: 0 | AD55: 0 | AE55: 0 | AF55: 0 | AG55: 0 | AH55: 0 | AI55: 0 | AJ55: 0 | AK55: 0 | AL55: 0
I56: =I57+I42 -> 213.9407497 | J56: 1354.958081 | K56: 1259.873304 | L56: 1164.788526 | M56: 1069.703748 | N56: 499.1950826 | O56: 0 | P56: 0 | Q56: 0 | R56: 0 | S56: 0 | T56: 0 | U56: 0 | V56: 0 | W56: 0 | X56: 0 | Y56: 0 | Z56: 0 | AA56: 0 | AB56: 0 | AC56: 0 | AD56: 0 | AE56: 0 | AF56: 0 | AG56: 0 | AH56: 0 | AI56: 0 | AJ56: 0 | AK56: 0 | AL56: 0
I57: =IFERROR(I36+I40+HLOOKUP(I22,CFF!$25:$37,13,0),0) -> 213.9407497 | J57: =IFERROR(J36+J40+HLOOKUP(J22,CFF!$25:$37,13,0),0) -> 1354.958081 | K57: =IFERROR(K36+K40+HLOOKUP(K22,CFF!$25:$37,13,0),0) -> 1259.873304 | L57: =IFERROR(L36+L40+HLOOKUP(L22,CFF!$25:$37,13,0),0) -> 1164.788526 | M57: =IFERROR(M36+M40+HLOOKUP(M22,CFF!$25:$37,13,0),0) -> 1069.703748 | N57: =IFERROR(N36+N40+HLOOKUP(N22,CFF!$25:$37,13,0),0) -> 499.1950826 | O57: =IFERROR(O36+O40+HLOOKUP(O22,CFF!$25:$37,13,0),0) -> 0 | P57: =IFERROR(P36+P40+HLOOKUP(P22,CFF!$25:$37,13,0),0) -> 0 | Q57: =IFERROR(Q36+Q40+HLOOKUP(Q22,CFF!$25:$37,13,0),0) -> 0 | R57: =IFERROR(R36+R40+HLOOKUP(R22,CFF!$25:$37,13,0),0) -> 0 | S57: =IFERROR(S36+S40+HLOOKUP(S22,CFF!$25:$37,13,0),0) -> 0 | T57: =IFERROR(T36+T40+HLOOKUP(T22,CFF!$25:$37,13,0),0) -> 0 | U57: =IFERROR(U36+U40+HLOOKUP(U22,CFF!$25:$37,13,0),0) -> 0 | V57: =IFERROR(V36+V40+HLOOKUP(V22,CFF!$25:$37,13,0),0) -> 0 | W57: =IFERROR(W36+W40+HLOOKUP(W22,CFF!$25:$37,13,0),0) -> 0 | X57: =IFERROR(X36+X40+HLOOKUP(X22,CFF!$25:$37,13,0),0) -> 0 | Y57: =IFERROR(Y36+Y40+HLOOKUP(Y22,CFF!$25:$37,13,0),0) -> 0 | Z57: =IFERROR(Z36+Z40+HLOOKUP(Z22,CFF!$25:$37,13,0),0) -> 0 | AA57: =IFERROR(AA36+AA40+HLOOKUP(AA22,CFF!$25:$37,13,0),0) -> 0 | AB57: =IFERROR(AB36+AB40+HLOOKUP(AB22,CFF!$25:$37,13,0),0) -> 0 | AC57: =IFERROR(AC36+AC40+HLOOKUP(AC22,CFF!$25:$37,13,0),0) -> 0 | AD57: =IFERROR(AD36+AD40+HLOOKUP(AD22,CFF!$25:$37,13,0),0) -> 0 | AE57: =IFERROR(AE36+AE40+HLOOKUP(AE22,CFF!$25:$37,13,0),0) -> 0 | AF57: =IFERROR(AF36+AF40+HLOOKUP(AF22,CFF!$25:$37,13,0),0) -> 0 | AG57: =IFERROR(AG36+AG40+HLOOKUP(AG22,CFF!$25:$37,13,0),0) -> 0 | AH57: =IFERROR(AH36+AH40+HLOOKUP(AH22,CFF!$25:$37,13,0),0) -> 0 | AI57: =IFERROR(AI36+AI40+HLOOKUP(AI22,CFF!$25:$37,13,0),0) -> 0 | AJ57: =IFERROR(AJ36+AJ40+HLOOKUP(AJ22,CFF!$25:$37,13,0),0) -> 0 | AK57: =IFERROR(AK36+AK40+HLOOKUP(AK22,CFF!$25:$37,13,0),0) -> 0 | AL57: =IFERROR(AL36+AL40+HLOOKUP(AL22,CFF!$25:$37,13,0),0) -> 0

Sheet Припущення_Assumptions
B1: UKR | J1: ENG
A2: ПРИПУЩЕННЯ | C2: =Головна_Summary!A2 -> Будівництво СЕС 10 МВт | J2: Assumptions | L2: =Головна_Summary!K2 -> Project name
B4: Показник | E4: Джерело | F4: Од.вим. | G4: Значення | J4: Indicator | M4: Source | N4: Unit | O4: Value
C6: Використання індексів у розрахунку | G6: НІ | K6: The use of indeces in the calculation | O6: NO
C7: Прогнозний курс грн/долл на 2023 | E7: НБУ | F7: грн/долл | G7: 38.47 | K7: Exchange rate (on the date of calculation) | N7: UAH/US$ | O7: =G7 -> 38.47
C8: Прогнозний курс грн/євро на 2023 | E8: НБУ | F8: грн/євро | G8: 41.66 | K8: Exchange rate (on the date of calculation) | N8: UAH/EUR | O8: 41.66
C9: Індекс цін виробників | E9: Держстат | G9: =IF(G6="ТАК",1.08,1) -> 1 | K9: Producer price index | O9: 1
C10: Індекс споживчих цін (індекс інфляції) | E10: Держстат | G10: =IF(G6="ТАК",1.067,1) -> 1 | K10: Consumer price index | O10: 1
C11: Індекс зростання заробітної плати | E11: Держстат | G11: =IF(G6="ТАК",1.07,1) -> 1 | K11: Wage growth index | O11: 1
C12: Ціна електроенергії на РДН (показник за травень 2024) | E12: Оператор ринку | F12: грн/МВт*год | G12: 3489 | K12: DAM Price, 2022 | N12: UAH/MWh | O12: 3489
C13: Річна заробітна плата працівнику | E13: Експертна думка | F13: тис.грн. | G13: 125.8 | K13: The employee's annual salary | N13: ths.UAH | O13: 125.8
C14: Щорічне збільшення попиту на е/е (зростання споживання) | G14: 1.01 | K14: Annual increase in demand for e/e (consumption growth) | O14: 1.01
O15: 0
C16: CAPEX будівництва 1 МВт потужності | E16: Каталог | F16: тис.грн | G16: 16460.60128 | O16: 16460.60128
C17: Номінальна потужність | E17: Проєктна | F17: МВт | G17: 10 | O17: 10
C18: Вартість будівництва СЕС | E18: Розрахунок | F18: тис.долл. | G18: =G16*G17/G7 -> 4278.814994 | O18: 4278.814994
C19: Середньорічні умовно-постійні витрати (25 років) | E19: Каталог | F19: тис.грн/МВт/рік | G19: =AVERAGE(Дані_каталог!D10:AB10) -> 237.7439044 | O19: =G19 -> 237.7439044
C20: Середньорічні змінні витрати (25 років) | E20: Каталог | F20: тис.грн/МВт·год | G20: =AVERAGE(Дані_каталог!D14:AB14)/1000 -> 0.001238733382 | O20: 0.001238733382
O21: 0
C22: Максимальний коефіцієнт використання встановленої потужності | E22: Каталог | G22: 0.97 | O22: =G22 -> 0.97
C23: Коефіцієнт роботи СЕС на рік | E23: Експертна думка | G23: 0.15 | O23: 0.15
O24: 0
C25: Денний об'єм генерації (звіт, літо) | F25: МВт*год | G25: 87.20013038 | O25: =G25 -> 87.20013038
C26: Днів у році | F26: днів | G26: 365 | O26: 365
C27: Річний об'єм генерації (звіт) | F27: МВт*год | G27: =G26*G25*G23 -> 4774.207138 | O27: 4774.207138
C28: ОБРАТИ ВИД РОЗРАХУНКУ | G28: Розрахунок | O28: Розрахунок
C29: Річний об'єм генерації (розрахунковий) | F29: МВт*год | G29: =G17*G22*G23*24*G26 -> 12745.8 | O29: 12745.8
O30: 0
G31: =G26*24 -> 8760 | O31: 8760
G32: =G22*G23*10*G31 -> 12745.8 | O32: 12745.8
O33: 0
O34: 0
O35: 0
O36: 0
O37: =O33+O35 -> 0
O38: =O34+O36 -> 0
O39: 0
O40: 0
O41: 0
O42: 0
B43: 31 | J43: 31
B44: 32 | J44: 32
B45: 33 | J45: 33
B46: 34 | J46: 34
B47: 35 | J47: 35
B51: ПІДКАЗКА
B53: Можливі факотри отримання техніко-економічного ефекту
C55: 1. | D55: Додатні грошові потоки
D56: Приросні операційні доходи/Додатковий прибуток, отриманий від:
C57: + | D57: збільшення корисного відпуску електроенергії
C58: + | D58: зменшення втрат в мережі навантаження
C59: + | D59: плати за приєднання
C60: + | D60: сдачі старого обладнання на металолом
C61: + | D61: реалізації старого обладнання
C62: + | D62: зменшення кількості ремонтів та техобслуговування
C63: + | D63: зменшення кількості працюючих на підстанції
C64: + | D64: попередження санкцій за недотримання природоохоронного законодавства
C65: + | D65: енергозберігання
C66: + | D66: збільшення тарифного доходу
C68: 2. | D68: Від'ємні грошові потоки
C69: 2.1. | D69: Операційні витрати/втрати на реалізацію проєкту
C70: - | D70: проведення науково-дослідних робіт
C71: - | D71: закупка, доставка, митне оформлення
C72: - | D72: будівельно-монтажні роботи
C73: - | D73: зупинка роботи, яка була викликана необхідністю монтажну додаткового обладнання
C74: - | D74: сертифікація обладнання оформлення необхідних дозволів
C75: - | D75: навчання персоналу
C77: 2.2. | D77: Пиросні операційні витрати
C78: - | D78: скророчення виробітку іншого обладнання при роботі встановленого
C79: - | D79: основні матеріали та енергоресурси, необхідні для роботи обладнання
C80: - | D80: додатковий персонал
C81: - | D81: утилізація відходів
C82: - | D82: підтримка роботи та оновлення програмного забезпечення
C83: - | D83: ТО

Sheet Дані_каталог
A1: Показник | C1: 2024 | D1: 2025 | E1: 2026 | F1: 2027 | G1: 2028 | H1: 2029 | I1: 2030 | J1: 2031 | K1: 2032 | L1: 2033 | M1: 2034 | N1: 2035 | O1: 2036 | P1: 2037 | Q1: 2038 | R1: 2039 | S1: 2040 | T1: 2041 | U1: 2042 | V1: 2043 | W1: 2044 | X1: 2045 | Y1: 2046 | Z1: 2047 | AA1: 2048 | AB1: 2049 | AC1: 2050
A2: Номінальна потужність | B2: МВт | C2: 12.5 | D2: 12.5 | E2: 12.5 | F2: 12.5 | G2: 12.5 | H2: 12.5 | I2: 12.5 | J2: 12.5 | K2: 12.5 | L2: 12.5 | M2: 12.5 | N2: 12.5 | O2: 12.5 | P2: 12.5 | Q2: 12.5 | R2: 12.5 | S2: 12.5 | T2: 12.5 | U2: 12.5 | V2: 12.5 | W2: 12.5 | X2: 12.5 | Y2: 12.5 | Z2: 12.5 | AA2: 12.5 | AB2: 12.5 | AC2: 12.5
A3: Умовно-постійні витрати | B3: грн/кВт/рік | C3: 370.3635287 | D3: 359.9108768 | E3: 350.2312746 | F3: 341.304049 | G3: 333.1052103 | H3: 325.6077683 | I3: 318.782083 | J3: 312.5962444 | K3: 307.0164746 | L3: 302.0075435 | M3: 297.5331917 | N3: 293.5565516 | O3: 290.0405583 | P3: 286.9483438 | Q3: 284.2436069 | R3: 281.8909519 | S3: 279.8561918 | T3: 278.1066114 | U3: 276.6111868 | V3: 275.3407602 | W3: 274.26817 | X3: 273.3683354 | Y3: 272.6182997 | Z3: 271.9972329 | AA3: 271.4863996 | AB3: 271.0690952 | AC3: 270.7305561
A4: Максимальний коефіцієнт використання встановленої потужності | B4: % | C4: 97 | D4: 97 | E4: 97 | F4: 97 | G4: 97 | H4: 97 | I4: 97 | J4: 97 | K4: 97 | L4: 97 | M4: 97 | N4: 97 | O4: 97 | P4: 97 | Q4: 97 | R4: 97 | S4: 97 | T4: 97 | U4: 97 | V4: 97 | W4: 97 | X4: 97 | Y4: 97 | Z4: 97 | AA4: 97 | AB4: 97 | AC4: 97
A5: Вартість будівництва | B5: грн/кВт | C5: 20575.7516 | D5: 19995.04871 | E5: 19457.29303 | F5: 18961.33605 | G5: 18505.84501 | H5: 18089.32046 | I5: 17710.11572 | J5: 17366.45802 | K5: 17056.47081 | L5: 16778.19686 | M5: 16529.62176 | N5: 16308.69731 | O5: 16113.36435 | P5: 15941.57466 | Q5: 15791.31149 | R5: 15660.60844 | S5: 15547.56621 | T5: 15450.3673 | U5: 15367.28815 | V5: 15296.7089 | W5: 15237.12055 | X5: 15187.12974 | Y5: 15145.46109 | Z5: 15110.95738 | AA5: 15082.57776 | AB5: 15059.39418 | AC5: 15040.58645
A6: Очікуваний термін експлуатації (життєвий цикл) | B6: років | C6: 25 | D6: 25 | E6: 25 | F6: 25 | G6: 25 | H6: 25 | I6: 25 | J6: 25 | K6: 25 | L6: 25 | M6: 25 | N6: 25 | O6: 25 | P6: 25 | Q6: 25 | R6: 25 | S6: 25 | T6: 25 | U6: 25 | V6: 25 | W6: 25 | X6: 25 | Y6: 25 | Z6: 25 | AA6: 25 | AB6: 25 | AC6: 25
A7: Змінні витрати | B7: грн/МВт·год | C7: 1.929730499 | D7: 1.875268341 | E7: 1.824834048 | F7: 1.778319927 | G7: 1.735600947 | H7: 1.696536511 | I7: 1.660972179 | J7: 1.628741667 | K7: 1.59966901 | L7: 1.573570624 | M7: 1.550257603 | N7: 1.529537846 | O7: 1.51121822 | P7: 1.495106656 | Q7: 1.481013983 | R7: 1.468755785 | S7: 1.458153934 | T7: 1.449037954 | U7: 1.441246253 | V7: 1.434626853 | W7: 1.429038259 | X7: 1.424349784 | Y7: 1.420441823 | Z7: 1.41720585 | AA7: 1.414544216 | AB7: 1.412369922 | AC7: 1.410606013
A9: Номінальна потужність | B9: МВт | C9: 10 | D9: 10 | E9: 10 | F9: 10 | G9: 10 | H9: 10 | I9: 10 | J9: 10 | K9: 10 | L9: 10 | M9: 10 | N9: 10 | O9: 10 | P9: 10 | Q9: 10 | R9: 10 | S9: 10 | T9: 10 | U9: 10 | V9: 10 | W9: 10 | X9: 10 | Y9: 10 | Z9: 10 | AA9: 10 | AB9: 10 | AC9: 10
A10: Умовно-постійні витрати | B10: грн/кВт/рік | C10: =C3/C2*C9 -> 296.290823 | D10: 287.9287014 | E10: 280.1850197 | F10: 273.0432392 | G10: 266.4841682 | H10: 260.4862146 | I10: 255.0256664 | J10: 250.0769955 | K10: 245.6131797 | L10: 241.6060348 | M10: 238.0265534 | N10: 234.8452413 | O10: 232.0324466 | P10: 229.558675 | Q10: 227.3948855 | R10: 225.5127615 | S10: 223.8849534 | T10: 222.4852891 | U10: 221.2889494 | V10: 220.2726082 | W10: 219.414536 | X10: 218.6946683 | Y10: 218.0946398 | Z10: 217.5977863 | AA10: 217.1891197 | AB10: 216.8552762 | AC10: 216.5844449
A11: Максимальний коефіцієнт використання встановленої потужності | B11: % | C11: 97 | D11: 97 | E11: 97 | F11: 97 | G11: 97 | H11: 97 | I11: 97 | J11: 97 | K11: 97 | L11: 97 | M11: 97 | N11: 97 | O11: 97 | P11: 97 | Q11: 97 | R11: 97 | S11: 97 | T11: 97 | U11: 97 | V11: 97 | W11: 97 | X11: 97 | Y11: 97 | Z11: 97 | AA11: 97 | AB11: 97 | AC11: 97
A12: Вартість будівництва | B12: грн/кВт | C12: =C5/C2*C9 -> 16460.60128 | D12: 15996.03897 | E12: 15565.83442 | F12: 15169.06884 | G12: 14804.67601 | H12: 14471.45637 | I12: 14168.09258 | J12: 13893.16642 | K12: 13645.17665 | L12: 13422.55749 | M12: 13223.69741 | N12: 13046.95785 | O12: 12890.69148 | P12: 12753.25973 | Q12: 12633.04919 | R12: 12528.48675 | S12: 12438.05297 | T12: 12360.29384 | U12: 12293.83052 | V12: 12237.36712 | W12: 12189.69644 | X12: 12149.70379 | Y12: 12116.36887 | Z12: 12088.7659 | AA12: 12066.06221 | AB12: 12047.51534 | AC12: 12032.46916
A13: Очікуваний термін експлуатації (життєвий цикл) | B13: років | C13: 25 | D13: 25 | E13: 25 | F13: 25 | G13: 25 | H13: 25 | I13: 25 | J13: 25 | K13: 25 | L13: 25 | M13: 25 | N13: 25 | O13: 25 | P13: 25 | Q13: 25 | R13: 25 | S13: 25 | T13: 25 | U13: 25 | V13: 25 | W13: 25 | X13: 25 | Y13: 25 | Z13: 25 | AA13: 25 | AB13: 25 | AC13: 25
A14: Змінні витрати | B14: грн/МВт·год | C14: =C7/C2*C9 -> 1.543784399 | D14: 1.500214673 | E14: 1.459867238 | F14: 1.422655942 | G14: 1.388480758 | H14: 1.357229209 | I14: 1.328777743 | J14: 1.302993334 | K14: 1.279735208 | L14: 1.258856499 | M14: 1.240206082 | N14: 1.223630277 | O14: 1.208974576 | P14: 1.196085325 | Q14: 1.184811186 | R14: 1.175004628 | S14: 1.166523147 | T14: 1.159230363 | U14: 1.152997002 | V14: 1.147701482 | W14: 1.143230607 | X14: 1.139479827 | Y14: 1.136353458 | Z14: 1.13376468 | AA14: 1.131635373 | AB14: 1.129895938 | AC14: 1.12848481

Sheet CFO
B2: РОЗРАХУНОК ОПЕРАЦІЙНОГО ГРОШОВОГО ПОТОКУ /CASH FLOW OPERATION CALCULATION | I2: =CONCATENATE(Головна_Summary!A2," / ",Головна_Summary!K2) -> Будівництво СЕС 10 МВт / Project name
B4: Показник | E4: Indicator | G4: Одиниці виміру / Unit | H4: ='Грошові потоки _ Cash flows'!$I$22 -> 2024 | I4: =IF(H4=0,0,IF(('Грошові потоки _ Cash flows'!$E$13+'Грошові потоки _ Cash flows'!$E$15-1)>=H4+1,H4+1,0)) -> 2025 | J4: =IF(I4=0,0,IF(('Грошові потоки _ Cash flows'!$E$13+'Грошові потоки _ Cash flows'!$E$15-1)>=I4+1,I4+1,0)) -> 2026 | K4: =IF(J4=0,0,IF(('Грошові потоки _ Cash flows'!$E$13+'Грошові потоки _ Cash flows'!$E$15-1)>=J4+1,J4+1,0)) -> 2027 | L4: =IF(K4=0,0,IF(('Грошові потоки _ Cash flows'!$E$13+'Грошові потоки _ Cash flows'!$E$15-1)>=K4+1,K4+1,0)) -> 2028 | M4: =IF(L4=0,0,IF(('Грошові потоки _ Cash flows'!$E$13+'Грошові потоки _ Cash flows'!$E$15-1)>=L4+1,L4+1,0)) -> 2029 | N4: =IF(M4=0,0,IF(('Грошові потоки _ Cash flows'!$E$13+'Грошові потоки _ Cash flows'!$E$15-1)>=M4+1,M4+1,0)) -> 2030 | O4: =IF(N4=0,0,IF(('Грошові потоки _ Cash flows'!$E$13+'Грошові потоки _ Cash flows'!$E$15-1)>=N4+1,N4+1,0)) -> 2031 | P4: =IF(O4=0,0,IF(('Грошові потоки _ Cash flows'!$E$13+'Грошові потоки _ Cash flows'!$E$15-1)>=O4+1,O4+1,0)) -> 2032 | Q4: =IF(P4=0,0,IF(('Грошові потоки _ Cash flows'!$E$13+'Грошові потоки _ Cash flows'!$E$15-1)>=P4+1,P4+1,0)) -> 2033 | R4: =IF(Q4=0,0,IF(('Грошові потоки _ Cash flows'!$E$13+'Грошові потоки _ Cash flows'!$E$15-1)>=Q4+1,Q4+1,0)) -> 2034 | S4: =IF(R4=0,0,IF(('Грошові потоки _ Cash flows'!$E$13+'Грошові потоки _ Cash flows'!$E$15-1)>=R4+1,R4+1,0)) -> 2035 | T4: =IF(S4=0,0,IF(('Грошові потоки _ Cash flows'!$E$13+'Грошові потоки _ Cash flows'!$E$15-1)>=S4+1,S4+1,0)) -> 2036 | U4: =IF(T4=0,0,IF(('Грошові потоки _ Cash flows'!$E$13+'Грошові потоки _ Cash flows'!$E$15-1)>=T4+1,T4+1,0)) -> 2037 | V4: =IF(U4=0,0,IF(('Грошові потоки _ Cash flows'!$E$13+'Грошові потоки _ Cash flows'!$E$15-1)>=U4+1,U4+1,0)) -> 2038 | W4: =IF(V4=0,0,IF(('Грошові потоки _ Cash flows'!$E$13+'Грошові потоки _ Cash flows'!$E$15-1)>=V4+1,V4+1,0)) -> 2039 | X4: =IF(W4=0,0,IF(('Грошові потоки _ Cash flows'!$E$13+'Грошові потоки _ Cash flows'!$E$15-1)>=W4+1,W4+1,0)) -> 2040 | Y4: =IF(X4=0,0,IF(('Грошові потоки _ Cash flows'!$E$13+'Грошові потоки _ Cash flows'!$E$15-1)>=X4+1,X4+1,0)) -> 2041 | Z4: =IF(Y4=0,0,IF(('Грошові потоки _ Cash flows'!$E$13+'Грошові потоки _ Cash flows'!$E$15-1)>=Y4+1,Y4+1,0)) -> 2042 | AA4: =IF(Z4=0,0,IF(('Грошові потоки _ Cash flows'!$E$13+'Грошові потоки _ Cash flows'!$E$15-1)>=Z4+1,Z4+1,0)) -> 2043 | AB4: =IF(AA4=0,0,IF(('Грошові потоки _ Cash flows'!$E$13+'Грошові потоки _ Cash flows'!$E$15-1)>=AA4+1,AA4+1,0)) -> 2044 | AC4: =IF(AB4=0,0,IF(('Грошові потоки _ Cash flows'!$E$13+'Грошові потоки _ Cash flows'!$E$15-1)>=AB4+1,AB4+1,0)) -> 2045 | AD4: =IF(AC4=0,0,IF(('Грошові потоки _ Cash flows'!$E$13+'Грошові потоки _ Cash flows'!$E$15-1)>=AC4+1,AC4+1,0)) -> 2046 | AE4: =IF(AD4=0,0,IF(('Грошові потоки _ Cash flows'!$E$13+'Грошові потоки _ Cash flows'!$E$15-1)>=AD4+1,AD4+1,0)) -> 2047 | AF4: =IF(AE4=0,0,IF(('Грошові потоки _ Cash flows'!$E$13+'Грошові потоки _ Cash flows'!$E$15-1)>=AE4+1,AE4+1,0)) -> 2048 | AG4: =IF(AF4=0,0,IF(('Грошові потоки _ Cash flows'!$E$13+'Грошові потоки _ Cash flows'!$E$15-1)>=AF4+1,AF4+1,0)) -> 2049 | AH4: =IF(AG4=0,0,IF(('Грошові потоки _ Cash flows'!$E$13+'Грошові потоки _ Cash flows'!$E$15-1)>=AG4+1,AG4+1,0)) -> 0 | AI4: =IF(AH4=0,0,IF(('Грошові потоки _ Cash flows'!$E$13+'Грошові потоки _ Cash flows'!$E$15-1)>=AH4+1,AH4+1,0)) -> 0 | AJ4: =IF(AI4=0,0,IF(('Грошові потоки _ Cash flows'!$E$13+'Грошові потоки _ Cash flows'!$E$15-1)>=AI4+1,AI4+1,0)) -> 0 | AK4: =IF(AJ4=0,0,IF(('Грошові потоки _ Cash flows'!$E$13+'Грошові потоки _ Cash flows'!$E$15-1)>=AJ4+1,AJ4+1,0)) -> 0 | AL4: Разом / Total
C5: Приросні операційні доходи | E5: Additional income received | G5: =Головна_Summary!AD5 -> тис.US$/ ths.US$ | H5: =H25 -> 0 | I5: =I25 -> 1155.968188 | J5: 1155.968188 | K5: 1155.968188 | L5: 1155.968188 | M5: 1155.968188 | N5: 1155.968188 | O5: 1155.968188 | P5: 1155.968188 | Q5: 1155.968188 | R5: 1155.968188 | S5: 1155.968188 | T5: 1155.968188 | U5: 1155.968188 | V5: 1155.968188 | W5: 1155.968188 | X5: 1155.968188 | Y5: 1155.968188 | Z5: 1155.968188 | AA5: 1155.968188 | AB5: 1155.968188 | AC5: 1155.968188 | AD5: 1155.968188 | AE5: 1155.968188 | AF5: 1155.968188 | AG5: 1155.968188 | AL5: =SUM(I5:AK5) -> 28899.2047
C6: Приросні операційні витрати | E6: Operating costs | G6: =Головна_Summary!AD5 -> тис.US$/ ths.US$ | H6: =H19 -> 0 | I6: =I19 -> 75.34204447 | J6: 73.31576222 | K6: 71.44697895 | L6: 69.73067274 | M6: 68.16119362 | N6: 66.73233687 | O6: 65.43742261 | P6: 64.26937993 | Q6: 63.22083393 | R6: 62.28419424 | S6: 61.45174317 | T6: 60.71572172 | U6: 60.06841213 | V6: 59.50221527 | W6: 59.00972158 | X6: 58.5837745 | Y6: =Y19 -> 58.21752559 | Z6: 57.90448047 | AA6: 57.63853536 | AB6: 57.41400438 | AC6: 57.22563725 | AD6: 57.06862832 | AE6: 56.93861713 | AF6: 56.8316817 | AG6: 56.74432517 | AL6: =SUM(I6:AK6) -> 1555.255843
C7: Ефективність проекту | E7: Project efficiency | G7: =Головна_Summary!AD5 -> тис.US$/ ths.US$ | H7: =H5-H6 -> 0 | I7: =I5-I6 -> 1080.626144 | J7: =J5-J6 -> 1082.652426 | K7: 1084.521209 | L7: 1086.237515 | M7: 1087.806995 | N7: 1089.235851 | O7: 1090.530766 | P7: 1091.698808 | Q7: 1092.747354 | R7: 1093.683994 | S7: 1094.516445 | T7: 1095.252466 | U7: 1095.899776 | V7: 1096.465973 | W7: 1096.958467 | X7: 1097.384414 | Y7: =Y5-Y6 -> 1097.750663 | Z7: 1098.063708 | AA7: 1098.329653 | AB7: 1098.554184 | AC7: 1098.742551 | AD7: 1098.89956 | AE7: 1099.029571 | AF7: 1099.136507 | AG7: 1099.223863 | AL7: =AL5-AL6 -> 27343.94886
C8: Економічний ефект, який 100% впливає на тариф на передачу* | E8: Economic effect that 100% affect tariff for electricity transmission | G8: =Головна_Summary!AD5 -> тис.US$/ ths.US$ | H8: 0 | I8: 0 | J8: 0 | K8: 0 | L8: 0 | M8: 0 | N8: 0 | O8: 0 | P8: 0 | Q8: 0 | R8: 0 | S8: 0 | T8: 0 | U8: 0 | V8: 0 | W8: 0 | X8: 0
C9: Економічний ефект, який 100% впливає на тариф на диспетчеризацію** | E9: Economic effect that 100% affect dispatching tariff | G9: =Головна_Summary!AD5 -> тис.US$/ ths.US$ | H9: 0 | I9: 0 | J9: 0 | K9: 0 | L9: 0 | M9: 0 | N9: 0 | O9: 0 | P9: 0 | Q9: 0 | R9: 0 | S9: 0 | T9: 0 | U9: 0 | V9: 0 | W9: 0 | X9: 0
C10: Економічний ефект, який на 80% впливає на тариф на передачу, на 20% на тариф на диспетчеризацію*** | E10: Economic effect that 80% affect tariff for electricity transmission, 20% affect dispatching tariff | G10: =Головна_Summary!AD5 -> тис.US$/ ths.US$ | H10: 0 | I10: 0 | J10: 0 | K10: 0 | L10: 0 | M10: 0 | N10: 0 | O10: 0 | P10: 0 | Q10: 0 | R10: 0 | S10: 0 | T10: 0 | U10: 0 | V10: 0 | W10: 0 | X10: 0
C11: Додатковий випуск е/е в мережу | E11: Additional electricity output to the grid | G11: МВт*год/MWh | H11: 0 | I11: 0 | J11: 0 | K11: 0 | L11: 0 | M11: 0 | N11: 0 | O11: 0 | P11: 0 | Q11: 0 | R11: 0 | S11: 0 | T11: 0 | U11: 0 | V11: 0 | W11: 0 | X11: 0 | AL11: =SUM(I11:AK11) -> 0
C12: Додатковий імпорт е/е | E12: Additional electricity import | G12: МВт*год/MWh | H12: 0 | I12: 0 | J12: 0 | K12: 0 | L12: 0 | M12: 0 | N12: 0 | O12: 0 | P12: 0 | Q12: 0 | R12: 0 | S12: 0 | T12: 0 | U12: 0 | V12: 0 | W12: 0 | X12: 0
C13: Курс валют UAH/US$ | D13: UAH/US$ | E13: UAH/US$ Exchange rate | G13: грн./долл./UAH/US$ | H13: =IF(Припущення_Assumptions!$G$6="ТАК",HLOOKUP(H4,TenYearsMarket!$C$1:$V$43,41,FALSE),Припущення_Assumptions!$G$7) -> 38.47 | I13: =IF(Припущення_Assumptions!$G$6="ТАК",HLOOKUP(I4,TenYearsMarket!$C$1:$V$43,41,FALSE),Припущення_Assumptions!$G$7) -> 38.47 | J13: =IF(Припущення_Assumptions!$G$6="ТАК",HLOOKUP(J4,TenYearsMarket!$C$1:$V$43,41,FALSE),Припущення_Assumptions!$G$7) -> 38.47 | K13: =IF(Припущення_Assumptions!$G$6="ТАК",HLOOKUP(K4,TenYearsMarket!$C$1:$V$43,41,FALSE),Припущення_Assumptions!$G$7) -> 38.47 | L13: =IF(Припущення_Assumptions!$G$6="ТАК",HLOOKUP(L4,TenYearsMarket!$C$1:$V$43,41,FALSE),Припущення_Assumptions!$G$7) -> 38.47 | M13: =IF(Припущення_Assumptions!$G$6="ТАК",HLOOKUP(M4,TenYearsMarket!$C$1:$V$43,41,FALSE),Припущення_Assumptions!$G$7) -> 38.47 | N13: =IF(Припущення_Assumptions!$G$6="ТАК",HLOOKUP(N4,TenYearsMarket!$C$1:$V$43,41,FALSE),Припущення_Assumptions!$G$7) -> 38.47 | O13: =IF(Припущення_Assumptions!$G$6="ТАК",HLOOKUP(O4,TenYearsMarket!$C$1:$V$43,41,FALSE),Припущення_Assumptions!$G$7) -> 38.47 | P13: =IF(Припущення_Assumptions!$G$6="ТАК",HLOOKUP(P4,TenYearsMarket!$C$1:$V$43,41,FALSE),Припущення_Assumptions!$G$7) -> 38.47 | Q13: =IF(Припущення_Assumptions!$G$6="ТАК",HLOOKUP(Q4,TenYearsMarket!$C$1:$V$43,41,FALSE),Припущення_Assumptions!$G$7) -> 38.47 | R13: =IF(Припущення_Assumptions!$G$6="ТАК",HLOOKUP(R4,TenYearsMarket!$C$1:$V$43,41,FALSE),Припущення_Assumptions!$G$7) -> 38.47 | S13: =IF(Припущення_Assumptions!$G$6="ТАК",HLOOKUP(S4,TenYearsMarket!$C$1:$V$43,41,FALSE),Припущення_Assumptions!$G$7) -> 38.47 | T13: =IF(Припущення_Assumptions!$G$6="ТАК",HLOOKUP(T4,TenYearsMarket!$C$1:$V$43,41,FALSE),Припущення_Assumptions!$G$7) -> 38.47 | U13: =IF(Припущення_Assumptions!$G$6="ТАК",HLOOKUP(U4,TenYearsMarket!$C$1:$V$43,41,FALSE),Припущення_Assumptions!$G$7) -> 38.47 | V13: =IF(Припущення_Assumptions!$G$6="ТАК",HLOOKUP(V4,TenYearsMarket!$C$1:$V$43,41,FALSE),Припущення_Assumptions!$G$7) -> 38.47 | W13: =IF(Припущення_Assumptions!$G$6="ТАК",HLOOKUP(W4,TenYearsMarket!$C$1:$V$43,41,FALSE),Припущення_Assumptions!$G$7) -> 38.47 | X13: =IF(Припущення_Assumptions!$G$6="ТАК",HLOOKUP(X4,TenYearsMarket!$C$1:$V$43,41,FALSE),Припущення_Assumptions!$G$7) -> 38.47 | Y13: =IF(Припущення_Assumptions!$G$6="ТАК",HLOOKUP(Y4,TenYearsMarket!$C$1:$V$43,41,FALSE),Припущення_Assumptions!$G$7) -> 38.47 | Z13: =IF(Припущення_Assumptions!$G$6="ТАК",HLOOKUP(Z4,TenYearsMarket!$C$1:$V$43,41,FALSE),Припущення_Assumptions!$G$7) -> 38.47 | AA13: =IF(Припущення_Assumptions!$G$6="ТАК",HLOOKUP(AA4,TenYearsMarket!$C$1:$V$43,41,FALSE),Припущення_Assumptions!$G$7) -> 38.47 | AB13: =IF(Припущення_Assumptions!$G$6="ТАК",HLOOKUP(AB4,TenYearsMarket!$C$1:$V$43,41,FALSE),Припущення_Assumptions!$G$7) -> 38.47 | AC13: =IF(Припущення_Assumptions!$G$6="ТАК",HLOOKUP(AC4,TenYearsMarket!$C$1:$V$43,41,FALSE),Припущення_Assumptions!$G$7) -> 38.47 | AD13: =IF(Припущення_Assumptions!$G$6="ТАК",HLOOKUP(AD4,TenYearsMarket!$C$1:$V$43,41,FALSE),Припущення_Assumptions!$G$7) -> 38.47 | AE13: =IF(Припущення_Assumptions!$G$6="ТАК",HLOOKUP(AE4,TenYearsMarket!$C$1:$V$43,41,FALSE),Припущення_Assumptions!$G$7) -> 38.47 | AF13: =IF(Припущення_Assumptions!$G$6="ТАК",HLOOKUP(AF4,TenYearsMarket!$C$1:$V$43,41,FALSE),Припущення_Assumptions!$G$7) -> 38.47 | AG13: =IF(Припущення_Assumptions!$G$6="ТАК",HLOOKUP(AG4,TenYearsMarket!$C$1:$V$43,41,FALSE),Припущення_Assumptions!$G$7) -> 38.47
C14: Курс валют UAH/EUR | D14: UAH/EUR | E14: UAH/EUR Exchange rate | G14: грн./євро/UAH/EUR | H14: =IF(Припущення_Assumptions!$G$6="ТАК",HLOOKUP(H4,TenYearsMarket!$C$1:$V$43,43,FALSE),Припущення_Assumptions!$G$8) -> 41.66 | I14: =IF(Припущення_Assumptions!$G$6="ТАК",HLOOKUP(I4,TenYearsMarket!$C$1:$V$43,43,FALSE),Припущення_Assumptions!$G$8) -> 41.66 | J14: =IF(Припущення_Assumptions!$G$6="ТАК",HLOOKUP(J4,TenYearsMarket!$C$1:$V$43,43,FALSE),Припущення_Assumptions!$G$8) -> 41.66 | K14: =IF(Припущення_Assumptions!$G$6="ТАК",HLOOKUP(K4,TenYearsMarket!$C$1:$V$43,43,FALSE),Припущення_Assumptions!$G$8) -> 41.66 | L14: =IF(Припущення_Assumptions!$G$6="ТАК",HLOOKUP(L4,TenYearsMarket!$C$1:$V$43,43,FALSE),Припущення_Assumptions!$G$8) -> 41.66 | M14: =IF(Припущення_Assumptions!$G$6="ТАК",HLOOKUP(M4,TenYearsMarket!$C$1:$V$43,43,FALSE),Припущення_Assumptions!$G$8) -> 41.66 | N14: =IF(Припущення_Assumptions!$G$6="ТАК",HLOOKUP(N4,TenYearsMarket!$C$1:$V$43,43,FALSE),Припущення_Assumptions!$G$8) -> 41.66 | O14: =IF(Припущення_Assumptions!$G$6="ТАК",HLOOKUP(O4,TenYearsMarket!$C$1:$V$43,43,FALSE),Припущення_Assumptions!$G$8) -> 41.66 | P14: =IF(Припущення_Assumptions!$G$6="ТАК",HLOOKUP(P4,TenYearsMarket!$C$1:$V$43,43,FALSE),Припущення_Assumptions!$G$8) -> 41.66 | Q14: =IF(Припущення_Assumptions!$G$6="ТАК",HLOOKUP(Q4,TenYearsMarket!$C$1:$V$43,43,FALSE),Припущення_Assumptions!$G$8) -> 41.66 | R14: =IF(Припущення_Assumptions!$G$6="ТАК",HLOOKUP(R4,TenYearsMarket!$C$1:$V$43,43,FALSE),Припущення_Assumptions!$G$8) -> 41.66 | S14: =IF(Припущення_Assumptions!$G$6="ТАК",HLOOKUP(S4,TenYearsMarket!$C$1:$V$43,43,FALSE),Припущення_Assumptions!$G$8) -> 41.66 | T14: =IF(Припущення_Assumptions!$G$6="ТАК",HLOOKUP(T4,TenYearsMarket!$C$1:$V$43,43,FALSE),Припущення_Assumptions!$G$8) -> 41.66 | U14: =IF(Припущення_Assumptions!$G$6="ТАК",HLOOKUP(U4,TenYearsMarket!$C$1:$V$43,43,FALSE),Припущення_Assumptions!$G$8) -> 41.66 | V14: =IF(Припущення_Assumptions!$G$6="ТАК",HLOOKUP(V4,TenYearsMarket!$C$1:$V$43,43,FALSE),Припущення_Assumptions!$G$8) -> 41.66 | W14: =IF(Припущення_Assumptions!$G$6="ТАК",HLOOKUP(W4,TenYearsMarket!$C$1:$V$43,43,FALSE),Припущення_Assumptions!$G$8) -> 41.66 | X14: =IF(Припущення_Assumptions!$G$6="ТАК",HLOOKUP(X4,TenYearsMarket!$C$1:$V$43,43,FALSE),Припущення_Assumptions!$G$8) -> 41.66 | Y14: =IF(Припущення_Assumptions!$G$6="ТАК",HLOOKUP(Y4,TenYearsMarket!$C$1:$V$43,43,FALSE),Припущення_Assumptions!$G$8) -> 41.66 | Z14: =IF(Припущення_Assumptions!$G$6="ТАК",HLOOKUP(Z4,TenYearsMarket!$C$1:$V$43,43,FALSE),Припущення_Assumptions!$G$8) -> 41.66 | AA14: =IF(Припущення_Assumptions!$G$6="ТАК",HLOOKUP(AA4,TenYearsMarket!$C$1:$V$43,43,FALSE),Припущення_Assumptions!$G$8) -> 41.66 | AB14: =IF(Припущення_Assumptions!$G$6="ТАК",HLOOKUP(AB4,TenYearsMarket!$C$1:$V$43,43,FALSE),Припущення_Assumptions!$G$8) -> 41.66 | AC14: =IF(Припущення_Assumptions!$G$6="ТАК",HLOOKUP(AC4,TenYearsMarket!$C$1:$V$43,43,FALSE),Припущення_Assumptions!$G$8) -> 41.66 | AD14: =IF(Припущення_Assumptions!$G$6="ТАК",HLOOKUP(AD4,TenYearsMarket!$C$1:$V$43,43,FALSE),Припущення_Assumptions!$G$8) -> 41.66 | AE14: =IF(Припущення_Assumptions!$G$6="ТАК",HLOOKUP(AE4,TenYearsMarket!$C$1:$V$43,43,FALSE),Припущення_Assumptions!$G$8) -> 41.66 | AF14: =IF(Припущення_Assumptions!$G$6="ТАК",HLOOKUP(AF4,TenYearsMarket!$C$1:$V$43,43,FALSE),Припущення_Assumptions!$G$8) -> 41.66 | AG14: =IF(Припущення_Assumptions!$G$6="ТАК",HLOOKUP(AG4,TenYearsMarket!$C$1:$V$43,43,FALSE),Припущення_Assumptions!$G$8) -> 41.66
C15: Ціна РДН | E15: DAM Price | G15: грн./МВт*год UAH/MWh | H15: =Припущення_Assumptions!G12 -> 3489 | I15: =H15*Припущення_Assumptions!$G$9 -> 3489 | J15: =I15*Припущення_Assumptions!$G$9 -> 3489 | K15: =J15*Припущення_Assumptions!$G$9 -> 3489 | L15: =K15*Припущення_Assumptions!$G$9 -> 3489 | M15: =L15*Припущення_Assumptions!$G$9 -> 3489 | N15: =M15*Припущення_Assumptions!$G$9 -> 3489 | O15: =N15*Припущення_Assumptions!$G$9 -> 3489 | P15: =O15*Припущення_Assumptions!$G$9 -> 3489 | Q15: =P15*Припущення_Assumptions!$G$9 -> 3489 | R15: =Q15*Припущення_Assumptions!$G$9 -> 3489 | S15: =R15*Припущення_Assumptions!$G$9 -> 3489 | T15: =S15*Припущення_Assumptions!$G$9 -> 3489 | U15: =T15*Припущення_Assumptions!$G$9 -> 3489 | V15: =U15*Припущення_Assumptions!$G$9 -> 3489 | W15: =V15*Припущення_Assumptions!$G$9 -> 3489 | X15: =W15*Припущення_Assumptions!$G$9 -> 3489 | Y15: =X15*Припущення_Assumptions!$G$9 -> 3489 | Z15: =Y15*Припущення_Assumptions!$G$9 -> 3489 | AA15: =Z15*Припущення_Assumptions!$G$9 -> 3489 | AB15: =AA15*Припущення_Assumptions!$G$9 -> 3489 | AC15: =AB15*Припущення_Assumptions!$G$9 -> 3489 | AD15: =AC15*Припущення_Assumptions!$G$9 -> 3489 | AE15: =AD15*Припущення_Assumptions!$G$9 -> 3489 | AF15: =AE15*Припущення_Assumptions!$G$9 -> 3489 | AG15: =AF15*Припущення_Assumptions!$G$9 -> 3489
B17: 3 | C17: Річна заробітна плата працівнику | E17: Annual salary per employee | G17: тис.грн./ths. UAH | H17: =Припущення_Assumptions!G13 -> 125.8 | I17: =H17*Припущення_Assumptions!$G$11 -> 125.8 | J17: =I17*Припущення_Assumptions!$G$11 -> 125.8 | K17: =J17*Припущення_Assumptions!$G$11 -> 125.8 | L17: =K17*Припущення_Assumptions!$G$11 -> 125.8 | M17: =L17*Припущення_Assumptions!$G$11 -> 125.8 | N17: =M17*Припущення_Assumptions!$G$11 -> 125.8 | O17: =N17*Припущення_Assumptions!$G$11 -> 125.8 | P17: =O17*Припущення_Assumptions!$G$11 -> 125.8 | Q17: =P17*Припущення_Assumptions!$G$11 -> 125.8 | R17: =Q17*Припущення_Assumptions!$G$11 -> 125.8 | S17: =R17*Припущення_Assumptions!$G$11 -> 125.8 | T17: =S17*Припущення_Assumptions!$G$11 -> 125.8 | U17: =T17*Припущення_Assumptions!$G$11 -> 125.8 | V17: =U17*Припущення_Assumptions!$G$11 -> 125.8 | W17: =V17*Припущення_Assumptions!$G$11 -> 125.8 | X17: =W17*Припущення_Assumptions!$G$11 -> 125.8 | Y17: =X17*Припущення_Assumptions!$G$11 -> 125.8 | Z17: =Y17*Припущення_Assumptions!$G$11 -> 125.8 | AA17: =Z17*Припущення_Assumptions!$G$11 -> 125.8 | AB17: =AA17*Припущення_Assumptions!$G$11 -> 125.8 | AC17: =AB17*Припущення_Assumptions!$G$11 -> 125.8 | AD17: =AC17*Припущення_Assumptions!$G$11 -> 125.8 | AE17: =AD17*Припущення_Assumptions!$G$11 -> 125.8 | AF17: =AE17*Припущення_Assumptions!$G$11 -> 125.8 | AG17: =AF17*Припущення_Assumptions!$G$11 -> 125.8
C19: Витрати | H19: =SUM(H20:H21) -> 0 | I19: =SUM(I20:I21) -> 75.34204447 | J19: 73.31576222 | K19: 71.44697895 | L19: 69.73067274 | M19: 68.16119362 | N19: 66.73233687 | O19: 65.43742261 | P19: 64.26937993 | Q19: 63.22083393 | R19: 62.28419424 | S19: 61.45174317 | T19: 60.71572172 | U19: 60.06841213 | V19: 59.50221527 | W19: 59.00972158 | X19: 58.5837745 | Y19: =SUM(Y20:Y21) -> 58.21752559 | Z19: =SUM(Z20:Z21) -> 57.90448047 | AA19: =SUM(AA20:AA21) -> 57.63853536 | AB19: =SUM(AB20:AB21) -> 57.41400438 | AC19: =SUM(AC20:AC21) -> 57.22563725 | AD19: =SUM(AD20:AD21) -> 57.06862832 | AE19: =SUM(AE20:AE21) -> 56.93861713 | AF19: =SUM(AF20:AF21) -> 56.8316817 | AG19: =SUM(AG20:AG21) -> 56.74432517
C20: Умовно-постійні | G20: тис.дол/рік | H20: 0 | I20: =IFERROR(Дані_каталог!D10/I13,"")*Припущення_Assumptions!$G$17 -> 74.84499648 | J20: =IFERROR(Дані_каталог!E10/J13,"")*Припущення_Assumptions!$G$17 -> 72.83208206 | K20: =IFERROR(Дані_каталог!F10/K13,"")*Припущення_Assumptions!$G$17 -> 70.97562755 | L20: =IFERROR(Дані_каталог!G10/L13,"")*Припущення_Assumptions!$G$17 -> 69.2706442 | M20: =IFERROR(Дані_каталог!H10/M13,"")*Припущення_Assumptions!$G$17 -> 67.71151927 | N20: =IFERROR(Дані_каталог!I10/N13,"")*Припущення_Assumptions!$G$17 -> 66.292089 | O20: =IFERROR(Дані_каталог!J10/O13,"")*Припущення_Assumptions!$G$17 -> 65.00571758 | P20: =IFERROR(Дані_каталог!K10/P13,"")*Припущення_Assumptions!$G$17 -> 63.84538073 | Q20: =IFERROR(Дані_каталог!L10/Q13,"")*Припущення_Assumptions!$G$17 -> 62.80375222 | R20: =IFERROR(Дані_каталог!M10/R13,"")*Припущення_Assumptions!$G$17 -> 61.87329175 | S20: =IFERROR(Дані_каталог!N10/S13,"")*Припущення_Assumptions!$G$17 -> 61.04633254 | T20: =IFERROR(Дані_каталог!O10/T13,"")*Припущення_Assumptions!$G$17 -> 60.31516679 | U20: =IFERROR(Дані_каталог!P10/U13,"")*Припущення_Assumptions!$G$17 -> 59.67212764 | V20: =IFERROR(Дані_каталог!Q10/V13,"")*Припущення_Assumptions!$G$17 -> 59.10966611 | W20: =IFERROR(Дані_каталог!R10/W13,"")*Припущення_Assumptions!$G$17 -> 58.6204215 | X20: =IFERROR(Дані_каталог!S10/X13,"")*Припущення_Assumptions!$G$17 -> 58.19728449 | Y20: =IFERROR(Дані_каталог!T10/Y13,"")*Припущення_Assumptions!$G$17 -> 57.83345181 | Z20: =IFERROR(Дані_каталог!U10/Z13,"")*Припущення_Assumptions!$G$17 -> 57.52247191 | AA20: =IFERROR(Дані_каталог!V10/AA13,"")*Припущення_Assumptions!$G$17 -> 57.2582813 | AB20: =IFERROR(Дані_каталог!W10/AB13,"")*Припущення_Assumptions!$G$17 -> 57.03523161 | AC20: =IFERROR(Дані_каталог!X10/AC13,"")*Припущення_Assumptions!$G$17 -> 56.84810718 | AD20: =IFERROR(Дані_каталог!Y10/AD13,"")*Припущення_Assumptions!$G$17 -> 56.69213407 | AE20: =IFERROR(Дані_каталог!Z10/AE13,"")*Припущення_Assumptions!$G$17 -> 56.56298059 | AF20: =IFERROR(Дані_каталог!AA10/AF13,"")*Припущення_Assumptions!$G$17 -> 56.45675063 | AG20: =IFERROR(Дані_каталог!AB10/AG13,"")*Припущення_Assumptions!$G$17 -> 56.36997041
C21: Змінні витрати | G21: тис.дол | H21: 0 | I21: =Дані_каталог!D14/CFO!I13/1000*CFO!I23 -> 0.49704799 | J21: =Дані_каталог!E14/CFO!J13/1000*CFO!J23 -> 0.4836801624 | K21: =Дані_каталог!F14/CFO!K13/1000*CFO!K23 -> 0.4713513933 | L21: =Дані_каталог!G14/CFO!L13/1000*CFO!L23 -> 0.4600285428 | M21: =Дані_каталог!H14/CFO!M13/1000*CFO!M23 -> 0.4496743449 | N21: =Дані_каталог!I14/CFO!N13/1000*CFO!N23 -> 0.4402478648 | O21: =Дані_каталог!J14/CFO!O13/1000*CFO!O23 -> 0.4317050281 | P21: =Дані_каталог!K14/CFO!P13/1000*CFO!P23 -> 0.4239991945 | Q21: =Дані_каталог!L14/CFO!Q13/1000*CFO!Q23 -> 0.4170817044 | R21: =Дані_каталог!M14/CFO!R13/1000*CFO!R23 -> 0.4109024873 | S21: =Дані_каталог!N14/CFO!S13/1000*CFO!S23 -> 0.405410626 | T21: =Дані_каталог!O14/CFO!T13/1000*CFO!T23 -> 0.4005549298 | U21: =Дані_каталог!P14/CFO!U13/1000*CFO!U23 -> 0.3962844901 | V21: =Дані_каталог!Q14/CFO!V13/1000*CFO!V23 -> 0.3925491661 | W21: =Дані_каталог!R14/CFO!W13/1000*CFO!W23 -> 0.3893000777 | X21: =Дані_каталог!S14/CFO!X13/1000*CFO!X23 -> 0.3864900112 | Y21: =Дані_каталог!T14/CFO!Y13/1000*CFO!Y23 -> 0.3840737812 | Z21: =Дані_каталог!U14/CFO!Z13/1000*CFO!Z23 -> 0.3820085571 | AA21: =Дані_каталог!V14/CFO!AA13/1000*CFO!AA23 -> 0.3802540565 | AB21: =Дані_каталог!W14/CFO!AB13/1000*CFO!AB23 -> 0.3787727755 | AC21: =Дані_каталог!X14/CFO!AC13/1000*CFO!AC23 -> 0.3775300749 | AD21: =Дані_каталог!Y14/CFO!AD13/1000*CFO!AD23 -> 0.3764942529 | AE21: =Дані_каталог!Z14/CFO!AE13/1000*CFO!AE23 -> 0.3756365443 | AF21: =Дані_каталог!AA14/CFO!AF13/1000*CFO!AF23 -> 0.3749310667 | AG21: =Дані_каталог!AB14/CFO!AG13/1000*CFO!AG23 -> 0.3743547606
C23: Річний об'єм генерації | G23: МВт*год | H23: 0 | I23: =IF(Припущення_Assumptions!$G$28="Звіт",Припущення_Assumptions!$G$27,IF(Припущення_Assumptions!$G$28="Розрахунок",Припущення_Assumptions!$G$29,0)) -> 12745.8 | J23: =IF(Припущення_Assumptions!$G$28="Звіт",Припущення_Assumptions!$G$27,IF(Припущення_Assumptions!$G$28="Розрахунок",Припущення_Assumptions!$G$29,0)) -> 12745.8 | K23: =IF(Припущення_Assumptions!$G$28="Звіт",Припущення_Assumptions!$G$27,IF(Припущення_Assumptions!$G$28="Розрахунок",Припущення_Assumptions!$G$29,0)) -> 12745.8 | L23: =IF(Припущення_Assumptions!$G$28="Звіт",Припущення_Assumptions!$G$27,IF(Припущення_Assumptions!$G$28="Розрахунок",Припущення_Assumptions!$G$29,0)) -> 12745.8 | M23: =IF(Припущення_Assumptions!$G$28="Звіт",Припущення_Assumptions!$G$27,IF(Припущення_Assumptions!$G$28="Розрахунок",Припущення_Assumptions!$G$29,0)) -> 12745.8 | N23: =IF(Припущення_Assumptions!$G$28="Звіт",Припущення_Assumptions!$G$27,IF(Припущення_Assumptions!$G$28="Розрахунок",Припущення_Assumptions!$G$29,0)) -> 12745.8 | O23: =IF(Припущення_Assumptions!$G$28="Звіт",Припущення_Assumptions!$G$27,IF(Припущення_Assumptions!$G$28="Розрахунок",Припущення_Assumptions!$G$29,0)) -> 12745.8 | P23: =IF(Припущення_Assumptions!$G$28="Звіт",Припущення_Assumptions!$G$27,IF(Припущення_Assumptions!$G$28="Розрахунок",Припущення_Assumptions!$G$29,0)) -> 12745.8 | Q23: =IF(Припущення_Assumptions!$G$28="Звіт",Припущення_Assumptions!$G$27,IF(Припущення_Assumptions!$G$28="Розрахунок",Припущення_Assumptions!$G$29,0)) -> 12745.8 | R23: =IF(Припущення_Assumptions!$G$28="Звіт",Припущення_Assumptions!$G$27,IF(Припущення_Assumptions!$G$28="Розрахунок",Припущення_Assumptions!$G$29,0)) -> 12745.8 | S23: =IF(Припущення_Assumptions!$G$28="Звіт",Припущення_Assumptions!$G$27,IF(Припущення_Assumptions!$G$28="Розрахунок",Припущення_Assumptions!$G$29,0)) -> 12745.8 | T23: =IF(Припущення_Assumptions!$G$28="Звіт",Припущення_Assumptions!$G$27,IF(Припущення_Assumptions!$G$28="Розрахунок",Припущення_Assumptions!$G$29,0)) -> 12745.8 | U23: =IF(Припущення_Assumptions!$G$28="Звіт",Припущення_Assumptions!$G$27,IF(Припущення_Assumptions!$G$28="Розрахунок",Припущення_Assumptions!$G$29,0)) -> 12745.8 | V23: =IF(Припущення_Assumptions!$G$28="Звіт",Припущення_Assumptions!$G$27,IF(Припущення_Assumptions!$G$28="Розрахунок",Припущення_Assumptions!$G$29,0)) -> 12745.8 | W23: =IF(Припущення_Assumptions!$G$28="Звіт",Припущення_Assumptions!$G$27,IF(Припущення_Assumptions!$G$28="Розрахунок",Припущення_Assumptions!$G$29,0)) -> 12745.8 | X23: =IF(Припущення_Assumptions!$G$28="Звіт",Припущення_Assumptions!$G$27,IF(Припущення_Assumptions!$G$28="Розрахунок",Припущення_Assumptions!$G$29,0)) -> 12745.8 | Y23: =IF(Припущення_Assumptions!$G$28="Звіт",Припущення_Assumptions!$G$27,IF(Припущення_Assumptions!$G$28="Розрахунок",Припущення_Assumptions!$G$29,0)) -> 12745.8 | Z23: =IF(Припущення_Assumptions!$G$28="Звіт",Припущення_Assumptions!$G$27,IF(Припущення_Assumptions!$G$28="Розрахунок",Припущення_Assumptions!$G$29,0)) -> 12745.8 | AA23: =IF(Припущення_Assumptions!$G$28="Звіт",Припущення_Assumptions!$G$27,IF(Припущення_Assumptions!$G$28="Розрахунок",Припущення_Assumptions!$G$29,0)) -> 12745.8 | AB23: =IF(Припущення_Assumptions!$G$28="Звіт",Припущення_Assumptions!$G$27,IF(Припущення_Assumptions!$G$28="Розрахунок",Припущення_Assumptions!$G$29,0)) -> 12745.8 | AC23: =IF(Припущення_Assumptions!$G$28="Звіт",Припущення_Assumptions!$G$27,IF(Припущення_Assumptions!$G$28="Розрахунок",Припущення_Assumptions!$G$29,0)) -> 12745.8 | AD23: =IF(Припущення_Assumptions!$G$28="Звіт",Припущення_Assumptions!$G$27,IF(Припущення_Assumptions!$G$28="Розрахунок",Припущення_Assumptions!$G$29,0)) -> 12745.8 | AE23: =IF(Припущення_Assumptions!$G$28="Звіт",Припущення_Assumptions!$G$27,IF(Припущення_Assumptions!$G$28="Розрахунок",Припущення_Assumptions!$G$29,0)) -> 12745.8 | AF23: =IF(Припущення_Assumptions!$G$28="Звіт",Припущення_Assumptions!$G$27,IF(Припущення_Assumptions!$G$28="Розрахунок",Припущення_Assumptions!$G$29,0)) -> 12745.8 | AG23: =IF(Припущення_Assumptions!$G$28="Звіт",Припущення_Assumptions!$G$27,IF(Припущення_Assumptions!$G$28="Розрахунок",Припущення_Assumptions!$G$29,0)) -> 12745.8
C25: Доходи | G25: тис.дол | H25: =SUM(H26) -> 0 | I25: =SUM(I26) -> 1155.968188 | J25: =SUM(J26) -> 1155.968188 | K25: 1155.968188 | L25: 1155.968188 | M25: 1155.968188 | N25: 1155.968188 | O25: 1155.968188 | P25: 1155.968188 | Q25: 1155.968188 | R25: 1155.968188 | S25: 1155.968188 | T25: 1155.968188 | U25: 1155.968188 | V25: 1155.968188 | W25: 1155.968188 | X25: 1155.968188 | Y25: 1155.968188 | Z25: 1155.968188 | AA25: 1155.968188 | AB25: 1155.968188 | AC25: 1155.968188 | AD25: 1155.968188 | AE25: 1155.968188 | AF25: 1155.968188 | AG25: 1155.968188
C26: Дохід від генерації | G26: тис.дол*рік | H26: 0 | I26: =I23*(I15/I13)/1000 -> 1155.968188 | J26: =J23*(J15/J13)/1000 -> 1155.968188 | K26: 1155.968188 | L26: 1155.968188 | M26: 1155.968188 | N26: 1155.968188 | O26: 1155.968188 | P26: 1155.968188 | Q26: 1155.968188 | R26: 1155.968188 | S26: 1155.968188 | T26: 1155.968188 | U26: 1155.968188 | V26: 1155.968188 | W26: 1155.968188 | X26: 1155.968188 | Y26: 1155.968188 | Z26: 1155.968188 | AA26: 1155.968188 | AB26: 1155.968188 | AC26: 1155.968188 | AD26: 1155.968188 | AE26: 1155.968188 | AF26: 1155.968188 | AG26: 1155.968188
G39: =4.3/I7 -> 0.003979174504 | H39: =G39/12 -> 0.0003315978754
B50: ПІДКАЗКА/ TIP
B52: Можливі факотри отримання техніко-економічного ефекту | E52: Possible factors of technical and economic effect | I52: Приклади операційних витрат та доходів залежно від впливу на тариф
C54: 1. | D54: Додатні грошові потоки | E54: 1. | F54: Positive cash flows | I54: Приклади операційних витрат та доходів, які впливають лише на тариф на передачу
D55: Приросні операційні доходи/Додатковий прибуток, отриманий від: | E55: Incremental operating income / Additional income received from:
C56: + | D56: збільшення корисного відпуску електроенергії | E56: + | F56: increase in useful electricity supply | I56: - | J56: пов'язані з купівлею електричної енергії з метою компенсації технологічних витрат електричної енергії
C57: + | D57: зменшення втрат в мережі навантаження | E57: + | F57: reduction of network load losses
C58: + | D58: плати за приєднання | E58: + | F58: connection fees
C59: + | D59: сдачі старого обладнання на металолом | E59: + | F59: delivery of old equipment on scrap metal / Recycle
C60: + | D60: реалізації старого обладнання | E60: + | F60: sale of old equipment
C61: + | D61: зменшення кількості ремонтів та техобслуговування | E61: + | F61: reducing the number of repairs and maintenance
C62: + | D62: зменшення кількості працюючих на підстанції | E62: + | F62: reducing the number of workers at the substation
C63: + | D63: попередження санкцій за недотримання природоохоронного законодавства | E63: + | F63: prevention of sanctions for non-compliance with environmental legislation
C64: + | D64: енергозберігання | E64: + | F64: energy saving
C65: + | D65: збільшення тарифного доходу | E65: + | F65: increase in tariff income
C67: 2. | D67: Від'ємні грошові потоки | E67: 2. | F67: Negative Cash flows | I67: Приклади операційних витрат та доходів, які впливають лише на тариф на диспетчеризацію
C68: 2.1. | D68: Операційні витрати/втрати на реалізацію проєкту | E68: 2.1. | F68: Operating costs / losses for project implementation
C69: - | D69: проведення науково-дослідних робіт | E69: - | F69: conducting research work | I69: - | J69: послуги адміністратора розрахунків
C70: - | D70: закупка, доставка, митне оформлення | E70: - | F70: purchase, delivery, customs clearance | I70: - | J70: послуги комерційного обліку
C71: - | D71: будівельно-монтажні роботи | E71: - | F71: construction and installation work | I71: - | J71: врегулювання системних обмежень
C72: - | D72: зупинка роботи, яка була викликана необхідністю монтажну додаткового обладнання | E72: - | F72: stoppage of work, which was caused by the need to install additional equipment | I72: - | J72: придбання допоміжних послуг
C73: - | D73: сертифікація обладнання оформлення необхідних дозволів | E73: - | F73: certification of equipment for the issuance of necessary permits
C74: - | D74: навчання персоналу | E74: - | F74: staff training
C76: 2.2. | D76: Пиросні операційні витрати | E76: 2.2. | F76: Increasing operating costs | I76: Приклади операційних витрат та доходів, які впливають на тарифи 80/20
C77: - | D77: скророчення виробітку іншого обладнання при роботі встановленого | E77: - | F77: reduction of production of other equipment at work of the established | I77: - | J77: обслуговування виробничого процесу
C78: - | D78: основні матеріали та енергоресурси, необхідні для роботи обладнання | E78: - | F78: basic materials and energy resources required for the operation of the equipment | I78: - | J78: вартість виконаних робіт
C79: - | D79: додатковий персонал | E79: - | F79: additional staff | I79: - | J79: сировина та допоміжні матеріали
C80: - | D80: утилізація відходів | E80: - | F80: waste disposal | I80: - | J80: ремонт, електричну енергію для господарчих потреб
C81: - | D81: підтримка роботи та оновлення програмного забезпечення | E81: - | F81: support and software updates | I81: - | J81: оплату праці
C82: - | D82: ТО | E82: - | F82: Technical inspection | I82: - | J82: оренда, плата за землю
I83: - | J83: інформаційно-консультаційні послуги
I84: - | J84: юридичні, аудиторські, експертні послуги тощо
I85: - | J85: погашення кредитів та виплату відсотків
I86: - | J86: капітальні інвестиції

Sheet CFF
B1: УКР | O1: ENG
A2: РОЗРАХУНОК ВИПЛАТИ КРЕДИТУ | F2: =Головна_Summary!A2 -> Будівництво СЕС 10 МВт | O2: CALCULATION OF LOAN PAYMENT | T2: =Головна_Summary!K2 -> Project name
E3: рік | S3: years
A4: Дата надання кредиту | C4: ІІ півріччя | E4: 2024 | G4: Ставка відсотків для власних коштів | J4: 0 | O4: Date of loan | Q4: =IF(C4=B53,C53,C54) -> II half a year | S4: =E4 -> 2024 | V4: Interest rate for own funds | X4: =J4 -> 0
A6: Доля кредитних коштів | C6: 1 | G6: Ставка дисконтування | J6: ='Грошові потоки _ Cash flows'!E11 -> 0.155 | O6: The share of Loan amount | Q6: =C6 -> 1 | U6: Discount rate | X6: =J6 -> 0.155
A8: Сума кредиту | C8: =ROUND(C6*'Фінансування_Financing (CFI)'!J15,2) -> 4278.81 | E8: =Головна_Summary!AD5 -> тис.US$/ ths.US$ | H8: Всього | J8: =J16+J14+J12+J10+J18 -> 5562.459492 | K8: =Головна_Summary!AD5 -> тис.US$/ ths.US$ | O8: Loan amount | Q8: =C8 -> 4278.81 | S8: =E8 -> тис.US$/ ths.US$ | V8: Total | X8: =X16+X14+X12+X10+X18 -> 5562.459492 | Y8: =K8 -> тис.US$/ ths.US$
A10: Сума власних/грантових коштів | C10: =IF(Головна_Summary!H13="Кредитні кошти",('Фінансування_Financing (CFI)'!J15:K15)*0,IF(Головна_Summary!H13="Власні кошти",'Фінансування_Financing (CFI)'!J15:K15*1,'Фінансування_Financing (CFI)'!J15:K15*(1-CFF!C6))) -> 0 | D10: 0 | E10: =E8 -> тис.US$/ ths.US$ | G10: Всього відсотків банку | J10: =SUM(E31:CH31) -> 1283.644498 | K10: =Головна_Summary!AD5 -> тис.US$/ ths.US$ | O10: Own funds | Q10: =C10 -> 0 | S10: =S8 -> тис.US$/ ths.US$ | U10: Total bank interest | X10: =SUM(E31:CH31) -> 1283.644498 | Y10: =K10 -> тис.US$/ ths.US$
A12: Термін надання кредиту | C12: 5 | E12: роки | H12: Всього комісія за зобов'язання | J12: =SUM(E32:CH32) -> 0 | K12: =Головна_Summary!AD5 -> тис.US$/ ths.US$ | O12: Loan term | Q12: =C12 -> 5 | S12: years | V12: Total obligations fee | X12: =SUM(S32:CV32) -> 0 | Y12: =K12 -> тис.US$/ ths.US$
A14: Пільговий період | C14: 0 | E14: роки | G14: Всього маржа МФУ | J14: =SUM(E33:CH33) -> 0 | K14: =Головна_Summary!AD5 -> тис.US$/ ths.US$ | O14: Privilege period | Q14: =C14 -> 0 | S14: years | U14: Total state guarantee fee | X14: =SUM(E33:CH33) -> 0 | Y14: =K14 -> тис.US$/ ths.US$
A16: Ставка відсотків | C16: 0.1 | E16: річних | G16: Всього використання коштів | J16: =SUM(E30:CH30) -> 4278.814994 | K16: =Головна_Summary!AD5 -> тис.US$/ ths.US$ | O16: Interest rate | Q16: =C16 -> 0.1 | S16: annual | U16: Total use of funds | X16: =SUM(E30:CH30) -> 4278.814994 | Y16: =K16 -> тис.US$/ ths.US$
A18: Ставка одноразової комісії | C18: 0 | E18: річних | H18: Одноразова комісія | J18: =SUM(E29:CH29) -> 0 | O18: One-time fee rate | Q18: =C18 -> 0 | S18: annual | V18: One-time fee | X18: =SUM(S29:CV29) -> 0
A20: Ставка комісійних відсотків | C20: 0 | E20: річних | H20: Кількість періодів | J20: =(C12-C14)*2 -> 10 | O20: Commission interest rate | Q20: =C20 -> 0 | S20: annual | V20: Period | X20: =(Q12-Q14)*2 -> 10
J21: кредит | K21: власні | L21: загальна | X21: Loan | Y21: Own funds | Z21: Total
A22: Ставка плати за надання державної гарантії | C22: 0 | E22: річних | G22: Ефективна ставка | J22: =IFERROR(MODE(F51:CG51),"-") -> 0.1025005828 | K22: =IFERROR((SUM(E44:CH44)-SUM(E39:CH39))/SUM(E39:CH39),"Н/Д") -> Н/Д | L22: =IFERROR(J22*C6+(1-C6)*K22,"-") -> - | O22: The interest rate for the state guarantee | Q22: =C22 -> 0 | S22: annual | U22: Effective rate | X22: =J22 -> 0.1025005828 | Y22: =K22 -> Н/Д | Z22: =L22 -> -
E23: =CONCATENATE(E26,E25) -> 02024 | F23: =CONCATENATE(F26,E25) -> II півріччя/ half a year2024 | G23: =CONCATENATE(G26,G25) -> I півріччя/ half a year2025 | H23: =CONCATENATE(H26,G25) -> II півріччя/ half a year2025 | I23: =CONCATENATE(I26,I25) -> I півріччя/ half a year2026 | J23: =CONCATENATE(J26,I25) -> II півріччя/ half a year2026 | K23: =CONCATENATE(K26,K25) -> I півріччя/ half a year2027 | L23: =CONCATENATE(L26,K25) -> II півріччя/ half a year2027 | M23: =CONCATENATE(M26,M25) -> I півріччя/ half a year2028 | N23: =CONCATENATE(N26,M25) -> II півріччя/ half a year2028 | O23: =CONCATENATE(O26,O25) -> I півріччя/ half a year2029 | P23: =CONCATENATE(P26,O25) -> II півріччя/ half a year2029 | Q23: =CONCATENATE(Q26,Q25) -> I півріччя/ half a year0 | R23: =CONCATENATE(R26,Q25) -> II півріччя/ half a year0 | S23: =CONCATENATE(S26,S25) -> I півріччя/ half a year0 | T23: =CONCATENATE(T26,S25) -> II півріччя/ half a year0 | U23: =CONCATENATE(U26,U25) -> I півріччя/ half a year0 | V23: =CONCATENATE(V26,U25) -> II півріччя/ half a year0 | W23: =CONCATENATE(W26,W25) -> I півріччя/ half a year0 | X23: =CONCATENATE(X26,W25) -> II півріччя/ half a year0 | Y23: =CONCATENATE(Y26,Y25) -> I півріччя/ half a year0 | Z23: =CONCATENATE(Z26,Y25) -> II півріччя/ half a year0 | AA23: I півріччя/ half a year | AB23: II півріччя/ half a year | AC23: I півріччя/ half a year | AD23: II півріччя/ half a year0 | AE23: I півріччя/ half a year0 | AF23: II півріччя/ half a year0 | AG23: I півріччя/ half a year | AH23: II півріччя/ half a year | AI23: I півріччя/ half a year | AJ23: II півріччя/ half a year0 | AK23: I півріччя/ half a year0 | AL23: II півріччя/ half a year0 | AM23: I півріччя/ half a year | AN23: II півріччя/ half a year | AO23: I півріччя/ half a year | AP23: II півріччя/ half a year0 | AQ23: I півріччя/ half a year0 | AR23: II півріччя/ half a year0 | AS23: I півріччя/ half a year | AT23: II півріччя/ half a year | AU23: I півріччя/ half a year | AV23: II півріччя/ half a year0 | AW23: I півріччя/ half a year0 | AX23: II півріччя/ half a year0 | AY23: I півріччя/ half a year | AZ23: II півріччя/ half a year | BA23: I півріччя/ half a year | BB23: II півріччя/ half a year0 | BC23: I півріччя/ half a year0 | BD23: II півріччя/ half a year0 | BE23: I півріччя/ half a year | BF23: II півріччя/ half a year | BG23: I півріччя/ half a year | BH23: II півріччя/ half a year0 | BI23: I півріччя/ half a year0 | BJ23: II півріччя/ half a year0 | BK23: I півріччя/ half a year | BL23: II півріччя/ half a year | BM23: I півріччя/ half a year | BN23: II півріччя/ half a year0 | BO23: I півріччя/ half a year0 | BP23: II півріччя/ half a year0 | BQ23: I півріччя/ half a year | BR23: II півріччя/ half a year | BS23: I півріччя/ half a year | BT23: II півріччя/ half a year0 | BU23: I півріччя/ half a year0 | BV23: II півріччя/ half a year0 | BW23: I півріччя/ half a year | BX23: II півріччя/ half a year | BY23: I півріччя/ half a year | BZ23: II півріччя/ half a year0 | CA23: I півріччя/ half a year0 | CB23: II півріччя/ half a year0 | CC23: I півріччя/ half a year | CD23: II півріччя/ half a year | CE23: I півріччя/ half a year | CF23: II півріччя/ half a year0 | CG23: I півріччя/ half a year0 | CH23: II півріччя/ half a year0
E24: 0 | F24: =IF(SUM($E$24:E24)=0,IF((COUNTA($E$26:E26)-COUNTIF($E$26:E26,0))<$C$14*2,0,$J$20),IF(COUNTIF($E$24:E24,">0")<$J$20,E24-1,0)) -> 10 | G24: =IF(SUM($E$24:F24)=0,IF((COUNTA($E$26:F26)-COUNTIF($E$26:F26,0))<$C$14*2,0,$J$20),IF(COUNTIF($E$24:F24,">0")<$J$20,F24-1,0)) -> 9 | H24: =IF(SUM($E$24:G24)=0,IF((COUNTA($E$26:G26)-COUNTIF($E$26:G26,0))<$C$14*2,0,$J$20),IF(COUNTIF($E$24:G24,">0")<$J$20,G24-1,0)) -> 8 | I24: =IF(SUM($E$24:H24)=0,IF((COUNTA($E$26:H26)-COUNTIF($E$26:H26,0))<$C$14*2,0,$J$20),IF(COUNTIF($E$24:H24,">0")<$J$20,H24-1,0)) -> 7 | J24: =IF(SUM($E$24:I24)=0,IF((COUNTA($E$26:I26)-COUNTIF($E$26:I26,0))<$C$14*2,0,$J$20),IF(COUNTIF($E$24:I24,">0")<$J$20,I24-1,0)) -> 6 | K24: =IF(SUM($E$24:J24)=0,IF((COUNTA($E$26:J26)-COUNTIF($E$26:J26,0))<$C$14*2,0,$J$20),IF(COUNTIF($E$24:J24,">0")<$J$20,J24-1,0)) -> 5 | L24: =IF(SUM($E$24:K24)=0,IF((COUNTA($E$26:K26)-COUNTIF($E$26:K26,0))<$C$14*2,0,$J$20),IF(COUNTIF($E$24:K24,">0")<$J$20,K24-1,0)) -> 4 | M24: =IF(SUM($E$24:L24)=0,IF((COUNTA($E$26:L26)-COUNTIF($E$26:L26,0))<$C$14*2,0,$J$20),IF(COUNTIF($E$24:L24,">0")<$J$20,L24-1,0)) -> 3 | N24: =IF(SUM($E$24:M24)=0,IF((COUNTA($E$26:M26)-COUNTIF($E$26:M26,0))<$C$14*2,0,$J$20),IF(COUNTIF($E$24:M24,">0")<$J$20,M24-1,0)) -> 2 | O24: =IF(SUM($E$24:N24)=0,IF((COUNTA($E$26:N26)-COUNTIF($E$26:N26,0))<$C$14*2,0,$J$20),IF(COUNTIF($E$24:N24,">0")<$J$20,N24-1,0)) -> 1 | P24: =IF(SUM($E$24:O24)=0,IF((COUNTA($E$26:O26)-COUNTIF($E$26:O26,0))<$C$14*2,0,$J$20),IF(COUNTIF($E$24:O24,">0")<$J$20,O24-1,0)) -> 0 | Q24: =IF(SUM($E$24:P24)=0,IF((COUNTA($E$26:P26)-COUNTIF($E$26:P26,0))<$C$14*2,0,$J$20),IF(COUNTIF($E$24:P24,">0")<$J$20,P24-1,0)) -> 0 | R24: =IF(SUM($E$24:Q24)=0,IF((COUNTA($E$26:Q26)-COUNTIF($E$26:Q26,0))<$C$14*2,0,$J$20),IF(COUNTIF($E$24:Q24,">0")<$J$20,Q24-1,0)) -> 0 | S24: =IF(SUM($E$24:R24)=0,IF((COUNTA($E$26:R26)-COUNTIF($E$26:R26,0))<$C$14*2,0,$J$20),IF(COUNTIF($E$24:R24,">0")<$J$20,R24-1,0)) -> 0 | T24: =IF(SUM($E$24:S24)=0,IF((COUNTA($E$26:S26)-COUNTIF($E$26:S26,0))<$C$14*2,0,$J$20),IF(COUNTIF($E$24:S24,">0")<$J$20,S24-1,0)) -> 0 | U24: =IF(SUM($E$24:T24)=0,IF((COUNTA($E$26:T26)-COUNTIF($E$26:T26,0))<$C$14*2,0,$J$20),IF(COUNTIF($E$24:T24,">0")<$J$20,T24-1,0)) -> 0 | V24: =IF(SUM($E$24:U24)=0,IF((COUNTA($E$26:U26)-COUNTIF($E$26:U26,0))<$C$14*2,0,$J$20),IF(COUNTIF($E$24:U24,">0")<$J$20,U24-1,0)) -> 0 | W24: =IF(SUM($E$24:V24)=0,IF((COUNTA($E$26:V26)-COUNTIF($E$26:V26,0))<$C$14*2,0,$J$20),IF(COUNTIF($E$24:V24,">0")<$J$20,V24-1,0)) -> 0 | X24: =IF(SUM($E$24:W24)=0,IF((COUNTA($E$26:W26)-COUNTIF($E$26:W26,0))<$C$14*2,0,$J$20),IF(COUNTIF($E$24:W24,">0")<$J$20,W24-1,0)) -> 0 | Y24: =IF(SUM($E$24:X24)=0,IF((COUNTA($E$26:X26)-COUNTIF($E$26:X26,0))<$C$14*2,0,$J$20),IF(COUNTIF($E$24:X24,">0")<$J$20,X24-1,0)) -> 0 | Z24: =IF(SUM($E$24:Y24)=0,IF((COUNTA($E$26:Y26)-COUNTIF($E$26:Y26,0))<$C$14*2,0,$J$20),IF(COUNTIF($E$24:Y24,">0")<$J$20,Y24-1,0)) -> 0 | AA24: =IF(SUM($E$24:Z24)=0,IF((COUNTA($E$26:Z26)-COUNTIF($E$26:Z26,0))<$C$14*2,0,$J$20),IF(COUNTIF($E$24:Z24,">0")<$J$20,Z24-1,0)) -> 0 | AB24: =IF(SUM($E$24:AA24)=0,IF((COUNTA($E$26:AA26)-COUNTIF($E$26:AA26,0))<$C$14*2,0,$J$20),IF(COUNTIF($E$24:AA24,">0")<$J$20,AA24-1,0)) -> 0 | AC24: =IF(SUM($E$24:AB24)=0,IF((COUNTA($E$26:AB26)-COUNTIF($E$26:AB26,0))<$C$14*2,0,$J$20),IF(COUNTIF($E$24:AB24,">0")<$J$20,AB24-1,0)) -> 0 | AD24: =IF(SUM($E$24:AC24)=0,IF((COUNTA($E$26:AC26)-COUNTIF($E$26:AC26,0))<$C$14*2,0,$J$20),IF(COUNTIF($E$24:AC24,">0")<$J$20,AC24-1,0)) -> 0 | AE24: =IF(SUM($E$24:AD24)=0,IF((COUNTA($E$26:AD26)-COUNTIF($E$26:AD26,0))<$C$14*2,0,$J$20),IF(COUNTIF($E$24:AD24,">0")<$J$20,AD24-1,0)) -> 0 | AF24: =IF(SUM($E$24:AE24)=0,IF((COUNTA($E$26:AE26)-COUNTIF($E$26:AE26,0))<$C$14*2,0,$J$20),IF(COUNTIF($E$24:AE24,">0")<$J$20,AE24-1,0)) -> 0 | AG24: =IF(SUM($E$24:AF24)=0,IF((COUNTA($E$26:AF26)-COUNTIF($E$26:AF26,0))<$C$14*2,0,$J$20),IF(COUNTIF($E$24:AF24,">0")<$J$20,AF24-1,0)) -> 0 | AH24: =IF(SUM($E$24:AG24)=0,IF((COUNTA($E$26:AG26)-COUNTIF($E$26:AG26,0))<$C$14*2,0,$J$20),IF(COUNTIF($E$24:AG24,">0")<$J$20,AG24-1,0)) -> 0 | AI24: =IF(SUM($E$24:AH24)=0,IF((COUNTA($E$26:AH26)-COUNTIF($E$26:AH26,0))<$C$14*2,0,$J$20),IF(COUNTIF($E$24:AH24,">0")<$J$20,AH24-1,0)) -> 0 | AJ24: =IF(SUM($E$24:AI24)=0,IF((COUNTA($E$26:AI26)-COUNTIF($E$26:AI26,0))<$C$14*2,0,$J$20),IF(COUNTIF($E$24:AI24,">0")<$J$20,AI24-1,0)) -> 0 | AK24: =IF(SUM($E$24:AJ24)=0,IF((COUNTA($E$26:AJ26)-COUNTIF($E$26:AJ26,0))<$C$14*2,0,$J$20),IF(COUNTIF($E$24:AJ24,">0")<$J$20,AJ24-1,0)) -> 0 | AL24: =IF(SUM($E$24:AK24)=0,IF((COUNTA($E$26:AK26)-COUNTIF($E$26:AK26,0))<$C$14*2,0,$J$20),IF(COUNTIF($E$24:AK24,">0")<$J$20,AK24-1,0)) -> 0 | AM24: =IF(SUM($E$24:AL24)=0,IF((COUNTA($E$26:AL26)-COUNTIF($E$26:AL26,0))<$C$14*2,0,$J$20),IF(COUNTIF($E$24:AL24,">0")<$J$20,AL24-1,0)) -> 0 | AN24: =IF(SUM($E$24:AM24)=0,IF((COUNTA($E$26:AM26)-COUNTIF($E$26:AM26,0))<$C$14*2,0,$J$20),IF(COUNTIF($E$24:AM24,">0")<$J$20,AM24-1,0)) -> 0 | AO24: =IF(SUM($E$24:AN24)=0,IF((COUNTA($E$26:AN26)-COUNTIF($E$26:AN26,0))<$C$14*2,0,$J$20),IF(COUNTIF($E$24:AN24,">0")<$J$20,AN24-1,0)) -> 0 | AP24: =IF(SUM($E$24:AO24)=0,IF((COUNTA($E$26:AO26)-COUNTIF($E$26:AO26,0))<$C$14*2,0,$J$20),IF(COUNTIF($E$24:AO24,">0")<$J$20,AO24-1,0)) -> 0 | AQ24: =IF(SUM($E$24:AP24)=0,IF((COUNTA($E$26:AP26)-COUNTIF($E$26:AP26,0))<$C$14*2,0,$J$20),IF(COUNTIF($E$24:AP24,">0")<$J$20,AP24-1,0)) -> 0 | AR24: =IF(SUM($E$24:AQ24)=0,IF((COUNTA($E$26:AQ26)-COUNTIF($E$26:AQ26,0))<$C$14*2,0,$J$20),IF(COUNTIF($E$24:AQ24,">0")<$J$20,AQ24-1,0)) -> 0 | AS24: =IF(SUM($E$24:AR24)=0,IF((COUNTA($E$26:AR26)-COUNTIF($E$26:AR26,0))<$C$14*2,0,$J$20),IF(COUNTIF($E$24:AR24,">0")<$J$20,AR24-1,0)) -> 0 | AT24: =IF(SUM($E$24:AS24)=0,IF((COUNTA($E$26:AS26)-COUNTIF($E$26:AS26,0))<$C$14*2,0,$J$20),IF(COUNTIF($E$24:AS24,">0")<$J$20,AS24-1,0)) -> 0 | AU24: =IF(SUM($E$24:AT24)=0,IF((COUNTA($E$26:AT26)-COUNTIF($E$26:AT26,0))<$C$14*2,0,$J$20),IF(COUNTIF($E$24:AT24,">0")<$J$20,AT24-1,0)) -> 0 | AV24: =IF(SUM($E$24:AU24)=0,IF((COUNTA($E$26:AU26)-COUNTIF($E$26:AU26,0))<$C$14*2,0,$J$20),IF(COUNTIF($E$24:AU24,">0")<$J$20,AU24-1,0)) -> 0 | AW24: =IF(SUM($E$24:AV24)=0,IF((COUNTA($E$26:AV26)-COUNTIF($E$26:AV26,0))<$C$14*2,0,$J$20),IF(COUNTIF($E$24:AV24,">0")<$J$20,AV24-1,0)) -> 0 | AX24: =IF(SUM($E$24:AW24)=0,IF((COUNTA($E$26:AW26)-COUNTIF($E$26:AW26,0))<$C$14*2,0,$J$20),IF(COUNTIF($E$24:AW24,">0")<$J$20,AW24-1,0)) -> 0 | AY24: =IF(SUM($E$24:AX24)=0,IF((COUNTA($E$26:AX26)-COUNTIF($E$26:AX26,0))<$C$14*2,0,$J$20),IF(COUNTIF($E$24:AX24,">0")<$J$20,AX24-1,0)) -> 0 | AZ24: =IF(SUM($E$24:AY24)=0,IF((COUNTA($E$26:AY26)-COUNTIF($E$26:AY26,0))<$C$14*2,0,$J$20),IF(COUNTIF($E$24:AY24,">0")<$J$20,AY24-1,0)) -> 0 | BA24: =IF(SUM($E$24:AZ24)=0,IF((COUNTA($E$26:AZ26)-COUNTIF($E$26:AZ26,0))<$C$14*2,0,$J$20),IF(COUNTIF($E$24:AZ24,">0")<$J$20,AZ24-1,0)) -> 0 | BB24: =IF(SUM($E$24:BA24)=0,IF((COUNTA($E$26:BA26)-COUNTIF($E$26:BA26,0))<$C$14*2,0,$J$20),IF(COUNTIF($E$24:BA24,">0")<$J$20,BA24-1,0)) -> 0 | BC24: =IF(SUM($E$24:BB24)=0,IF((COUNTA($E$26:BB26)-COUNTIF($E$26:BB26,0))<$C$14*2,0,$J$20),IF(COUNTIF($E$24:BB24,">0")<$J$20,BB24-1,0)) -> 0 | BD24: =IF(SUM($E$24:BC24)=0,IF((COUNTA($E$26:BC26)-COUNTIF($E$26:BC26,0))<$C$14*2,0,$J$20),IF(COUNTIF($E$24:BC24,">0")<$J$20,BC24-1,0)) -> 0 | BE24: =IF(SUM($E$24:BD24)=0,IF((COUNTA($E$26:BD26)-COUNTIF($E$26:BD26,0))<$C$14*2,0,$J$20),IF(COUNTIF($E$24:BD24,">0")<$J$20,BD24-1,0)) -> 0 | BF24: =IF(SUM($E$24:BE24)=0,IF((COUNTA($E$26:BE26)-COUNTIF($E$26:BE26,0))<$C$14*2,0,$J$20),IF(COUNTIF($E$24:BE24,">0")<$J$20,BE24-1,0)) -> 0 | BG24: =IF(SUM($E$24:BF24)=0,IF((COUNTA($E$26:BF26)-COUNTIF($E$26:BF26,0))<$C$14*2,0,$J$20),IF(COUNTIF($E$24:BF24,">0")<$J$20,BF24-1,0)) -> 0 | BH24: =IF(SUM($E$24:BG24)=0,IF((COUNTA($E$26:BG26)-COUNTIF($E$26:BG26,0))<$C$14*2,0,$J$20),IF(COUNTIF($E$24:BG24,">0")<$J$20,BG24-1,0)) -> 0 | BI24: =IF(SUM($E$24:BH24)=0,IF((COUNTA($E$26:BH26)-COUNTIF($E$26:BH26,0))<$C$14*2,0,$J$20),IF(COUNTIF($E$24:BH24,">0")<$J$20,BH24-1,0)) -> 0 | BJ24: =IF(SUM($E$24:BI24)=0,IF((COUNTA($E$26:BI26)-COUNTIF($E$26:BI26,0))<$C$14*2,0,$J$20),IF(COUNTIF($E$24:BI24,">0")<$J$20,BI24-1,0)) -> 0 | BK24: =IF(SUM($E$24:BJ24)=0,IF((COUNTA($E$26:BJ26)-COUNTIF($E$26:BJ26,0))<$C$14*2,0,$J$20),IF(COUNTIF($E$24:BJ24,">0")<$J$20,BJ24-1,0)) -> 0 | BL24: =IF(SUM($E$24:BK24)=0,IF((COUNTA($E$26:BK26)-COUNTIF($E$26:BK26,0))<$C$14*2,0,$J$20),IF(COUNTIF($E$24:BK24,">0")<$J$20,BK24-1,0)) -> 0 | BM24: =IF(SUM($E$24:BL24)=0,IF((COUNTA($E$26:BL26)-COUNTIF($E$26:BL26,0))<$C$14*2,0,$J$20),IF(COUNTIF($E$24:BL24,">0")<$J$20,BL24-1,0)) -> 0 | BN24: =IF(SUM($E$24:BM24)=0,IF((COUNTA($E$26:BM26)-COUNTIF($E$26:BM26,0))<$C$14*2,0,$J$20),IF(COUNTIF($E$24:BM24,">0")<$J$20,BM24-1,0)) -> 0 | BO24: =IF(SUM($E$24:BN24)=0,IF((COUNTA($E$26:BN26)-COUNTIF($E$26:BN26,0))<$C$14*2,0,$J$20),IF(COUNTIF($E$24:BN24,">0")<$J$20,BN24-1,0)) -> 0 | BP24: =IF(SUM($E$24:BO24)=0,IF((COUNTA($E$26:BO26)-COUNTIF($E$26:BO26,0))<$C$14*2,0,$J$20),IF(COUNTIF($E$24:BO24,">0")<$J$20,BO24-1,0)) -> 0 | BQ24: =IF(SUM($E$24:BP24)=0,IF((COUNTA($E$26:BP26)-COUNTIF($E$26:BP26,0))<$C$14*2,0,$J$20),IF(COUNTIF($E$24:BP24,">0")<$J$20,BP24-1,0)) -> 0 | BR24: =IF(SUM($E$24:BQ24)=0,IF((COUNTA($E$26:BQ26)-COUNTIF($E$26:BQ26,0))<$C$14*2,0,$J$20),IF(COUNTIF($E$24:BQ24,">0")<$J$20,BQ24-1,0)) -> 0 | BS24: =IF(SUM($E$24:BR24)=0,IF((COUNTA($E$26:BR26)-COUNTIF($E$26:BR26,0))<$C$14*2,0,$J$20),IF(COUNTIF($E$24:BR24,">0")<$J$20,BR24-1,0)) -> 0 | BT24: =IF(SUM($E$24:BS24)=0,IF((COUNTA($E$26:BS26)-COUNTIF($E$26:BS26,0))<$C$14*2,0,$J$20),IF(COUNTIF($E$24:BS24,">0")<$J$20,BS24-1,0)) -> 0 | BU24: =IF(SUM($E$24:BT24)=0,IF((COUNTA($E$26:BT26)-COUNTIF($E$26:BT26,0))<$C$14*2,0,$J$20),IF(COUNTIF($E$24:BT24,">0")<$J$20,BT24-1,0)) -> 0 | BV24: =IF(SUM($E$24:BU24)=0,IF((COUNTA($E$26:BU26)-COUNTIF($E$26:BU26,0))<$C$14*2,0,$J$20),IF(COUNTIF($E$24:BU24,">0")<$J$20,BU24-1,0)) -> 0 | BW24: =IF(SUM($E$24:BV24)=0,IF((COUNTA($E$26:BV26)-COUNTIF($E$26:BV26,0))<$C$14*2,0,$J$20),IF(COUNTIF($E$24:BV24,">0")<$J$20,BV24-1,0)) -> 0 | BX24: =IF(SUM($E$24:BW24)=0,IF((COUNTA($E$26:BW26)-COUNTIF($E$26:BW26,0))<$C$14*2,0,$J$20),IF(COUNTIF($E$24:BW24,">0")<$J$20,BW24-1,0)) -> 0 | BY24: =IF(SUM($E$24:BX24)=0,IF((COUNTA($E$26:BX26)-COUNTIF($E$26:BX26,0))<$C$14*2,0,$J$20),IF(COUNTIF($E$24:BX24,">0")<$J$20,BX24-1,0)) -> 0 | BZ24: =IF(SUM($E$24:BY24)=0,IF((COUNTA($E$26:BY26)-COUNTIF($E$26:BY26,0))<$C$14*2,0,$J$20),IF(COUNTIF($E$24:BY24,">0")<$J$20,BY24-1,0)) -> 0 | CA24: =IF(SUM($E$24:BZ24)=0,IF((COUNTA($E$26:BZ26)-COUNTIF($E$26:BZ26,0))<$C$14*2,0,$J$20),IF(COUNTIF($E$24:BZ24,">0")<$J$20,BZ24-1,0)) -> 0 | CB24: =IF(SUM($E$24:CA24)=0,IF((COUNTA($E$26:CA26)-COUNTIF($E$26:CA26,0))<$C$14*2,0,$J$20),IF(COUNTIF($E$24:CA24,">0")<$J$20,CA24-1,0)) -> 0 | CC24: =IF(SUM($E$24:CB24)=0,IF((COUNTA($E$26:CB26)-COUNTIF($E$26:CB26,0))<$C$14*2,0,$J$20),IF(COUNTIF($E$24:CB24,">0")<$J$20,CB24-1,0)) -> 0 | CD24: =IF(SUM($E$24:CC24)=0,IF((COUNTA($E$26:CC26)-COUNTIF($E$26:CC26,0))<$C$14*2,0,$J$20),IF(COUNTIF($E$24:CC24,">0")<$J$20,CC24-1,0)) -> 0 | CE24: =IF(SUM($E$24:CD24)=0,IF((COUNTA($E$26:CD26)-COUNTIF($E$26:CD26,0))<$C$14*2,0,$J$20),IF(COUNTIF($E$24:CD24,">0")<$J$20,CD24-1,0)) -> 0 | CF24: =IF(SUM($E$24:CE24)=0,IF((COUNTA($E$26:CE26)-COUNTIF($E$26:CE26,0))<$C$14*2,0,$J$20),IF(COUNTIF($E$24:CE24,">0")<$J$20,CE24-1,0)) -> 0 | CG24: =IF(SUM($E$24:CF24)=0,IF((COUNTA($E$26:CF26)-COUNTIF($E$26:CF26,0))<$C$14*2,0,$J$20),IF(COUNTIF($E$24:CF24,">0")<$J$20,CF24-1,0)) -> 0 | CH24: =IF(SUM($E$24:CG24)=0,IF((COUNTA($E$26:CG26)-COUNTIF($E$26:CG26,0))<$C$14*2,0,$J$20),IF(COUNTIF($E$24:CG24,">0")<$J$20,CG24-1,0)) -> 0
E25: =E4 -> 2024 | G25: =IF(E25=0,0,IF(($E$4+$C$12+1)>E25+1,E25+1,0)) -> 2025 | I25: =IF(G25=0,0,IF(($E$4+$C$12+1)>G25+1,G25+1,0)) -> 2026 | K25: =IF(I25=0,0,IF(($E$4+$C$12+1)>I25+1,I25+1,0)) -> 2027 | M25: =IF(K25=0,0,IF(($E$4+$C$12+1)>K25+1,K25+1,0)) -> 2028 | O25: =IF(M25=0,0,IF(($E$4+$C$12+1)>M25+1,M25+1,0)) -> 2029 | Q25: =IF(O25=0,0,IF(($E$4+$C$12+1)>O25+1,O25+1,0)) -> 0 | S25: =IF(Q25=0,0,IF(($E$4+$C$12+1)>Q25+1,Q25+1,0)) -> 0 | U25: =IF(S25=0,0,IF(($E$4+$C$12+1)>S25+1,S25+1,0)) -> 0 | W25: =IF(U25=0,0,IF(($E$4+$C$12+1)>U25+1,U25+1,0)) -> 0 | Y25: =IF(W25=0,0,IF(($E$4+$C$12+1)>W25+1,W25+1,0)) -> 0 | AA25: =IF(Y25=0,0,IF(($E$4+$C$12+1)>Y25+1,Y25+1,0)) -> 0 | AC25: =IF(AA25=0,0,IF(($E$4+$C$12+1)>AA25+1,AA25+1,0)) -> 0 | AE25: =IF(AC25=0,0,IF(($E$4+$C$12+1)>AC25+1,AC25+1,0)) -> 0 | AG25: =IF(AE25=0,0,IF(($E$4+$C$12+1)>AE25+1,AE25+1,0)) -> 0 | AI25: =IF(AG25=0,0,IF(($E$4+$C$12+1)>AG25+1,AG25+1,0)) -> 0 | AK25: =IF(AI25=0,0,IF(($E$4+$C$12+1)>AI25+1,AI25+1,0)) -> 0 | AM25: =IF(AK25=0,0,IF(($E$4+$C$12+1)>AK25+1,AK25+1,0)) -> 0 | AO25: =IF(AM25=0,0,IF(($E$4+$C$12+1)>AM25+1,AM25+1,0)) -> 0 | AQ25: =IF(AO25=0,0,IF(($E$4+$C$12+1)>AO25+1,AO25+1,0)) -> 0 | AS25: =IF(AQ25=0,0,IF(($E$4+$C$12+1)>AQ25+1,AQ25+1,0)) -> 0 | AU25: =IF(AS25=0,0,IF(($E$4+$C$12+1)>AS25+1,AS25+1,0)) -> 0 | AW25: =IF(AU25=0,0,IF(($E$4+$C$12+1)>AU25+1,AU25+1,0)) -> 0 | AY25: =IF(AW25=0,0,IF(($E$4+$C$12+1)>AW25+1,AW25+1,0)) -> 0 | BA25: =IF(AY25=0,0,IF(($E$4+$C$12+1)>AY25+1,AY25+1,0)) -> 0 | BC25: =IF(BA25=0,0,IF(($E$4+$C$12+1)>BA25+1,BA25+1,0)) -> 0 | BE25: =IF(BC25=0,0,IF(($E$4+$C$12+1)>BC25+1,BC25+1,0)) -> 0 | BG25: =IF(BE25=0,0,IF(($E$4+$C$12+1)>BE25+1,BE25+1,0)) -> 0 | BI25: =IF(BG25=0,0,IF(($E$4+$C$12+1)>BG25+1,BG25+1,0)) -> 0 | BK25: =IF(BI25=0,0,IF(($E$4+$C$12+1)>BI25+1,BI25+1,0)) -> 0 | BM25: =IF(BK25=0,0,IF(($E$4+$C$12+1)>BK25+1,BK25+1,0)) -> 0 | BO25: =IF(BM25=0,0,IF(($E$4+$C$12+1)>BM25+1,BM25+1,0)) -> 0 | BQ25: =IF(BO25=0,0,IF(($E$4+$C$12+1)>BO25+1,BO25+1,0)) -> 0 | BS25: =IF(BQ25=0,0,IF(($E$4+$C$12+1)>BQ25+1,BQ25+1,0)) -> 0 | BU25: =IF(BS25=0,0,IF(($E$4+$C$12+1)>BS25+1,BS25+1,0)) -> 0 | BW25: =IF(BU25=0,0,IF(($E$4+$C$12+1)>BU25+1,BU25+1,0)) -> 0 | BY25: =IF(BW25=0,0,IF(($E$4+$C$12+1)>BW25+1,BW25+1,0)) -> 0 | CA25: =IF(BY25=0,0,IF(($E$4+$C$12+1)>BY25+1,BY25+1,0)) -> 0 | CC25: =IF(CA25=0,0,IF(($E$4+$C$12+1)>CA25+1,CA25+1,0)) -> 0 | CE25: =IF(CC25=0,0,IF(($E$4+$C$12+1)>CC25+1,CC25+1,0)) -> 0 | CG25: =IF(CE25=0,0,IF(($E$4+$C$12+1)>CE25+1,CE25+1,0)) -> 0
B26: Кредитні кошти | E26: =IF(C4="I півріччя", "I півріччя/ half a year", "0") -> 0 | F26: =IF(C4="I півріччя", "II півріччя/ half a year", "II півріччя/ half a year") -> II півріччя/ half a year | G26: I півріччя/ half a year | H26: =IF(E4="I півріччя/ half a year", "II півріччя/ half a year", "II півріччя/ half a year") -> II півріччя/ half a year | I26: I півріччя/ half a year | J26: =IF(G4="I півріччя/ half a year", "II півріччя/ half a year", "II півріччя/ half a year") -> II півріччя/ half a year | K26: I півріччя/ half a year | L26: =IF(I8="I півріччя/ half a year", "II півріччя/ half a year", "II півріччя/ half a year") -> II півріччя/ half a year | M26: I півріччя/ half a year | N26: =IF(K8="I півріччя/ half a year", "II півріччя/ half a year", "II півріччя/ half a year") -> II півріччя/ half a year | O26: I півріччя/ half a year | P26: =IF(M4="I півріччя/ half a year", "II півріччя/ half a year", "II півріччя/ half a year") -> II півріччя/ half a year | Q26: I півріччя/ half a year | R26: =IF(O4="I півріччя/ half a year", "II півріччя/ half a year", "II півріччя/ half a year") -> II півріччя/ half a year | S26: I півріччя/ half a year | T26: =IF(Q4="I півріччя/ half a year", "II півріччя/ half a year", "II півріччя/ half a year") -> II півріччя/ half a year | U26: I півріччя/ half a year | V26: =IF(S4="I півріччя/ half a year", "II півріччя/ half a year", "II півріччя/ half a year") -> II півріччя/ half a year | W26: I півріччя/ half a year | X26: =IF(U4="I півріччя/ half a year", "II півріччя/ half a year", "II півріччя/ half a year") -> II півріччя/ half a year | Y26: I півріччя/ half a year | Z26: =IF(W8="I півріччя/ half a year", "II півріччя/ half a year", "II півріччя/ half a year") -> II півріччя/ half a year | AA26: I півріччя/ half a year | AB26: =IF(Y8="I півріччя/ half a year", "II півріччя/ half a year", "II півріччя/ half a year") -> II півріччя/ half a year | AC26: I півріччя/ half a year | AD26: =IF(AA4="I півріччя/ half a year", "II півріччя/ half a year", "II півріччя/ half a year") -> II півріччя/ half a year | AE26: I півріччя/ half a year | AF26: =IF(AC4="I півріччя/ half a year", "II півріччя/ half a year", "II півріччя/ half a year") -> II півріччя/ half a year | AG26: I півріччя/ half a year | AH26: =IF(AE4="I півріччя/ half a year", "II півріччя/ half a year", "II півріччя/ half a year") -> II півріччя/ half a year | AI26: I півріччя/ half a year | AJ26: =IF(AG4="I півріччя/ half a year", "II півріччя/ half a year", "II півріччя/ half a year") -> II півріччя/ half a year | AK26: I півріччя/ half a year | AL26: =IF(AI4="I півріччя/ half a year", "II півріччя/ half a year", "II півріччя/ half a year") -> II півріччя/ half a year | AM26: I півріччя/ half a year | AN26: =IF(AK4="I півріччя/ half a year", "II півріччя/ half a year", "II півріччя/ half a year") -> II півріччя/ half a year | AO26: I півріччя/ half a year | AP26: =IF(AM4="I півріччя/ half a year", "II півріччя/ half a year", "II півріччя/ half a year") -> II півріччя/ half a year | AQ26: I півріччя/ half a year | AR26: =IF(AO4="I півріччя/ half a year", "II півріччя/ half a year", "II півріччя/ half a year") -> II півріччя/ half a year | AS26: I півріччя/ half a year | AT26: =IF(AQ4="I півріччя/ half a year", "II півріччя/ half a year", "II півріччя/ half a year") -> II півріччя/ half a year | AU26: I півріччя/ half a year | AV26: =IF(AS4="I півріччя/ half a year", "II півріччя/ half a year", "II півріччя/ half a year") -> II півріччя/ half a year | AW26: I півріччя/ half a year | AX26: =IF(AU4="I півріччя/ half a year", "II півріччя/ half a year", "II півріччя/ half a year") -> II півріччя/ half a year | AY26: I півріччя/ half a year | AZ26: =IF(AW4="I півріччя/ half a year", "II півріччя/ half a year", "II півріччя/ half a year") -> II півріччя/ half a year | BA26: I півріччя/ half a year | BB26: =IF(AY4="I півріччя/ half a year", "II півріччя/ half a year", "II півріччя/ half a year") -> II півріччя/ half a year | BC26: I півріччя/ half a year | BD26: =IF(BA4="I півріччя/ half a year", "II півріччя/ half a year", "II півріччя/ half a year") -> II півріччя/ half a year | BE26: I півріччя/ half a year | BF26: =IF(BC4="I півріччя/ half a year", "II півріччя/ half a year", "II півріччя/ half a year") -> II півріччя/ half a year | BG26: I півріччя/ half a year | BH26: =IF(BE4="I півріччя/ half a year", "II півріччя/ half a year", "II півріччя/ half a year") -> II півріччя/ half a year | BI26: I півріччя/ half a year | BJ26: =IF(BG4="I півріччя/ half a year", "II півріччя/ half a year", "II півріччя/ half a year") -> II півріччя/ half a year | BK26: I півріччя/ half a year | BL26: =IF(BI4="I півріччя/ half a year", "II півріччя/ half a year", "II півріччя/ half a year") -> II півріччя/ half a year | BM26: I півріччя/ half a year | BN26: =IF(BK4="I півріччя/ half a year", "II півріччя/ half a year", "II півріччя/ half a year") -> II півріччя/ half a year | BO26: I півріччя/ half a year | BP26: =IF(BM4="I півріччя/ half a year", "II півріччя/ half a year", "II півріччя/ half a year") -> II півріччя/ half a year | BQ26: I півріччя/ half a year | BR26: =IF(BO4="I півріччя/ half a year", "II півріччя/ half a year", "II півріччя/ half a year") -> II півріччя/ half a year | BS26: I півріччя/ half a year | BT26: =IF(BQ4="I півріччя/ half a year", "II півріччя/ half a year", "II півріччя/ half a year") -> II півріччя/ half a year | BU26: I півріччя/ half a year | BV26: =IF(BS4="I півріччя/ half a year", "II півріччя/ half a year", "II півріччя/ half a year") -> II півріччя/ half a year | BW26: I півріччя/ half a year | BX26: =IF(BU4="I півріччя/ half a year", "II півріччя/ half a year", "II півріччя/ half a year") -> II півріччя/ half a year | BY26: I півріччя/ half a year | BZ26: =IF(BW4="I півріччя/ half a year", "II півріччя/ half a year", "II півріччя/ half a year") -> II півріччя/ half a year | CA26: I півріччя/ half a year | CB26: =IF(BY4="I півріччя/ half a year", "II півріччя/ half a year", "II півріччя/ half a year") -> II півріччя/ half a year | CC26: I півріччя/ half a year | CD26: =IF(CA4="I півріччя/ half a year", "II півріччя/ half a year", "II півріччя/ half a year") -> II півріччя/ half a year | CE26: I півріччя/ half a year | CF26: =IF(CC4="I півріччя/ half a year", "II півріччя/ half a year", "II півріччя/ half a year") -> II півріччя/ half a year | CG26: I півріччя/ half a year | CH26: =IF(CE4="I півріччя/ half a year", "II півріччя/ half a year", "II півріччя/ half a year") -> II півріччя/ half a year
B27: Погашення / Repayment | E27: 0 | F27: 0 | G27: =IF(G24=0,0,(SUM($E$30:F30)-SUM($E$27:F27))/G24) -> 475.4238882 | H27: =IF(H24=0,0,(SUM($E$30:G30)-SUM($E$27:G27))/H24) -> 475.4238882 | I27: =IF(I24=0,0,(SUM($E$30:H30)-SUM($E$27:H27))/I24) -> 475.4238882 | J27: =IF(J24=0,0,(SUM($E$30:I30)-SUM($E$27:I27))/J24) -> 475.4238882 | K27: =IF(K24=0,0,(SUM($E$30:J30)-SUM($E$27:J27))/K24) -> 475.4238882 | L27: =IF(L24=0,0,(SUM($E$30:K30)-SUM($E$27:K27))/L24) -> 475.4238882 | M27: =IF(M24=0,0,(SUM($E$30:L30)-SUM($E$27:L27))/M24) -> 475.4238882 | N27: =IF(N24=0,0,(SUM($E$30:M30)-SUM($E$27:M27))/N24) -> 475.4238882 | O27: =IF(O24=0,0,(SUM($E$30:N30)-SUM($E$27:N27))/O24) -> 475.4238882 | P27: =IF(P24=0,0,(SUM($E$30:O30)-SUM($E$27:O27))/P24) -> 0 | Q27: =IF(Q24=0,0,(SUM($E$30:P30)-SUM($E$27:P27))/Q24) -> 0 | R27: =IF(R24=0,0,(SUM($E$30:Q30)-SUM($E$27:Q27))/R24) -> 0 | S27: =IF(S24=0,0,(SUM($E$30:R30)-SUM($E$27:R27))/S24) -> 0 | T27: =IF(T24=0,0,(SUM($E$30:S30)-SUM($E$27:S27))/T24) -> 0 | U27: =IF(U24=0,0,(SUM($E$30:T30)-SUM($E$27:T27))/U24) -> 0 | V27: =IF(V24=0,0,(SUM($E$30:U30)-SUM($E$27:U27))/V24) -> 0 | W27: =IF(W24=0,0,(SUM($E$30:V30)-SUM($E$27:V27))/W24) -> 0 | X27: =IF(X24=0,0,(SUM($E$30:W30)-SUM($E$27:W27))/X24) -> 0 | Y27: =IF(Y24=0,0,(SUM($E$30:X30)-SUM($E$27:X27))/Y24) -> 0 | Z27: =IF(Z24=0,0,(SUM($E$30:Y30)-SUM($E$27:Y27))/Z24) -> 0 | AA27: =IF(AA24=0,0,(SUM($E$30:Z30)-SUM($E$27:Z27))/AA24) -> 0 | AB27: =IF(AB24=0,0,(SUM($E$30:AA30)-SUM($E$27:AA27))/AB24) -> 0 | AC27: =IF(AC24=0,0,(SUM($E$30:AB30)-SUM($E$27:AB27))/AC24) -> 0 | AD27: =IF(AD24=0,0,(SUM($E$30:AC30)-SUM($E$27:AC27))/AD24) -> 0 | AE27: =IF(AE24=0,0,(SUM($E$30:AD30)-SUM($E$27:AD27))/AE24) -> 0 | AF27: =IF(AF24=0,0,(SUM($E$30:AE30)-SUM($E$27:AE27))/AF24) -> 0 | AG27: =IF(AG24=0,0,(SUM($E$30:AF30)-SUM($E$27:AF27))/AG24) -> 0 | AH27: =IF(AH24=0,0,(SUM($E$30:AG30)-SUM($E$27:AG27))/AH24) -> 0 | AI27: =IF(AI24=0,0,(SUM($E$30:AH30)-SUM($E$27:AH27))/AI24) -> 0 | AJ27: =IF(AJ24=0,0,(SUM($E$30:AI30)-SUM($E$27:AI27))/AJ24) -> 0 | AK27: =IF(AK24=0,0,(SUM($E$30:AJ30)-SUM($E$27:AJ27))/AK24) -> 0 | AL27: =IF(AL24=0,0,(SUM($E$30:AK30)-SUM($E$27:AK27))/AL24) -> 0 | AM27: =IF(AM24=0,0,(SUM($E$30:AL30)-SUM($E$27:AL27))/AM24) -> 0 | AN27: =IF(AN24=0,0,(SUM($E$30:AM30)-SUM($E$27:AM27))/AN24) -> 0 | AO27: =IF(AO24=0,0,(SUM($E$30:AN30)-SUM($E$27:AN27))/AO24) -> 0 | AP27: =IF(AP24=0,0,(SUM($E$30:AO30)-SUM($E$27:AO27))/AP24) -> 0 | AQ27: =IF(AQ24=0,0,(SUM($E$30:AP30)-SUM($E$27:AP27))/AQ24) -> 0 | AR27: =IF(AR24=0,0,(SUM($E$30:AQ30)-SUM($E$27:AQ27))/AR24) -> 0 | AS27: =IF(AS24=0,0,(SUM($E$30:AR30)-SUM($E$27:AR27))/AS24) -> 0 | AT27: =IF(AT24=0,0,(SUM($E$30:AS30)-SUM($E$27:AS27))/AT24) -> 0 | AU27: =IF(AU24=0,0,(SUM($E$30:AT30)-SUM($E$27:AT27))/AU24) -> 0 | AV27: =IF(AV24=0,0,(SUM($E$30:AU30)-SUM($E$27:AU27))/AV24) -> 0 | AW27: =IF(AW24=0,0,(SUM($E$30:AV30)-SUM($E$27:AV27))/AW24) -> 0 | AX27: =IF(AX24=0,0,(SUM($E$30:AW30)-SUM($E$27:AW27))/AX24) -> 0 | AY27: =IF(AY24=0,0,(SUM($E$30:AX30)-SUM($E$27:AX27))/AY24) -> 0 | AZ27: =IF(AZ24=0,0,(SUM($E$30:AY30)-SUM($E$27:AY27))/AZ24) -> 0 | BA27: =IF(BA24=0,0,(SUM($E$30:AZ30)-SUM($E$27:AZ27))/BA24) -> 0 | BB27: =IF(BB24=0,0,(SUM($E$30:BA30)-SUM($E$27:BA27))/BB24) -> 0 | BC27: =IF(BC24=0,0,(SUM($E$30:BB30)-SUM($E$27:BB27))/BC24) -> 0 | BD27: =IF(BD24=0,0,(SUM($E$30:BC30)-SUM($E$27:BC27))/BD24) -> 0 | BE27: =IF(BE24=0,0,(SUM($E$30:BD30)-SUM($E$27:BD27))/BE24) -> 0 | BF27: =IF(BF24=0,0,(SUM($E$30:BE30)-SUM($E$27:BE27))/BF24) -> 0 | BG27: =IF(BG24=0,0,(SUM($E$30:BF30)-SUM($E$27:BF27))/BG24) -> 0 | BH27: =IF(BH24=0,0,(SUM($E$30:BG30)-SUM($E$27:BG27))/BH24) -> 0 | BI27: =IF(BI24=0,0,(SUM($E$30:BH30)-SUM($E$27:BH27))/BI24) -> 0 | BJ27: =IF(BJ24=0,0,(SUM($E$30:BI30)-SUM($E$27:BI27))/BJ24) -> 0 | BK27: =IF(BK24=0,0,(SUM($E$30:BJ30)-SUM($E$27:BJ27))/BK24) -> 0 | BL27: =IF(BL24=0,0,(SUM($E$30:BK30)-SUM($E$27:BK27))/BL24) -> 0 | BM27: =IF(BM24=0,0,(SUM($E$30:BL30)-SUM($E$27:BL27))/BM24) -> 0 | BN27: =IF(BN24=0,0,(SUM($E$30:BM30)-SUM($E$27:BM27))/BN24) -> 0 | BO27: =IF(BO24=0,0,(SUM($E$30:BN30)-SUM($E$27:BN27))/BO24) -> 0 | BP27: =IF(BP24=0,0,(SUM($E$30:BO30)-SUM($E$27:BO27))/BP24) -> 0 | BQ27: =IF(BQ24=0,0,(SUM($E$30:BP30)-SUM($E$27:BP27))/BQ24) -> 0 | BR27: =IF(BR24=0,0,(SUM($E$30:BQ30)-SUM($E$27:BQ27))/BR24) -> 0 | BS27: =IF(BS24=0,0,(SUM($E$30:BR30)-SUM($E$27:BR27))/BS24) -> 0 | BT27: =IF(BT24=0,0,(SUM($E$30:BS30)-SUM($E$27:BS27))/BT24) -> 0 | BU27: =IF(BU24=0,0,(SUM($E$30:BT30)-SUM($E$27:BT27))/BU24) -> 0 | BV27: =IF(BV24=0,0,(SUM($E$30:BU30)-SUM($E$27:BU27))/BV24) -> 0 | BW27: =IF(BW24=0,0,(SUM($E$30:BV30)-SUM($E$27:BV27))/BW24) -> 0 | BX27: =IF(BX24=0,0,(SUM($E$30:BW30)-SUM($E$27:BW27))/BX24) -> 0 | BY27: =IF(BY24=0,0,(SUM($E$30:BX30)-SUM($E$27:BX27))/BY24) -> 0 | BZ27: =IF(BZ24=0,0,(SUM($E$30:BY30)-SUM($E$27:BY27))/BZ24) -> 0 | CA27: =IF(CA24=0,0,(SUM($E$30:BZ30)-SUM($E$27:BZ27))/CA24) -> 0 | CB27: =IF(CB24=0,0,(SUM($E$30:CA30)-SUM($E$27:CA27))/CB24) -> 0 | CC27: =IF(CC24=0,0,(SUM($E$30:CB30)-SUM($E$27:CB27))/CC24) -> 0 | CD27: =IF(CD24=0,0,(SUM($E$30:CC30)-SUM($E$27:CC27))/CD24) -> 0 | CE27: =IF(CE24=0,0,(SUM($E$30:CD30)-SUM($E$27:CD27))/CE24) -> 0 | CF27: =IF(CF24=0,0,(SUM($E$30:CE30)-SUM($E$27:CE27))/CF24) -> 0 | CG27: =IF(CG24=0,0,(SUM($E$30:CF30)-SUM($E$27:CF27))/CG24) -> 0 | CH27: =IF(CH24=0,0,(SUM($E$30:CG30)-SUM($E$27:CG27))/CH24) -> 0
B28: Основна сума заборгованості / The main amount of debt | E28: =IF(AND(C4="I півріччя",(E4+C12)>E25),C8,0) -> 0 | F28: =IF((E4+C12)>=E25,C8,0) -> 4278.81 | G28: =IF((E4+C12)>G25,F28-F27,0) -> 4278.81 | H28: =IF(($E$4+$C$12)>G25,G28-G27,0) -> 3803.386112 | I28: =IF(($E$4+$C$12)>I25,H28-H27,0) -> 3327.962224 | J28: =IF(($E$4+$C$12)>I25,I28-I27,0) -> 2852.538335 | K28: =IF(($E$4+$C$12)>K25,J28-J27,0) -> 2377.114447 | L28: =IF(($E$4+$C$12)>K25,K28-K27,0) -> 1901.690559 | M28: =IF(($E$4+$C$12)>M25,L28-L27,0) -> 1426.266671 | N28: =IF(($E$4+$C$12)>M25,M28-M27,0) -> 950.8427828 | O28: =IF(($E$4+$C$12)>O25,N28-N27,0) -> 0 | P28: =IF(($E$4+$C$12)>O25,O28-O27,0) -> 0 | Q28: =IF(($E$4+$C$12)>Q25,P28-P27,0) -> 0 | R28: =IF(($E$4+$C$12)>Q25,Q28-Q27,0) -> 0 | S28: =IF(($E$4+$C$12)>S25,R28-R27,0) -> 0 | T28: =IF(($E$4+$C$12)>S25,S28-S27,0) -> 0 | U28: =IF(($E$4+$C$12)>U25,T28-T27,0) -> 0 | V28: =IF(($E$4+$C$12)>U25,U28-U27,0) -> 0 | W28: =IF(($E$4+$C$12)>W25,V28-V27,0) -> 0 | X28: =IF(($E$4+$C$12)>W25,W28-W27,0) -> 0 | Y28: =IF(($E$4+$C$12)>=Y25,X28-X27,0) -> 0 | Z28: =IF(($E$4+$C$12)>Y25,Y28-Y27,0) -> 0 | AA28: =IF(($E$4+$C$12)>AA25,Z28-Z27,0) -> 0 | AB28: =IF(($E$4+$C$12)>AA25,AA28-AA27,0) -> 0 | AC28: =IF(($E$4+$C$12)>AC25,AB28-AB27,0) -> 0 | AD28: =IF(($E$4+$C$12)>AC25,AC28-AC27,0) -> 0 | AE28: =IF(($E$4+$C$12)>AE25,AD28-AD27,0) -> 0 | AF28: =IF(($E$4+$C$12)>AE25,AE28-AE27,0) -> 0 | AG28: =IF(($E$4+$C$12)>AG25,AF28-AF27,0) -> 0 | AH28: =IF(($E$4+$C$12)>AG25,AG28-AG27,0) -> 0 | AI28: =IF(($E$4+$C$12)>AI25,AH28-AH27,0) -> 0 | AJ28: =IF(($E$4+$C$12)>AI25,AI28-AI27,0) -> 0 | AK28: =IF(($E$4+$C$12)>AK25,AJ28-AJ27,0) -> 0 | AL28: =IF(($E$4+$C$12)>AK25,AK28-AK27,0) -> 0 | AM28: =IF(($E$4+$C$12)>AM25,AL28-AL27,0) -> 0 | AN28: =IF(($E$4+$C$12)>AM25,AM28-AM27,0) -> 0 | AO28: =IF(($E$4+$C$12)>AO25,AN28-AN27,0) -> 0 | AP28: =IF(($E$4+$C$12)>AO25,AO28-AO27,0) -> 0 | AQ28: =IF(($E$4+$C$12)>AQ25,AP28-AP27,0) -> 0 | AR28: =IF(($E$4+$C$12)>AQ25,AQ28-AQ27,0) -> 0 | AS28: =IF(($E$4+$C$12)>AS25,AR28-AR27,0) -> 0 | AT28: =IF(($E$4+$C$12)>AS25,AS28-AS27,0) -> 0 | AU28: =IF(($E$4+$C$12)>AU25,AT28-AT27,0) -> 0 | AV28: =IF(($E$4+$C$12)>AU25,AU28-AU27,0) -> 0 | AW28: =IF(($E$4+$C$12)>AW25,AV28-AV27,0) -> 0 | AX28: =IF(($E$4+$C$12)>AW25,AW28-AW27,0) -> 0 | AY28: =IF(($E$4+$C$12)>AY25,AX28-AX27,0) -> 0 | AZ28: =IF(($E$4+$C$12)>AY25,AY28-AY27,0) -> 0 | BA28: =IF(($E$4+$C$12)>BA25,AZ28-AZ27,0) -> 0 | BB28: =IF(($E$4+$C$12)>BA25,BA28-BA27,0) -> 0 | BC28: =IF(($E$4+$C$12)>BC25,BB28-BB27,0) -> 0 | BD28: =IF(($E$4+$C$12)>BC25,BC28-BC27,0) -> 0 | BE28: =IF(($E$4+$C$12)>BE25,BD28-BD27,0) -> 0 | BF28: =IF(($E$4+$C$12)>BE25,BE28-BE27,0) -> 0 | BG28: =IF(($E$4+$C$12)>BG25,BF28-BF27,0) -> 0 | BH28: =IF(($E$4+$C$12)>BG25,BG28-BG27,0) -> 0 | BI28: =IF(($E$4+$C$12)>BI25,BH28-BH27,0) -> 0 | BJ28: =IF(($E$4+$C$12)>BI25,BI28-BI27,0) -> 0 | BK28: =IF(($E$4+$C$12)>BK25,BJ28-BJ27,0) -> 0 | BL28: =IF(($E$4+$C$12)>BK25,BK28-BK27,0) -> 0 | BM28: =IF(($E$4+$C$12)>BM25,BL28-BL27,0) -> 0 | BN28: =IF(($E$4+$C$12)>BM25,BM28-BM27,0) -> 0 | BO28: =IF(($E$4+$C$12)>BO25,BN28-BN27,0) -> 0 | BP28: =IF(($E$4+$C$12)>BO25,BO28-BO27,0) -> 0 | BQ28: =IF(($E$4+$C$12)>BQ25,BP28-BP27,0) -> 0 | BR28: =IF(($E$4+$C$12)>BQ25,BQ28-BQ27,0) -> 0 | BS28: =IF(($E$4+$C$12)>BS25,BR28-BR27,0) -> 0 | BT28: =IF(($E$4+$C$12)>BS25,BS28-BS27,0) -> 0 | BU28: =IF(($E$4+$C$12)>BU25,BT28-BT27,0) -> 0 | BV28: =IF(($E$4+$C$12)>BU25,BU28-BU27,0) -> 0 | BW28: =IF(($E$4+$C$12)>BW25,BV28-BV27,0) -> 0 | BX28: =IF(($E$4+$C$12)>BW25,BW28-BW27,0) -> 0 | BY28: =IF(($E$4+$C$12)>BY25,BX28-BX27,0) -> 0 | BZ28: =IF(($E$4+$C$12)>BY25,BY28-BY27,0) -> 0 | CA28: =IF(($E$4+$C$12)>CA25,BZ28-BZ27,0) -> 0 | CB28: =IF(($E$4+$C$12)>CA25,CA28-CA27,0) -> 0 | CC28: =IF(($E$4+$C$12)>CC25,CB28-CB27,0) -> 0 | CD28: =IF(($E$4+$C$12)>CC25,CC28-CC27,0) -> 0 | CE28: =IF(($E$4+$C$12)>CE25,CD28-CD27,0) -> 0 | CF28: =IF(($E$4+$C$12)>CE25,CE28-CE27,0) -> 0 | CG28: =IF(($E$4+$C$12)>CG25,CF28-CF27,0) -> 0 | CH28: =IF(($E$4+$C$12)>CG25,CG28-CG27,0) -> 0
B29: Одноразова комісія / One-time fee | E29: =C18*C8 -> 0 | F29: 0 | G29: 0 | H29: 0 | I29: 0 | J29: 0 | K29: 0 | L29: 0 | M29: 0 | N29: 0 | O29: 0 | P29: 0 | Q29: 0 | R29: 0 | S29: 0 | T29: 0 | U29: 0 | V29: 0 | W29: 0 | X29: 0 | Y29: 0 | Z29: 0 | AA29: 0 | AB29: 0 | AC29: 0 | AD29: 0 | AE29: 0 | AF29: 0 | AG29: 0 | AH29: 0 | AI29: 0 | AJ29: 0 | AK29: 0 | AL29: 0 | AM29: 0 | AN29: 0 | AO29: 0 | AP29: 0 | AQ29: 0 | AR29: 0 | AS29: 0 | AT29: 0 | AU29: 0 | AV29: 0 | AW29: 0 | AX29: 0 | AY29: 0 | AZ29: 0 | BA29: 0 | BB29: 0 | BC29: 0 | BD29: 0 | BE29: 0 | BF29: 0 | BG29: 0 | BH29: 0 | BI29: 0 | BJ29: 0 | BK29: 0 | BL29: 0 | BM29: 0 | BN29: 0 | BO29: 0 | BP29: 0 | BQ29: 0 | BR29: 0 | BS29: 0 | BT29: 0 | BU29: 0 | BV29: 0 | BW29: 0 | BX29: 0 | BY29: 0 | BZ29: 0 | CA29: 0 | CB29: 0 | CC29: 0 | CD29: 0 | CE29: 0 | CF29: 0 | CG29: 0 | CH29: 0
B30: Використання коштів / Use of funds | E30: =IFERROR(HLOOKUP(E23,'План фінансування_Funding plan'!$B$50:$BH$51,2,0),0) -> 0 | F30: =IFERROR(HLOOKUP(F23,'План фінансування_Funding plan'!$B$50:$BH$51,2,0),0) -> 4278.814994 | G30: =IFERROR(HLOOKUP(G23,'План фінансування_Funding plan'!$B$50:$BH$51,2,0),0) -> 0 | H30: =IFERROR(HLOOKUP(H23,'План фінансування_Funding plan'!$B$50:$BH$51,2,0),0) -> 0 | I30: =IFERROR(HLOOKUP(I23,'План фінансування_Funding plan'!$B$50:$BH$51,2,0),0) -> 0 | J30: =IFERROR(HLOOKUP(J23,'План фінансування_Funding plan'!$B$50:$BH$51,2,0),0) -> 0 | K30: =IFERROR(HLOOKUP(K23,'План фінансування_Funding plan'!$B$50:$BH$51,2,0),0) -> 0 | L30: =IFERROR(HLOOKUP(L23,'План фінансування_Funding plan'!$B$50:$BH$51,2,0),0) -> 0 | M30: =IFERROR(HLOOKUP(M23,'План фінансування_Funding plan'!$B$50:$BH$51,2,0),0) -> 0 | N30: =IFERROR(HLOOKUP(N23,'План фінансування_Funding plan'!$B$50:$BH$51,2,0),0) -> 0 | O30: =IFERROR(HLOOKUP(O23,'План фінансування_Funding plan'!$B$50:$BH$51,2,0),0) -> 0 | P30: =IFERROR(HLOOKUP(P23,'План фінансування_Funding plan'!$B$50:$BH$51,2,0),0) -> 0 | Q30: =IFERROR(HLOOKUP(Q23,'План фінансування_Funding plan'!$B$50:$BH$51,2,0),0) -> 0 | R30: =IFERROR(HLOOKUP(R23,'План фінансування_Funding plan'!$B$50:$BH$51,2,0),0) -> 0 | S30: =IFERROR(HLOOKUP(S23,'План фінансування_Funding plan'!$B$50:$BH$51,2,0),0) -> 0 | T30: =IFERROR(HLOOKUP(T23,'План фінансування_Funding plan'!$B$50:$BH$51,2,0),0) -> 0 | U30: =IFERROR(HLOOKUP(U23,'План фінансування_Funding plan'!$B$50:$BH$51,2,0),0) -> 0 | V30: =IFERROR(HLOOKUP(V23,'План фінансування_Funding plan'!$B$50:$BH$51,2,0),0) -> 0 | W30: =IFERROR(HLOOKUP(W23,'План фінансування_Funding plan'!$B$50:$BH$51,2,0),0) -> 0 | X30: =IFERROR(HLOOKUP(X23,'План фінансування_Funding plan'!$B$50:$BH$51,2,0),0) -> 0 | Y30: =IFERROR(HLOOKUP(Y23,'План фінансування_Funding plan'!$B$50:$BH$51,2,0),0) -> 0 | Z30: =IFERROR(HLOOKUP(Z23,'План фінансування_Funding plan'!$B$50:$BH$51,2,0),0) -> 0 | AA30: =IFERROR(HLOOKUP(AA23,'План фінансування_Funding plan'!$B$50:$BH$51,2,0),0) -> 0 | AB30: =IFERROR(HLOOKUP(AB23,'План фінансування_Funding plan'!$B$50:$BH$51,2,0),0) -> 0 | AC30: =IFERROR(HLOOKUP(AC23,'План фінансування_Funding plan'!$B$50:$BH$51,2,0),0) -> 0 | AD30: =IFERROR(HLOOKUP(AD23,'План фінансування_Funding plan'!$B$50:$BH$51,2,0),0) -> 0 | AE30: =IFERROR(HLOOKUP(AE23,'План фінансування_Funding plan'!$B$50:$BH$51,2,0),0) -> 0 | AF30: =IFERROR(HLOOKUP(AF23,'План фінансування_Funding plan'!$B$50:$BH$51,2,0),0) -> 0 | AG30: =IFERROR(HLOOKUP(AG23,'План фінансування_Funding plan'!$B$50:$BH$51,2,0),0) -> 0 | AH30: =IFERROR(HLOOKUP(AH23,'План фінансування_Funding plan'!$B$50:$BH$51,2,0),0) -> 0 | AI30: =IFERROR(HLOOKUP(AI23,'План фінансування_Funding plan'!$B$50:$BH$51,2,0),0) -> 0 | AJ30: =IFERROR(HLOOKUP(AJ23,'План фінансування_Funding plan'!$B$50:$BH$51,2,0),0) -> 0 | AK30: =IFERROR(HLOOKUP(AK23,'План фінансування_Funding plan'!$B$50:$BH$51,2,0),0) -> 0 | AL30: =IFERROR(HLOOKUP(AL23,'План фінансування_Funding plan'!$B$50:$BH$51,2,0),0) -> 0 | AM30: =IFERROR(HLOOKUP(AM23,'План фінансування_Funding plan'!$B$50:$BH$51,2,0),0) -> 0 | AN30: =IFERROR(HLOOKUP(AN23,'План фінансування_Funding plan'!$B$50:$BH$51,2,0),0) -> 0 | AO30: =IFERROR(HLOOKUP(AO23,'План фінансування_Funding plan'!$B$50:$BH$51,2,0),0) -> 0 | AP30: =IFERROR(HLOOKUP(AP23,'План фінансування_Funding plan'!$B$50:$BH$51,2,0),0) -> 0 | AQ30: =IFERROR(HLOOKUP(AQ23,'План фінансування_Funding plan'!$B$50:$BH$51,2,0),0) -> 0 | AR30: =IFERROR(HLOOKUP(AR23,'План фінансування_Funding plan'!$B$50:$BH$51,2,0),0) -> 0 | AS30: =IFERROR(HLOOKUP(AS23,'План фінансування_Funding plan'!$B$50:$BH$51,2,0),0) -> 0 | AT30: =IFERROR(HLOOKUP(AT23,'План фінансування_Funding plan'!$B$50:$BH$51,2,0),0) -> 0 | AU30: =IFERROR(HLOOKUP(AU23,'План фінансування_Funding plan'!$B$50:$BH$51,2,0),0) -> 0 | AV30: =IFERROR(HLOOKUP(AV23,'План фінансування_Funding plan'!$B$50:$BH$51,2,0),0) -> 0 | AW30: =IFERROR(HLOOKUP(AW23,'План фінансування_Funding plan'!$B$50:$BH$51,2,0),0) -> 0 | AX30: =IFERROR(HLOOKUP(AX23,'План фінансування_Funding plan'!$B$50:$BH$51,2,0),0) -> 0 | AY30: =IFERROR(HLOOKUP(AY23,'План фінансування_Funding plan'!$B$50:$BH$51,2,0),0) -> 0 | AZ30: =IFERROR(HLOOKUP(AZ23,'План фінансування_Funding plan'!$B$50:$BH$51,2,0),0) -> 0 | BA30: =IFERROR(HLOOKUP(BA23,'План фінансування_Funding plan'!$B$50:$BH$51,2,0),0) -> 0 | BB30: =IFERROR(HLOOKUP(BB23,'План фінансування_Funding plan'!$B$50:$BH$51,2,0),0) -> 0 | BC30: =IFERROR(HLOOKUP(BC23,'План фінансування_Funding plan'!$B$50:$BH$51,2,0),0) -> 0 | BD30: =IFERROR(HLOOKUP(BD23,'План фінансування_Funding plan'!$B$50:$BH$51,2,0),0) -> 0 | BE30: =IFERROR(HLOOKUP(BE23,'План фінансування_Funding plan'!$B$50:$BH$51,2,0),0) -> 0 | BF30: =IFERROR(HLOOKUP(BF23,'План фінансування_Funding plan'!$B$50:$BH$51,2,0),0) -> 0 | BG30: =IFERROR(HLOOKUP(BG23,'План фінансування_Funding plan'!$B$50:$BH$51,2,0),0) -> 0 | BH30: =IFERROR(HLOOKUP(BH23,'План фінансування_Funding plan'!$B$50:$BH$51,2,0),0) -> 0 | BI30: =IFERROR(HLOOKUP(BI23,'План фінансування_Funding plan'!$B$50:$BH$51,2,0),0) -> 0 | BJ30: =IFERROR(HLOOKUP(BJ23,'План фінансування_Funding plan'!$B$50:$BH$51,2,0),0) -> 0 | BK30: =IFERROR(HLOOKUP(BK23,'План фінансування_Funding plan'!$B$50:$BH$51,2,0),0) -> 0 | BL30: =IFERROR(HLOOKUP(BL23,'План фінансування_Funding plan'!$B$50:$BH$51,2,0),0) -> 0 | BM30: =IFERROR(HLOOKUP(BM23,'План фінансування_Funding plan'!$B$50:$BH$51,2,0),0) -> 0 | BN30: =IFERROR(HLOOKUP(BN23,'План фінансування_Funding plan'!$B$50:$BH$51,2,0),0) -> 0 | BO30: =IFERROR(HLOOKUP(BO23,'План фінансування_Funding plan'!$B$50:$BH$51,2,0),0) -> 0 | BP30: =IFERROR(HLOOKUP(BP23,'План фінансування_Funding plan'!$B$50:$BH$51,2,0),0) -> 0 | BQ30: =IFERROR(HLOOKUP(BQ23,'План фінансування_Funding plan'!$B$50:$BH$51,2,0),0) -> 0 | BR30: =IFERROR(HLOOKUP(BR23,'План фінансування_Funding plan'!$B$50:$BH$51,2,0),0) -> 0 | BS30: =IFERROR(HLOOKUP(BS23,'План фінансування_Funding plan'!$B$50:$BH$51,2,0),0) -> 0 | BT30: =IFERROR(HLOOKUP(BT23,'План фінансування_Funding plan'!$B$50:$BH$51,2,0),0) -> 0 | BU30: =IFERROR(HLOOKUP(BU23,'План фінансування_Funding plan'!$B$50:$BH$51,2,0),0) -> 0 | BV30: =IFERROR(HLOOKUP(BV23,'План фінансування_Funding plan'!$B$50:$BH$51,2,0),0) -> 0 | BW30: =IFERROR(HLOOKUP(BW23,'План фінансування_Funding plan'!$B$50:$BH$51,2,0),0) -> 0 | BX30: =IFERROR(HLOOKUP(BX23,'План фінансування_Funding plan'!$B$50:$BH$51,2,0),0) -> 0 | BY30: =IFERROR(HLOOKUP(BY23,'План фінансування_Funding plan'!$B$50:$BH$51,2,0),0) -> 0 | BZ30: =IFERROR(HLOOKUP(BZ23,'План фінансування_Funding plan'!$B$50:$BH$51,2,0),0) -> 0 | CA30: =IFERROR(HLOOKUP(CA23,'План фінансування_Funding plan'!$B$50:$BH$51,2,0),0) -> 0 | CB30: =IFERROR(HLOOKUP(CB23,'План фінансування_Funding plan'!$B$50:$BH$51,2,0),0) -> 0 | CC30: =IFERROR(HLOOKUP(CC23,'План фінансування_Funding plan'!$B$50:$BH$51,2,0),0) -> 0 | CD30: =IFERROR(HLOOKUP(CD23,'План фінансування_Funding plan'!$B$50:$BH$51,2,0),0) -> 0 | CE30: =IFERROR(HLOOKUP(CE23,'План фінансування_Funding plan'!$B$50:$BH$51,2,0),0) -> 0 | CF30: =IFERROR(HLOOKUP(CF23,'План фінансування_Funding plan'!$B$50:$BH$51,2,0),0) -> 0 | CG30: =IFERROR(HLOOKUP(CG23,'План фінансування_Funding plan'!$B$50:$BH$51,2,0),0) -> 0 | CH30: =IFERROR(HLOOKUP(CH23,'План фінансування_Funding plan'!$B$50:$BH$51,2,0),0) -> 0
B31: Відсотки банку / Bank interest | E31: =(E30)*C16/2 -> 0 | F31: =IF(COUNTA($E$24:E24)<=($C$12*2),(SUM($E$30:F30)-SUM($E$27:E27))*($C$16/2),0) -> 213.9407497 | G31: =IF(COUNTA($E$24:F24)<=($C$12*2),(SUM($E$30:G30)-SUM($E$27:F27))*($C$16/2),0) -> 213.9407497 | H31: =IF(COUNTA($E$24:G24)<=($C$12*2),(SUM($E$30:H30)-SUM($E$27:G27))*($C$16/2),0) -> 190.1695553 | I31: =IF(COUNTA($E$24:H24)<=($C$12*2),(SUM($E$30:I30)-SUM($E$27:H27))*($C$16/2),0) -> 166.3983609 | J31: =IF(COUNTA($E$24:I24)<=($C$12*2),(SUM($E$30:J30)-SUM($E$27:I27))*($C$16/2),0) -> 142.6271665 | K31: =IF(COUNTA($E$24:J24)<=($C$12*2),(SUM($E$30:K30)-SUM($E$27:J27))*($C$16/2),0) -> 118.855972 | L31: =IF(COUNTA($E$24:K24)<=($C$12*2),(SUM($E$30:L30)-SUM($E$27:K27))*($C$16/2),0) -> 95.08477763 | M31: =IF(COUNTA($E$24:L24)<=($C$12*2),(SUM($E$30:M30)-SUM($E$27:L27))*($C$16/2),0) -> 71.31358323 | N31: =IF(COUNTA($E$24:M24)<=($C$12*2),(SUM($E$30:N30)-SUM($E$27:M27))*($C$16/2),0) -> 47.54238882 | O31: =IF(COUNTA($E$24:N24)<=($C$12*2),(SUM($E$30:O30)-SUM($E$27:N27))*($C$16/2),0) -> 23.77119441 | P31: =IF(COUNTA($E$24:O24)<=($C$12*2),(SUM($E$30:P30)-SUM($E$27:O27))*($C$16/2),0) -> 0 | Q31: =IF(COUNTA($E$24:P24)<=($C$12*2),(SUM($E$30:Q30)-SUM($E$27:P27))*($C$16/2),0) -> 0 | R31: =IF(COUNTA($E$24:Q24)<=($C$12*2),(SUM($E$30:R30)-SUM($E$27:Q27))*($C$16/2),0) -> 0 | S31: =IF(COUNTA($E$24:R24)<=($C$12*2),(SUM($E$30:S30)-SUM($E$27:R27))*($C$16/2),0) -> 0 | T31: =IF(COUNTA($E$24:S24)<=($C$12*2),(SUM($E$30:T30)-SUM($E$27:S27))*($C$16/2),0) -> 0 | U31: =IF(COUNTA($E$24:T24)<=($C$12*2),(SUM($E$30:U30)-SUM($E$27:T27))*($C$16/2),0) -> 0 | V31: =IF(COUNTA($E$24:U24)<=($C$12*2),(SUM($E$30:V30)-SUM($E$27:U27))*($C$16/2),0) -> 0 | W31: =IF(COUNTA($E$24:V24)<=($C$12*2),(SUM($E$30:W30)-SUM($E$27:V27))*($C$16/2),0) -> 0 | X31: =IF(COUNTA($E$24:W24)<=($C$12*2),(SUM($E$30:X30)-SUM($E$27:W27))*($C$16/2),0) -> 0 | Y31: =IF(COUNTA($E$24:X24)<=($C$12*2),(SUM($E$30:Y30)-SUM($E$27:X27))*($C$16/2),0) -> 0 | Z31: =IF(COUNTA($E$24:Y24)<=($C$12*2),(SUM($E$30:Z30)-SUM($E$27:Y27))*($C$16/2),0) -> 0 | AA31: =IF(COUNTA($E$24:Z24)<=($C$12*2),(SUM($E$30:AA30)-SUM($E$27:Z27))*($C$16/2),0) -> 0 | AB31: =IF(COUNTA($E$24:AA24)<=($C$12*2),(SUM($E$30:AB30)-SUM($E$27:AA27))*($C$16/2),0) -> 0 | AC31: =IF(COUNTA($E$24:AB24)<=($C$12*2),(SUM($E$30:AC30)-SUM($E$27:AB27))*($C$16/2),0) -> 0 | AD31: =IF(COUNTA($E$24:AC24)<=($C$12*2),(SUM($E$30:AD30)-SUM($E$27:AC27))*($C$16/2),0) -> 0 | AE31: =IF(COUNTA($E$24:AD24)<=($C$12*2),(SUM($E$30:AE30)-SUM($E$27:AD27))*($C$16/2),0) -> 0 | AF31: =IF(COUNTA($E$24:AE24)<=($C$12*2),(SUM($E$30:AF30)-SUM($E$27:AE27))*($C$16/2),0) -> 0 | AG31: =IF(COUNTA($E$24:AF24)<=($C$12*2),(SUM($E$30:AG30)-SUM($E$27:AF27))*($C$16/2),0) -> 0 | AH31: =IF(COUNTA($E$24:AG24)<=($C$12*2),(SUM($E$30:AH30)-SUM($E$27:AG27))*($C$16/2),0) -> 0 | AI31: =IF(COUNTA($E$24:AH24)<=($C$12*2),(SUM($E$30:AI30)-SUM($E$27:AH27))*($C$16/2),0) -> 0 | AJ31: =IF(COUNTA($E$24:AI24)<=($C$12*2),(SUM($E$30:AJ30)-SUM($E$27:AI27))*($C$16/2),0) -> 0 | AK31: =IF(COUNTA($E$24:AJ24)<=($C$12*2),(SUM($E$30:AK30)-SUM($E$27:AJ27))*($C$16/2),0) -> 0 | AL31: =IF(COUNTA($E$24:AK24)<=($C$12*2),(SUM($E$30:AL30)-SUM($E$27:AK27))*($C$16/2),0) -> 0 | AM31: =IF(COUNTA($E$24:AL24)<=($C$12*2),(SUM($E$30:AM30)-SUM($E$27:AL27))*($C$16/2),0) -> 0 | AN31: =IF(COUNTA($E$24:AM24)<=($C$12*2),(SUM($E$30:AN30)-SUM($E$27:AM27))*($C$16/2),0) -> 0 | AO31: =IF(COUNTA($E$24:AN24)<=($C$12*2),(SUM($E$30:AO30)-SUM($E$27:AN27))*($C$16/2),0) -> 0 | AP31: =IF(COUNTA($E$24:AO24)<=($C$12*2),(SUM($E$30:AP30)-SUM($E$27:AO27))*($C$16/2),0) -> 0 | AQ31: =IF(COUNTA($E$24:AP24)<=($C$12*2),(SUM($E$30:AQ30)-SUM($E$27:AP27))*($C$16/2),0) -> 0 | AR31: =IF(COUNTA($E$24:AQ24)<=($C$12*2),(SUM($E$30:AR30)-SUM($E$27:AQ27))*($C$16/2),0) -> 0 | AS31: =IF(COUNTA($E$24:AR24)<=($C$12*2),(SUM($E$30:AS30)-SUM($E$27:AR27))*($C$16/2),0) -> 0 | AT31: =IF(COUNTA($E$24:AS24)<=($C$12*2),(SUM($E$30:AT30)-SUM($E$27:AS27))*($C$16/2),0) -> 0 | AU31: =IF(COUNTA($E$24:AT24)<=($C$12*2),(SUM($E$30:AU30)-SUM($E$27:AT27))*($C$16/2),0) -> 0 | AV31: =IF(COUNTA($E$24:AU24)<=($C$12*2),(SUM($E$30:AV30)-SUM($E$27:AU27))*($C$16/2),0) -> 0 | AW31: =IF(COUNTA($E$24:AV24)<=($C$12*2),(SUM($E$30:AW30)-SUM($E$27:AV27))*($C$16/2),0) -> 0 | AX31: =IF(COUNTA($E$24:AW24)<=($C$12*2),(SUM($E$30:AX30)-SUM($E$27:AW27))*($C$16/2),0) -> 0 | AY31: =IF(COUNTA($E$24:AX24)<=($C$12*2),(SUM($E$30:AY30)-SUM($E$27:AX27))*($C$16/2),0) -> 0 | AZ31: =IF(COUNTA($E$24:AY24)<=($C$12*2),(SUM($E$30:AZ30)-SUM($E$27:AY27))*($C$16/2),0) -> 0 | BA31: =IF(COUNTA($E$24:AZ24)<=($C$12*2),(SUM($E$30:BA30)-SUM($E$27:AZ27))*($C$16/2),0) -> 0 | BB31: =IF(COUNTA($E$24:BA24)<=($C$12*2),(SUM($E$30:BB30)-SUM($E$27:BA27))*($C$16/2),0) -> 0 | BC31: =IF(COUNTA($E$24:BB24)<=($C$12*2),(SUM($E$30:BC30)-SUM($E$27:BB27))*($C$16/2),0) -> 0 | BD31: =IF(COUNTA($E$24:BC24)<=($C$12*2),(SUM($E$30:BD30)-SUM($E$27:BC27))*($C$16/2),0) -> 0 | BE31: =IF(COUNTA($E$24:BD24)<=($C$12*2),(SUM($E$30:BE30)-SUM($E$27:BD27))*($C$16/2),0) -> 0 | BF31: =IF(COUNTA($E$24:BE24)<=($C$12*2),(SUM($E$30:BF30)-SUM($E$27:BE27))*($C$16/2),0) -> 0 | BG31: =IF(COUNTA($E$24:BF24)<=($C$12*2),(SUM($E$30:BG30)-SUM($E$27:BF27))*($C$16/2),0) -> 0 | BH31: =IF(COUNTA($E$24:BG24)<=($C$12*2),(SUM($E$30:BH30)-SUM($E$27:BG27))*($C$16/2),0) -> 0 | BI31: =IF(COUNTA($E$24:BH24)<=($C$12*2),(SUM($E$30:BI30)-SUM($E$27:BH27))*($C$16/2),0) -> 0 | BJ31: =IF(COUNTA($E$24:BI24)<=($C$12*2),(SUM($E$30:BJ30)-SUM($E$27:BI27))*($C$16/2),0) -> 0 | BK31: =IF(COUNTA($E$24:BJ24)<=($C$12*2),(SUM($E$30:BK30)-SUM($E$27:BJ27))*($C$16/2),0) -> 0 | BL31: =IF(COUNTA($E$24:BK24)<=($C$12*2),(SUM($E$30:BL30)-SUM($E$27:BK27))*($C$16/2),0) -> 0 | BM31: =IF(COUNTA($E$24:BL24)<=($C$12*2),(SUM($E$30:BM30)-SUM($E$27:BL27))*($C$16/2),0) -> 0 | BN31: =IF(COUNTA($E$24:BM24)<=($C$12*2),(SUM($E$30:BN30)-SUM($E$27:BM27))*($C$16/2),0) -> 0 | BO31: =IF(COUNTA($E$24:BN24)<=($C$12*2),(SUM($E$30:BO30)-SUM($E$27:BN27))*($C$16/2),0) -> 0 | BP31: =IF(COUNTA($E$24:BO24)<=($C$12*2),(SUM($E$30:BP30)-SUM($E$27:BO27))*($C$16/2),0) -> 0 | BQ31: =IF(COUNTA($E$24:BP24)<=($C$12*2),(SUM($E$30:BQ30)-SUM($E$27:BP27))*($C$16/2),0) -> 0 | BR31: =IF(COUNTA($E$24:BQ24)<=($C$12*2),(SUM($E$30:BR30)-SUM($E$27:BQ27))*($C$16/2),0) -> 0 | BS31: =IF(COUNTA($E$24:BR24)<=($C$12*2),(SUM($E$30:BS30)-SUM($E$27:BR27))*($C$16/2),0) -> 0 | BT31: =IF(COUNTA($E$24:BS24)<=($C$12*2),(SUM($E$30:BT30)-SUM($E$27:BS27))*($C$16/2),0) -> 0 | BU31: =IF(COUNTA($E$24:BT24)<=($C$12*2),(SUM($E$30:BU30)-SUM($E$27:BT27))*($C$16/2),0) -> 0 | BV31: =IF(COUNTA($E$24:BU24)<=($C$12*2),(SUM($E$30:BV30)-SUM($E$27:BU27))*($C$16/2),0) -> 0 | BW31: =IF(COUNTA($E$24:BV24)<=($C$12*2),(SUM($E$30:BW30)-SUM($E$27:BV27))*($C$16/2),0) -> 0 | BX31: =IF(COUNTA($E$24:BW24)<=($C$12*2),(SUM($E$30:BX30)-SUM($E$27:BW27))*($C$16/2),0) -> 0 | BY31: =IF(COUNTA($E$24:BX24)<=($C$12*2),(SUM($E$30:BY30)-SUM($E$27:BX27))*($C$16/2),0) -> 0 | BZ31: =IF(COUNTA($E$24:BY24)<=($C$12*2),(SUM($E$30:BZ30)-SUM($E$27:BY27))*($C$16/2),0) -> 0 | CA31: =IF(COUNTA($E$24:BZ24)<=($C$12*2),(SUM($E$30:CA30)-SUM($E$27:BZ27))*($C$16/2),0) -> 0 | CB31: =IF(COUNTA($E$24:CA24)<=($C$12*2),(SUM($E$30:CB30)-SUM($E$27:CA27))*($C$16/2),0) -> 0 | CC31: =IF(COUNTA($E$24:CB24)<=($C$12*2),(SUM($E$30:CC30)-SUM($E$27:CB27))*($C$16/2),0) -> 0 | CD31: =IF(COUNTA($E$24:CC24)<=($C$12*2),(SUM($E$30:CD30)-SUM($E$27:CC27))*($C$16/2),0) -> 0 | CE31: =IF(COUNTA($E$24:CD24)<=($C$12*2),(SUM($E$30:CE30)-SUM($E$27:CD27))*($C$16/2),0) -> 0 | CF31: =IF(COUNTA($E$24:CE24)<=($C$12*2),(SUM($E$30:CF30)-SUM($E$27:CE27))*($C$16/2),0) -> 0 | CG31: =IF(COUNTA($E$24:CF24)<=($C$12*2),(SUM($E$30:CG30)-SUM($E$27:CF27))*($C$16/2),0) -> 0 | CH31: =IF(COUNTA($E$24:CG24)<=($C$12*2),(SUM($E$30:CH30)-SUM($E$27:CG27))*($C$16/2),0) -> 0
B32: Комісія за зобов'язання / Commitment fee | E32: =IF(COUNTA(D$24:$E24)<=($C$12*2),($C$8-SUM($E$30:E30))*$C$20/2,0) -> 0 | F32: =IF(COUNTA($E$24:E24)<=($C$12*2),($C$8-SUM($E$30:F30))*$C$20/2,0) -> 0 | G32: =IF(COUNTA($E$24:F24)<=($C$12*2),($C$8-SUM($E$30:G30))*$C$20/2,0) -> 0 | H32: =IF(COUNTA($E$24:G24)<=($C$12*2),($C$8-SUM($E$30:H30))*$C$20/2,0) -> 0 | I32: =IF(COUNTA($E$24:H24)<=($C$12*2),($C$8-SUM($E$30:I30))*$C$20/2,0) -> 0 | J32: =IF(COUNTA($E$24:I24)<=($C$12*2),($C$8-SUM($E$30:J30))*$C$20/2,0) -> 0 | K32: =IF(COUNTA($E$24:J24)<=($C$12*2),($C$8-SUM($E$30:K30))*$C$20/2,0) -> 0 | L32: =IF(COUNTA($E$24:K24)<=($C$12*2),($C$8-SUM($E$30:L30))*$C$20/2,0) -> 0 | M32: =IF(COUNTA($E$24:L24)<=($C$12*2),($C$8-SUM($E$30:M30))*$C$20/2,0) -> 0 | N32: =IF(COUNTA($E$24:M24)<=($C$12*2),($C$8-SUM($E$30:N30))*$C$20/2,0) -> 0 | O32: =IF(COUNTA($E$24:N24)<=($C$12*2),($C$8-SUM($E$30:O30))*$C$20/2,0) -> 0 | P32: =IF(COUNTA($E$24:O24)<=($C$12*2),($C$8-SUM($E$30:P30))*$C$20/2,0) -> 0 | Q32: =IF(COUNTA($E$24:P24)<=($C$12*2),($C$8-SUM($E$30:Q30))*$C$20/2,0) -> 0 | R32: =IF(COUNTA($E$24:Q24)<=($C$12*2),($C$8-SUM($E$30:R30))*$C$20/2,0) -> 0 | S32: =IF(COUNTA($E$24:R24)<=($C$12*2),($C$8-SUM($E$30:S30))*$C$20/2,0) -> 0 | T32: =IF(COUNTA($E$24:S24)<=($C$12*2),($C$8-SUM($E$30:T30))*$C$20/2,0) -> 0 | U32: =IF(COUNTA($E$24:T24)<=($C$12*2),($C$8-SUM($E$30:U30))*$C$20/2,0) -> 0 | V32: =IF(COUNTA($E$24:U24)<=($C$12*2),($C$8-SUM($E$30:V30))*$C$20/2,0) -> 0 | W32: =IF(COUNTA($E$24:V24)<=($C$12*2),($C$8-SUM($E$30:W30))*$C$20/2,0) -> 0 | X32: =IF(COUNTA($E$24:W24)<=($C$12*2),($C$8-SUM($E$30:X30))*$C$20/2,0) -> 0 | Y32: =IF(COUNTA($E$24:X24)<=($C$12*2),($C$8-SUM($E$30:Y30))*$C$20/2,0) -> 0 | Z32: =IF(COUNTA($E$24:Y24)<=($C$12*2),($C$8-SUM($E$30:Z30))*$C$20/2,0) -> 0 | AA32: =IF(COUNTA($E$24:Z24)<=($C$12*2),($C$8-SUM($E$30:AA30))*$C$20/2,0) -> 0 | AB32: =IF(COUNTA($E$24:AA24)<=($C$12*2),($C$8-SUM($E$30:AB30))*$C$20/2,0) -> 0 | AC32: =IF(COUNTA($E$24:AB24)<=($C$12*2),($C$8-SUM($E$30:AC30))*$C$20/2,0) -> 0 | AD32: =IF(COUNTA($E$24:AC24)<=($C$12*2),($C$8-SUM($E$30:AD30))*$C$20/2,0) -> 0 | AE32: =IF(COUNTA($E$24:AD24)<=($C$12*2),($C$8-SUM($E$30:AE30))*$C$20/2,0) -> 0 | AF32: =IF(COUNTA($E$24:AE24)<=($C$12*2),($C$8-SUM($E$30:AF30))*$C$20/2,0) -> 0 | AG32: =IF(COUNTA($E$24:AF24)<=($C$12*2),($C$8-SUM($E$30:AG30))*$C$20/2,0) -> 0 | AH32: =IF(COUNTA($E$24:AG24)<=($C$12*2),($C$8-SUM($E$30:AH30))*$C$20/2,0) -> 0 | AI32: =IF(COUNTA($E$24:AH24)<=($C$12*2),($C$8-SUM($E$30:AI30))*$C$20/2,0) -> 0 | AJ32: =IF(COUNTA($E$24:AI24)<=($C$12*2),($C$8-SUM($E$30:AJ30))*$C$20/2,0) -> 0 | AK32: =IF(COUNTA($E$24:AJ24)<=($C$12*2),($C$8-SUM($E$30:AK30))*$C$20/2,0) -> 0 | AL32: =IF(COUNTA($E$24:AK24)<=($C$12*2),($C$8-SUM($E$30:AL30))*$C$20/2,0) -> 0 | AM32: =IF(COUNTA($E$24:AL24)<=($C$12*2),($C$8-SUM($E$30:AM30))*$C$20/2,0) -> 0 | AN32: =IF(COUNTA($E$24:AM24)<=($C$12*2),($C$8-SUM($E$30:AN30))*$C$20/2,0) -> 0 | AO32: =IF(COUNTA($E$24:AN24)<=($C$12*2),($C$8-SUM($E$30:AO30))*$C$20/2,0) -> 0 | AP32: =IF(COUNTA($E$24:AO24)<=($C$12*2),($C$8-SUM($E$30:AP30))*$C$20/2,0) -> 0 | AQ32: =IF(COUNTA($E$24:AP24)<=($C$12*2),($C$8-SUM($E$30:AQ30))*$C$20/2,0) -> 0 | AR32: =IF(COUNTA($E$24:AQ24)<=($C$12*2),($C$8-SUM($E$30:AR30))*$C$20/2,0) -> 0 | AS32: =IF(COUNTA($E$24:AR24)<=($C$12*2),($C$8-SUM($E$30:AS30))*$C$20/2,0) -> 0 | AT32: =IF(COUNTA($E$24:AS24)<=($C$12*2),($C$8-SUM($E$30:AT30))*$C$20/2,0) -> 0 | AU32: =IF(COUNTA($E$24:AT24)<=($C$12*2),($C$8-SUM($E$30:AU30))*$C$20/2,0) -> 0 | AV32: =IF(COUNTA($E$24:AU24)<=($C$12*2),($C$8-SUM($E$30:AV30))*$C$20/2,0) -> 0 | AW32: =IF(COUNTA($E$24:AV24)<=($C$12*2),($C$8-SUM($E$30:AW30))*$C$20/2,0) -> 0 | AX32: =IF(COUNTA($E$24:AW24)<=($C$12*2),($C$8-SUM($E$30:AX30))*$C$20/2,0) -> 0 | AY32: =IF(COUNTA($E$24:AX24)<=($C$12*2),($C$8-SUM($E$30:AY30))*$C$20/2,0) -> 0 | AZ32: =IF(COUNTA($E$24:AY24)<=($C$12*2),($C$8-SUM($E$30:AZ30))*$C$20/2,0) -> 0 | BA32: =IF(COUNTA($E$24:AZ24)<=($C$12*2),($C$8-SUM($E$30:BA30))*$C$20/2,0) -> 0 | BB32: =IF(COUNTA($E$24:BA24)<=($C$12*2),($C$8-SUM($E$30:BB30))*$C$20/2,0) -> 0 | BC32: =IF(COUNTA($E$24:BB24)<=($C$12*2),($C$8-SUM($E$30:BC30))*$C$20/2,0) -> 0 | BD32: =IF(COUNTA($E$24:BC24)<=($C$12*2),($C$8-SUM($E$30:BD30))*$C$20/2,0) -> 0 | BE32: =IF(COUNTA($E$24:BD24)<=($C$12*2),($C$8-SUM($E$30:BE30))*$C$20/2,0) -> 0 | BF32: =IF(COUNTA($E$24:BE24)<=($C$12*2),($C$8-SUM($E$30:BF30))*$C$20/2,0) -> 0 | BG32: =IF(COUNTA($E$24:BF24)<=($C$12*2),($C$8-SUM($E$30:BG30))*$C$20/2,0) -> 0 | BH32: =IF(COUNTA($E$24:BG24)<=($C$12*2),($C$8-SUM($E$30:BH30))*$C$20/2,0) -> 0 | BI32: =IF(COUNTA($E$24:BH24)<=($C$12*2),($C$8-SUM($E$30:BI30))*$C$20/2,0) -> 0 | BJ32: =IF(COUNTA($E$24:BI24)<=($C$12*2),($C$8-SUM($E$30:BJ30))*$C$20/2,0) -> 0 | BK32: =IF(COUNTA($E$24:BJ24)<=($C$12*2),($C$8-SUM($E$30:BK30))*$C$20/2,0) -> 0 | BL32: =IF(COUNTA($E$24:BK24)<=($C$12*2),($C$8-SUM($E$30:BL30))*$C$20/2,0) -> 0 | BM32: =IF(COUNTA($E$24:BL24)<=($C$12*2),($C$8-SUM($E$30:BM30))*$C$20/2,0) -> 0 | BN32: =IF(COUNTA($E$24:BM24)<=($C$12*2),($C$8-SUM($E$30:BN30))*$C$20/2,0) -> 0 | BO32: =IF(COUNTA($E$24:BN24)<=($C$12*2),($C$8-SUM($E$30:BO30))*$C$20/2,0) -> 0 | BP32: =IF(COUNTA($E$24:BO24)<=($C$12*2),($C$8-SUM($E$30:BP30))*$C$20/2,0) -> 0 | BQ32: =IF(COUNTA($E$24:BP24)<=($C$12*2),($C$8-SUM($E$30:BQ30))*$C$20/2,0) -> 0 | BR32: =IF(COUNTA($E$24:BQ24)<=($C$12*2),($C$8-SUM($E$30:BR30))*$C$20/2,0) -> 0 | BS32: =IF(COUNTA($E$24:BR24)<=($C$12*2),($C$8-SUM($E$30:BS30))*$C$20/2,0) -> 0 | BT32: =IF(COUNTA($E$24:BS24)<=($C$12*2),($C$8-SUM($E$30:BT30))*$C$20/2,0) -> 0 | BU32: =IF(COUNTA($E$24:BT24)<=($C$12*2),($C$8-SUM($E$30:BU30))*$C$20/2,0) -> 0 | BV32: =IF(COUNTA($E$24:BU24)<=($C$12*2),($C$8-SUM($E$30:BV30))*$C$20/2,0) -> 0 | BW32: =IF(COUNTA($E$24:BV24)<=($C$12*2),($C$8-SUM($E$30:BW30))*$C$20/2,0) -> 0 | BX32: =IF(COUNTA($E$24:BW24)<=($C$12*2),($C$8-SUM($E$30:BX30))*$C$20/2,0) -> 0 | BY32: =IF(COUNTA($E$24:BX24)<=($C$12*2),($C$8-SUM($E$30:BY30))*$C$20/2,0) -> 0 | BZ32: =IF(COUNTA($E$24:BY24)<=($C$12*2),($C$8-SUM($E$30:BZ30))*$C$20/2,0) -> 0 | CA32: =IF(COUNTA($E$24:BZ24)<=($C$12*2),($C$8-SUM($E$30:CA30))*$C$20/2,0) -> 0 | CB32: =IF(COUNTA($E$24:CA24)<=($C$12*2),($C$8-SUM($E$30:CB30))*$C$20/2,0) -> 0 | CC32: =IF(COUNTA($E$24:CB24)<=($C$12*2),($C$8-SUM($E$30:CC30))*$C$20/2,0) -> 0 | CD32: =IF(COUNTA($E$24:CC24)<=($C$12*2),($C$8-SUM($E$30:CD30))*$C$20/2,0) -> 0 | CE32: =IF(COUNTA($E$24:CD24)<=($C$12*2),($C$8-SUM($E$30:CE30))*$C$20/2,0) -> 0 | CF32: =IF(COUNTA($E$24:CE24)<=($C$12*2),($C$8-SUM($E$30:CF30))*$C$20/2,0) -> 0 | CG32: =IF(COUNTA($E$24:CF24)<=($C$12*2),($C$8-SUM($E$30:CG30))*$C$20/2,0) -> 0 | CH32: =IF(COUNTA($E$24:CG24)<=($C$12*2),($C$8-SUM($E$30:CH30))*$C$20/2,0) -> 0 | CI32: =IF(COUNTA($E$24:CH24)<=($C$12*2),($C$8-SUM($E$30:CI30))*$C$20/2,0) -> 0
B33: Плата МФУ за надання державної гарантії / State guarantee fee | E33: =(E30)*C22/2 -> 0 | F33: =IF(COUNTA($E$24:E24)<=($C$12*2),((SUM($E$30:F30)-E27))*$C$22/2,0) -> 0 | G33: =IF(COUNTA($E$24:F24)<=($C$12*2),(SUM($E$30:G30)-SUM($E$27:F27))*$C$22/2,0) -> 0 | H33: =IF(COUNTA($E$24:G24)<=($C$12*2),(SUM($E$30:H30)-SUM($E$27:G27))*$C$22/2,0) -> 0 | I33: =IF(COUNTA($E$24:H24)<=($C$12*2),(SUM($E$30:I30)-SUM($E$27:H27))*$C$22/2,0) -> 0 | J33: =IF(COUNTA($E$24:I24)<=($C$12*2),(SUM($E$30:J30)-SUM($E$27:I27))*$C$22/2,0) -> 0 | K33: =IF(COUNTA($E$24:J24)<=($C$12*2),(SUM($E$30:K30)-SUM($E$27:J27))*$C$22/2,0) -> 0 | L33: =IF(COUNTA($E$24:K24)<=($C$12*2),(SUM($E$30:L30)-SUM($E$27:K27))*$C$22/2,0) -> 0 | M33: =IF(COUNTA($E$24:L24)<=($C$12*2),(SUM($E$30:M30)-SUM($E$27:L27))*$C$22/2,0) -> 0 | N33: =IF(COUNTA($E$24:M24)<=($C$12*2),(SUM($E$30:N30)-SUM($E$27:M27))*$C$22/2,0) -> 0 | O33: =IF(COUNTA($E$24:N24)<=($C$12*2),(SUM($E$30:O30)-SUM($E$27:N27))*$C$22/2,0) -> 0 | P33: =IF(COUNTA($E$24:O24)<=($C$12*2),(SUM($E$30:P30)-SUM($E$27:O27))*$C$22/2,0) -> 0 | Q33: =IF(COUNTA($E$24:P24)<=($C$12*2),(SUM($E$30:Q30)-SUM($E$27:P27))*$C$22/2,0) -> 0 | R33: =IF(COUNTA($E$24:Q24)<=($C$12*2),(SUM($E$30:R30)-SUM($E$27:Q27))*$C$22/2,0) -> 0 | S33: =IF(COUNTA($E$24:R24)<=($C$12*2),(SUM($E$30:S30)-SUM($E$27:R27))*$C$22/2,0) -> 0 | T33: =IF(COUNTA($E$24:S24)<=($C$12*2),(SUM($E$30:T30)-SUM($E$27:S27))*$C$22/2,0) -> 0 | U33: =IF(COUNTA($E$24:T24)<=($C$12*2),(SUM($E$30:U30)-SUM($E$27:T27))*$C$22/2,0) -> 0 | V33: =IF(COUNTA($E$24:U24)<=($C$12*2),(SUM($E$30:V30)-SUM($E$27:U27))*$C$22/2,0) -> 0 | W33: =IF(COUNTA($E$24:V24)<=($C$12*2),(SUM($E$30:W30)-SUM($E$27:V27))*$C$22/2,0) -> 0 | X33: =IF(COUNTA($E$24:W24)<=($C$12*2),(SUM($E$30:X30)-SUM($E$27:W27))*$C$22/2,0) -> 0 | Y33: =IF(COUNTA($E$24:X24)<=($C$12*2),(SUM($E$30:Y30)-SUM($E$27:X27))*$C$22/2,0) -> 0 | Z33: =IF(COUNTA($E$24:Y24)<=($C$12*2),(SUM($E$30:Z30)-SUM($E$27:Y27))*$C$22/2,0) -> 0 | AA33: =IF(COUNTA($E$24:Z24)<=($C$12*2),(SUM($E$30:AA30)-SUM($E$27:Z27))*$C$22/2,0) -> 0 | AB33: =IF(COUNTA($E$24:AA24)<=($C$12*2),(SUM($E$30:AB30)-SUM($E$27:AA27))*$C$22/2,0) -> 0 | AC33: =IF(COUNTA($E$24:AB24)<=($C$12*2),(SUM($E$30:AC30)-SUM($E$27:AB27))*$C$22/2,0) -> 0 | AD33: =IF(COUNTA($E$24:AC24)<=($C$12*2),(SUM($E$30:AD30)-SUM($E$27:AC27))*$C$22/2,0) -> 0 | AE33: =IF(COUNTA($E$24:AD24)<=($C$12*2),(SUM($E$30:AE30)-SUM($E$27:AD27))*$C$22/2,0) -> 0 | AF33: =IF(COUNTA($E$24:AE24)<=($C$12*2),(SUM($E$30:AF30)-SUM($E$27:AE27))*$C$22/2,0) -> 0 | AG33: =IF(COUNTA($E$24:AF24)<=($C$12*2),(SUM($E$30:AG30)-SUM($E$27:AF27))*$C$22/2,0) -> 0 | AH33: =IF(COUNTA($E$24:AG24)<=($C$12*2),(SUM($E$30:AH30)-SUM($E$27:AG27))*$C$22/2,0) -> 0 | AI33: =IF(COUNTA($E$24:AH24)<=($C$12*2),(SUM($E$30:AI30)-SUM($E$27:AH27))*$C$22/2,0) -> 0 | AJ33: =IF(COUNTA($E$24:AI24)<=($C$12*2),(SUM($E$30:AJ30)-SUM($E$27:AI27))*$C$22/2,0) -> 0 | AK33: =IF(COUNTA($E$24:AJ24)<=($C$12*2),(SUM($E$30:AK30)-SUM($E$27:AJ27))*$C$22/2,0) -> 0 | AL33: =IF(COUNTA($E$24:AK24)<=($C$12*2),(SUM($E$30:AL30)-SUM($E$27:AK27))*$C$22/2,0) -> 0 | AM33: =IF(COUNTA($E$24:AL24)<=($C$12*2),(SUM($E$30:AM30)-SUM($E$27:AL27))*$C$22/2,0) -> 0 | AN33: =IF(COUNTA($E$24:AM24)<=($C$12*2),(SUM($E$30:AN30)-SUM($E$27:AM27))*$C$22/2,0) -> 0 | AO33: =IF(COUNTA($E$24:AN24)<=($C$12*2),(SUM($E$30:AO30)-SUM($E$27:AN27))*$C$22/2,0) -> 0 | AP33: =IF(COUNTA($E$24:AO24)<=($C$12*2),(SUM($E$30:AP30)-SUM($E$27:AO27))*$C$22/2,0) -> 0 | AQ33: =IF(COUNTA($E$24:AP24)<=($C$12*2),(SUM($E$30:AQ30)-SUM($E$27:AP27))*$C$22/2,0) -> 0 | AR33: =IF(COUNTA($E$24:AQ24)<=($C$12*2),(SUM($E$30:AR30)-SUM($E$27:AQ27))*$C$22/2,0) -> 0 | AS33: =IF(COUNTA($E$24:AR24)<=($C$12*2),(SUM($E$30:AS30)-SUM($E$27:AR27))*$C$22/2,0) -> 0 | AT33: =IF(COUNTA($E$24:AS24)<=($C$12*2),(SUM($E$30:AT30)-SUM($E$27:AS27))*$C$22/2,0) -> 0 | AU33: =IF(COUNTA($E$24:AT24)<=($C$12*2),(SUM($E$30:AU30)-SUM($E$27:AT27))*$C$22/2,0) -> 0 | AV33: =IF(COUNTA($E$24:AU24)<=($C$12*2),(SUM($E$30:AV30)-SUM($E$27:AU27))*$C$22/2,0) -> 0 | AW33: =IF(COUNTA($E$24:AV24)<=($C$12*2),(SUM($E$30:AW30)-SUM($E$27:AV27))*$C$22/2,0) -> 0 | AX33: =IF(COUNTA($E$24:AW24)<=($C$12*2),(SUM($E$30:AX30)-SUM($E$27:AW27))*$C$22/2,0) -> 0 | AY33: =IF(COUNTA($E$24:AX24)<=($C$12*2),(SUM($E$30:AY30)-SUM($E$27:AX27))*$C$22/2,0) -> 0 | AZ33: =IF(COUNTA($E$24:AY24)<=($C$12*2),(SUM($E$30:AZ30)-SUM($E$27:AY27))*$C$22/2,0) -> 0 | BA33: =IF(COUNTA($E$24:AZ24)<=($C$12*2),(SUM($E$30:BA30)-SUM($E$27:AZ27))*$C$22/2,0) -> 0 | BB33: =IF(COUNTA($E$24:BA24)<=($C$12*2),(SUM($E$30:BB30)-SUM($E$27:BA27))*$C$22/2,0) -> 0 | BC33: =IF(COUNTA($E$24:BB24)<=($C$12*2),(SUM($E$30:BC30)-SUM($E$27:BB27))*$C$22/2,0) -> 0 | BD33: =IF(COUNTA($E$24:BC24)<=($C$12*2),(SUM($E$30:BD30)-SUM($E$27:BC27))*$C$22/2,0) -> 0 | BE33: =IF(COUNTA($E$24:BD24)<=($C$12*2),(SUM($E$30:BE30)-SUM($E$27:BD27))*$C$22/2,0) -> 0 | BF33: =IF(COUNTA($E$24:BE24)<=($C$12*2),(SUM($E$30:BF30)-SUM($E$27:BE27))*$C$22/2,0) -> 0 | BG33: =IF(COUNTA($E$24:BF24)<=($C$12*2),(SUM($E$30:BG30)-SUM($E$27:BF27))*$C$22/2,0) -> 0 | BH33: =IF(COUNTA($E$24:BG24)<=($C$12*2),(SUM($E$30:BH30)-SUM($E$27:BG27))*$C$22/2,0) -> 0 | BI33: =IF(COUNTA($E$24:BH24)<=($C$12*2),(SUM($E$30:BI30)-SUM($E$27:BH27))*$C$22/2,0) -> 0 | BJ33: =IF(COUNTA($E$24:BI24)<=($C$12*2),(SUM($E$30:BJ30)-SUM($E$27:BI27))*$C$22/2,0) -> 0 | BK33: =IF(COUNTA($E$24:BJ24)<=($C$12*2),(SUM($E$30:BK30)-SUM($E$27:BJ27))*$C$22/2,0) -> 0 | BL33: =IF(COUNTA($E$24:BK24)<=($C$12*2),(SUM($E$30:BL30)-SUM($E$27:BK27))*$C$22/2,0) -> 0 | BM33: =IF(COUNTA($E$24:BL24)<=($C$12*2),(SUM($E$30:BM30)-SUM($E$27:BL27))*$C$22/2,0) -> 0 | BN33: =IF(COUNTA($E$24:BM24)<=($C$12*2),(SUM($E$30:BN30)-SUM($E$27:BM27))*$C$22/2,0) -> 0 | BO33: =IF(COUNTA($E$24:BN24)<=($C$12*2),(SUM($E$30:BO30)-SUM($E$27:BN27))*$C$22/2,0) -> 0 | BP33: =IF(COUNTA($E$24:BO24)<=($C$12*2),(SUM($E$30:BP30)-SUM($E$27:BO27))*$C$22/2,0) -> 0 | BQ33: =IF(COUNTA($E$24:BP24)<=($C$12*2),(SUM($E$30:BQ30)-SUM($E$27:BP27))*$C$22/2,0) -> 0 | BR33: =IF(COUNTA($E$24:BQ24)<=($C$12*2),(SUM($E$30:BR30)-SUM($E$27:BQ27))*$C$22/2,0) -> 0 | BS33: =IF(COUNTA($E$24:BR24)<=($C$12*2),(SUM($E$30:BS30)-SUM($E$27:BR27))*$C$22/2,0) -> 0 | BT33: =IF(COUNTA($E$24:BS24)<=($C$12*2),(SUM($E$30:BT30)-SUM($E$27:BS27))*$C$22/2,0) -> 0 | BU33: =IF(COUNTA($E$24:BT24)<=($C$12*2),(SUM($E$30:BU30)-SUM($E$27:BT27))*$C$22/2,0) -> 0 | BV33: =IF(COUNTA($E$24:BU24)<=($C$12*2),(SUM($E$30:BV30)-SUM($E$27:BU27))*$C$22/2,0) -> 0 | BW33: =IF(COUNTA($E$24:BV24)<=($C$12*2),(SUM($E$30:BW30)-SUM($E$27:BV27))*$C$22/2,0) -> 0 | BX33: =IF(COUNTA($E$24:BW24)<=($C$12*2),(SUM($E$30:BX30)-SUM($E$27:BW27))*$C$22/2,0) -> 0 | BY33: =IF(COUNTA($E$24:BX24)<=($C$12*2),(SUM($E$30:BY30)-SUM($E$27:BX27))*$C$22/2,0) -> 0 | BZ33: =IF(COUNTA($E$24:BY24)<=($C$12*2),(SUM($E$30:BZ30)-SUM($E$27:BY27))*$C$22/2,0) -> 0 | CA33: =IF(COUNTA($E$24:BZ24)<=($C$12*2),(SUM($E$30:CA30)-SUM($E$27:BZ27))*$C$22/2,0) -> 0 | CB33: =IF(COUNTA($E$24:CA24)<=($C$12*2),(SUM($E$30:CB30)-SUM($E$27:CA27))*$C$22/2,0) -> 0 | CC33: =IF(COUNTA($E$24:CB24)<=($C$12*2),(SUM($E$30:CC30)-SUM($E$27:CB27))*$C$22/2,0) -> 0 | CD33: =IF(COUNTA($E$24:CC24)<=($C$12*2),(SUM($E$30:CD30)-SUM($E$27:CC27))*$C$22/2,0) -> 0 | CE33: =IF(COUNTA($E$24:CD24)<=($C$12*2),(SUM($E$30:CE30)-SUM($E$27:CD27))*$C$22/2,0) -> 0 | CF33: =IF(COUNTA($E$24:CE24)<=($C$12*2),(SUM($E$30:CF30)-SUM($E$27:CE27))*$C$22/2,0) -> 0 | CG33: =IF(COUNTA($E$24:CF24)<=($C$12*2),(SUM($E$30:CG30)-SUM($E$27:CF27))*$C$22/2,0) -> 0 | CH33: =IF(COUNTA($E$24:CG24)<=($C$12*2),(SUM($E$30:CH30)-SUM($E$27:CG27))*$C$22/2,0) -> 0
B34: Витрати за кредитом /Costs on the loan | E34: =E31+F31+E32+F32+E33+F33 -> 213.9407497 | G34: =G31+H31+G32+H32+G33+H33 -> 404.1103049 | I34: =I29+J29+I31+J31+I32+J32+I33+J33 -> 309.0255273 | K34: =K29+L29+K31+L31+K32+L32+K33+L33 -> 213.9407497 | M34: =M29+N29+M31+N31+M32+N32+M33+N33 -> 118.855972 | O34: =O29+P29+O31+P31+O32+P32+O33+P33 -> 23.77119441 | Q34: =Q29+R29+Q31+R31+Q32+R32+Q33+R33 -> 0 | S34: =S29+T29+S31+T31+S32+T32+S33+T33 -> 0 | U34: =U29+V29+U31+V31+U32+V32+U33+V33 -> 0 | W34: =W29+X29+W31+X31+W32+X32+W33+X33 -> 0 | Y34: =Y29+Z29+Y31+Z31+Y32+Z32+Y33+Z33 -> 0 | AA34: =AA29+AB29+AA31+AB31+AA32+AB32+AA33+AB33 -> 0 | AC34: =AC29+AD29+AC31+AD31+AC32+AD32+AC33+AD33 -> 0 | AE34: =AE29+AF29+AE31+AF31+AE32+AF32+AE33+AF33 -> 0 | AG34: =AG29+AH29+AG31+AH31+AG32+AH32+AG33+AH33 -> 0 | AI34: =AI29+AJ29+AI31+AJ31+AI32+AJ32+AI33+AJ33 -> 0 | AK34: =AK29+AL29+AK31+AL31+AK32+AL32+AK33+AL33 -> 0 | AM34: =AM29+AN29+AM31+AN31+AM32+AN32+AM33+AN33 -> 0 | AO34: =AO29+AP29+AO31+AP31+AO32+AP32+AO33+AP33 -> 0 | AQ34: =AQ29+AR29+AQ31+AR31+AQ32+AR32+AQ33+AR33 -> 0 | AS34: =AS29+AT29+AS31+AT31+AS32+AT32+AS33+AT33 -> 0 | AU34: =AU29+AV29+AU31+AV31+AU32+AV32+AU33+AV33 -> 0 | AW34: =AW29+AX29+AW31+AX31+AW32+AX32+AW33+AX33 -> 0 | AY34: =AY29+AZ29+AY31+AZ31+AY32+AZ32+AY33+AZ33 -> 0 | BA34: =BA29+BB29+BA31+BB31+BA32+BB32+BA33+BB33 -> 0 | BC34: =BC29+BD29+BC31+BD31+BC32+BD32+BC33+BD33 -> 0 | BE34: =BE29+BF29+BE31+BF31+BE32+BF32+BE33+BF33 -> 0 | BG34: =BG29+BH29+BG31+BH31+BG32+BH32+BG33+BH33 -> 0 | BI34: =BI29+BJ29+BI31+BJ31+BI32+BJ32+BI33+BJ33 -> 0 | BK34: =BK29+BL29+BK31+BL31+BK32+BL32+BK33+BL33 -> 0 | BM34: =BM29+BN29+BM31+BN31+BM32+BN32+BM33+BN33 -> 0 | BO34: =BO29+BP29+BO31+BP31+BO32+BP32+BO33+BP33 -> 0 | BQ34: =BQ29+BR29+BQ31+BR31+BQ32+BR32+BQ33+BR33 -> 0 | BS34: =BS29+BT29+BS31+BT31+BS32+BT32+BS33+BT33 -> 0 | BU34: =BU29+BV29+BU31+BV31+BU32+BV32+BU33+BV33 -> 0 | BW34: =BW29+BX29+BW31+BX31+BW32+BX32+BW33+BX33 -> 0 | BY34: =BY29+BZ29+BY31+BZ31+BY32+BZ32+BY33+BZ33 -> 0 | CA34: =CA29+CB29+CA31+CB31+CA32+CB32+CA33+CB33 -> 0 | CC34: =CC29+CD29+CC31+CD31+CC32+CD32+CC33+CD33 -> 0 | CE34: =CE29+CF29+CE31+CF31+CE32+CF32+CE33+CF33 -> 0 | CG34: =CG29+CH29+CG31+CH31+CG32+CH32+CG33+CH33 -> 0
B35: Погашення за рік/ Repayment per year | E35: =E27+F27 -> 0 | G35: =G27+H27 -> 950.8477763 | I35: =I27+J27 -> 950.8477763 | K35: =K27+L27 -> 950.8477763 | M35: =M27+N27 -> 950.8477763 | O35: =O27+P27 -> 475.4238882 | Q35: =Q27+R27 -> 0 | S35: =S27+T27 -> 0 | U35: =U27+V27 -> 0 | W35: =W27+X27 -> 0 | Y35: =Y27+Z27 -> 0 | AA35: =AA27+AB27 -> 0 | AC35: =AC27+AD27 -> 0 | AE35: =AE27+AF27 -> 0 | AG35: =AG27+AH27 -> 0 | AI35: =AI27+AJ27 -> 0 | AK35: =AK27+AL27 -> 0 | AM35: =AM27+AN27 -> 0 | AO35: =AO27+AP27 -> 0 | AQ35: =AQ27+AR27 -> 0 | AS35: =AS27+AT27 -> 0 | AU35: =AU27+AV27 -> 0 | AW35: =AW27+AX27 -> 0 | AY35: =AY27+AZ27 -> 0 | BA35: =BA27+BB27 -> 0 | BC35: =BC27+BD27 -> 0 | BE35: =BE27+BF27 -> 0 | BG35: =BG27+BH27 -> 0 | BI35: =BI27+BJ27 -> 0 | BK35: =BK27+BL27 -> 0 | BM35: =BM27+BN27 -> 0 | BO35: =BO27+BP27 -> 0 | BQ35: =BQ27+BR27 -> 0 | BS35: =BS27+BT27 -> 0 | BU35: =BU27+BV27 -> 0 | BW35: =BW27+BX27 -> 0 | BY35: =BY27+BZ27 -> 0 | CA35: =CA27+CB27 -> 0 | CC35: =CC27+CD27 -> 0 | CE35: =CE27+CF27 -> 0 | CG35: =CG27+CH27 -> 0
B36: Використання коштів за рік/ Use of funds per year | E36: =E30+F30 -> 4278.814994 | G36: =G30+H30 -> 0 | I36: =I30+J30 -> 0 | K36: =K30+L30 -> 0 | M36: =M30+N30 -> 0 | O36: =O30+P30 -> 0 | Q36: =Q30+R30 -> 0 | S36: =S30+T30 -> 0 | U36: =U30+V30 -> 0 | W36: =W30+X30 -> 0 | Y36: =Y30+Z30 -> 0 | AA36: =AA30+AB30 -> 0 | AC36: =AC30+AD30 -> 0 | AE36: =AE30+AF30 -> 0 | AG36: =AG30+AH30 -> 0 | AI36: =AI30+AJ30 -> 0 | AK36: =AK30+AL30 -> 0 | AM36: =AM30+AN30 -> 0 | AO36: =AO30+AP30 -> 0 | AQ36: =AQ30+AR30 -> 0 | AS36: =AS30+AT30 -> 0 | AU36: =AU30+AV30 -> 0 | AW36: =AW30+AX30 -> 0 | AY36: =AY30+AZ30 -> 0 | BA36: =BA30+BB30 -> 0 | BC36: =BC30+BD30 -> 0 | BE36: =BE30+BF30 -> 0 | BG36: =BG30+BH30 -> 0 | BI36: =BI30+BJ30 -> 0 | BK36: =BK30+BL30 -> 0 | BM36: =BM30+BN30 -> 0 | BO36: =BO30+BP30 -> 0 | BQ36: =BQ30+BR30 -> 0 | BS36: =BS30+BT30 -> 0 | BU36: =BU30+BV30 -> 0 | BW36: =BW30+BX30 -> 0 | BY36: =BY30+BZ30 -> 0 | CA36: =CA30+CB30 -> 0 | CC36: =CC30+CD30 -> 0 | CE36: =CE30+CF30 -> 0 | CG36: =CG30+CH30 -> 0
B37: Одноразова комісія за рік/ One-time fee per year | E37: =E29+F29 -> 0 | G37: =G29+H29 -> 0 | I37: =I29+J29 -> 0 | K37: =K29+L29 -> 0 | M37: =M29+N29 -> 0 | O37: =O29+P29 -> 0 | Q37: =Q29+R29 -> 0 | S37: =S29+T29 -> 0 | U37: =U29+V29 -> 0 | W37: =W29+X29 -> 0 | Y37: =Y29+Z29 -> 0 | AA37: =AA29+AB29 -> 0 | AC37: =AC29+AD29 -> 0 | AE37: =AE29+AF29 -> 0 | AG37: =AG29+AH29 -> 0 | AI37: =AI29+AJ29 -> 0 | AK37: =AK29+AL29 -> 0 | AM37: =AM29+AN29 -> 0 | AO37: =AO29+AP29 -> 0 | AQ37: =AQ29+AR29 -> 0 | AS37: =AS29+AT29 -> 0 | AU37: =AU29+AV29 -> 0 | AW37: =AW29+AX29 -> 0 | AY37: =AY29+AZ29 -> 0 | BA37: =BA29+BB29 -> 0 | BC37: =BC29+BD29 -> 0 | BE37: =BE29+BF29 -> 0 | BG37: =BG29+BH29 -> 0 | BI37: =BI29+BJ29 -> 0 | BK37: =BK29+BL29 -> 0 | BM37: =BM29+BN29 -> 0 | BO37: =BO29+BP29 -> 0 | BQ37: =BQ29+BR29 -> 0 | BS37: =BS29+BT29 -> 0 | BU37: =BU29+BV29 -> 0 | BW37: =BW29+BX29 -> 0 | BY37: =BY29+BZ29 -> 0 | CA37: =CA29+CB29 -> 0 | CC37: =CC29+CD29 -> 0 | CE37: =CE29+CF29 -> 0 | CG37: =CG29+CH29 -> 0
B38: Власні кошти
B39: Погашення / Repayment | E39: 0 | F39: 0 | G39: =IF(G24=0,0,(SUM($E$41:F41)-SUM($E$39:F39))/G24) -> 0 | H39: =IF(H24=0,0,(SUM($E$41:G41)-SUM($E$39:G39))/H24) -> 0 | I39: =IF(I24=0,0,(SUM($E$41:H41)-SUM($E$39:H39))/I24) -> 0 | J39: =IF(J24=0,0,(SUM($E$41:I41)-SUM($E$39:I39))/J24) -> 0 | K39: =IF(K24=0,0,(SUM($E$41:J41)-SUM($E$39:J39))/K24) -> 0 | L39: =IF(L24=0,0,(SUM($E$41:K41)-SUM($E$39:K39))/L24) -> 0 | M39: =IF(M24=0,0,(SUM($E$41:L41)-SUM($E$39:L39))/M24) -> 0 | N39: =IF(N24=0,0,(SUM($E$41:M41)-SUM($E$39:M39))/N24) -> 0 | O39: =IF(O24=0,0,(SUM($E$41:N41)-SUM($E$39:N39))/O24) -> 0 | P39: =IF(P24=0,0,(SUM($E$41:O41)-SUM($E$39:O39))/P24) -> 0 | Q39: =IF(Q24=0,0,(SUM($E$41:P41)-SUM($E$39:P39))/Q24) -> 0 | R39: =IF(R24=0,0,(SUM($E$41:Q41)-SUM($E$39:Q39))/R24) -> 0 | S39: =IF(S24=0,0,(SUM($E$41:R41)-SUM($E$39:R39))/S24) -> 0 | T39: =IF(T24=0,0,(SUM($E$41:S41)-SUM($E$39:S39))/T24) -> 0 | U39: =IF(U24=0,0,(SUM($E$41:T41)-SUM($E$39:T39))/U24) -> 0 | V39: =IF(V24=0,0,(SUM($E$41:U41)-SUM($E$39:U39))/V24) -> 0 | W39: =IF(W24=0,0,(SUM($E$41:V41)-SUM($E$39:V39))/W24) -> 0 | X39: =IF(X24=0,0,(SUM($E$41:W41)-SUM($E$39:W39))/X24) -> 0 | Y39: =IF(Y24=0,0,(SUM($E$41:X41)-SUM($E$39:X39))/Y24) -> 0 | Z39: =IF(Z24=0,0,(SUM($E$41:Y41)-SUM($E$39:Y39))/Z24) -> 0 | AA39: =IF(AA24=0,0,(SUM($E$41:Z41)-SUM($E$39:Z39))/AA24) -> 0 | AB39: =IF(AB24=0,0,(SUM($E$41:AA41)-SUM($E$39:AA39))/AB24) -> 0 | AC39: =IF(AC24=0,0,(SUM($E$41:AB41)-SUM($E$39:AB39))/AC24) -> 0 | AD39: =IF(AD24=0,0,(SUM($E$41:AC41)-SUM($E$39:AC39))/AD24) -> 0 | AE39: =IF(AE24=0,0,(SUM($E$41:AD41)-SUM($E$39:AD39))/AE24) -> 0 | AF39: =IF(AF24=0,0,(SUM($E$41:AE41)-SUM($E$39:AE39))/AF24) -> 0 | AG39: =IF(AG24=0,0,(SUM($E$41:AF41)-SUM($E$39:AF39))/AG24) -> 0 | AH39: =IF(AH24=0,0,(SUM($E$41:AG41)-SUM($E$39:AG39))/AH24) -> 0 | AI39: =IF(AI24=0,0,(SUM($E$41:AH41)-SUM($E$39:AH39))/AI24) -> 0 | AJ39: =IF(AJ24=0,0,(SUM($E$41:AI41)-SUM($E$39:AI39))/AJ24) -> 0 | AK39: =IF(AK24=0,0,(SUM($E$41:AJ41)-SUM($E$39:AJ39))/AK24) -> 0 | AL39: =IF(AL24=0,0,(SUM($E$41:AK41)-SUM($E$39:AK39))/AL24) -> 0 | AM39: =IF(AM24=0,0,(SUM($E$41:AL41)-SUM($E$39:AL39))/AM24) -> 0 | AN39: =IF(AN24=0,0,(SUM($E$41:AM41)-SUM($E$39:AM39))/AN24) -> 0 | AO39: =IF(AO24=0,0,(SUM($E$41:AN41)-SUM($E$39:AN39))/AO24) -> 0 | AP39: =IF(AP24=0,0,(SUM($E$41:AO41)-SUM($E$39:AO39))/AP24) -> 0 | AQ39: =IF(AQ24=0,0,(SUM($E$41:AP41)-SUM($E$39:AP39))/AQ24) -> 0 | AR39: =IF(AR24=0,0,(SUM($E$41:AQ41)-SUM($E$39:AQ39))/AR24) -> 0 | AS39: =IF(AS24=0,0,(SUM($E$41:AR41)-SUM($E$39:AR39))/AS24) -> 0 | AT39: =IF(AT24=0,0,(SUM($E$41:AS41)-SUM($E$39:AS39))/AT24) -> 0 | AU39: =IF(AU24=0,0,(SUM($E$41:AT41)-SUM($E$39:AT39))/AU24) -> 0 | AV39: =IF(AV24=0,0,(SUM($E$41:AU41)-SUM($E$39:AU39))/AV24) -> 0 | AW39: =IF(AW24=0,0,(SUM($E$41:AV41)-SUM($E$39:AV39))/AW24) -> 0 | AX39: =IF(AX24=0,0,(SUM($E$41:AW41)-SUM($E$39:AW39))/AX24) -> 0 | AY39: =IF(AY24=0,0,(SUM($E$41:AX41)-SUM($E$39:AX39))/AY24) -> 0 | AZ39: =IF(AZ24=0,0,(SUM($E$41:AY41)-SUM($E$39:AY39))/AZ24) -> 0 | BA39: =IF(BA24=0,0,(SUM($E$41:AZ41)-SUM($E$39:AZ39))/BA24) -> 0 | BB39: =IF(BB24=0,0,(SUM($E$41:BA41)-SUM($E$39:BA39))/BB24) -> 0 | BC39: =IF(BC24=0,0,(SUM($E$41:BB41)-SUM($E$39:BB39))/BC24) -> 0 | BD39: =IF(BD24=0,0,(SUM($E$41:BC41)-SUM($E$39:BC39))/BD24) -> 0 | BE39: =IF(BE24=0,0,(SUM($E$41:BD41)-SUM($E$39:BD39))/BE24) -> 0 | BF39: =IF(BF24=0,0,(SUM($E$41:BE41)-SUM($E$39:BE39))/BF24) -> 0 | BG39: =IF(BG24=0,0,(SUM($E$41:BF41)-SUM($E$39:BF39))/BG24) -> 0 | BH39: =IF(BH24=0,0,(SUM($E$41:BG41)-SUM($E$39:BG39))/BH24) -> 0 | BI39: =IF(BI24=0,0,(SUM($E$41:BH41)-SUM($E$39:BH39))/BI24) -> 0 | BJ39: =IF(BJ24=0,0,(SUM($E$41:BI41)-SUM($E$39:BI39))/BJ24) -> 0 | BK39: =IF(BK24=0,0,(SUM($E$41:BJ41)-SUM($E$39:BJ39))/BK24) -> 0 | BL39: =IF(BL24=0,0,(SUM($E$41:BK41)-SUM($E$39:BK39))/BL24) -> 0 | BM39: =IF(BM24=0,0,(SUM($E$41:BL41)-SUM($E$39:BL39))/BM24) -> 0 | BN39: =IF(BN24=0,0,(SUM($E$41:BM41)-SUM($E$39:BM39))/BN24) -> 0 | BO39: =IF(BO24=0,0,(SUM($E$41:BN41)-SUM($E$39:BN39))/BO24) -> 0 | BP39: =IF(BP24=0,0,(SUM($E$41:BO41)-SUM($E$39:BO39))/BP24) -> 0 | BQ39: =IF(BQ24=0,0,(SUM($E$41:BP41)-SUM($E$39:BP39))/BQ24) -> 0 | BR39: =IF(BR24=0,0,(SUM($E$41:BQ41)-SUM($E$39:BQ39))/BR24) -> 0 | BS39: =IF(BS24=0,0,(SUM($E$41:BR41)-SUM($E$39:BR39))/BS24) -> 0 | BT39: =IF(BT24=0,0,(SUM($E$41:BS41)-SUM($E$39:BS39))/BT24) -> 0 | BU39: =IF(BU24=0,0,(SUM($E$41:BT41)-SUM($E$39:BT39))/BU24) -> 0 | BV39: =IF(BV24=0,0,(SUM($E$41:BU41)-SUM($E$39:BU39))/BV24) -> 0 | BW39: =IF(BW24=0,0,(SUM($E$41:BV41)-SUM($E$39:BV39))/BW24) -> 0 | BX39: =IF(BX24=0,0,(SUM($E$41:BW41)-SUM($E$39:BW39))/BX24) -> 0 | BY39: =IF(BY24=0,0,(SUM($E$41:BX41)-SUM($E$39:BX39))/BY24) -> 0 | BZ39: =IF(BZ24=0,0,(SUM($E$41:BY41)-SUM($E$39:BY39))/BZ24) -> 0 | CA39: =IF(CA24=0,0,(SUM($E$41:BZ41)-SUM($E$39:BZ39))/CA24) -> 0 | CB39: =IF(CB24=0,0,(SUM($E$41:CA41)-SUM($E$39:CA39))/CB24) -> 0 | CC39: =IF(CC24=0,0,(SUM($E$41:CB41)-SUM($E$39:CB39))/CC24) -> 0 | CD39: =IF(CD24=0,0,(SUM($E$41:CC41)-SUM($E$39:CC39))/CD24) -> 0 | CE39: =IF(CE24=0,0,(SUM($E$41:CD41)-SUM($E$39:CD39))/CE24) -> 0 | CF39: =IF(CF24=0,0,(SUM($E$41:CE41)-SUM($E$39:CE39))/CF24) -> 0 | CG39: =IF(CG24=0,0,(SUM($E$41:CF41)-SUM($E$39:CF39))/CG24) -> 0 | CH39: =IF(CH24=0,0,(SUM($E$41:CG41)-SUM($E$39:CG39))/CH24) -> 0
B40: Основна сума заборгованості / The main amount of debt | E40: =IF(AND($C$4="I півріччя",($E$4+$C$12)>E25),$C$10,0) -> 0 | F40: =IF(($E$4+$C$12)>=E25,$C$10,0) -> 0 | G40: =IF(($E$4+$C$12)>G25,$F$40-$F$39,0) -> 0 | H40: =IF(($E$4+$C$12)>G25,G40-G39,0) -> 0 | I40: =IF(($E$4+$C$12)>I25,$H$40-$H$39,0) -> 0 | J40: =IF(($E$4+$C$12)>I25,I40-I39,0) -> 0 | K40: =IF(($E$4+$C$12)>K25,J$40-J$39,0) -> 0 | L40: =IF(($E$4+$C$12)>K25,K40-K39,0) -> 0 | M40: =IF(($E$4+$C$12)>M25,L$40-L$39,0) -> 0 | N40: =IF(($E$4+$C$12)>M25,M40-M39,0) -> 0 | O40: =IF(($E$4+$C$12)>O25,N$40-N$39,0) -> 0 | P40: =IF(($E$4+$C$12)>O25,O40-O39,0) -> 0 | Q40: =IF(($E$4+$C$12)>Q25,P$40-P$39,0) -> 0 | R40: =IF(($E$4+$C$12)>Q25,Q40-Q39,0) -> 0 | S40: =IF(($E$4+$C$12)>S25,R$40-R$39,0) -> 0 | T40: =IF(($E$4+$C$12)>S25,S40-S39,0) -> 0 | U40: =IF(($E$4+$C$12)>U25,T$40-T$39,0) -> 0 | V40: =IF(($E$4+$C$12)>U25,U40-U39,0) -> 0 | W40: =IF(($E$4+$C$12)>W25,V$40-V$39,0) -> 0 | X40: =IF(($E$4+$C$12)>W25,W40-W39,0) -> 0 | Y40: =IF(($E$4+$C$12)>Y25,X$40-X$39,0) -> 0 | Z40: =IF(($E$4+$C$12)>Y25,Y40-Y39,0) -> 0 | AA40: =IF(($E$4+$C$12)>AA25,Z$40-Z$39,0) -> 0 | AB40: =IF(($E$4+$C$12)>AA25,AA40-AA39,0) -> 0 | AC40: =IF(($E$4+$C$12)>AC25,AB$40-AB$39,0) -> 0 | AD40: =IF(($E$4+$C$12)>AC25,AC40-AC39,0) -> 0 | AE40: =IF(($E$4+$C$12)>AE25,AD$40-AD$39,0) -> 0 | AF40: =IF(($E$4+$C$12)>AE25,AE40-AE39,0) -> 0 | AG40: =IF(($E$4+$C$12)>AG25,AF$40-AF$39,0) -> 0 | AH40: =IF(($E$4+$C$12)>AG25,AG40-AG39,0) -> 0 | AI40: =IF(($E$4+$C$12)>AI25,AH$40-AH$39,0) -> 0 | AJ40: =IF(($E$4+$C$12)>AI25,AI40-AI39,0) -> 0 | AK40: =IF(($E$4+$C$12)>AK25,AJ$40-AJ$39,0) -> 0 | AL40: =IF(($E$4+$C$12)>AK25,AK40-AK39,0) -> 0 | AM40: =IF(($E$4+$C$12)>AM25,AL$40-AL$39,0) -> 0 | AN40: =IF(($E$4+$C$12)>AM25,AM40-AM39,0) -> 0 | AO40: =IF(($E$4+$C$12)>AO25,AN$40-AN$39,0) -> 0 | AP40: =IF(($E$4+$C$12)>AO25,AO40-AO39,0) -> 0 | AQ40: =IF(($E$4+$C$12)>AQ25,AP$40-AP$39,0) -> 0 | AR40: =IF(($E$4+$C$12)>AQ25,AQ40-AQ39,0) -> 0 | AS40: =IF(($E$4+$C$12)>AS25,AR$40-AR$39,0) -> 0 | AT40: =IF(($E$4+$C$12)>AS25,AS40-AS39,0) -> 0 | AU40: =IF(($E$4+$C$12)>AU25,AT$40-AT$39,0) -> 0 | AV40: =IF(($E$4+$C$12)>AU25,AU40-AU39,0) -> 0 | AW40: =IF(($E$4+$C$12)>AW25,AV$40-AV$39,0) -> 0 | AX40: =IF(($E$4+$C$12)>AW25,AW40-AW39,0) -> 0 | AY40: =IF(($E$4+$C$12)>AY25,AX$40-AX$39,0) -> 0 | AZ40: =IF(($E$4+$C$12)>AY25,AY40-AY39,0) -> 0 | BA40: =IF(($E$4+$C$12)>BA25,AZ$40-AZ$39,0) -> 0 | BB40: =IF(($E$4+$C$12)>BA25,BA40-BA39,0) -> 0 | BC40: =IF(($E$4+$C$12)>BC25,BB$40-BB$39,0) -> 0 | BD40: =IF(($E$4+$C$12)>BC25,BC40-BC39,0) -> 0 | BE40: =IF(($E$4+$C$12)>BE25,BD$40-BD$39,0) -> 0 | BF40: =IF(($E$4+$C$12)>BE25,BE40-BE39,0) -> 0 | BG40: =IF(($E$4+$C$12)>BG25,BF$40-BF$39,0) -> 0 | BH40: =IF(($E$4+$C$12)>BG25,BG40-BG39,0) -> 0 | BI40: =IF(($E$4+$C$12)>BI25,BH$40-BH$39,0) -> 0 | BJ40: =IF(($E$4+$C$12)>BI25,BI40-BI39,0) -> 0 | BK40: =IF(($E$4+$C$12)>BK25,BJ$40-BJ$39,0) -> 0 | BL40: =IF(($E$4+$C$12)>BK25,BK40-BK39,0) -> 0 | BM40: =IF(($E$4+$C$12)>BM25,BL$40-BL$39,0) -> 0 | BN40: =IF(($E$4+$C$12)>BM25,BM40-BM39,0) -> 0 | BO40: =IF(($E$4+$C$12)>BO25,BN$40-BN$39,0) -> 0 | BP40: =IF(($E$4+$C$12)>BO25,BO40-BO39,0) -> 0 | BQ40: =IF(($E$4+$C$12)>BQ25,BP$40-BP$39,0) -> 0 | BR40: =IF(($E$4+$C$12)>BQ25,BQ40-BQ39,0) -> 0 | BS40: =IF(($E$4+$C$12)>BS25,BR$40-BR$39,0) -> 0 | BT40: =IF(($E$4+$C$12)>BS25,BS40-BS39,0) -> 0 | BU40: =IF(($E$4+$C$12)>BU25,BT$40-BT$39,0) -> 0 | BV40: =IF(($E$4+$C$12)>BU25,BU40-BU39,0) -> 0 | BW40: =IF(($E$4+$C$12)>BW25,BV$40-BV$39,0) -> 0 | BX40: =IF(($E$4+$C$12)>BW25,BW40-BW39,0) -> 0 | BY40: =IF(($E$4+$C$12)>BY25,BX$40-BX$39,0) -> 0 | BZ40: =IF(($E$4+$C$12)>BY25,BY40-BY39,0) -> 0 | CA40: =IF(($E$4+$C$12)>CA25,BZ$40-BZ$39,0) -> 0 | CB40: =IF(($E$4+$C$12)>CA25,CA40-CA39,0) -> 0 | CC40: =IF(($E$4+$C$12)>CC25,CB$40-CB$39,0) -> 0 | CD40: =IF(($E$4+$C$12)>CC25,CC40-CC39,0) -> 0 | CE40: =IF(($E$4+$C$12)>CE25,CD$40-CD$39,0) -> 0 | CF40: =IF(($E$4+$C$12)>CE25,CE40-CE39,0) -> 0 | CG40: =IF(($E$4+$C$12)>CG25,CF$40-CF$39,0) -> 0 | CH40: =IF(($E$4+$C$12)>CG25,CG40-CG39,0) -> 0
B41: Використання коштів / Use of funds
B42: Відсотки банку / Bank interest | E42: =(E41-E39)*J4/2 -> 0 | F42: 0 | G42: =IF(COUNTA($E$24:F24)<=($C$12*2),(SUM($E$41:G41)-SUM($E$39:F39))*($J$4/2),0) -> 0 | H42: =IF(COUNTA($E$24:G24)<=($C$12*2),(SUM($E$41:H41)-SUM($E$39:G39))*($J$4/2),0) -> 0 | I42: =IF(COUNTA($E$24:H24)<=($C$12*2),(SUM($E$41:I41)-SUM($E$39:H39))*($J$4/2),0) -> 0 | J42: =IF(COUNTA($E$24:I24)<=($C$12*2),(SUM($E$41:J41)-SUM($E$39:I39))*($J$4/2),0) -> 0 | K42: =IF(COUNTA($E$24:J24)<=($C$12*2),(SUM($E$41:K41)-SUM($E$39:J39))*($J$4/2),0) -> 0 | L42: =IF(COUNTA($E$24:K24)<=($C$12*2),(SUM($E$41:L41)-SUM($E$39:K39))*($J$4/2),0) -> 0 | M42: =IF(COUNTA($E$24:L24)<=($C$12*2),(SUM($E$41:M41)-SUM($E$39:L39))*($J$4/2),0) -> 0 | N42: =IF(COUNTA($E$24:M24)<=($C$12*2),(SUM($E$41:N41)-SUM($E$39:M39))*($J$4/2),0) -> 0 | O42: =IF(COUNTA($E$24:N24)<=($C$12*2),(SUM($E$41:O41)-SUM($E$39:N39))*($J$4/2),0) -> 0 | P42: =IF(COUNTA($E$24:O24)<=($C$12*2),(SUM($E$41:P41)-SUM($E$39:O39))*($J$4/2),0) -> 0 | Q42: =IF(COUNTA($E$24:P24)<=($C$12*2),(SUM($E$41:Q41)-SUM($E$39:P39))*($J$4/2),0) -> 0 | R42: =IF(COUNTA($E$24:Q24)<=($C$12*2),(SUM($E$41:R41)-SUM($E$39:Q39))*($J$4/2),0) -> 0 | S42: =IF(COUNTA($E$24:R24)<=($C$12*2),(SUM($E$41:S41)-SUM($E$39:R39))*($J$4/2),0) -> 0 | T42: =IF(COUNTA($E$24:S24)<=($C$12*2),(SUM($E$41:T41)-SUM($E$39:S39))*($J$4/2),0) -> 0 | U42: =IF(COUNTA($E$24:T24)<=($C$12*2),(SUM($E$41:U41)-SUM($E$39:T39))*($J$4/2),0) -> 0 | V42: =IF(COUNTA($E$24:U24)<=($C$12*2),(SUM($E$41:V41)-SUM($E$39:U39))*($J$4/2),0) -> 0 | W42: =IF(COUNTA($E$24:V24)<=($C$12*2),(SUM($E$41:W41)-SUM($E$39:V39))*($J$4/2),0) -> 0 | X42: =IF(COUNTA($E$24:W24)<=($C$12*2),(SUM($E$41:X41)-SUM($E$39:W39))*($J$4/2),0) -> 0 | Y42: =IF(COUNTA($E$24:X24)<=($C$12*2),(SUM($E$41:Y41)-SUM($E$39:X39))*($J$4/2),0) -> 0 | Z42: =IF(COUNTA($E$24:Y24)<=($C$12*2),(SUM($E$41:Z41)-SUM($E$39:Y39))*($J$4/2),0) -> 0 | AA42: =IF(COUNTA($E$24:Z24)<=($C$12*2),(SUM($E$41:AA41)-SUM($E$39:Z39))*($J$4/2),0) -> 0 | AB42: =IF(COUNTA($E$24:AA24)<=($C$12*2),(SUM($E$41:AB41)-SUM($E$39:AA39))*($J$4/2),0) -> 0 | AC42: =IF(COUNTA($E$24:AB24)<=($C$12*2),(SUM($E$41:AC41)-SUM($E$39:AB39))*($J$4/2),0) -> 0 | AD42: =IF(COUNTA($E$24:AC24)<=($C$12*2),(SUM($E$41:AD41)-SUM($E$39:AC39))*($J$4/2),0) -> 0 | AE42: =IF(COUNTA($E$24:AD24)<=($C$12*2),(SUM($E$41:AE41)-SUM($E$39:AD39))*($J$4/2),0) -> 0 | AF42: =IF(COUNTA($E$24:AE24)<=($C$12*2),(SUM($E$41:AF41)-SUM($E$39:AE39))*($J$4/2),0) -> 0 | AG42: =IF(COUNTA($E$24:AF24)<=($C$12*2),(SUM($E$41:AG41)-SUM($E$39:AF39))*($J$4/2),0) -> 0 | AH42: =IF(COUNTA($E$24:AG24)<=($C$12*2),(SUM($E$41:AH41)-SUM($E$39:AG39))*($J$4/2),0) -> 0 | AI42: =IF(COUNTA($E$24:AH24)<=($C$12*2),(SUM($E$41:AI41)-SUM($E$39:AH39))*($J$4/2),0) -> 0 | AJ42: =IF(COUNTA($E$24:AI24)<=($C$12*2),(SUM($E$41:AJ41)-SUM($E$39:AI39))*($J$4/2),0) -> 0 | AK42: =IF(COUNTA($E$24:AJ24)<=($C$12*2),(SUM($E$41:AK41)-SUM($E$39:AJ39))*($J$4/2),0) -> 0 | AL42: =IF(COUNTA($E$24:AK24)<=($C$12*2),(SUM($E$41:AL41)-SUM($E$39:AK39))*($J$4/2),0) -> 0 | AM42: =IF(COUNTA($E$24:AL24)<=($C$12*2),(SUM($E$41:AM41)-SUM($E$39:AL39))*($J$4/2),0) -> 0 | AN42: =IF(COUNTA($E$24:AM24)<=($C$12*2),(SUM($E$41:AN41)-SUM($E$39:AM39))*($J$4/2),0) -> 0 | AO42: =IF(COUNTA($E$24:AN24)<=($C$12*2),(SUM($E$41:AO41)-SUM($E$39:AN39))*($J$4/2),0) -> 0 | AP42: =IF(COUNTA($E$24:AO24)<=($C$12*2),(SUM($E$41:AP41)-SUM($E$39:AO39))*($J$4/2),0) -> 0 | AQ42: =IF(COUNTA($E$24:AP24)<=($C$12*2),(SUM($E$41:AQ41)-SUM($E$39:AP39))*($J$4/2),0) -> 0 | AR42: =IF(COUNTA($E$24:AQ24)<=($C$12*2),(SUM($E$41:AR41)-SUM($E$39:AQ39))*($J$4/2),0) -> 0 | AS42: =IF(COUNTA($E$24:AR24)<=($C$12*2),(SUM($E$41:AS41)-SUM($E$39:AR39))*($J$4/2),0) -> 0 | AT42: =IF(COUNTA($E$24:AS24)<=($C$12*2),(SUM($E$41:AT41)-SUM($E$39:AS39))*($J$4/2),0) -> 0 | AU42: =IF(COUNTA($E$24:AT24)<=($C$12*2),(SUM($E$41:AU41)-SUM($E$39:AT39))*($J$4/2),0) -> 0 | AV42: =IF(COUNTA($E$24:AU24)<=($C$12*2),(SUM($E$41:AV41)-SUM($E$39:AU39))*($J$4/2),0) -> 0 | AW42: =IF(COUNTA($E$24:AV24)<=($C$12*2),(SUM($E$41:AW41)-SUM($E$39:AV39))*($J$4/2),0) -> 0 | AX42: =IF(COUNTA($E$24:AW24)<=($C$12*2),(SUM($E$41:AX41)-SUM($E$39:AW39))*($J$4/2),0) -> 0 | AY42: =IF(COUNTA($E$24:AX24)<=($C$12*2),(SUM($E$41:AY41)-SUM($E$39:AX39))*($J$4/2),0) -> 0 | AZ42: =IF(COUNTA($E$24:AY24)<=($C$12*2),(SUM($E$41:AZ41)-SUM($E$39:AY39))*($J$4/2),0) -> 0 | BA42: =IF(COUNTA($E$24:AZ24)<=($C$12*2),(SUM($E$41:BA41)-SUM($E$39:AZ39))*($J$4/2),0) -> 0 | BB42: =IF(COUNTA($E$24:BA24)<=($C$12*2),(SUM($E$41:BB41)-SUM($E$39:BA39))*($J$4/2),0) -> 0 | BC42: =IF(COUNTA($E$24:BB24)<=($C$12*2),(SUM($E$41:BC41)-SUM($E$39:BB39))*($J$4/2),0) -> 0 | BD42: =IF(COUNTA($E$24:BC24)<=($C$12*2),(SUM($E$41:BD41)-SUM($E$39:BC39))*($J$4/2),0) -> 0 | BE42: =IF(COUNTA($E$24:BD24)<=($C$12*2),(SUM($E$41:BE41)-SUM($E$39:BD39))*($J$4/2),0) -> 0 | BF42: =IF(COUNTA($E$24:BE24)<=($C$12*2),(SUM($E$41:BF41)-SUM($E$39:BE39))*($J$4/2),0) -> 0 | BG42: =IF(COUNTA($E$24:BF24)<=($C$12*2),(SUM($E$41:BG41)-SUM($E$39:BF39))*($J$4/2),0) -> 0 | BH42: =IF(COUNTA($E$24:BG24)<=($C$12*2),(SUM($E$41:BH41)-SUM($E$39:BG39))*($J$4/2),0) -> 0 | BI42: =IF(COUNTA($E$24:BH24)<=($C$12*2),(SUM($E$41:BI41)-SUM($E$39:BH39))*($J$4/2),0) -> 0 | BJ42: =IF(COUNTA($E$24:BI24)<=($C$12*2),(SUM($E$41:BJ41)-SUM($E$39:BI39))*($J$4/2),0) -> 0 | BK42: =IF(COUNTA($E$24:BJ24)<=($C$12*2),(SUM($E$41:BK41)-SUM($E$39:BJ39))*($J$4/2),0) -> 0 | BL42: =IF(COUNTA($E$24:BK24)<=($C$12*2),(SUM($E$41:BL41)-SUM($E$39:BK39))*($J$4/2),0) -> 0 | BM42: =IF(COUNTA($E$24:BL24)<=($C$12*2),(SUM($E$41:BM41)-SUM($E$39:BL39))*($J$4/2),0) -> 0 | BN42: =IF(COUNTA($E$24:BM24)<=($C$12*2),(SUM($E$41:BN41)-SUM($E$39:BM39))*($J$4/2),0) -> 0 | BO42: =IF(COUNTA($E$24:BN24)<=($C$12*2),(SUM($E$41:BO41)-SUM($E$39:BN39))*($J$4/2),0) -> 0 | BP42: =IF(COUNTA($E$24:BO24)<=($C$12*2),(SUM($E$41:BP41)-SUM($E$39:BO39))*($J$4/2),0) -> 0 | BQ42: =IF(COUNTA($E$24:BP24)<=($C$12*2),(SUM($E$41:BQ41)-SUM($E$39:BP39))*($J$4/2),0) -> 0 | BR42: =IF(COUNTA($E$24:BQ24)<=($C$12*2),(SUM($E$41:BR41)-SUM($E$39:BQ39))*($J$4/2),0) -> 0 | BS42: =IF(COUNTA($E$24:BR24)<=($C$12*2),(SUM($E$41:BS41)-SUM($E$39:BR39))*($J$4/2),0) -> 0 | BT42: =IF(COUNTA($E$24:BS24)<=($C$12*2),(SUM($E$41:BT41)-SUM($E$39:BS39))*($J$4/2),0) -> 0 | BU42: =IF(COUNTA($E$24:BT24)<=($C$12*2),(SUM($E$41:BU41)-SUM($E$39:BT39))*($J$4/2),0) -> 0 | BV42: =IF(COUNTA($E$24:BU24)<=($C$12*2),(SUM($E$41:BV41)-SUM($E$39:BU39))*($J$4/2),0) -> 0 | BW42: =IF(COUNTA($E$24:BV24)<=($C$12*2),(SUM($E$41:BW41)-SUM($E$39:BV39))*($J$4/2),0) -> 0 | BX42: =IF(COUNTA($E$24:BW24)<=($C$12*2),(SUM($E$41:BX41)-SUM($E$39:BW39))*($J$4/2),0) -> 0 | BY42: =IF(COUNTA($E$24:BX24)<=($C$12*2),(SUM($E$41:BY41)-SUM($E$39:BX39))*($J$4/2),0) -> 0 | BZ42: =IF(COUNTA($E$24:BY24)<=($C$12*2),(SUM($E$41:BZ41)-SUM($E$39:BY39))*($J$4/2),0) -> 0 | CA42: =IF(COUNTA($E$24:BZ24)<=($C$12*2),(SUM($E$41:CA41)-SUM($E$39:BZ39))*($J$4/2),0) -> 0 | CB42: =IF(COUNTA($E$24:CA24)<=($C$12*2),(SUM($E$41:CB41)-SUM($E$39:CA39))*($J$4/2),0) -> 0 | CC42: =IF(COUNTA($E$24:CB24)<=($C$12*2),(SUM($E$41:CC41)-SUM($E$39:CB39))*($J$4/2),0) -> 0 | CD42: =IF(COUNTA($E$24:CC24)<=($C$12*2),(SUM($E$41:CD41)-SUM($E$39:CC39))*($J$4/2),0) -> 0 | CE42: =IF(COUNTA($E$24:CD24)<=($C$12*2),(SUM($E$41:CE41)-SUM($E$39:CD39))*($J$4/2),0) -> 0 | CF42: =IF(COUNTA($E$24:CE24)<=($C$12*2),(SUM($E$41:CF41)-SUM($E$39:CE39))*($J$4/2),0) -> 0 | CG42: =IF(COUNTA($E$24:CF24)<=($C$12*2),(SUM($E$41:CG41)-SUM($E$39:CF39))*($J$4/2),0) -> 0 | CH42: =IF(COUNTA($E$24:CG24)<=($C$12*2),(SUM($E$41:CH41)-SUM($E$39:CG39))*($J$4/2),0) -> 0
B43: Ставка дисконтування/Discount rate | E43: =1/((1+$J$6)^(1/12))^0 -> 1 | G43: =E43/(1+$J$6) -> 0.8658008658 | I43: =G43/(1+$J$6) -> 0.7496111392 | K43: =I43/(1+$J$6) -> 0.6490139734 | M43: =K43/(1+$J$6) -> 0.56191686 | O43: =M43/(1+$J$6) -> 0.4865081039 | Q43: =O43/(1+$J$6) -> 0.4212191376 | S43: =Q43/(1+$J$6) -> 0.364691894 | U43: =S43/(1+$J$6) -> 0.3157505576 | W43: =U43/(1+$J$6) -> 0.2733771061 | Y43: =W43/(1+$J$6) -> 0.2366901352 | AA43: =Y43/(1+$J$6) -> 0.204926524 | AC43: =AA43/(1+$J$6) -> 0.1774255619 | AE43: =AC43/(1+$J$6) -> 0.1536152051 | AG43: =AE43/(1+$J$6) -> 0.1330001776 | AI43: =AG43/(1+$J$6) -> 0.1151516689 | AK43: =AI43/(1+$J$6) -> 0.09969841463 | AM43: =AK43/(1+$J$6) -> 0.0863189737 | AO43: =AM43/(1+$J$6) -> 0.07473504217 | AQ43: =AO43/(1+$J$6) -> 0.06470566421 | AS43: =AQ43/(1+$J$6) -> 0.0560222201 | AU43: =AS43/(1+$J$6) -> 0.04850408667 | AW43: =AU43/(1+$J$6) -> 0.04199488023 | AY43: =AW43/(1+$J$6) -> 0.03635920366 | BA43: =AY43/(1+$J$6) -> 0.03147983001 | BC43: =BA43/(1+$J$6) -> 0.02725526408 | BE43: =BC43/(1+$J$6) -> 0.02359763124 | BG43: =BE43/(1+$J$6) -> 0.02043084956 | BI43: =BG43/(1+$J$6) -> 0.01768904723 | BK43: =BI43/(1+$J$6) -> 0.01531519241 | BM43: =BK43/(1+$J$6) -> 0.01325990685 | BO43: =BM43/(1+$J$6) -> 0.01148043883 | BQ43: =BO43/(1+$J$6) -> 0.009939773879 | BS43: =BQ43/(1+$J$6) -> 0.00860586483 | BU43: =BS43/(1+$J$6) -> 0.007450965221 | BW43: =BU43/(1+$J$6) -> 0.006451052139 | BY43: =BW43/(1+$J$6) -> 0.005585326528 | CA43: =BY43/(1+$J$6) -> 0.004835780543 | CC43: =CA43/(1+$J$6) -> 0.004186822981 | CE43: =CC43/(1+$J$6) -> 0.003624954962 | CG43: =CE43/(1+$J$6) -> 0.003138489145
B44: Дискантоване погашення/Discounted repayment | E44: =(E39+E42)/E43 -> 0 | F44: =(F39+F42)/E43 -> 0 | G44: =(G39+G42)/G43 -> 0 | H44: =(H39+H42)/G43 -> 0 | I44: =(I39+I42)/I43 -> 0 | J44: =(J39+J42)/I43 -> 0 | K44: =(K39+K42)/K43 -> 0 | L44: =(L39+L42)/K43 -> 0 | M44: =(M39+M42)/M43 -> 0 | N44: =(N39+N42)/M43 -> 0 | O44: =(O39+O42)/O43 -> 0 | P44: =(P39+P42)/O43 -> 0 | Q44: =(Q39+Q42)/Q43 -> 0 | R44: =(R39+R42)/Q43 -> 0 | S44: =(S39+S42)/S43 -> 0 | T44: =(T39+T42)/S43 -> 0 | U44: =(U39+U42)/U43 -> 0 | V44: =(V39+V42)/U43 -> 0 | W44: =(W39+W42)/W43 -> 0 | X44: =(X39+X42)/W43 -> 0 | Y44: =(Y39+Y42)/Y43 -> 0 | Z44: =(Z39+Z42)/Y43 -> 0 | AA44: =(AA39+AA42)/AA43 -> 0 | AB44: =(AB39+AB42)/AA43 -> 0 | AC44: =(AC39+AC42)/AC43 -> 0 | AD44: =(AD39+AD42)/AC43 -> 0 | AE44: =(AE39+AE42)/AE43 -> 0 | AF44: =(AF39+AF42)/AE43 -> 0 | AG44: =(AG39+AG42)/AG43 -> 0 | AH44: =(AH39+AH42)/AG43 -> 0 | AI44: =(AI39+AI42)/AI43 -> 0 | AJ44: =(AJ39+AJ42)/AI43 -> 0 | AK44: =(AK39+AK42)/AK43 -> 0 | AL44: =(AL39+AL42)/AK43 -> 0 | AM44: =(AM39+AM42)/AM43 -> 0 | AN44: =(AN39+AN42)/AM43 -> 0 | AO44: =(AO39+AO42)/AO43 -> 0 | AP44: =(AP39+AP42)/AO43 -> 0 | AQ44: =(AQ39+AQ42)/AQ43 -> 0 | AR44: =(AR39+AR42)/AQ43 -> 0 | AS44: =(AS39+AS42)/AS43 -> 0 | AT44: =(AT39+AT42)/AS43 -> 0 | AU44: =(AU39+AU42)/AU43 -> 0 | AV44: =(AV39+AV42)/AU43 -> 0 | AW44: =(AW39+AW42)/AW43 -> 0 | AX44: =(AX39+AX42)/AW43 -> 0 | AY44: =(AY39+AY42)/AY43 -> 0 | AZ44: =(AZ39+AZ42)/AY43 -> 0 | BA44: =(BA39+BA42)/BA43 -> 0 | BB44: =(BB39+BB42)/BA43 -> 0 | BC44: =(BC39+BC42)/BC43 -> 0 | BD44: =(BD39+BD42)/BC43 -> 0 | BE44: =(BE39+BE42)/BE43 -> 0 | BF44: =(BF39+BF42)/BE43 -> 0 | BG44: =(BG39+BG42)/BG43 -> 0 | BH44: =(BH39+BH42)/BG43 -> 0 | BI44: =(BI39+BI42)/BI43 -> 0 | BJ44: =(BJ39+BJ42)/BI43 -> 0 | BK44: =(BK39+BK42)/BK43 -> 0 | BL44: =(BL39+BL42)/BK43 -> 0 | BM44: =(BM39+BM42)/BM43 -> 0 | BN44: =(BN39+BN42)/BM43 -> 0 | BO44: =(BO39+BO42)/BO43 -> 0 | BP44: =(BP39+BP42)/BO43 -> 0 | BQ44: =(BQ39+BQ42)/BQ43 -> 0 | BR44: =(BR39+BR42)/BQ43 -> 0 | BS44: =(BS39+BS42)/BS43 -> 0 | BT44: =(BT39+BT42)/BS43 -> 0 | BU44: =(BU39+BU42)/BU43 -> 0 | BV44: =(BV39+BV42)/BU43 -> 0 | BW44: =(BW39+BW42)/BW43 -> 0 | BX44: =(BX39+BX42)/BW43 -> 0 | BY44: =(BY39+BY42)/BY43 -> 0 | BZ44: =(BZ39+BZ42)/BY43 -> 0 | CA44: =(CA39+CA42)/CA43 -> 0 | CB44: =(CB39+CB42)/CA43 -> 0 | CC44: =(CC39+CC42)/CC43 -> 0 | CD44: =(CD39+CD42)/CC43 -> 0 | CE44: =(CE39+CE42)/CE43 -> 0 | CF44: =(CF39+CF42)/CE43 -> 0 | CG44: =(CG39+CG42)/CG43 -> 0 | CH44: =(CH39+CH42)/CG43 -> 0
B45: Погашення / Repayment | E45: =E39+F39 -> 0 | G45: =G39+H39 -> 0 | I45: =I39+J39 -> 0 | K45: =K39+L39 -> 0 | M45: =M39+N39 -> 0 | O45: =O39+P39 -> 0 | Q45: =Q39+R39 -> 0 | S45: =S39+T39 -> 0 | U45: =U39+V39 -> 0 | W45: =W39+X39 -> 0 | Y45: =Y39+Z39 -> 0 | AA45: =AA39+AB39 -> 0 | AC45: =AC39+AD39 -> 0 | AE45: =AE39+AF39 -> 0 | AG45: =AG39+AH39 -> 0 | AI45: =AI39+AJ39 -> 0 | AK45: =AK39+AL39 -> 0 | AM45: =AM39+AN39 -> 0 | AO45: =AO39+AP39 -> 0 | AQ45: =AQ39+AR39 -> 0 | AS45: =AS39+AT39 -> 0 | AU45: =AU39+AV39 -> 0 | AW45: =AW39+AX39 -> 0 | AY45: =AY39+AZ39 -> 0 | BA45: =BA39+BB39 -> 0 | BC45: =BC39+BD39 -> 0 | BE45: =BE39+BF39 -> 0 | BG45: =BG39+BH39 -> 0 | BI45: =BI39+BJ39 -> 0 | BK45: =BK39+BL39 -> 0 | BM45: =BM39+BN39 -> 0 | BO45: =BO39+BP39 -> 0 | BQ45: =BQ39+BR39 -> 0 | BS45: =BS39+BT39 -> 0 | BU45: =BU39+BV39 -> 0 | BW45: =BW39+BX39 -> 0 | BY45: =BY39+BZ39 -> 0 | CA45: =CA39+CB39 -> 0 | CC45: =CC39+CD39 -> 0 | CE45: =CE39+CF39 -> 0 | CG45: =CG39+CH39 -> 0
B47: Період | E47: =IF(E48=0,"",0) ->  | F47: =COUNT(E47) -> 0 | G47: =COUNT($E47:F$47) -> 1 | H47: =COUNT($E47:G$47) -> 2 | I47: =COUNT($E47:H$47) -> 3 | J47: =COUNT($E47:I$47) -> 4 | K47: =COUNT($E47:J$47) -> 5 | L47: =COUNT($E47:K$47) -> 6 | M47: =COUNT($E47:L$47) -> 7 | N47: =COUNT($E47:M$47) -> 8 | O47: =COUNT($E47:N$47) -> 9 | P47: =COUNT($E47:O$47) -> 10 | Q47: =COUNT($E47:P$47) -> 11 | R47: =COUNT($E47:Q$47) -> 12 | S47: =COUNT($E47:R$47) -> 13 | T47: =COUNT($E47:S$47) -> 14 | U47: =COUNT($E47:T$47) -> 15 | V47: =COUNT($E47:U$47) -> 16 | W47: =COUNT($E47:V$47) -> 17 | X47: =COUNT($E47:W$47) -> 18 | Y47: =COUNT($E47:X$47) -> 19 | Z47: =COUNT($E47:Y$47) -> 20 | AA47: =COUNT($E47:Z$47) -> 21 | AB47: =COUNT($E47:AA$47) -> 22 | AC47: =COUNT($E47:AB$47) -> 23 | AD47: =COUNT($E47:AC$47) -> 24 | AE47: =COUNT($E47:AD$47) -> 25 | AF47: =COUNT($E47:AE$47) -> 26 | AG47: =COUNT($E47:AF$47) -> 27 | AH47: =COUNT($E47:AG$47) -> 28 | AI47: =COUNT($E47:AH$47) -> 29 | AJ47: =COUNT($E47:AI$47) -> 30 | AK47: =COUNT($E47:AJ$47) -> 31 | AL47: =COUNT($E47:AK$47) -> 32 | AM47: =COUNT($E47:AL$47) -> 33 | AN47: =COUNT($E47:AM$47) -> 34 | AO47: =COUNT($E47:AN$47) -> 35 | AP47: =COUNT($E47:AO$47) -> 36 | AQ47: =COUNT($E47:AP$47) -> 37 | AR47: =COUNT($E47:AQ$47) -> 38 | AS47: =COUNT($E47:AR$47) -> 39 | AT47: =COUNT($E47:AS$47) -> 40 | AU47: =COUNT($E47:AT$47) -> 41 | AV47: =COUNT($E47:AU$47) -> 42 | AW47: =COUNT($E47:AV$47) -> 43 | AX47: =COUNT($E47:AW$47) -> 44 | AY47: =COUNT($E47:AX$47) -> 45 | AZ47: =COUNT($E47:AY$47) -> 46 | BA47: =COUNT($E47:AZ$47) -> 47 | BB47: =COUNT($E47:BA$47) -> 48 | BC47: =COUNT($E47:BB$47) -> 49 | BD47: =COUNT($E47:BC$47) -> 50 | BE47: =COUNT($E47:BD$47) -> 51 | BF47: =COUNT($E47:BE$47) -> 52 | BG47: =COUNT($E47:BF$47) -> 53 | BH47: =COUNT($E47:BG$47) -> 54 | BI47: =COUNT($E47:BH$47) -> 55 | BJ47: =COUNT($E47:BI$47) -> 56 | BK47: =COUNT($E47:BJ$47) -> 57 | BL47: =COUNT($E47:BK$47) -> 58 | BM47: =COUNT($E47:BL$47) -> 59 | BN47: =COUNT($E47:BM$47) -> 60 | BO47: =COUNT($E47:BN$47) -> 61 | BP47: =COUNT($E47:BO$47) -> 62 | BQ47: =COUNT($E47:BP$47) -> 63 | BR47: =COUNT($E47:BQ$47) -> 64 | BS47: =COUNT($E47:BR$47) -> 65 | BT47: =COUNT($E47:BS$47) -> 66 | BU47: =COUNT($E47:BT$47) -> 67 | BV47: =COUNT($E47:BU$47) -> 68 | BW47: =COUNT($E47:BV$47) -> 69 | BX47: =COUNT($E47:BW$47) -> 70 | BY47: =COUNT($E47:BX$47) -> 71 | BZ47: =COUNT($E47:BY$47) -> 72 | CA47: =COUNT($E47:BZ$47) -> 73 | CB47: =COUNT($E47:CA$47) -> 74 | CC47: =COUNT($E47:CB$47) -> 75 | CD47: =COUNT($E47:CC$47) -> 76 | CE47: =COUNT($E47:CD$47) -> 77 | CF47: =COUNT($E47:CE$47) -> 78 | CG47: =COUNT($E47:CF$47) -> 79 | CH47: =COUNT($E47:CG$47) -> 80
B48: F(x) | E48: =IF(E28=0,0,-$C$8+$J$18) -> 0 | F48: =IF(E28>0,F27+F31+F32+F33,-C8+J18) -> -4278.81 | G48: =G27+G31+G32+G33 -> 689.3646378 | H48: 665.5934434 | I48: 641.822249 | J48: 618.0510546 | K48: 594.2798602 | L48: 570.5086658 | M48: 546.7374714 | N48: 522.966277 | O48: 499.1950826 | P48: 0 | Q48: 0 | R48: 0 | S48: 0 | T48: 0 | U48: 0 | V48: 0 | W48: 0 | X48: 0 | Y48: 0 | Z48: 0 | AA48: 0 | AB48: 0 | AC48: 0 | AD48: 0 | AE48: 0 | AF48: 0 | AG48: 0 | AH48: 0 | AI48: 0 | AJ48: 0 | AK48: 0 | AL48: 0 | AM48: =AM27+AM31+AM32+AM33 -> 0 | AN48: 0 | AO48: 0 | AP48: 0 | AQ48: 0 | AR48: 0 | AS48: 0 | AT48: 0 | AU48: 0 | AV48: 0 | AW48: 0 | AX48: 0 | AY48: 0 | AZ48: 0 | BA48: 0 | BB48: 0 | BC48: 0 | BD48: 0 | BE48: 0 | BF48: 0 | BG48: 0 | BH48: 0 | BI48: 0 | BJ48: 0 | BK48: 0 | BL48: 0 | BM48: 0 | BN48: 0 | BO48: 0 | BP48: 0 | BQ48: 0 | BR48: 0 | BS48: =BS27+BS31+BS32+BS33 -> 0 | BT48: 0 | BU48: 0 | BV48: 0 | BW48: 0 | BX48: 0 | BY48: 0 | BZ48: 0 | CA48: 0 | CB48: 0 | CC48: 0 | CD48: 0 | CE48: 0 | CF48: 0 | CG48: 0 | CH48: 0
B49: F(x') | E49: =F47*F48 -> 0 | F49: =G47*G48 -> 689.3646378 | G49: =H47*H48 -> 1331.186887 | H49: 1925.466747 | I49: 2472.204218 | J49: 2971.399301 | K49: 3423.051995 | L49: 3827.1623 | M49: 4183.730216 | N49: 4492.755743 | O49: 0 | P49: 0 | Q49: 0 | R49: 0 | S49: 0 | T49: 0 | U49: 0 | V49: 0 | W49: 0 | X49: 0 | Y49: 0 | Z49: 0 | AA49: 0 | AB49: 0 | AC49: 0 | AD49: 0 | AE49: 0 | AF49: 0 | AG49: 0 | AH49: 0 | AI49: 0 | AJ49: 0 | AK49: 0 | AL49: 0 | AM49: 0 | AN49: 0 | AO49: 0 | AP49: 0 | AQ49: 0 | AR49: 0 | AS49: 0 | AT49: 0 | AU49: 0 | AV49: 0 | AW49: 0 | AX49: 0 | AY49: 0 | AZ49: 0 | BA49: 0 | BB49: 0 | BC49: 0 | BD49: 0 | BE49: 0 | BF49: 0 | BG49: 0 | BH49: 0 | BI49: 0 | BJ49: 0 | BK49: 0 | BL49: 0 | BM49: 0 | BN49: 0 | BO49: 0 | BP49: 0 | BQ49: 0 | BR49: 0 | BS49: =BT47*BT48 -> 0 | BT49: 0 | BU49: 0 | BV49: 0 | BW49: 0 | BX49: 0 | BY49: 0 | BZ49: 0 | CA49: 0 | CB49: 0 | CC49: 0 | CD49: 0 | CE49: 0 | CF49: 0 | CG49: 0
B50: X(k) | E50: =IF(E48<0,1,0) -> 0 | F50: =IF(E50=0,1,E50-SERIESSUM(E50,0,1,E48:CH48)/SERIESSUM(E50,0,1,E49:CG49)) -> 1 | G50: =IF(F50=0,1,F50-SERIESSUM(F50,0,1,$E$48:$CI$48)/SERIESSUM(F50,0,1,$E$49:$CH$49)) -> 0.9577462816 | H50: =IF(G50=0,1,G50-SERIESSUM(G50,0,1,$E$48:$CI$48)/SERIESSUM(G50,0,1,$E$49:$CH$49)) -> 0.9524536876 | I50: 0.9523807143 | J50: 0.9523807006 | K50: 0.9523807006 | L50: 0.9523807006 | M50: 0.9523807006 | N50: 0.9523807006 | O50: 0.9523807006 | P50: 0.9523807006 | Q50: 0.9523807006 | R50: 0.9523807006 | S50: 0.9523807006 | T50: 0.9523807006 | U50: 0.9523807006 | V50: 0.9523807006 | W50: 0.9523807006 | X50: 0.9523807006 | Y50: 0.9523807006 | Z50: 0.9523807006 | AA50: 0.9523807006 | AB50: 0.9523807006 | AC50: 0.9523807006 | AD50: 0.9523807006 | AE50: 0.9523807006 | AF50: 0.9523807006 | AG50: 0.9523807006 | AH50: 0.9523807006 | AI50: 0.9523807006 | AJ50: 0.9523807006 | AK50: 0.9523807006 | AL50: 0.9523807006 | AM50: 0.9523807006 | AN50: 0.9523807006 | AO50: 0.9523807006 | AP50: 0.9523807006 | AQ50: 0.9523807006 | AR50: 0.9523807006 | AS50: 0.9523807006 | AT50: 0.9523807006 | AU50: 0.9523807006 | AV50: 0.9523807006 | AW50: 0.9523807006 | AX50: 0.9523807006 | AY50: 0.9523807006 | AZ50: 0.9523807006 | BA50: 0.9523807006 | BB50: 0.9523807006 | BC50: 0.9523807006 | BD50: 0.9523807006 | BE50: 0.9523807006 | BF50: 0.9523807006 | BG50: 0.9523807006 | BH50: 0.9523807006 | BI50: 0.9523807006 | BJ50: 0.9523807006 | BK50: 0.9523807006 | BL50: 0.9523807006 | BM50: 0.9523807006 | BN50: 0.9523807006 | BO50: 0.9523807006 | BP50: 0.9523807006 | BQ50: 0.9523807006 | BR50: 0.9523807006 | BS50: 0.9523807006 | BT50: =IF(BS50=0,1,BS50-SERIESSUM(BS50,0,1,$E$48:$CI$48)/SERIESSUM(BS50,0,1,$E$49:$CH$49)) -> 0.9523807006 | BU50: 0.9523807006 | BV50: 0.9523807006 | BW50: 0.9523807006 | BX50: 0.9523807006 | BY50: 0.9523807006 | BZ50: 0.9523807006 | CA50: 0.9523807006 | CB50: 0.9523807006 | CC50: 0.9523807006 | CD50: 0.9523807006 | CE50: 0.9523807006 | CF50: 0.9523807006 | CG50: 0.9523807006
B51: i | E51: 0 | F51: =IF(E50=0,0,POWER(F50,-2)-1) -> 0 | G51: =POWER(G50,-2)-1 -> 0.09018210994 | H51: 0.1023316191 | I51: 0.1025005513 | J51: 0.1025005828 | K51: 0.1025005828 | L51: 0.1025005828 | M51: 0.1025005828 | N51: 0.1025005828 | O51: 0.1025005828 | P51: 0.1025005828 | Q51: 0.1025005828 | R51: 0.1025005828 | S51: 0.1025005828 | T51: 0.1025005828 | U51: 0.1025005828 | V51: 0.1025005828 | W51: 0.1025005828 | X51: 0.1025005828 | Y51: 0.1025005828 | Z51: 0.1025005828 | AA51: 0.1025005828 | AB51: 0.1025005828 | AC51: 0.1025005828 | AD51: 0.1025005828 | AE51: 0.1025005828 | AF51: 0.1025005828 | AG51: 0.1025005828 | AH51: 0.1025005828 | AI51: 0.1025005828 | AJ51: 0.1025005828 | AK51: 0.1025005828 | AL51: 0.1025005828 | AM51: 0.1025005828 | AN51: 0.1025005828 | AO51: 0.1025005828 | AP51: 0.1025005828 | AQ51: 0.1025005828 | AR51: 0.1025005828 | AS51: 0.1025005828 | AT51: 0.1025005828 | AU51: 0.1025005828 | AV51: 0.1025005828 | AW51: 0.1025005828 | AX51: 0.1025005828 | AY51: 0.1025005828 | AZ51: 0.1025005828 | BA51: 0.1025005828 | BB51: 0.1025005828 | BC51: 0.1025005828 | BD51: 0.1025005828 | BE51: 0.1025005828 | BF51: 0.1025005828 | BG51: 0.1025005828 | BH51: 0.1025005828 | BI51: 0.1025005828 | BJ51: 0.1025005828 | BK51: 0.1025005828 | BL51: 0.1025005828 | BM51: 0.1025005828 | BN51: 0.1025005828 | BO51: 0.1025005828 | BP51: 0.1025005828 | BQ51: 0.1025005828 | BR51: 0.1025005828 | BS51: =POWER(BS50,-2)-1 -> 0.1025005828 | BT51: 0.1025005828 | BU51: 0.1025005828 | BV51: 0.1025005828 | BW51: 0.1025005828 | BX51: 0.1025005828 | BY51: 0.1025005828 | BZ51: 0.1025005828 | CA51: 0.1025005828 | CB51: 0.1025005828 | CC51: 0.1025005828 | CD51: 0.1025005828 | CE51: 0.1025005828 | CF51: 0.1025005828 | CG51: 0.1025005828
B53: I півріччя | C53: I half a year
B54: ІІ півріччя | C54: II half a year

Sheet Амортизація_Depreciation
A2: РОЗРАХУНОК АМОРТИЗАЦІЇ ОСНОВНИХ ЗАСОБІВ / CALCULATION OF DEPRECIATION OF FIXED ASSETS | D2: =CONCATENATE(Головна_Summary!A2,"/ ",Головна_Summary!K2) -> Будівництво СЕС 10 МВт/ Project name | AJ2: =Головна_Summary!AD5 -> тис.US$/ ths.US$
B4: Група основних засобів / Group of fixed assets | C4: Мін. термін користування | D4: Термін корисного використання / Useful life | E4: Доля в проекті / Project share | F4: =CFO!H4 -> 2024 | G4: =CFO!I4 -> 2025 | H4: =CFO!J4 -> 2026 | I4: =CFO!K4 -> 2027 | J4: =CFO!L4 -> 2028 | K4: =CFO!M4 -> 2029 | L4: =CFO!N4 -> 2030 | M4: =CFO!O4 -> 2031 | N4: =CFO!P4 -> 2032 | O4: =CFO!Q4 -> 2033 | P4: =CFO!R4 -> 2034 | Q4: =CFO!S4 -> 2035 | R4: =CFO!T4 -> 2036 | S4: =CFO!U4 -> 2037 | T4: =CFO!V4 -> 2038 | U4: =CFO!W4 -> 2039 | V4: =CFO!X4 -> 2040 | W4: =CFO!Y4 -> 2041 | X4: =CFO!Z4 -> 2042 | Y4: =CFO!AA4 -> 2043 | Z4: =CFO!AB4 -> 2044 | AA4: =CFO!AC4 -> 2045 | AB4: =CFO!AD4 -> 2046 | AC4: =CFO!AE4 -> 2047 | AD4: =CFO!AF4 -> 2048 | AE4: =CFO!AG4 -> 2049 | AF4: =CFO!AH4 -> 0 | AG4: =CFO!AI4 -> 0 | AH4: =CFO!AJ4 -> 0 | AI4: =CFO!AK4 -> 0 | AJ4: ='Грошові потоки _ Cash flows'!AM22 -> Разом / Total
B5: Первісна вартість (введення об'єкта в експлуатацію) / Initial cost | E5: =E6+E19 -> 1 | F5: =F6+F19 -> 0 | G5: 4278.814994 | H5: 0 | I5: 0 | J5: 0 | K5: 0 | L5: 0 | M5: 0 | N5: 0 | O5: 0 | P5: 0 | Q5: 0 | R5: 0 | S5: 0 | T5: 0 | U5: 0 | V5: 0 | W5: 0 | X5: 0 | Y5: 0 | Z5: 0 | AA5: 0 | AB5: 0 | AC5: 0 | AD5: 0 | AE5: 0 | AF5: 0 | AG5: 0 | AH5: 0 | AI5: 0 | AJ5: =SUM(F5:AI5) -> 4278.814994
B6: Основні засоби: / fixed assets : | E6: =SUM(E7:E18) -> 1 | F6: =SUM(F7:F18) -> 0 | G6: 4278.814994 | H6: 0 | I6: 0 | J6: 0 | K6: 0 | L6: 0 | M6: 0 | N6: 0 | O6: 0 | P6: 0 | Q6: 0 | R6: 0 | S6: 0 | T6: 0 | U6: 0 | V6: 0 | W6: 0 | X6: 0 | Y6: 0 | Z6: 0 | AA6: 0 | AB6: 0 | AC6: 0 | AD6: 0 | AE6: 0 | AF6: 0 | AG6: 0 | AH6: 0 | AI6: 0 | AJ6: 4278.814994
B7: Група 1 – земельні ділянки / Group 1 -ground sections | C7: — | D7: =IF('Грошові потоки _ Cash flows'!E15>Амортизація_Depreciation!C7,'Грошові потоки _ Cash flows'!E15,Амортизація_Depreciation!C7) -> — | F7: ='Фінансування_Financing (CFI)'!AD$32*Амортизація_Depreciation!$E7 -> 0 | G7: ='Фінансування_Financing (CFI)'!AE$32*Амортизація_Depreciation!$E7 -> 0 | H7: ='Фінансування_Financing (CFI)'!AF$32*Амортизація_Depreciation!$E7 -> 0 | I7: ='Фінансування_Financing (CFI)'!AG$32*Амортизація_Depreciation!$E7 -> 0 | J7: ='Фінансування_Financing (CFI)'!AH$32*Амортизація_Depreciation!$E7 -> 0 | K7: ='Фінансування_Financing (CFI)'!AI$32*Амортизація_Depreciation!$E7 -> 0 | L7: ='Фінансування_Financing (CFI)'!AJ$32*Амортизація_Depreciation!$E7 -> 0 | M7: ='Фінансування_Financing (CFI)'!AK$32*Амортизація_Depreciation!$E7 -> 0 | N7: ='Фінансування_Financing (CFI)'!AL$32*Амортизація_Depreciation!$E7 -> 0 | O7: ='Фінансування_Financing (CFI)'!AM$32*Амортизація_Depreciation!$E7 -> 0 | P7: ='Фінансування_Financing (CFI)'!AN$32*Амортизація_Depreciation!$E7 -> 0 | Q7: ='Фінансування_Financing (CFI)'!AO$32*Амортизація_Depreciation!$E7 -> 0 | R7: ='Фінансування_Financing (CFI)'!AP$32*Амортизація_Depreciation!$E7 -> 0 | S7: ='Фінансування_Financing (CFI)'!AQ$32*Амортизація_Depreciation!$E7 -> 0 | T7: ='Фінансування_Financing (CFI)'!AR$32*Амортизація_Depreciation!$E7 -> 0 | U7: ='Фінансування_Financing (CFI)'!AS$32*Амортизація_Depreciation!$E7 -> 0 | V7: ='Фінансування_Financing (CFI)'!AT$32*Амортизація_Depreciation!$E7 -> 0 | W7: ='Фінансування_Financing (CFI)'!AU$32*Амортизація_Depreciation!$E7 -> 0 | X7: ='Фінансування_Financing (CFI)'!AV$32*Амортизація_Depreciation!$E7 -> 0 | Y7: ='Фінансування_Financing (CFI)'!AW$32*Амортизація_Depreciation!$E7 -> 0 | Z7: ='Фінансування_Financing (CFI)'!AX$32*Амортизація_Depreciation!$E7 -> 0 | AA7: ='Фінансування_Financing (CFI)'!AY$32*Амортизація_Depreciation!$E7 -> 0 | AB7: ='Фінансування_Financing (CFI)'!AZ$32*Амортизація_Depreciation!$E7 -> 0 | AC7: ='Фінансування_Financing (CFI)'!BA$32*Амортизація_Depreciation!$E7 -> 0 | AD7: ='Фінансування_Financing (CFI)'!BB$32*Амортизація_Depreciation!$E7 -> 0 | AE7: ='Фінансування_Financing (CFI)'!BC$32*Амортизація_Depreciation!$E7 -> 0 | AF7: ='Фінансування_Financing (CFI)'!BD$32*Амортизація_Depreciation!$E7 -> 0 | AG7: ='Фінансування_Financing (CFI)'!BE$32*Амортизація_Depreciation!$E7 -> 0 | AH7: ='Фінансування_Financing (CFI)'!BF$32*Амортизація_Depreciation!$E7 -> 0 | AI7: ='Фінансування_Financing (CFI)'!BG$32*Амортизація_Depreciation!$E7 -> 0 | AJ7: 0
B8: Група 2 – капітальні витрати на поліпшення землі, не пов'язані з будівництвом / CAPEX on ground improvement not related to construction | C8: 15 | D8: =IF('Грошові потоки _ Cash flows'!$E$15>Амортизація_Depreciation!C8, 'Грошові потоки _ Cash flows'!$E$15,Амортизація_Depreciation!C8) -> 25 | F8: ='Фінансування_Financing (CFI)'!AD$32*Амортизація_Depreciation!$E8 -> 0 | G8: ='Фінансування_Financing (CFI)'!AE$32*Амортизація_Depreciation!$E8 -> 0 | H8: ='Фінансування_Financing (CFI)'!AF$32*Амортизація_Depreciation!$E8 -> 0 | I8: ='Фінансування_Financing (CFI)'!AG$32*Амортизація_Depreciation!$E8 -> 0 | J8: ='Фінансування_Financing (CFI)'!AH$32*Амортизація_Depreciation!$E8 -> 0 | K8: ='Фінансування_Financing (CFI)'!AI$32*Амортизація_Depreciation!$E8 -> 0 | L8: ='Фінансування_Financing (CFI)'!AJ$32*Амортизація_Depreciation!$E8 -> 0 | M8: ='Фінансування_Financing (CFI)'!AK$32*Амортизація_Depreciation!$E8 -> 0 | N8: ='Фінансування_Financing (CFI)'!AL$32*Амортизація_Depreciation!$E8 -> 0 | O8: ='Фінансування_Financing (CFI)'!AM$32*Амортизація_Depreciation!$E8 -> 0 | P8: ='Фінансування_Financing (CFI)'!AN$32*Амортизація_Depreciation!$E8 -> 0 | Q8: ='Фінансування_Financing (CFI)'!AO$32*Амортизація_Depreciation!$E8 -> 0 | R8: ='Фінансування_Financing (CFI)'!AP$32*Амортизація_Depreciation!$E8 -> 0 | S8: ='Фінансування_Financing (CFI)'!AQ$32*Амортизація_Depreciation!$E8 -> 0 | T8: ='Фінансування_Financing (CFI)'!AR$32*Амортизація_Depreciation!$E8 -> 0 | U8: ='Фінансування_Financing (CFI)'!AS$32*Амортизація_Depreciation!$E8 -> 0 | V8: ='Фінансування_Financing (CFI)'!AT$32*Амортизація_Depreciation!$E8 -> 0 | W8: ='Фінансування_Financing (CFI)'!AU$32*Амортизація_Depreciation!$E8 -> 0 | X8: ='Фінансування_Financing (CFI)'!AV$32*Амортизація_Depreciation!$E8 -> 0 | Y8: ='Фінансування_Financing (CFI)'!AW$32*Амортизація_Depreciation!$E8 -> 0 | Z8: ='Фінансування_Financing (CFI)'!AX$32*Амортизація_Depreciation!$E8 -> 0 | AA8: ='Фінансування_Financing (CFI)'!AY$32*Амортизація_Depreciation!$E8 -> 0 | AB8: ='Фінансування_Financing (CFI)'!AZ$32*Амортизація_Depreciation!$E8 -> 0 | AC8: ='Фінансування_Financing (CFI)'!BA$32*Амортизація_Depreciation!$E8 -> 0 | AD8: ='Фінансування_Financing (CFI)'!BB$32*Амортизація_Depreciation!$E8 -> 0 | AE8: ='Фінансування_Financing (CFI)'!BC$32*Амортизація_Depreciation!$E8 -> 0 | AF8: ='Фінансування_Financing (CFI)'!BD$32*Амортизація_Depreciation!$E8 -> 0 | AG8: ='Фінансування_Financing (CFI)'!BE$32*Амортизація_Depreciation!$E8 -> 0 | AH8: ='Фінансування_Financing (CFI)'!BF$32*Амортизація_Depreciation!$E8 -> 0 | AI8: ='Фінансування_Financing (CFI)'!BG$32*Амортизація_Depreciation!$E8 -> 0 | AJ8: 0
B9: Група 3 – будівлі / buildings | C9: 20 | D9: =IF('Грошові потоки _ Cash flows'!$E$15>Амортизація_Depreciation!C9, 'Грошові потоки _ Cash flows'!$E$15,Амортизація_Depreciation!C9) -> 25 | F9: ='Фінансування_Financing (CFI)'!AD$32*Амортизація_Depreciation!$E9 -> 0 | G9: ='Фінансування_Financing (CFI)'!AE$32*Амортизація_Depreciation!$E9 -> 0 | H9: ='Фінансування_Financing (CFI)'!AF$32*Амортизація_Depreciation!$E9 -> 0 | I9: ='Фінансування_Financing (CFI)'!AG$32*Амортизація_Depreciation!$E9 -> 0 | J9: ='Фінансування_Financing (CFI)'!AH$32*Амортизація_Depreciation!$E9 -> 0 | K9: ='Фінансування_Financing (CFI)'!AI$32*Амортизація_Depreciation!$E9 -> 0 | L9: ='Фінансування_Financing (CFI)'!AJ$32*Амортизація_Depreciation!$E9 -> 0 | M9: ='Фінансування_Financing (CFI)'!AK$32*Амортизація_Depreciation!$E9 -> 0 | N9: ='Фінансування_Financing (CFI)'!AL$32*Амортизація_Depreciation!$E9 -> 0 | O9: ='Фінансування_Financing (CFI)'!AM$32*Амортизація_Depreciation!$E9 -> 0 | P9: ='Фінансування_Financing (CFI)'!AN$32*Амортизація_Depreciation!$E9 -> 0 | Q9: ='Фінансування_Financing (CFI)'!AO$32*Амортизація_Depreciation!$E9 -> 0 | R9: ='Фінансування_Financing (CFI)'!AP$32*Амортизація_Depreciation!$E9 -> 0 | S9: ='Фінансування_Financing (CFI)'!AQ$32*Амортизація_Depreciation!$E9 -> 0 | T9: ='Фінансування_Financing (CFI)'!AR$32*Амортизація_Depreciation!$E9 -> 0 | U9: ='Фінансування_Financing (CFI)'!AS$32*Амортизація_Depreciation!$E9 -> 0 | V9: ='Фінансування_Financing (CFI)'!AT$32*Амортизація_Depreciation!$E9 -> 0 | W9: ='Фінансування_Financing (CFI)'!AU$32*Амортизація_Depreciation!$E9 -> 0 | X9: ='Фінансування_Financing (CFI)'!AV$32*Амортизація_Depreciation!$E9 -> 0 | Y9: ='Фінансування_Financing (CFI)'!AW$32*Амортизація_Depreciation!$E9 -> 0 | Z9: ='Фінансування_Financing (CFI)'!AX$32*Амортизація_Depreciation!$E9 -> 0 | AA9: ='Фінансування_Financing (CFI)'!AY$32*Амортизація_Depreciation!$E9 -> 0 | AB9: ='Фінансування_Financing (CFI)'!AZ$32*Амортизація_Depreciation!$E9 -> 0 | AC9: ='Фінансування_Financing (CFI)'!BA$32*Амортизація_Depreciation!$E9 -> 0 | AD9: ='Фінансування_Financing (CFI)'!BB$32*Амортизація_Depreciation!$E9 -> 0 | AE9: ='Фінансування_Financing (CFI)'!BC$32*Амортизація_Depreciation!$E9 -> 0 | AF9: ='Фінансування_Financing (CFI)'!BD$32*Амортизація_Depreciation!$E9 -> 0 | AG9: ='Фінансування_Financing (CFI)'!BE$32*Амортизація_Depreciation!$E9 -> 0 | AH9: ='Фінансування_Financing (CFI)'!BF$32*Амортизація_Depreciation!$E9 -> 0 | AI9: ='Фінансування_Financing (CFI)'!BG$32*Амортизація_Depreciation!$E9 -> 0 | AJ9: 0
B10: споруди / constructions | C10: 15 | D10: =IF('Грошові потоки _ Cash flows'!$E$15>Амортизація_Depreciation!C10, 'Грошові потоки _ Cash flows'!$E$15,Амортизація_Depreciation!C10) -> 25 | F10: ='Фінансування_Financing (CFI)'!AD$32*Амортизація_Depreciation!$E10 -> 0 | G10: ='Фінансування_Financing (CFI)'!AE$32*Амортизація_Depreciation!$E10 -> 0 | H10: ='Фінансування_Financing (CFI)'!AF$32*Амортизація_Depreciation!$E10 -> 0 | I10: ='Фінансування_Financing (CFI)'!AG$32*Амортизація_Depreciation!$E10 -> 0 | J10: ='Фінансування_Financing (CFI)'!AH$32*Амортизація_Depreciation!$E10 -> 0 | K10: ='Фінансування_Financing (CFI)'!AI$32*Амортизація_Depreciation!$E10 -> 0 | L10: ='Фінансування_Financing (CFI)'!AJ$32*Амортизація_Depreciation!$E10 -> 0 | M10: ='Фінансування_Financing (CFI)'!AK$32*Амортизація_Depreciation!$E10 -> 0 | N10: ='Фінансування_Financing (CFI)'!AL$32*Амортизація_Depreciation!$E10 -> 0 | O10: ='Фінансування_Financing (CFI)'!AM$32*Амортизація_Depreciation!$E10 -> 0 | P10: ='Фінансування_Financing (CFI)'!AN$32*Амортизація_Depreciation!$E10 -> 0 | Q10: ='Фінансування_Financing (CFI)'!AO$32*Амортизація_Depreciation!$E10 -> 0 | R10: ='Фінансування_Financing (CFI)'!AP$32*Амортизація_Depreciation!$E10 -> 0 | S10: ='Фінансування_Financing (CFI)'!AQ$32*Амортизація_Depreciation!$E10 -> 0 | T10: ='Фінансування_Financing (CFI)'!AR$32*Амортизація_Depreciation!$E10 -> 0 | U10: ='Фінансування_Financing (CFI)'!AS$32*Амортизація_Depreciation!$E10 -> 0 | V10: ='Фінансування_Financing (CFI)'!AT$32*Амортизація_Depreciation!$E10 -> 0 | W10: ='Фінансування_Financing (CFI)'!AU$32*Амортизація_Depreciation!$E10 -> 0 | X10: ='Фінансування_Financing (CFI)'!AV$32*Амортизація_Depreciation!$E10 -> 0 | Y10: ='Фінансування_Financing (CFI)'!AW$32*Амортизація_Depreciation!$E10 -> 0 | Z10: ='Фінансування_Financing (CFI)'!AX$32*Амортизація_Depreciation!$E10 -> 0 | AA10: ='Фінансування_Financing (CFI)'!AY$32*Амортизація_Depreciation!$E10 -> 0 | AB10: ='Фінансування_Financing (CFI)'!AZ$32*Амортизація_Depreciation!$E10 -> 0 | AC10: ='Фінансування_Financing (CFI)'!BA$32*Амортизація_Depreciation!$E10 -> 0 | AD10: ='Фінансування_Financing (CFI)'!BB$32*Амортизація_Depreciation!$E10 -> 0 | AE10: ='Фінансування_Financing (CFI)'!BC$32*Амортизація_Depreciation!$E10 -> 0 | AF10: ='Фінансування_Financing (CFI)'!BD$32*Амортизація_Depreciation!$E10 -> 0 | AG10: ='Фінансування_Financing (CFI)'!BE$32*Амортизація_Depreciation!$E10 -> 0 | AH10: ='Фінансування_Financing (CFI)'!BF$32*Амортизація_Depreciation!$E10 -> 0 | AI10: ='Фінансування_Financing (CFI)'!BG$32*Амортизація_Depreciation!$E10 -> 0 | AJ10: 0
B11: передавальні пристрої / transmitting devices | C11: 10 | D11: =IF('Грошові потоки _ Cash flows'!$E$15>Амортизація_Depreciation!C11, 'Грошові потоки _ Cash flows'!$E$15,Амортизація_Depreciation!C11) -> 25 | F11: ='Фінансування_Financing (CFI)'!AD$32*Амортизація_Depreciation!$E11 -> 0 | G11: ='Фінансування_Financing (CFI)'!AE$32*Амортизація_Depreciation!$E11 -> 0 | H11: ='Фінансування_Financing (CFI)'!AF$32*Амортизація_Depreciation!$E11 -> 0 | I11: ='Фінансування_Financing (CFI)'!AG$32*Амортизація_Depreciation!$E11 -> 0 | J11: ='Фінансування_Financing (CFI)'!AH$32*Амортизація_Depreciation!$E11 -> 0 | K11: ='Фінансування_Financing (CFI)'!AI$32*Амортизація_Depreciation!$E11 -> 0 | L11: ='Фінансування_Financing (CFI)'!AJ$32*Амортизація_Depreciation!$E11 -> 0 | M11: ='Фінансування_Financing (CFI)'!AK$32*Амортизація_Depreciation!$E11 -> 0 | N11: ='Фінансування_Financing (CFI)'!AL$32*Амортизація_Depreciation!$E11 -> 0 | O11: ='Фінансування_Financing (CFI)'!AM$32*Амортизація_Depreciation!$E11 -> 0 | P11: ='Фінансування_Financing (CFI)'!AN$32*Амортизація_Depreciation!$E11 -> 0 | Q11: ='Фінансування_Financing (CFI)'!AO$32*Амортизація_Depreciation!$E11 -> 0 | R11: ='Фінансування_Financing (CFI)'!AP$32*Амортизація_Depreciation!$E11 -> 0 | S11: ='Фінансування_Financing (CFI)'!AQ$32*Амортизація_Depreciation!$E11 -> 0 | T11: ='Фінансування_Financing (CFI)'!AR$32*Амортизація_Depreciation!$E11 -> 0 | U11: ='Фінансування_Financing (CFI)'!AS$32*Амортизація_Depreciation!$E11 -> 0 | V11: ='Фінансування_Financing (CFI)'!AT$32*Амортизація_Depreciation!$E11 -> 0 | W11: ='Фінансування_Financing (CFI)'!AU$32*Амортизація_Depreciation!$E11 -> 0 | X11: ='Фінансування_Financing (CFI)'!AV$32*Амортизація_Depreciation!$E11 -> 0 | Y11: ='Фінансування_Financing (CFI)'!AW$32*Амортизація_Depreciation!$E11 -> 0 | Z11: ='Фінансування_Financing (CFI)'!AX$32*Амортизація_Depreciation!$E11 -> 0 | AA11: ='Фінансування_Financing (CFI)'!AY$32*Амортизація_Depreciation!$E11 -> 0 | AB11: ='Фінансування_Financing (CFI)'!AZ$32*Амортизація_Depreciation!$E11 -> 0 | AC11: ='Фінансування_Financing (CFI)'!BA$32*Амортизація_Depreciation!$E11 -> 0 | AD11: ='Фінансування_Financing (CFI)'!BB$32*Амортизація_Depreciation!$E11 -> 0 | AE11: ='Фінансування_Financing (CFI)'!BC$32*Амортизація_Depreciation!$E11 -> 0 | AF11: ='Фінансування_Financing (CFI)'!BD$32*Амортизація_Depreciation!$E11 -> 0 | AG11: ='Фінансування_Financing (CFI)'!BE$32*Амортизація_Depreciation!$E11 -> 0 | AH11: ='Фінансування_Financing (CFI)'!BF$32*Амортизація_Depreciation!$E11 -> 0 | AI11: ='Фінансування_Financing (CFI)'!BG$32*Амортизація_Depreciation!$E11 -> 0 | AJ11: 0
B12: Група 4 – машини та обладнання / Machines and equipment | C12: 5 | D12: =IF('Грошові потоки _ Cash flows'!$E$15>Амортизація_Depreciation!C12, 'Грошові потоки _ Cash flows'!$E$15,Амортизація_Depreciation!C12) -> 25 | E12: 1 | F12: ='Фінансування_Financing (CFI)'!AD$32*Амортизація_Depreciation!$E12 -> 0 | G12: ='Фінансування_Financing (CFI)'!AE$32*Амортизація_Depreciation!$E12 -> 4278.814994 | H12: ='Фінансування_Financing (CFI)'!AF$32*Амортизація_Depreciation!$E12 -> 0 | I12: ='Фінансування_Financing (CFI)'!AG$32*Амортизація_Depreciation!$E12 -> 0 | J12: ='Фінансування_Financing (CFI)'!AH$32*Амортизація_Depreciation!$E12 -> 0 | K12: ='Фінансування_Financing (CFI)'!AI$32*Амортизація_Depreciation!$E12 -> 0 | L12: ='Фінансування_Financing (CFI)'!AJ$32*Амортизація_Depreciation!$E12 -> 0 | M12: ='Фінансування_Financing (CFI)'!AK$32*Амортизація_Depreciation!$E12 -> 0 | N12: ='Фінансування_Financing (CFI)'!AL$32*Амортизація_Depreciation!$E12 -> 0 | O12: ='Фінансування_Financing (CFI)'!AM$32*Амортизація_Depreciation!$E12 -> 0 | P12: ='Фінансування_Financing (CFI)'!AN$32*Амортизація_Depreciation!$E12 -> 0 | Q12: ='Фінансування_Financing (CFI)'!AO$32*Амортизація_Depreciation!$E12 -> 0 | R12: ='Фінансування_Financing (CFI)'!AP$32*Амортизація_Depreciation!$E12 -> 0 | S12: ='Фінансування_Financing (CFI)'!AQ$32*Амортизація_Depreciation!$E12 -> 0 | T12: ='Фінансування_Financing (CFI)'!AR$32*Амортизація_Depreciation!$E12 -> 0 | U12: ='Фінансування_Financing (CFI)'!AS$32*Амортизація_Depreciation!$E12 -> 0 | V12: ='Фінансування_Financing (CFI)'!AT$32*Амортизація_Depreciation!$E12 -> 0 | W12: ='Фінансування_Financing (CFI)'!AU$32*Амортизація_Depreciation!$E12 -> 0 | X12: ='Фінансування_Financing (CFI)'!AV$32*Амортизація_Depreciation!$E12 -> 0 | Y12: ='Фінансування_Financing (CFI)'!AW$32*Амортизація_Depreciation!$E12 -> 0 | Z12: ='Фінансування_Financing (CFI)'!AX$32*Амортизація_Depreciation!$E12 -> 0 | AA12: ='Фінансування_Financing (CFI)'!AY$32*Амортизація_Depreciation!$E12 -> 0 | AB12: ='Фінансування_Financing (CFI)'!AZ$32*Амортизація_Depreciation!$E12 -> 0 | AC12: ='Фінансування_Financing (CFI)'!BA$32*Амортизація_Depreciation!$E12 -> 0 | AD12: ='Фінансування_Financing (CFI)'!BB$32*Амортизація_Depreciation!$E12 -> 0 | AE12: ='Фінансування_Financing (CFI)'!BC$32*Амортизація_Depreciation!$E12 -> 0 | AF12: ='Фінансування_Financing (CFI)'!BD$32*Амортизація_Depreciation!$E12 -> 0 | AG12: ='Фінансування_Financing (CFI)'!BE$32*Амортизація_Depreciation!$E12 -> 0 | AH12: ='Фінансування_Financing (CFI)'!BF$32*Амортизація_Depreciation!$E12 -> 0 | AI12: ='Фінансування_Financing (CFI)'!BG$32*Амортизація_Depreciation!$E12 -> 0 | AJ12: 4278.814994
B13: Електронно-обчислювальні машини, інші машини для автоматичного оброблення інформації, пов'язані з ними засоби зчитування або друку інформації, пов'язані з ними комп'ютерні програми (крім програм, витрати на придбання яких визнаються роялті, та / або програм, які визнаються нематеріальним активів) , інші інформаційні системи, комутатори, маршрутизатори, модулі, модеми, джерела безперебійного живлення та засоби їх підключення до телекомунікаційних мереж, телефони (в тому числі мобільні), мікрофони і рації, вартість яких перевищує 2500 гривень. | C13: 2 | D13: =IF('Грошові потоки _ Cash flows'!$E$15>Амортизація_Depreciation!C13, 'Грошові потоки _ Cash flows'!$E$15,Амортизація_Depreciation!C13) -> 25 | F13: ='Фінансування_Financing (CFI)'!AD$32*Амортизація_Depreciation!$E13 -> 0 | G13: ='Фінансування_Financing (CFI)'!AE$32*Амортизація_Depreciation!$E13 -> 0 | H13: ='Фінансування_Financing (CFI)'!AF$32*Амортизація_Depreciation!$E13 -> 0 | I13: ='Фінансування_Financing (CFI)'!AG$32*Амортизація_Depreciation!$E13 -> 0 | J13: ='Фінансування_Financing (CFI)'!AH$32*Амортизація_Depreciation!$E13 -> 0 | K13: ='Фінансування_Financing (CFI)'!AI$32*Амортизація_Depreciation!$E13 -> 0 | L13: ='Фінансування_Financing (CFI)'!AJ$32*Амортизація_Depreciation!$E13 -> 0 | M13: ='Фінансування_Financing (CFI)'!AK$32*Амортизація_Depreciation!$E13 -> 0 | N13: ='Фінансування_Financing (CFI)'!AL$32*Амортизація_Depreciation!$E13 -> 0 | O13: ='Фінансування_Financing (CFI)'!AM$32*Амортизація_Depreciation!$E13 -> 0 | P13: ='Фінансування_Financing (CFI)'!AN$32*Амортизація_Depreciation!$E13 -> 0 | Q13: ='Фінансування_Financing (CFI)'!AO$32*Амортизація_Depreciation!$E13 -> 0 | R13: ='Фінансування_Financing (CFI)'!AP$32*Амортизація_Depreciation!$E13 -> 0 | S13: ='Фінансування_Financing (CFI)'!AQ$32*Амортизація_Depreciation!$E13 -> 0 | T13: ='Фінансування_Financing (CFI)'!AR$32*Амортизація_Depreciation!$E13 -> 0 | U13: ='Фінансування_Financing (CFI)'!AS$32*Амортизація_Depreciation!$E13 -> 0 | V13: ='Фінансування_Financing (CFI)'!AT$32*Амортизація_Depreciation!$E13 -> 0 | W13: ='Фінансування_Financing (CFI)'!AU$32*Амортизація_Depreciation!$E13 -> 0 | X13: ='Фінансування_Financing (CFI)'!AV$32*Амортизація_Depreciation!$E13 -> 0 | Y13: ='Фінансування_Financing (CFI)'!AW$32*Амортизація_Depreciation!$E13 -> 0 | Z13: ='Фінансування_Financing (CFI)'!AX$32*Амортизація_Depreciation!$E13 -> 0 | AA13: ='Фінансування_Financing (CFI)'!AY$32*Амортизація_Depreciation!$E13 -> 0 | AB13: ='Фінансування_Financing (CFI)'!AZ$32*Амортизація_Depreciation!$E13 -> 0 | AC13: ='Фінансування_Financing (CFI)'!BA$32*Амортизація_Depreciation!$E13 -> 0 | AD13: ='Фінансування_Financing (CFI)'!BB$32*Амортизація_Depreciation!$E13 -> 0 | AE13: ='Фінансування_Financing (CFI)'!BC$32*Амортизація_Depreciation!$E13 -> 0 | AF13: ='Фінансування_Financing (CFI)'!BD$32*Амортизація_Depreciation!$E13 -> 0 | AG13: ='Фінансування_Financing (CFI)'!BE$32*Амортизація_Depreciation!$E13 -> 0 | AH13: ='Фінансування_Financing (CFI)'!BF$32*Амортизація_Depreciation!$E13 -> 0 | AI13: ='Фінансування_Financing (CFI)'!BG$32*Амортизація_Depreciation!$E13 -> 0 | AJ13: 0
B14: Група 5 – транспортні засоби / vehicles | C14: 5 | D14: =IF('Грошові потоки _ Cash flows'!$E$15>Амортизація_Depreciation!C14, 'Грошові потоки _ Cash flows'!$E$15,Амортизація_Depreciation!C14) -> 25 | F14: ='Фінансування_Financing (CFI)'!AD$32*Амортизація_Depreciation!$E14 -> 0 | G14: ='Фінансування_Financing (CFI)'!AE$32*Амортизація_Depreciation!$E14 -> 0 | H14: ='Фінансування_Financing (CFI)'!AF$32*Амортизація_Depreciation!$E14 -> 0 | I14: ='Фінансування_Financing (CFI)'!AG$32*Амортизація_Depreciation!$E14 -> 0 | J14: ='Фінансування_Financing (CFI)'!AH$32*Амортизація_Depreciation!$E14 -> 0 | K14: ='Фінансування_Financing (CFI)'!AI$32*Амортизація_Depreciation!$E14 -> 0 | L14: ='Фінансування_Financing (CFI)'!AJ$32*Амортизація_Depreciation!$E14 -> 0 | M14: ='Фінансування_Financing (CFI)'!AK$32*Амортизація_Depreciation!$E14 -> 0 | N14: ='Фінансування_Financing (CFI)'!AL$32*Амортизація_Depreciation!$E14 -> 0 | O14: ='Фінансування_Financing (CFI)'!AM$32*Амортизація_Depreciation!$E14 -> 0 | P14: ='Фінансування_Financing (CFI)'!AN$32*Амортизація_Depreciation!$E14 -> 0 | Q14: ='Фінансування_Financing (CFI)'!AO$32*Амортизація_Depreciation!$E14 -> 0 | R14: ='Фінансування_Financing (CFI)'!AP$32*Амортизація_Depreciation!$E14 -> 0 | S14: ='Фінансування_Financing (CFI)'!AQ$32*Амортизація_Depreciation!$E14 -> 0 | T14: ='Фінансування_Financing (CFI)'!AR$32*Амортизація_Depreciation!$E14 -> 0 | U14: ='Фінансування_Financing (CFI)'!AS$32*Амортизація_Depreciation!$E14 -> 0 | V14: ='Фінансування_Financing (CFI)'!AT$32*Амортизація_Depreciation!$E14 -> 0 | W14: ='Фінансування_Financing (CFI)'!AU$32*Амортизація_Depreciation!$E14 -> 0 | X14: ='Фінансування_Financing (CFI)'!AV$32*Амортизація_Depreciation!$E14 -> 0 | Y14: ='Фінансування_Financing (CFI)'!AW$32*Амортизація_Depreciation!$E14 -> 0 | Z14: ='Фінансування_Financing (CFI)'!AX$32*Амортизація_Depreciation!$E14 -> 0 | AA14: ='Фінансування_Financing (CFI)'!AY$32*Амортизація_Depreciation!$E14 -> 0 | AB14: ='Фінансування_Financing (CFI)'!AZ$32*Амортизація_Depreciation!$E14 -> 0 | AC14: ='Фінансування_Financing (CFI)'!BA$32*Амортизація_Depreciation!$E14 -> 0 | AD14: ='Фінансування_Financing (CFI)'!BB$32*Амортизація_Depreciation!$E14 -> 0 | AE14: ='Фінансування_Financing (CFI)'!BC$32*Амортизація_Depreciation!$E14 -> 0 | AF14: ='Фінансування_Financing (CFI)'!BD$32*Амортизація_Depreciation!$E14 -> 0 | AG14: ='Фінансування_Financing (CFI)'!BE$32*Амортизація_Depreciation!$E14 -> 0 | AH14: ='Фінансування_Financing (CFI)'!BF$32*Амортизація_Depreciation!$E14 -> 0 | AI14: ='Фінансування_Financing (CFI)'!BG$32*Амортизація_Depreciation!$E14 -> 0 | AJ14: 0
B15: Група 6 – інструменти, прилади, інвентар (меблі) / tools, devices, inventory (furniture) | C15: 4 | D15: =IF('Грошові потоки _ Cash flows'!$E$15>Амортизація_Depreciation!C15, 'Грошові потоки _ Cash flows'!$E$15,Амортизація_Depreciation!C15) -> 25 | F15: ='Фінансування_Financing (CFI)'!AD$32*Амортизація_Depreciation!$E15 -> 0 | G15: ='Фінансування_Financing (CFI)'!AE$32*Амортизація_Depreciation!$E15 -> 0 | H15: ='Фінансування_Financing (CFI)'!AF$32*Амортизація_Depreciation!$E15 -> 0 | I15: ='Фінансування_Financing (CFI)'!AG$32*Амортизація_Depreciation!$E15 -> 0 | J15: ='Фінансування_Financing (CFI)'!AH$32*Амортизація_Depreciation!$E15 -> 0 | K15: ='Фінансування_Financing (CFI)'!AI$32*Амортизація_Depreciation!$E15 -> 0 | L15: ='Фінансування_Financing (CFI)'!AJ$32*Амортизація_Depreciation!$E15 -> 0 | M15: ='Фінансування_Financing (CFI)'!AK$32*Амортизація_Depreciation!$E15 -> 0 | N15: ='Фінансування_Financing (CFI)'!AL$32*Амортизація_Depreciation!$E15 -> 0 | O15: ='Фінансування_Financing (CFI)'!AM$32*Амортизація_Depreciation!$E15 -> 0 | P15: ='Фінансування_Financing (CFI)'!AN$32*Амортизація_Depreciation!$E15 -> 0 | Q15: ='Фінансування_Financing (CFI)'!AO$32*Амортизація_Depreciation!$E15 -> 0 | R15: ='Фінансування_Financing (CFI)'!AP$32*Амортизація_Depreciation!$E15 -> 0 | S15: ='Фінансування_Financing (CFI)'!AQ$32*Амортизація_Depreciation!$E15 -> 0 | T15: ='Фінансування_Financing (CFI)'!AR$32*Амортизація_Depreciation!$E15 -> 0 | U15: ='Фінансування_Financing (CFI)'!AS$32*Амортизація_Depreciation!$E15 -> 0 | V15: ='Фінансування_Financing (CFI)'!AT$32*Амортизація_Depreciation!$E15 -> 0 | W15: ='Фінансування_Financing (CFI)'!AU$32*Амортизація_Depreciation!$E15 -> 0 | X15: ='Фінансування_Financing (CFI)'!AV$32*Амортизація_Depreciation!$E15 -> 0 | Y15: ='Фінансування_Financing (CFI)'!AW$32*Амортизація_Depreciation!$E15 -> 0 | Z15: ='Фінансування_Financing (CFI)'!AX$32*Амортизація_Depreciation!$E15 -> 0 | AA15: ='Фінансування_Financing (CFI)'!AY$32*Амортизація_Depreciation!$E15 -> 0 | AB15: ='Фінансування_Financing (CFI)'!AZ$32*Амортизація_Depreciation!$E15 -> 0 | AC15: ='Фінансування_Financing (CFI)'!BA$32*Амортизація_Depreciation!$E15 -> 0 | AD15: ='Фінансування_Financing (CFI)'!BB$32*Амортизація_Depreciation!$E15 -> 0 | AE15: ='Фінансування_Financing (CFI)'!BC$32*Амортизація_Depreciation!$E15 -> 0 | AF15: ='Фінансування_Financing (CFI)'!BD$32*Амортизація_Depreciation!$E15 -> 0 | AG15: ='Фінансування_Financing (CFI)'!BE$32*Амортизація_Depreciation!$E15 -> 0 | AH15: ='Фінансування_Financing (CFI)'!BF$32*Амортизація_Depreciation!$E15 -> 0 | AI15: ='Фінансування_Financing (CFI)'!BG$32*Амортизація_Depreciation!$E15 -> 0 | AJ15: 0
B16: Група 7 – тварини / animals | C16: 6 | D16: =IF('Грошові потоки _ Cash flows'!$E$15>Амортизація_Depreciation!C16, 'Грошові потоки _ Cash flows'!$E$15,Амортизація_Depreciation!C16) -> 25 | F16: ='Фінансування_Financing (CFI)'!AD$32*Амортизація_Depreciation!$E16 -> 0 | G16: ='Фінансування_Financing (CFI)'!AE$32*Амортизація_Depreciation!$E16 -> 0 | H16: ='Фінансування_Financing (CFI)'!AF$32*Амортизація_Depreciation!$E16 -> 0 | I16: ='Фінансування_Financing (CFI)'!AG$32*Амортизація_Depreciation!$E16 -> 0 | J16: ='Фінансування_Financing (CFI)'!AH$32*Амортизація_Depreciation!$E16 -> 0 | K16: ='Фінансування_Financing (CFI)'!AI$32*Амортизація_Depreciation!$E16 -> 0 | L16: ='Фінансування_Financing (CFI)'!AJ$32*Амортизація_Depreciation!$E16 -> 0 | M16: ='Фінансування_Financing (CFI)'!AK$32*Амортизація_Depreciation!$E16 -> 0 | N16: ='Фінансування_Financing (CFI)'!AL$32*Амортизація_Depreciation!$E16 -> 0 | O16: ='Фінансування_Financing (CFI)'!AM$32*Амортизація_Depreciation!$E16 -> 0 | P16: ='Фінансування_Financing (CFI)'!AN$32*Амортизація_Depreciation!$E16 -> 0 | Q16: ='Фінансування_Financing (CFI)'!AO$32*Амортизація_Depreciation!$E16 -> 0 | R16: ='Фінансування_Financing (CFI)'!AP$32*Амортизація_Depreciation!$E16 -> 0 | S16: ='Фінансування_Financing (CFI)'!AQ$32*Амортизація_Depreciation!$E16 -> 0 | T16: ='Фінансування_Financing (CFI)'!AR$32*Амортизація_Depreciation!$E16 -> 0 | U16: ='Фінансування_Financing (CFI)'!AS$32*Амортизація_Depreciation!$E16 -> 0 | V16: ='Фінансування_Financing (CFI)'!AT$32*Амортизація_Depreciation!$E16 -> 0 | W16: ='Фінансування_Financing (CFI)'!AU$32*Амортизація_Depreciation!$E16 -> 0 | X16: ='Фінансування_Financing (CFI)'!AV$32*Амортизація_Depreciation!$E16 -> 0 | Y16: ='Фінансування_Financing (CFI)'!AW$32*Амортизація_Depreciation!$E16 -> 0 | Z16: ='Фінансування_Financing (CFI)'!AX$32*Амортизація_Depreciation!$E16 -> 0 | AA16: ='Фінансування_Financing (CFI)'!AY$32*Амортизація_Depreciation!$E16 -> 0 | AB16: ='Фінансування_Financing (CFI)'!AZ$32*Амортизація_Depreciation!$E16 -> 0 | AC16: ='Фінансування_Financing (CFI)'!BA$32*Амортизація_Depreciation!$E16 -> 0 | AD16: ='Фінансування_Financing (CFI)'!BB$32*Амортизація_Depreciation!$E16 -> 0 | AE16: ='Фінансування_Financing (CFI)'!BC$32*Амортизація_Depreciation!$E16 -> 0 | AF16: ='Фінансування_Financing (CFI)'!BD$32*Амортизація_Depreciation!$E16 -> 0 | AG16: ='Фінансування_Financing (CFI)'!BE$32*Амортизація_Depreciation!$E16 -> 0 | AH16: ='Фінансування_Financing (CFI)'!BF$32*Амортизація_Depreciation!$E16 -> 0 | AI16: ='Фінансування_Financing (CFI)'!BG$32*Амортизація_Depreciation!$E16 -> 0 | AJ16: 0
B17: Група 8 – багаторічні насадження / perennial plantings | C17: 10 | D17: =IF('Грошові потоки _ Cash flows'!$E$15>Амортизація_Depreciation!C17, 'Грошові потоки _ Cash flows'!$E$15,Амортизація_Depreciation!C17) -> 25 | F17: ='Фінансування_Financing (CFI)'!AD$32*Амортизація_Depreciation!$E17 -> 0 | G17: ='Фінансування_Financing (CFI)'!AE$32*Амортизація_Depreciation!$E17 -> 0 | H17: ='Фінансування_Financing (CFI)'!AF$32*Амортизація_Depreciation!$E17 -> 0 | I17: ='Фінансування_Financing (CFI)'!AG$32*Амортизація_Depreciation!$E17 -> 0 | J17: ='Фінансування_Financing (CFI)'!AH$32*Амортизація_Depreciation!$E17 -> 0 | K17: ='Фінансування_Financing (CFI)'!AI$32*Амортизація_Depreciation!$E17 -> 0 | L17: ='Фінансування_Financing (CFI)'!AJ$32*Амортизація_Depreciation!$E17 -> 0 | M17: ='Фінансування_Financing (CFI)'!AK$32*Амортизація_Depreciation!$E17 -> 0 | N17: ='Фінансування_Financing (CFI)'!AL$32*Амортизація_Depreciation!$E17 -> 0 | O17: ='Фінансування_Financing (CFI)'!AM$32*Амортизація_Depreciation!$E17 -> 0 | P17: ='Фінансування_Financing (CFI)'!AN$32*Амортизація_Depreciation!$E17 -> 0 | Q17: ='Фінансування_Financing (CFI)'!AO$32*Амортизація_Depreciation!$E17 -> 0 | R17: ='Фінансування_Financing (CFI)'!AP$32*Амортизація_Depreciation!$E17 -> 0 | S17: ='Фінансування_Financing (CFI)'!AQ$32*Амортизація_Depreciation!$E17 -> 0 | T17: ='Фінансування_Financing (CFI)'!AR$32*Амортизація_Depreciation!$E17 -> 0 | U17: ='Фінансування_Financing (CFI)'!AS$32*Амортизація_Depreciation!$E17 -> 0 | V17: ='Фінансування_Financing (CFI)'!AT$32*Амортизація_Depreciation!$E17 -> 0 | W17: ='Фінансування_Financing (CFI)'!AU$32*Амортизація_Depreciation!$E17 -> 0 | X17: ='Фінансування_Financing (CFI)'!AV$32*Амортизація_Depreciation!$E17 -> 0 | Y17: ='Фінансування_Financing (CFI)'!AW$32*Амортизація_Depreciation!$E17 -> 0 | Z17: ='Фінансування_Financing (CFI)'!AX$32*Амортизація_Depreciation!$E17 -> 0 | AA17: ='Фінансування_Financing (CFI)'!AY$32*Амортизація_Depreciation!$E17 -> 0 | AB17: ='Фінансування_Financing (CFI)'!AZ$32*Амортизація_Depreciation!$E17 -> 0 | AC17: ='Фінансування_Financing (CFI)'!BA$32*Амортизація_Depreciation!$E17 -> 0 | AD17: ='Фінансування_Financing (CFI)'!BB$32*Амортизація_Depreciation!$E17 -> 0 | AE17: ='Фінансування_Financing (CFI)'!BC$32*Амортизація_Depreciation!$E17 -> 0 | AF17: ='Фінансування_Financing (CFI)'!BD$32*Амортизація_Depreciation!$E17 -> 0 | AG17: ='Фінансування_Financing (CFI)'!BE$32*Амортизація_Depreciation!$E17 -> 0 | AH17: ='Фінансування_Financing (CFI)'!BF$32*Амортизація_Depreciation!$E17 -> 0 | AI17: ='Фінансування_Financing (CFI)'!BG$32*Амортизація_Depreciation!$E17 -> 0 | AJ17: 0
B18: Група 9 – інші основні засоби / other fixed assets | C18: 12 | D18: =IF('Грошові потоки _ Cash flows'!$E$15>Амортизація_Depreciation!C18, 'Грошові потоки _ Cash flows'!$E$15,Амортизація_Depreciation!C18) -> 25 | F18: ='Фінансування_Financing (CFI)'!AD$32*Амортизація_Depreciation!$E18 -> 0 | G18: ='Фінансування_Financing (CFI)'!AE$32*Амортизація_Depreciation!$E18 -> 0 | H18: ='Фінансування_Financing (CFI)'!AF$32*Амортизація_Depreciation!$E18 -> 0 | I18: ='Фінансування_Financing (CFI)'!AG$32*Амортизація_Depreciation!$E18 -> 0 | J18: ='Фінансування_Financing (CFI)'!AH$32*Амортизація_Depreciation!$E18 -> 0 | K18: ='Фінансування_Financing (CFI)'!AI$32*Амортизація_Depreciation!$E18 -> 0 | L18: ='Фінансування_Financing (CFI)'!AJ$32*Амортизація_Depreciation!$E18 -> 0 | M18: ='Фінансування_Financing (CFI)'!AK$32*Амортизація_Depreciation!$E18 -> 0 | N18: ='Фінансування_Financing (CFI)'!AL$32*Амортизація_Depreciation!$E18 -> 0 | O18: ='Фінансування_Financing (CFI)'!AM$32*Амортизація_Depreciation!$E18 -> 0 | P18: ='Фінансування_Financing (CFI)'!AN$32*Амортизація_Depreciation!$E18 -> 0 | Q18: ='Фінансування_Financing (CFI)'!AO$32*Амортизація_Depreciation!$E18 -> 0 | R18: ='Фінансування_Financing (CFI)'!AP$32*Амортизація_Depreciation!$E18 -> 0 | S18: ='Фінансування_Financing (CFI)'!AQ$32*Амортизація_Depreciation!$E18 -> 0 | T18: ='Фінансування_Financing (CFI)'!AR$32*Амортизація_Depreciation!$E18 -> 0 | U18: ='Фінансування_Financing (CFI)'!AS$32*Амортизація_Depreciation!$E18 -> 0 | V18: ='Фінансування_Financing (CFI)'!AT$32*Амортизація_Depreciation!$E18 -> 0 | W18: ='Фінансування_Financing (CFI)'!AU$32*Амортизація_Depreciation!$E18 -> 0 | X18: ='Фінансування_Financing (CFI)'!AV$32*Амортизація_Depreciation!$E18 -> 0 | Y18: ='Фінансування_Financing (CFI)'!AW$32*Амортизація_Depreciation!$E18 -> 0 | Z18: ='Фінансування_Financing (CFI)'!AX$32*Амортизація_Depreciation!$E18 -> 0 | AA18: ='Фінансування_Financing (CFI)'!AY$32*Амортизація_Depreciation!$E18 -> 0 | AB18: ='Фінансування_Financing (CFI)'!AZ$32*Амортизація_Depreciation!$E18 -> 0 | AC18: ='Фінансування_Financing (CFI)'!BA$32*Амортизація_Depreciation!$E18 -> 0 | AD18: ='Фінансування_Financing (CFI)'!BB$32*Амортизація_Depreciation!$E18 -> 0 | AE18: ='Фінансування_Financing (CFI)'!BC$32*Амортизація_Depreciation!$E18 -> 0 | AF18: ='Фінансування_Financing (CFI)'!BD$32*Амортизація_Depreciation!$E18 -> 0 | AG18: ='Фінансування_Financing (CFI)'!BE$32*Амортизація_Depreciation!$E18 -> 0 | AH18: ='Фінансування_Financing (CFI)'!BF$32*Амортизація_Depreciation!$E18 -> 0 | AI18: ='Фінансування_Financing (CFI)'!BG$32*Амортизація_Depreciation!$E18 -> 0 | AJ18: 0
B19: Інші необоротні матеріальні активи: / Other non-current tangible assets: | E19: =SUM(E20:E26) -> 0 | F19: =SUM(F20:F26) -> 0 | G19: 0 | H19: 0 | I19: 0 | J19: 0 | K19: 0 | L19: 0 | M19: 0 | N19: =SUM(N20:N26) -> 0 | O19: 0 | P19: 0 | Q19: 0 | R19: 0 | S19: 0 | T19: 0 | U19: 0 | V19: 0 | W19: 0 | X19: 0 | Y19: 0 | Z19: 0 | AA19: 0 | AB19: 0 | AC19: 0 | AD19: 0 | AE19: 0 | AF19: 0 | AG19: 0 | AH19: 0 | AI19: =SUM(AI20:AI26) -> 0 | AJ19: 0
B20: Група 10 – бібліотечні фонди /library funds | C20: — | D20: =IF('Грошові потоки _ Cash flows'!$E$15>Амортизація_Depreciation!C20, 'Грошові потоки _ Cash flows'!$E$15,Амортизація_Depreciation!C20) -> — | F20: =$E20*'Фінансування_Financing (CFI)'!AD$32 -> 0 | G20: =$E20*'Фінансування_Financing (CFI)'!AE$32 -> 0 | H20: =$E20*'Фінансування_Financing (CFI)'!AF$32 -> 0 | I20: =$E20*'Фінансування_Financing (CFI)'!AG$32 -> 0 | J20: =$E20*'Фінансування_Financing (CFI)'!AH$32 -> 0 | K20: =$E20*'Фінансування_Financing (CFI)'!AI$32 -> 0 | L20: =$E20*'Фінансування_Financing (CFI)'!AJ$32 -> 0 | M20: =$E20*'Фінансування_Financing (CFI)'!AK$32 -> 0 | N20: =$E20*'Фінансування_Financing (CFI)'!AL$32 -> 0 | O20: =$E20*'Фінансування_Financing (CFI)'!AM$32 -> 0 | P20: =$E20*'Фінансування_Financing (CFI)'!AN$32 -> 0 | Q20: =$E20*'Фінансування_Financing (CFI)'!AO$32 -> 0 | R20: =$E20*'Фінансування_Financing (CFI)'!AP$32 -> 0 | S20: =$E20*'Фінансування_Financing (CFI)'!AQ$32 -> 0 | T20: =$E20*'Фінансування_Financing (CFI)'!AR$32 -> 0 | U20: =$E20*'Фінансування_Financing (CFI)'!AS$32 -> 0 | V20: =$E20*'Фінансування_Financing (CFI)'!AT$32 -> 0 | W20: =$E20*'Фінансування_Financing (CFI)'!AU$32 -> 0 | X20: =$E20*'Фінансування_Financing (CFI)'!AV$32 -> 0 | Y20: =$E20*'Фінансування_Financing (CFI)'!AW$32 -> 0 | Z20: =$E20*'Фінансування_Financing (CFI)'!AX$32 -> 0 | AA20: =$E20*'Фінансування_Financing (CFI)'!AY$32 -> 0 | AB20: =$E20*'Фінансування_Financing (CFI)'!AZ$32 -> 0 | AC20: =$E20*'Фінансування_Financing (CFI)'!BA$32 -> 0 | AD20: =$E20*'Фінансування_Financing (CFI)'!BB$32 -> 0 | AE20: =$E20*'Фінансування_Financing (CFI)'!BC$32 -> 0 | AF20: =$E20*'Фінансування_Financing (CFI)'!BD$32 -> 0 | AG20: =$E20*'Фінансування_Financing (CFI)'!BE$32 -> 0 | AH20: =$E20*'Фінансування_Financing (CFI)'!BF$32 -> 0 | AI20: =$E20*'Фінансування_Financing (CFI)'!BG$32 -> 0 | AJ20: 0
B21: Група 11 – малоцінні необоротні активи / low-value non-current assets | C21: — | D21: =IF('Грошові потоки _ Cash flows'!$E$15>Амортизація_Depreciation!C21, 'Грошові потоки _ Cash flows'!$E$15,Амортизація_Depreciation!C21) -> — | F21: =$E21*'Фінансування_Financing (CFI)'!AD$32 -> 0 | G21: =$E21*'Фінансування_Financing (CFI)'!AE$32 -> 0 | H21: =$E21*'Фінансування_Financing (CFI)'!AF$32 -> 0 | I21: =$E21*'Фінансування_Financing (CFI)'!AG$32 -> 0 | J21: =$E21*'Фінансування_Financing (CFI)'!AH$32 -> 0 | K21: =$E21*'Фінансування_Financing (CFI)'!AI$32 -> 0 | L21: =$E21*'Фінансування_Financing (CFI)'!AJ$32 -> 0 | M21: =$E21*'Фінансування_Financing (CFI)'!AK$32 -> 0 | N21: =$E21*'Фінансування_Financing (CFI)'!AL$32 -> 0 | O21: =$E21*'Фінансування_Financing (CFI)'!AM$32 -> 0 | P21: =$E21*'Фінансування_Financing (CFI)'!AN$32 -> 0 | Q21: =$E21*'Фінансування_Financing (CFI)'!AO$32 -> 0 | R21: =$E21*'Фінансування_Financing (CFI)'!AP$32 -> 0 | S21: =$E21*'Фінансування_Financing (CFI)'!AQ$32 -> 0 | T21: =$E21*'Фінансування_Financing (CFI)'!AR$32 -> 0 | U21: =$E21*'Фінансування_Financing (CFI)'!AS$32 -> 0 | V21: =$E21*'Фінансування_Financing (CFI)'!AT$32 -> 0 | W21: =$E21*'Фінансування_Financing (CFI)'!AU$32 -> 0 | X21: =$E21*'Фінансування_Financing (CFI)'!AV$32 -> 0 | Y21: =$E21*'Фінансування_Financing (CFI)'!AW$32 -> 0 | Z21: =$E21*'Фінансування_Financing (CFI)'!AX$32 -> 0 | AA21: =$E21*'Фінансування_Financing (CFI)'!AY$32 -> 0 | AB21: =$E21*'Фінансування_Financing (CFI)'!AZ$32 -> 0 | AC21: =$E21*'Фінансування_Financing (CFI)'!BA$32 -> 0 | AD21: =$E21*'Фінансування_Financing (CFI)'!BB$32 -> 0 | AE21: =$E21*'Фінансування_Financing (CFI)'!BC$32 -> 0 | AF21: =$E21*'Фінансування_Financing (CFI)'!BD$32 -> 0 | AG21: =$E21*'Фінансування_Financing (CFI)'!BE$32 -> 0 | AH21: =$E21*'Фінансування_Financing (CFI)'!BF$32 -> 0 | AI21: =$E21*'Фінансування_Financing (CFI)'!BG$32 -> 0 | AJ21: 0
B22: Група 12 – тимчасові (нетитульні) споруди / temporary (untitled) buildings | C22: 5 | D22: =IF('Грошові потоки _ Cash flows'!$E$15>Амортизація_Depreciation!C22, 'Грошові потоки _ Cash flows'!$E$15,Амортизація_Depreciation!C22) -> 25 | F22: =$E22*'Фінансування_Financing (CFI)'!AD$32 -> 0 | G22: =$E22*'Фінансування_Financing (CFI)'!AE$32 -> 0 | H22: =$E22*'Фінансування_Financing (CFI)'!AF$32 -> 0 | I22: =$E22*'Фінансування_Financing (CFI)'!AG$32 -> 0 | J22: =$E22*'Фінансування_Financing (CFI)'!AH$32 -> 0 | K22: =$E22*'Фінансування_Financing (CFI)'!AI$32 -> 0 | L22: =$E22*'Фінансування_Financing (CFI)'!AJ$32 -> 0 | M22: =$E22*'Фінансування_Financing (CFI)'!AK$32 -> 0 | N22: =$E22*'Фінансування_Financing (CFI)'!AL$32 -> 0 | O22: =$E22*'Фінансування_Financing (CFI)'!AM$32 -> 0 | P22: =$E22*'Фінансування_Financing (CFI)'!AN$32 -> 0 | Q22: =$E22*'Фінансування_Financing (CFI)'!AO$32 -> 0 | R22: =$E22*'Фінансування_Financing (CFI)'!AP$32 -> 0 | S22: =$E22*'Фінансування_Financing (CFI)'!AQ$32 -> 0 | T22: =$E22*'Фінансування_Financing (CFI)'!AR$32 -> 0 | U22: =$E22*'Фінансування_Financing (CFI)'!AS$32 -> 0 | V22: =$E22*'Фінансування_Financing (CFI)'!AT$32 -> 0 | W22: =$E22*'Фінансування_Financing (CFI)'!AU$32 -> 0 | X22: =$E22*'Фінансування_Financing (CFI)'!AV$32 -> 0 | Y22: =$E22*'Фінансування_Financing (CFI)'!AW$32 -> 0 | Z22: =$E22*'Фінансування_Financing (CFI)'!AX$32 -> 0 | AA22: =$E22*'Фінансування_Financing (CFI)'!AY$32 -> 0 | AB22: =$E22*'Фінансування_Financing (CFI)'!AZ$32 -> 0 | AC22: =$E22*'Фінансування_Financing (CFI)'!BA$32 -> 0 | AD22: =$E22*'Фінансування_Financing (CFI)'!BB$32 -> 0 | AE22: =$E22*'Фінансування_Financing (CFI)'!BC$32 -> 0 | AF22: =$E22*'Фінансування_Financing (CFI)'!BD$32 -> 0 | AG22: =$E22*'Фінансування_Financing (CFI)'!BE$32 -> 0 | AH22: =$E22*'Фінансування_Financing (CFI)'!BF$32 -> 0 | AI22: =$E22*'Фінансування_Financing (CFI)'!BG$32 -> 0 | AJ22: 0
B23: Група 13 – природні ресурси / natural resources | C23: — | D23: =IF('Грошові потоки _ Cash flows'!$E$15>Амортизація_Depreciation!C23, 'Грошові потоки _ Cash flows'!$E$15,Амортизація_Depreciation!C23) -> — | F23: =$E23*'Фінансування_Financing (CFI)'!AD$32 -> 0 | G23: =$E23*'Фінансування_Financing (CFI)'!AE$32 -> 0 | H23: =$E23*'Фінансування_Financing (CFI)'!AF$32 -> 0 | I23: =$E23*'Фінансування_Financing (CFI)'!AG$32 -> 0 | J23: =$E23*'Фінансування_Financing (CFI)'!AH$32 -> 0 | K23: =$E23*'Фінансування_Financing (CFI)'!AI$32 -> 0 | L23: =$E23*'Фінансування_Financing (CFI)'!AJ$32 -> 0 | M23: =$E23*'Фінансування_Financing (CFI)'!AK$32 -> 0 | N23: =$E23*'Фінансування_Financing (CFI)'!AL$32 -> 0 | O23: =$E23*'Фінансування_Financing (CFI)'!AM$32 -> 0 | P23: =$E23*'Фінансування_Financing (CFI)'!AN$32 -> 0 | Q23: =$E23*'Фінансування_Financing (CFI)'!AO$32 -> 0 | R23: =$E23*'Фінансування_Financing (CFI)'!AP$32 -> 0 | S23: =$E23*'Фінансування_Financing (CFI)'!AQ$32 -> 0 | T23: =$E23*'Фінансування_Financing (CFI)'!AR$32 -> 0 | U23: =$E23*'Фінансування_Financing (CFI)'!AS$32 -> 0 | V23: =$E23*'Фінансування_Financing (CFI)'!AT$32 -> 0 | W23: =$E23*'Фінансування_Financing (CFI)'!AU$32 -> 0 | X23: =$E23*'Фінансування_Financing (CFI)'!AV$32 -> 0 | Y23: =$E23*'Фінансування_Financing (CFI)'!AW$32 -> 0 | Z23: =$E23*'Фінансування_Financing (CFI)'!AX$32 -> 0 | AA23: =$E23*'Фінансування_Financing (CFI)'!AY$32 -> 0 | AB23: =$E23*'Фінансування_Financing (CFI)'!AZ$32 -> 0 | AC23: =$E23*'Фінансування_Financing (CFI)'!BA$32 -> 0 | AD23: =$E23*'Фінансування_Financing (CFI)'!BB$32 -> 0 | AE23: =$E23*'Фінансування_Financing (CFI)'!BC$32 -> 0 | AF23: =$E23*'Фінансування_Financing (CFI)'!BD$32 -> 0 | AG23: =$E23*'Фінансування_Financing (CFI)'!BE$32 -> 0 | AH23: =$E23*'Фінансування_Financing (CFI)'!BF$32 -> 0 | AI23: =$E23*'Фінансування_Financing (CFI)'!BG$32 -> 0 | AJ23: =SUM(F23:AI23) -> 0
B24: Група 14 – інвентарна тара / inventory packaging | C24: 6 | D24: =IF('Грошові потоки _ Cash flows'!$E$15>Амортизація_Depreciation!C24, 'Грошові потоки _ Cash flows'!$E$15,Амортизація_Depreciation!C24) -> 25 | F24: =$E24*'Фінансування_Financing (CFI)'!AD$32 -> 0 | G24: =$E24*'Фінансування_Financing (CFI)'!AE$32 -> 0 | H24: =$E24*'Фінансування_Financing (CFI)'!AF$32 -> 0 | I24: =$E24*'Фінансування_Financing (CFI)'!AG$32 -> 0 | J24: =$E24*'Фінансування_Financing (CFI)'!AH$32 -> 0 | K24: =$E24*'Фінансування_Financing (CFI)'!AI$32 -> 0 | L24: =$E24*'Фінансування_Financing (CFI)'!AJ$32 -> 0 | M24: =$E24*'Фінансування_Financing (CFI)'!AK$32 -> 0 | N24: =$E24*'Фінансування_Financing (CFI)'!AL$32 -> 0 | O24: =$E24*'Фінансування_Financing (CFI)'!AM$32 -> 0 | P24: =$E24*'Фінансування_Financing (CFI)'!AN$32 -> 0 | Q24: =$E24*'Фінансування_Financing (CFI)'!AO$32 -> 0 | R24: =$E24*'Фінансування_Financing (CFI)'!AP$32 -> 0 | S24: =$E24*'Фінансування_Financing (CFI)'!AQ$32 -> 0 | T24: =$E24*'Фінансування_Financing (CFI)'!AR$32 -> 0 | U24: =$E24*'Фінансування_Financing (CFI)'!AS$32 -> 0 | V24: =$E24*'Фінансування_Financing (CFI)'!AT$32 -> 0 | W24: =$E24*'Фінансування_Financing (CFI)'!AU$32 -> 0 | X24: =$E24*'Фінансування_Financing (CFI)'!AV$32 -> 0 | Y24: =$E24*'Фінансування_Financing (CFI)'!AW$32 -> 0 | Z24: =$E24*'Фінансування_Financing (CFI)'!AX$32 -> 0 | AA24: =$E24*'Фінансування_Financing (CFI)'!AY$32 -> 0 | AB24: =$E24*'Фінансування_Financing (CFI)'!AZ$32 -> 0 | AC24: =$E24*'Фінансування_Financing (CFI)'!BA$32 -> 0 | AD24: =$E24*'Фінансування_Financing (CFI)'!BB$32 -> 0 | AE24: =$E24*'Фінансування_Financing (CFI)'!BC$32 -> 0 | AF24: =$E24*'Фінансування_Financing (CFI)'!BD$32 -> 0 | AG24: =$E24*'Фінансування_Financing (CFI)'!BE$32 -> 0 | AH24: =$E24*'Фінансування_Financing (CFI)'!BF$32 -> 0 | AI24: =$E24*'Фінансування_Financing (CFI)'!BG$32 -> 0 | AJ24: 0
